Workbook

Sheet Chart
B2: Chip size | C2: =IFERROR(VLOOKUP(C25,Data!$CE$8:$CK$60,2,FALSE),C25) -> 1210 | E2: Calc | G2: Manuel | H2: max | I2: Ecran | J2: simu | K2: Param pricing | AH2: =+HLOOKUP($G$18,Calc!$I$1:$O$2,1) -> 25 | AI2: =+INDEX(Calc!$I$1:$O$1,HLOOKUP($G$18,Calc!$I$1:$O$2,2)+1) -> 50 | AJ2: =IF($C$8="Y",VLOOKUP(L19/$C$9,Calc!$G$3:$O$252,HLOOKUP($G$18,Calc!$I$1:$O$2,2)+2),IF($C$8="A",VLOOKUP(L19/$C$9,Calc!$Q$3:$Y$252,HLOOKUP($G$18,Calc!$S$1:$Y$2,2)+2),VLOOKUP(L19/$C$9,Calc!$AA$3:$AI$252,HLOOKUP($G$18,Calc!$AC$1:$AI$2,2)+2))) -> 89.84857143 | AK2: =IF($C$8="Y",VLOOKUP(L19/$C$9,Calc!$G$3:$O$252,HLOOKUP($G$18,Calc!$I$1:$O$2,2)+3),IF($C$8="A",VLOOKUP(L19/$C$9,Calc!$Q$3:$Y$252,HLOOKUP($G$18,Calc!$S$1:$Y$2,2)+3),VLOOKUP(L19/$C$9,Calc!$AA$3:$AI$252,HLOOKUP($G$18,Calc!$AC$1:$AI$2,2)+3))) -> 88.0516 | AL2: =AS2 -> 100 | AM2: =AT2 -> 98 | AO2: =IFERROR(Data!BG8,"") -> 1210 1G V3-1 | AQ2: =C24&IF(C24="SMD",IF(C26="NPO",1,IF(C26="N2T","N2T",2)),"")&IF(LEFT(C24,5)="Stack",C31,"")&IF(OR(C25="0204",C25="0306",C25="0508",C25="0612"),"LI",IF(OR(LEFT(C24,6)="Encaps",C24="Stack vertical"),"",IF(C27>1000,"HV","BV"))) -> SMD2BV | AS2: =IF($C$8="Y",VLOOKUP(Datas!AH4/$C$9/$C$10,Calc!$G$3:$O$252,HLOOKUP($G$18,Calc!$I$1:$O$2,2)+2),IF($C$8="A",VLOOKUP(Datas!AH4/$C$9/$C$10,Calc!$Q$3:$Y$252,HLOOKUP($G$18,Calc!$S$1:$Y$2,2)+2),VLOOKUP(Datas!AH4/$C$9/$C$10,Calc!$AA$3:$AI$252,HLOOKUP($G$18,Calc!$AC$1:$AI$2,2)+2))) -> 100 | AT2: =IF($C$8="Y",VLOOKUP(Datas!AH4/$C$9/$C$10,Calc!$G$3:$O$252,HLOOKUP($G$18,Calc!$I$1:$O$2,2)+3),IF($C$8="A",VLOOKUP(Datas!AH4/$C$9/$C$10,Calc!$Q$3:$Y$252,HLOOKUP($G$18,Calc!$S$1:$Y$2,2)+3),VLOOKUP(Datas!AH4/$C$9/$C$10,Calc!$AA$3:$AI$252,HLOOKUP($G$18,Calc!$AC$1:$AI$2,2)+3))) -> 98 | AU2: =Chart!$AJ$10*Chart!$C$14/1000000*(Chart!AL2+(Chart!$G$18-Chart!$AH$2)*(Chart!AM2-Chart!AL2)/(Chart!$AI$2-Chart!$AH$2))/100 -> 100
B3: Long chip | C3: =VLOOKUP(C2,Size[],2,FALSE) -> 3.2 | I3: Taille | J3: 4 | K3: Rendement | AA3: Long | AB3: =+C3/10 -> 0.32 | AC3: cm | AD3: Om | AE3: =0.5*(AB6+AB7)/(4.186*AB11*AB10/2) -> 115.5950128 | AF3: °C/W | AG3: 0.0577 | AJ3: =IF($C$8="Y",VLOOKUP(L20/$C$9,Calc!$G$3:$O$252,HLOOKUP($G$18,Calc!$I$1:$O$2,2)+2),IF($C$8="A",VLOOKUP(L20/$C$9,Calc!$Q$3:$Y$252,HLOOKUP($G$18,Calc!$S$1:$Y$2,2)+2),VLOOKUP(L20/$C$9,Calc!$AA$3:$AI$252,HLOOKUP($G$18,Calc!$AC$1:$AI$2,2)+2))) -> 100 | AK3: =IF($C$8="Y",VLOOKUP(L20/$C$9,Calc!$G$3:$O$252,HLOOKUP($G$18,Calc!$I$1:$O$2,2)+3),IF($C$8="A",VLOOKUP(L20/$C$9,Calc!$Q$3:$Y$252,HLOOKUP($G$18,Calc!$S$1:$Y$2,2)+3),VLOOKUP(L20/$C$9,Calc!$AA$3:$AI$252,HLOOKUP($G$18,Calc!$AC$1:$AI$2,2)+3))) -> 98 | AL3: =0.5*AS3+0.25*AS2+0.25*AS4 -> 88.14571429 | AM3: =0.5*AT3+0.25*AT2+0.25*AT4 -> 86.3828 | AO3: =IFERROR(VLOOKUP(C25,Data!$E$8:$E$89,1,FALSE),Data!E4) -> 1210 | AQ3: =VLOOKUP(AQ2,Images!$D$1:$F$25,2,FALSE) -> SMD2 | AS3: =IF($C$8="Y",VLOOKUP(Datas!AH5/$C$9/$C$10,Calc!$G$3:$O$252,HLOOKUP($G$18,Calc!$I$1:$O$2,2)+2),IF($C$8="A",VLOOKUP(Datas!AH5/$C$9/$C$10,Calc!$Q$3:$Y$252,HLOOKUP($G$18,Calc!$S$1:$Y$2,2)+2),VLOOKUP(Datas!AH5/$C$9/$C$10,Calc!$AA$3:$AI$252,HLOOKUP($G$18,Calc!$AC$1:$AI$2,2)+2))) -> 89.84857143 | AT3: =IF($C$8="Y",VLOOKUP(Datas!AH5/$C$9/$C$10,Calc!$G$3:$O$252,HLOOKUP($G$18,Calc!$I$1:$O$2,2)+3),IF($C$8="A",VLOOKUP(Datas!AH5/$C$9/$C$10,Calc!$Q$3:$Y$252,HLOOKUP($G$18,Calc!$S$1:$Y$2,2)+3),VLOOKUP(Datas!AH5/$C$9/$C$10,Calc!$AA$3:$AI$252,HLOOKUP($G$18,Calc!$AC$1:$AI$2,2)+3))) -> 88.0516 | AU3: =Chart!$AJ$10*Chart!$C$14/1000000*(Chart!AL3+(Chart!$G$18-Chart!$AH$2)*(Chart!AM3-Chart!AL3)/(Chart!$AI$2-Chart!$AH$2))/100 -> 88.14571429
B4: larg chip | C4: =VLOOKUP(C2,Size[],3,FALSE) -> 2.5 | E4: Chip ep mm | F4: =capa(C2,C8,C27,"ep",$H$2,Data!$S$4,C14/F15) -> 1.599087426 | H4: =capa(C2,C8,C27,"ep",$H$2,IF(G4="",Data!$S$4,G4),C14/F15,G10,G9,G8,G7,IF(OR(J2="Simu",J4=""),0,J9)) -> 1.599087426 | I4: Code | J4: 0805 G1 | K4: 85/15 Type 1 | L4: 70/30 | AA4: Larg | AB4: =+C4/10 -> 0.25 | AC4: cm | AD4: Oms | AE4: =0.5*(AB6-AB7)/(4.186*AB11*AB10/2) -> 46.2380051 | AF4: °C/W | AL4: 73.455 | AM4: 71.9859 | AS4: =IF($C$8="Y",VLOOKUP(Datas!AH6/$C$9/$C$10,Calc!$G$3:$O$252,HLOOKUP($G$18,Calc!$I$1:$O$2,2)+2),IF($C$8="A",VLOOKUP(Datas!AH6/$C$9/$C$10,Calc!$Q$3:$Y$252,HLOOKUP($G$18,Calc!$S$1:$Y$2,2)+2),VLOOKUP(Datas!AH6/$C$9/$C$10,Calc!$AA$3:$AI$252,HLOOKUP($G$18,Calc!$AC$1:$AI$2,2)+2))) -> 72.88571429 | AT4: =IF($C$8="Y",VLOOKUP(Datas!AH6/$C$9/$C$10,Calc!$G$3:$O$252,HLOOKUP($G$18,Calc!$I$1:$O$2,2)+3),IF($C$8="A",VLOOKUP(Datas!AH6/$C$9/$C$10,Calc!$Q$3:$Y$252,HLOOKUP($G$18,Calc!$S$1:$Y$2,2)+3),VLOOKUP(Datas!AH6/$C$9/$C$10,Calc!$AA$3:$AI$252,HLOOKUP($G$18,Calc!$AC$1:$AI$2,2)+3))) -> 71.428 | AU4: =Chart!$AJ$10*Chart!$C$14/1000000*(Chart!AL4+(Chart!$G$18-Chart!$AH$2)*(Chart!AM4-Chart!AL4)/(Chart!$AI$2-Chart!$AH$2))/100 -> 73.455 | BD4: 1.55
B5: ep tot | C5: =H4*F15 -> 1.599087426 | E5: Nb couche | F5: =capa(C2,C8,C27,"nbc",$H$2,Data!$S$4,C14/F15) -> 33 | H5: =capa(C2,C8,C27,"nbc",$H$2,IF(G4="",Data!$S$4,G4),C14/F15,G10,G9,G8,G7,IF(OR(J2="Simu",J4=""),0,J9)) -> 33 | I5: New code | J5: =IF(J4="","Pas d'écran",_xlfn.XLOOKUP(J4,Ecran[Ecran],Ecran[Nouvelle référence],"Pas d'écran")) -> 1G 0805 V2 | K5: Prix encre | L5: =IF(C8="A",IF(L4="85/15",N11,N10),IF(C8="P",N10,N9)) -> 0 | AA5: Ep | AB5: =+C5/10 -> 0.1599087426 | AC5: Cm | AD5: Acap | AE5: =AB4*AB5 -> 0.03997718564 | AF5: cm2 | AL5: 58.83928571 | AM5: 57.6625 | AS5: =IF($C$8="Y",VLOOKUP(Datas!AH7/$C$9/$C$10,Calc!$G$3:$O$252,HLOOKUP($G$18,Calc!$I$1:$O$2,2)+2),IF($C$8="A",VLOOKUP(Datas!AH7/$C$9/$C$10,Calc!$Q$3:$Y$252,HLOOKUP($G$18,Calc!$S$1:$Y$2,2)+2),VLOOKUP(Datas!AH7/$C$9/$C$10,Calc!$AA$3:$AI$252,HLOOKUP($G$18,Calc!$AC$1:$AI$2,2)+2))) -> 58.2 | AT5: =IF($C$8="Y",VLOOKUP(Datas!AH7/$C$9/$C$10,Calc!$G$3:$O$252,HLOOKUP($G$18,Calc!$I$1:$O$2,2)+3),IF($C$8="A",VLOOKUP(Datas!AH7/$C$9/$C$10,Calc!$Q$3:$Y$252,HLOOKUP($G$18,Calc!$S$1:$Y$2,2)+3),VLOOKUP(Datas!AH7/$C$9/$C$10,Calc!$AA$3:$AI$252,HLOOKUP($G$18,Calc!$AC$1:$AI$2,2)+3))) -> 57.036 | AU5: =Chart!$AJ$10*Chart!$C$14/1000000*(Chart!AL5+(Chart!$G$18-Chart!$AH$2)*(Chart!AM5-Chart!AL5)/(Chart!$AI$2-Chart!$AH$2))/100 -> 58.83928571
B6: Nbc | C6: =H5 -> 33 | E6: V/µm/elec cuit | F6: =capa(C2,C8,C27,"vmic",$H$2,Data!$S$4,C14/F15) -> 14.22262315 | H6: =capa(C2,C8,C27,"vmic",$H$2,IF(G4="",Data!$S$4,G4),C14/F15,G10,G9,G8,G7,IF(OR(J2="Simu",J4=""),0,J9)) -> 14.22262315 | I6: Date | J6: =IF(J4="","Pas d'écran",_xlfn.XLOOKUP(J4,Ecran[Ecran],Ecran[reception],"Pas d'écran")) -> 2014-04-04 | K6: Nb pcs/ecran | L6: =IF(J2="réél",J10,J12) -> 761.4866216 | AA6: L | AB6: =AB3*0.7 -> 0.224 | AD6: Ad | AE6: =AE5-AB10 -> 0.03601718564 | AF6: cm2 | AH6: cap a | AI6: =IF(ISERROR($C$9),"Out of Range",$C$14/1000000*(AJ2+($G$18-AH2)*(AK2-AJ2)/(AI2-AH2))/100) -> 0.08984857143 | AL6: 46.61428571 | AM6: 45.682 | AO6: =IFERROR(VLOOKUP(C29,Data!AF8:AF17,1,FALSE),Data!AF6) -> ± 10% | AS6: =IF($C$8="Y",VLOOKUP(Datas!AH8/$C$9/$C$10,Calc!$G$3:$O$252,HLOOKUP($G$18,Calc!$I$1:$O$2,2)+2),IF($C$8="A",VLOOKUP(Datas!AH8/$C$9/$C$10,Calc!$Q$3:$Y$252,HLOOKUP($G$18,Calc!$S$1:$Y$2,2)+2),VLOOKUP(Datas!AH8/$C$9/$C$10,Calc!$AA$3:$AI$252,HLOOKUP($G$18,Calc!$AC$1:$AI$2,2)+2))) -> 46.07142857 | AT6: =IF($C$8="Y",VLOOKUP(Datas!AH8/$C$9/$C$10,Calc!$G$3:$O$252,HLOOKUP($G$18,Calc!$I$1:$O$2,2)+3),IF($C$8="A",VLOOKUP(Datas!AH8/$C$9/$C$10,Calc!$Q$3:$Y$252,HLOOKUP($G$18,Calc!$S$1:$Y$2,2)+3),VLOOKUP(Datas!AH8/$C$9/$C$10,Calc!$AA$3:$AI$252,HLOOKUP($G$18,Calc!$AC$1:$AI$2,2)+3))) -> 45.15 | AU6: =Chart!$AJ$10*Chart!$C$14/1000000*(Chart!AL6+(Chart!$G$18-Chart!$AH$2)*(Chart!AM6-Chart!AL6)/(Chart!$AI$2-Chart!$AH$2))/100 -> 46.61428571 | BC6: 8.95 | BE6: =BD4/BC6/BC7/BC8 -> 0.005733651081
B7: V/µm/elec cuit | C7: =H6 -> 14.22262315 | E7: Base crue | F7: =capa(C2,C8,C27,"base",$H$2,Data!$S$4,C14/F15) -> 268.9150026 | H7: =capa(C2,C8,C27,"base",$H$2,IF(G4="",Data!$S$4,G4),C14/F15,G10,G9,G8,G7,IF(OR(J2="Simu",J4=""),0,J9)) -> 268.9150026 | I7: Nb Serig | J7: =IF(J4="","Pas d'écran",_xlfn.MAXIFS(#REF!,#REF!,J4)) ->  | K7: Rdt | L7: =IF(L3="",Data!AF6,Chart!L3) -> 0.8450879222 | AA7: l | AB7: =AB3-AB6 -> 0.096 | AD7: Kd | AE7: 0.03 | AF7: cal/s/C/cm | AH7: cap b | AI7: =IF(ISERROR($C$9),"Out of Range",$C$14/1000000*(AJ3+($G$18-AH2)*(AK3-AJ3)/(AI2-AH2))/100) -> 0.1 | AL7: 37.18928571 | AM7: 36.4455 | AO7: =IFERROR(VLOOKUP(C30,INDIRECT(Data!AK5),1,FALSE),Data!AL6) -> Nickel Tin | AS7: =IF($C$8="Y",VLOOKUP(Datas!AH9/$C$9/$C$10,Calc!$G$3:$O$252,HLOOKUP($G$18,Calc!$I$1:$O$2,2)+2),IF($C$8="A",VLOOKUP(Datas!AH9/$C$9/$C$10,Calc!$Q$3:$Y$252,HLOOKUP($G$18,Calc!$S$1:$Y$2,2)+2),VLOOKUP(Datas!AH9/$C$9/$C$10,Calc!$AA$3:$AI$252,HLOOKUP($G$18,Calc!$AC$1:$AI$2,2)+2))) -> 36.11428571 | AT7: =IF($C$8="Y",VLOOKUP(Datas!AH9/$C$9/$C$10,Calc!$G$3:$O$252,HLOOKUP($G$18,Calc!$I$1:$O$2,2)+3),IF($C$8="A",VLOOKUP(Datas!AH9/$C$9/$C$10,Calc!$Q$3:$Y$252,HLOOKUP($G$18,Calc!$S$1:$Y$2,2)+3),VLOOKUP(Datas!AH9/$C$9/$C$10,Calc!$AA$3:$AI$252,HLOOKUP($G$18,Calc!$AC$1:$AI$2,2)+3))) -> 35.392 | AU7: =Chart!$AJ$10*Chart!$C$14/1000000*(Chart!AL7+(Chart!$G$18-Chart!$AH$2)*(Chart!AM7-Chart!AL7)/(Chart!$AI$2-Chart!$AH$2))/100 -> 37.18928571 | BC7: 10.17
B8: ceram type | C8: =VLOOKUP(C26,Data!$M$8:$N$11,2,FALSE) -> Y | E8: Ep couche cru | F8: =capa(C2,C8,C27,"epc",$H$2,Data!$S$4,C14/F15) -> 43.073141 | H8: =capa(C2,C8,C27,"epc",$H$2,IF(G4="",Data!$S$4,G4),C14/F15,G10,G9,G8,G7,IF(OR(J2="Simu",J4=""),0,J9)) -> 43.073141 | I8: Surf | J8: =IF(J4="","Pas d'écran",_xlfn.XLOOKUP(J4,Ecran[Ecran],Ecran[Surface active en cru (mm²)],"Pas d'écran")*_xlfn.XLOOKUP(F10,ceram[cer],ceram[retrait])^2*IF(G9<>"",G9,F9)) -> 1.330953863 | K8: Encre | L8: =H11*C6*0.035/1000*L5*F15 -> 0 | AA8: ep elec | AB8: 0.0006 | AC8: cm | AD8: Od | AE8: =0.5*AB3/(4.186*AE7*AE6) -> 35.37445272 | AF8: °C/W | AI8: =1-AI7/AI6 -> -0.1129837504 | AL8: 30.84285714 | AM8: 30.226 | AO8: =IFERROR(VLOOKUP(C31,INDIRECT(Data!AR5),1,FALSE),Data!AR6) ->  | AS8: =IF($C$8="Y",VLOOKUP(Datas!AH10/$C$9/$C$10,Calc!$G$3:$O$252,HLOOKUP($G$18,Calc!$I$1:$O$2,2)+2),IF($C$8="A",VLOOKUP(Datas!AH10/$C$9/$C$10,Calc!$Q$3:$Y$252,HLOOKUP($G$18,Calc!$S$1:$Y$2,2)+2),VLOOKUP(Datas!AH10/$C$9/$C$10,Calc!$AA$3:$AI$252,HLOOKUP($G$18,Calc!$AC$1:$AI$2,2)+2))) -> 30.45714286 | AT8: =IF($C$8="Y",VLOOKUP(Datas!AH10/$C$9/$C$10,Calc!$G$3:$O$252,HLOOKUP($G$18,Calc!$I$1:$O$2,2)+3),IF($C$8="A",VLOOKUP(Datas!AH10/$C$9/$C$10,Calc!$Q$3:$Y$252,HLOOKUP($G$18,Calc!$S$1:$Y$2,2)+3),VLOOKUP(Datas!AH10/$C$9/$C$10,Calc!$AA$3:$AI$252,HLOOKUP($G$18,Calc!$AC$1:$AI$2,2)+3))) -> 29.848 | AU8: =Chart!$AJ$10*Chart!$C$14/1000000*(Chart!AL8+(Chart!$G$18-Chart!$AH$2)*(Chart!AM8-Chart!AL8)/(Chart!$AI$2-Chart!$AH$2))/100 -> 30.84285714 | BC8: 2.97
B9: ep couche cuit | C9: =capa(C2,C8,C27,"epcu",$H$2,,C14/F15,G10,G9,G8,G7,G11) -> 35.15525896 | E9: Nb electrode | F9: =capa(C2,C8,C27,"nbel",$H$2,Data!$S$4,C14/F15) -> 1 | H9: =capa(C2,C8,C27,"nbel",$H$2,IF(G4="",Data!$S$4,G4),C14/F15,G10,G9,G8,G7,IF(OR(J2="Simu",J4=""),0,J9)) -> 1 | I9: Surf cor | J9: =IFERROR(J8*(1+0.05*J7/30000),"Pas d'écran") -> Pas d'écran | K9: Céramique | L9: =H4*4.8/70*J3*J3/16*IF(H10="UCG980",N6,N7)/IF(AND(J2=1,J8<>"Pas d'écran"),J10,L6)/IFERROR(IF(AND(L3>0,L3>=1),L3,L7),L7)*F15 -> 0 | AA9: Am | AB9: =AB8*AB4*0.8 -> 0.00012 | AC9: cm2 | AD9: Odl | AE9: =AB7/(4.186*AE7*AB10/2) -> 386.0873426 | AF9: °C/W | AL9: 26.61428571 | AM9: 26.082 | AO9: =IFERROR(VLOOKUP(C42,INDIRECT(Data!BK5),1,FALSE),Data!BK6) ->  | AS9: =IF($C$8="Y",VLOOKUP(Datas!AH11/$C$9/$C$10,Calc!$G$3:$O$252,HLOOKUP($G$18,Calc!$I$1:$O$2,2)+2),IF($C$8="A",VLOOKUP(Datas!AH11/$C$9/$C$10,Calc!$Q$3:$Y$252,HLOOKUP($G$18,Calc!$S$1:$Y$2,2)+2),VLOOKUP(Datas!AH11/$C$9/$C$10,Calc!$AA$3:$AI$252,HLOOKUP($G$18,Calc!$AC$1:$AI$2,2)+2))) -> 26.34285714 | AT9: =IF($C$8="Y",VLOOKUP(Datas!AH11/$C$9/$C$10,Calc!$G$3:$O$252,HLOOKUP($G$18,Calc!$I$1:$O$2,2)+3),IF($C$8="A",VLOOKUP(Datas!AH11/$C$9/$C$10,Calc!$Q$3:$Y$252,HLOOKUP($G$18,Calc!$S$1:$Y$2,2)+3),VLOOKUP(Datas!AH11/$C$9/$C$10,Calc!$AA$3:$AI$252,HLOOKUP($G$18,Calc!$AC$1:$AI$2,2)+3))) -> 25.816 | AU9: =Chart!$AJ$10*Chart!$C$14/1000000*(Chart!AL9+(Chart!$G$18-Chart!$AH$2)*(Chart!AM9-Chart!AL9)/(Chart!$AI$2-Chart!$AH$2))/100 -> 26.61428571 | BD9: =BD4/BC8*3.8*4 -> 7.932659933
B10: nb elec tot | C10: =H9 -> 1 | E10: Ceram | F10: =capa(C2,C8,C27,"ceram",$H$2,Data!$S$4,C14/F15) -> X7R262L | H10: =capa(C2,C8,C27,"ceram",$H$2,IF(G4="",Data!$S$4,G4),C14/F15,G10,G9,G8,G7,IF(OR(J2="Simu",J4=""),0,J9)) -> X7R262L | I10: Nb pcs | J10: =IF(J4="","Pas d'écran",_xlfn.XLOOKUP(J4,Ecran[Ecran],Ecran[Nb pcs],"Pas d'écran")) -> 2574 | K10: Coût/pavé | L10: =N8/IF(AND(J2=1,J8<>"Pas d'écran"),J10,L6)/IFERROR(IF(AND(L3>0,L3<=1),L3,L7),L7)*F15 -> 0 | AA10: N Am | AB10: =AB9*MAX(C12,1) -> 0.00396 | AC10: cm2 | AD10: O th ATC | AE10: =0.5/(1/AE3+1/AE8+1/(AE4+AE9)) -> 12.74438842 | AF10: °C/W | AH10: cap | AI10: =Chart!$C$14/1000000*(Chart!AL2+(Chart!$G$18-Chart!$AH$2)*(Chart!AM2-Chart!AL2)/(Chart!$AI$2-Chart!$AH$2))/100 -> 0.1 | AJ10: =IF(AI10<=999/1000000,1000000,IF(AI10<=999/1000,1000,1)) -> 1000 | AK10: =IF(AI10<=999/1000000,"pF",IF(AI10<=999/1000,"nF","µF")) -> nF | AL10: 23.415 | AM10: 22.9467 | AS10: =IF($C$8="Y",VLOOKUP(Datas!AH12/$C$9/$C$10,Calc!$G$3:$O$252,HLOOKUP($G$18,Calc!$I$1:$O$2,2)+2),IF($C$8="A",VLOOKUP(Datas!AH12/$C$9/$C$10,Calc!$Q$3:$Y$252,HLOOKUP($G$18,Calc!$S$1:$Y$2,2)+2),VLOOKUP(Datas!AH12/$C$9/$C$10,Calc!$AA$3:$AI$252,HLOOKUP($G$18,Calc!$AC$1:$AI$2,2)+2))) -> 23.31428571 | AT10: =IF($C$8="Y",VLOOKUP(Datas!AH12/$C$9/$C$10,Calc!$G$3:$O$252,HLOOKUP($G$18,Calc!$I$1:$O$2,2)+3),IF($C$8="A",VLOOKUP(Datas!AH12/$C$9/$C$10,Calc!$Q$3:$Y$252,HLOOKUP($G$18,Calc!$S$1:$Y$2,2)+3),VLOOKUP(Datas!AH12/$C$9/$C$10,Calc!$AA$3:$AI$252,HLOOKUP($G$18,Calc!$AC$1:$AI$2,2)+3))) -> 22.848 | AU10: =Chart!$AJ$10*Chart!$C$14/1000000*(Chart!AL10+(Chart!$G$18-Chart!$AH$2)*(Chart!AM10-Chart!AL10)/(Chart!$AI$2-Chart!$AH$2))/100 -> 23.415
B11: ceram | C11: =H10 -> X7R262L | E11: Surf electrodes | F11: =capa(C2,C8,C27,"surfc",$H$2,Data!$S$4,C14/F15) -> 4.717818731 | H11: =capa(C2,C8,C27,"surfc",$H$2,IF(G4="",Data!$S$4,G4),C14/F15,G10,G9,G8,G7,IF(OR(J2="Simu",J4=""),0,J9)) -> 4.717818731 | I11: Surf Simu | J11: =_xlfn.XLOOKUP(C2,Size[size],INDIRECT("Size["&H9&"]"))*H9 -> 4.717818731 | K11: Tot | L11: =SUM(L8:L10) -> 0 | AA11: Km | AB11: 0.167 | AC11: cal/s/C/cm | AD11: O mult | AE11: =+AE10*6 -> 76.46633054 | AF11: °C/W | AL11: 20.89904762 | AM11: 20.48106667 | AS11: =IF($C$8="Y",VLOOKUP(Datas!AH13/$C$9/$C$10,Calc!$G$3:$O$252,HLOOKUP($G$18,Calc!$I$1:$O$2,2)+2),IF($C$8="A",VLOOKUP(Datas!AH13/$C$9/$C$10,Calc!$Q$3:$Y$252,HLOOKUP($G$18,Calc!$S$1:$Y$2,2)+2),VLOOKUP(Datas!AH13/$C$9/$C$10,Calc!$AA$3:$AI$252,HLOOKUP($G$18,Calc!$AC$1:$AI$2,2)+2))) -> 20.68857143 | AT11: =IF($C$8="Y",VLOOKUP(Datas!AH13/$C$9/$C$10,Calc!$G$3:$O$252,HLOOKUP($G$18,Calc!$I$1:$O$2,2)+3),IF($C$8="A",VLOOKUP(Datas!AH13/$C$9/$C$10,Calc!$Q$3:$Y$252,HLOOKUP($G$18,Calc!$S$1:$Y$2,2)+3),VLOOKUP(Datas!AH13/$C$9/$C$10,Calc!$AA$3:$AI$252,HLOOKUP($G$18,Calc!$AC$1:$AI$2,2)+3))) -> 20.2748 | AU11: =Chart!$AJ$10*Chart!$C$14/1000000*(Chart!AL11+(Chart!$G$18-Chart!$AH$2)*(Chart!AM11-Chart!AL11)/(Chart!$AI$2-Chart!$AH$2))/100 -> 20.89904762
B12: Nbc tot | C12: =C6*F15 -> 33 | E12: Capa parasite | F12: =capa(C2,C8,C27,"capapar",$H$2,Data!$S$4,C14/F15) -> 89.06975763 | H12: =capa(C2,C8,C27,"capapar",$H$2,IF(G4="",Data!$S$4,G4),C14/F15,G10,G9,G8,G7,IF(OR(J2="Simu",J4=""),0,J9)) -> 89.06975763 | I12: Nb pcs simu | J12: =IF(J3=4,_xlfn.XLOOKUP(C2,Size[size],Size[nbpc4]),IF(J3=6,_xlfn.XLOOKUP(C2,Size[size],Size[nbpc6]),_xlfn.XLOOKUP(C2,Size[size],Size[nbpc8]))) -> 761.4866216 | AL12: =AS12 -> 18.9047619 | AM12: =AT12 -> 18.52666667 | AS12: =IF($C$8="Y",VLOOKUP(Datas!AH14/$C$9/$C$10,Calc!$G$3:$O$252,HLOOKUP($G$18,Calc!$I$1:$O$2,2)+2),IF($C$8="A",VLOOKUP(Datas!AH14/$C$9/$C$10,Calc!$Q$3:$Y$252,HLOOKUP($G$18,Calc!$S$1:$Y$2,2)+2),VLOOKUP(Datas!AH14/$C$9/$C$10,Calc!$AA$3:$AI$252,HLOOKUP($G$18,Calc!$AC$1:$AI$2,2)+2))) -> 18.9047619 | AT12: =IF($C$8="Y",VLOOKUP(Datas!AH14/$C$9/$C$10,Calc!$G$3:$O$252,HLOOKUP($G$18,Calc!$I$1:$O$2,2)+3),IF($C$8="A",VLOOKUP(Datas!AH14/$C$9/$C$10,Calc!$Q$3:$Y$252,HLOOKUP($G$18,Calc!$S$1:$Y$2,2)+3),VLOOKUP(Datas!AH14/$C$9/$C$10,Calc!$AA$3:$AI$252,HLOOKUP($G$18,Calc!$AC$1:$AI$2,2)+3))) -> 18.52666667 | AU12: =Chart!$AJ$10*Chart!$C$14/1000000*(Chart!AL12+(Chart!$G$18-Chart!$AH$2)*(Chart!AM12-Chart!AL12)/(Chart!$AI$2-Chart!$AH$2))/100 -> 18.9047619 | BD12: 2.68
B13: Volt/elec | C13: =C27/C10 -> 500 | E13: Capa finale | F13: =capa(C2,C8,C27,,$H$2,Data!$S$4,C14/F15) -> 100000 | H13: =capa(C2,C8,C27,,$H$2,IF(G4="",Data!$S$4,G4),C14/F15,G10,G9,G8,G7,IF(OR(J2="Simu",J4=""),0,J9)) -> 100000
B14: cap tot pF | C14: =VLOOKUP(C28,Data!$P$8:$R$107,3,FALSE) -> 100000 | E14: hauteur lead | F14: =IF(Data!U6="",0,IF(OR(C31="4 wire",C31="M",C31="2 wire"),0,Data!U6)) -> 0 | G14: FIT 0,5V 25°C | H14: =10^9*_xlfn.CHISQ.INV(0.6,2*200+2)/(2*1000*_xlfn.XLOOKUP(C11,ceram[cer],ceram[HaltEOLY])*365*24*((_xlfn.XLOOKUP(C11,ceram[cer],ceram[HaltV])/_xlfn.XLOOKUP(C11,ceram[cer],ceram[Haltep]))/(C27/C10/2/C9))^3*(C9/_xlfn.XLOOKUP(C11,ceram[cer],ceram[Haltep]))^1.25*2^((_xlfn.XLOOKUP(C11,ceram[cer],ceram[HaltT])-25)/10)) -> 2.309081998 | BC14: 10.62 | BE14: =BD12/BC14/BC15/BC16 -> 0.00535885942
B15: Code capa | C15: =IF(C14<10,LEFT(TEXT(C14,"0,0"),1)&"R"&RIGHT(TEXT(C14,"0,0"),1),LEFT(TEXT(C14,"0"),2)&LOG10(C14/LEFT(TEXT(C14,"0"),2))) -> 104 | E15: Nb chip | F15: =Data!S7 -> 1 | BC15: 14.27
BC16: 3.3
F18: Ambiant T° | G18: 25 | H18: °C | K18: Freq Khz | L18: DC Bias (V) | M18: Cap | N18: X (Ohm) | O18: ESR (Ohm) | P18: Z (Ohm) | Q18: Irms max (A) | R18: Vrms max (V)
F19: Max T° Increase | G19: 50 | H19: °C | J19: A | K19: 100 | L19: 50 | M19: =IF(ISERROR($C$9),"Out of Range",fmt(AI6*1000000)) -> 89 nF | N19: =IF(ISERROR($C$9),"Out of Range",(C38*10^-9*2*PI()*1000*K19-1/(2*PI()*1000*K19*$AI$6*10^-6))) -> -17.71335136 | O19: =IF(ISERROR($C$9),"Out of Range",IF(K19<1/(2*PI()*(C38*10^-9*AI6*10^-6)^0.5)*10^-6*1000,ABS(N19)*$C$36+($C$39*$C$14/1000000/AI6)/1000,ABS(N19)*$AG$3+($C$39*$C$14/1000000/AI6)/1000)) -> 0.3142232569 | P19: =IF(ISERROR($C$9),"Out of Range",(N19^2+O19^2)^0.5) -> 17.7161382 | Q19: =IFERROR(MAX(MIN((MAX(MIN(Chart!$G$19,125-Chart!$G$18),0)/Chart!$C$40/(O19*0.92^(MAX(MIN(Chart!$G$19,125-Chart!$G$18),0)/10)))^0.5,(Chart!$C$27-Chart!$L$19)/2/2^0.5/P19),0),NA()) -> 1.946488172 | R19: =IF(ISERROR($C$9),"Out of Range",$C$27/2/2^0.5) -> 176.7766953
F20: PME/BME | G20: PME+BME | J20: B | K20: 1000 | M20: =IF(ISERROR($C$9),"Out of Range",fmt(AI7*1000000)) -> 100 nF | N20: =IF(ISERROR($C$9),"Out of Range",(C38*10^-9*2*PI()*1000*K20-1/(2*PI()*1000*K20*$AI$7*10^-6))) -> -1.588197583 | O20: =IF(ISERROR($C$9),"Out of Range",IF(K20<1/(2*PI()*(C38*10^-9*AI7*10^-6)^0.5)*10^-6*1000,ABS(N20)*$C$36+($C$39*$C$14/1000000/AI7)/1000,ABS(N20)*$AG$3+($C$39*$C$14/1000000/AI7)/1000)) -> 0.09804374829 | P20: =IF(ISERROR($C$9),"Out of Range",(N20^2+O20^2)^0.5) -> 1.591220959 | Q20: =IFERROR(MAX(MIN((MAX(MIN(Chart!$G$19,125-Chart!$G$18),0)/Chart!$C$40/(O20*0.92^(MAX(MIN(Chart!$G$19,125-Chart!$G$18),0)/10)))^0.5,(Chart!$C$27-Chart!$L$20)/2/2^0.5/P20),0),NA()) -> 3.484664562 | R20: =IF(ISERROR($C$9),"Out of Range",($C$27-L20)/2/2^0.5) -> 176.7766953
B23: ="P/N : "&IF(ISERROR($C$9),"Out of Range",IF(C24="Stack","SRMC",IF(C24="Stack vertical","SRTV",""))&C25&C8&C15&VLOOKUP(C29,Data!$AF$8:$AI$17,3,FALSE)&VLOOKUP(C27,Data!$J$8:$K$30,2)&Data!AK6&IF(C24="Stack",Data!AS6&ROUNDDOWN((MIN(C45,C42)-F14),0)*10,"")&IF(C24="Stack vertical",Data!AS6&C42,"")&IF(C32="Reel","B","V"))&IF(C34="BME","BM","") -> P/N : 1210Y104KEXB
B24: Type | C24: SMD
B25: Format | C25: 1210
B26: Céram | C26: X7R
B27: Volt (V) | C27: 500
B28: Capa | C28: 100 nF
B29: Tol | C29: ± 10%
B30: Term | C30: Nickel Tin
B31: Lead Form
B32: Pack | C32: Reel
B34: Type | C34: =IF(ISERROR($C$9),"Out of Range",IF(G20="PME","PME",IF(C14>fmt(Data!R3*F15,"iso",,1),"BME","PME"))) -> PME
B35: Range | C35: =IF(ISERROR($C$9),"Out of Range",IF(H14<1.6,"Normal","Extended")) -> Extended
B36: DF | C36: =IF(ISERROR($C$9),"Out of Range",IF(C8="Y",IF(C9<16,0.0188-(Chart!C9-16)/16*0.023,IF(C9<30,0.025-Chart!C9/30*(0.025-0.013),IF(C9<180,0.013-(Chart!C9-30)/(180-30)*(0.013-0.009),0.009))),0.0003)) -> 0.01286252643
B37: ="Self Res Fr "&G18&"°C" -> Self Res Fr 25°C | C37: =IF(ISERROR($C$9),"Out of Range",1/(2*PI()*(C38*10^-21*C14)^0.5)*10^-6) -> 21.79053731
B38: ESL | C38: =IF(ISERROR($C$9),"Out of Range",(0.42*C3^0.88)/(0.5+C4/C3)^1.1*(1-0.3*(MIN(F5,100)/60)^0.3)*IF(C24="Stack",(F15)^0.6,0.8)) -> 0.5334631006
B39: ="ESR at Res "&G18&"°C" -> ESR at Res 25°C | C39: =IF($C$36="Out of Range","Out of Range",(10^(LOG(0.95*_xlfn.XLOOKUP(C11,ceram[cer],ceram[const])+80)/1.35-1.99+3.25-(LOG10(F13/1000000)+4)/4*(3.25-1.37)))/3/F15) -> 77.6155149
B40: Thermal dissip | C40: =IF(ISERROR($C$9),"Out of Range",AE10*5) -> 63.72194212
B42: =IF(C24="Stack","Max Stack (T)",IF(C24="Stack vertical","Nb leads","")) -> 
B43: Lenght (L) | C43: =IF(ISERROR($C$9),"Out of Range",IFERROR(VLOOKUP(C25,Data!$CE$8:$CK$60,3,FALSE),VLOOKUP(C25,Size[],2,FALSE)+IF(C24="Stack",0.2,IF(C24="Stack vertical",1.4,0)))) -> 3.2
B44: =IF(C24="Encapsulated axial","Diameter (D)","Width (W)") -> Width (W) | C44: =IF(ISERROR($C$9),"Out of Range",IF(C24="Stack vertical",(C42)*2.54,IFERROR(VLOOKUP(C25,Data!$CE$8:$CK$60,4,FALSE),VLOOKUP(C25,Size[],3,FALSE)))) -> 2.5
B45: =IF(C24="SMD","Tickness (T)",IF(LEFT(C24,5)="Stack","Height (T)",IF(C24="Encapsulated axial","","Thickness (T)"))) -> Tickness (T) | C45: =IF(ISERROR($C$9),"Out of Range",IF(C24="Encapsulated axial","",IF(C24="Stack vertical",F14+IF(Chart!$C$25="1210",2,1)*IFERROR(VLOOKUP(C25,Data!$CE$8:$CK$60,4,FALSE),VLOOKUP(C25,Size[],3,FALSE)),IF(RIGHT(C24,6)="radial",C5+0.6,C5+IF(C24="Stack",F14,0))))) -> 1.599087426
B46: =IF(OR(C24="Encapsulated radial",C24="Dipped radial"),"Lead width (LS)","") ->  | C46: =IF(ISERROR($C$9),"Out of Range",IFERROR(VLOOKUP(C25,Data!$CE$8:$CK$60,6,FALSE)*1,"")) -> 
B47: =IF(OR(LEFT(C24,5)="Encap",LEFT(C24,5)="Dippe"),"Lead diam (d)","") ->  | C47: =IF(ISERROR($C$9),"Out of Range",IFERROR(VLOOKUP(C25,Data!$CE$8:$CK$60,7,FALSE),"")) -> 
B57: Datasheet : | C57: =HYPERLINK(IFERROR(VLOOKUP(AQ2,Images!$D$1:$F$25,3,FALSE),"")) -> https://www.srt-microceramique.com/fr/nos-produits/bas-voltage/condensateurs-faible-voltage-class-2/
B59: Simulation tool based on theoretical
B60: and real values - Indicative only
C61: Change Value

Sheet Datas
B3: F (kHz) | C3: X (Ω) A | D3: ESR (Ω) A | E3: Z (Ω) A | F3: Max Irms (A) A | G3: Max ripple Volt (V) A | H3: Phase Angle A | I3: S11 Shunt 50Ω A (dB) | J3: S11 Phase A (°) | K3: S21 Shunt 50Ω A (dB) | L3: S21 Phase A (°) | M3: X (Ω) B | N3: ESR (Ω) B | O3: Z (Ω) B | P3: Max Irms (A) B | Q3: Max ripple Volt (V) B | R3: Phase Angle B | S3: S11 Shunt 50Ω A (dB) | T3: S11 Phase A (°) | U3: S21 Shunt 50Ω A (dB) | V3: S21 Phase A (°) | X3: °C | Y3: T inc | Z3: Power (W) | AA3: ESR A | AB3: ="Temp rise A "&TEXT(Chart!K19,"0")&"Khz (°C)" -> Temp rise A 100Khz (°C) | AC3: VRms Max A (V) | AD3: ESR B | AE3: ="Temp rise B "&TEXT(Chart!K20,"0")&"Khz (°C)" -> Temp rise B 1000Khz (°C) | AF3: VRms Max B (V) | AH3: V | AI3: ="Cap ("&Chart!AK10&")" -> Cap (nF)
B4: 1 | C4: =IFERROR((Chart!$C$38*10^-9*2*PI()*1000*B4:B39-1/(2*PI()*1000*B4:B39*Chart!$AI$6*10^-6)),NA()) -> -1771.368651 | D4: =IFERROR(IF(B4:B39<1/(2*PI()*(Chart!$C$38*10^-9*Chart!$AI$6*10^-6)^0.5)*10^-6*1000,ABS(C4:C39)*Chart!$C$36+(Chart!$C$39*Chart!$C$14/1000000/Chart!$AI$6)/1000,ABS(C4:C39)*Chart!$AG$3+(Chart!$C$39*Chart!$C$14/1000000/Chart!$AI$6)/1000)*0.92^((Chart!$G$18-25)/10),NA()) -> 22.8706609 | E4: =(C4:C39^2+D4:D39^2)^0.5 -> 1771.51629 | F4: =IFERROR(MAX(MIN((MAX(MIN(Chart!$G$19,125-Chart!$G$18),0)/Chart!$C$40/(D4*0.92^(MAX(MIN(Chart!$G$19,125-Chart!$G$18),0)/10)))^0.5,(Chart!$C$27-Chart!$L$19)/2/2^0.5/E4),0),NA()) -> 0.08980951892 | G4: =F4:F39*E4:E39 -> 159.0990258 | H4: =ATAN(C4:C39/D4:D39)*2/PI()*90 -> -89.26027847 | I4: =20*LOG10(IMABS(IMSUB(COMPLEX(1,0),IMDIV(COMPLEX(2/50*D4:D39,2/50*C4:C39),COMPLEX(1+2/50*D4:D39,2/50*C4:C39))))) -> -37.01054955 | J4: =ATAN(IMAGINARY(IMSUB(COMPLEX(1,0),IMDIV(COMPLEX(2/50*D4:D39,2/50*C4:C39),COMPLEX(1+2/50*D4:D39,2/50*C4:C39))))/IMREAL(IMSUB(COMPLEX(1,0),IMDIV(COMPLEX(2/50*D4:D39,2/50*C4:C39),COMPLEX(1+2/50*D4:D39,2/50*C4:C39)))))*2/PI()*90 -> 88.451977 | K4: =20*LOG10(IMABS(IMDIV(COMPLEX(2/50*D4:D39,2/50*C4:C39),COMPLEX(1+2/50*D4:D39,2/50*C4:C39)))) -> -0.002446723244 | L4: =ATAN(IMAGINARY(IMDIV(COMPLEX(2/50*D4:D39,2/50*C4:C39),COMPLEX(1+2/50*D4:D39,2/50*C4:C39)))/IMREAL(IMDIV(COMPLEX(2/50*D4:D39,2/50*C4:C39),COMPLEX(1+2/50*D4:D39,2/50*C4:C39))))*2/PI()*90 -> -0.8083014627 | M4: =IFERROR((Chart!$C$38*10^-9*2*PI()*1000*B4:B39-1/(2*PI()*1000*B4:B39*Chart!$AI$7*10^-6)),NA()) -> -1591.549428 | N4: =IFERROR(IF(B4:B39<1/(2*PI()*(Chart!$C$38*10^-9*Chart!$AI$7*10^-6)^0.5)*10^-6*1000,ABS(M4:M39)*Chart!$C$36+(Chart!$C$39*Chart!$C$14/1000000/Chart!$AI$7)/1000,ABS(M4:M39)*Chart!$AG$3+(Chart!$C$39*Chart!$C$14/1000000/Chart!$AI$7)/1000)*0.92^((Chart!$G$18-25)/10),NA()) -> 20.54896209 | O4: =(M4:M39^2+N4:N39^2)^0.5 -> 1591.682079 | P4: =IFERROR(MAX(MIN((MAX(MIN(Chart!$G$19,125-Chart!$G$18),0)/Chart!$C$40/(N4:N39*0.92^(MAX(MIN(Chart!$G$19,125-Chart!$G$18),0)/10)))^0.5,(Chart!$C$27-Chart!$L$20)/2/2^0.5/O4:O39),0),NA()) -> 0.1110628169 | Q4: =P4:P39*O4:O39 -> 176.7766953 | R4: =ATAN(M4:M39/N4:N39)*2/PI()*90 -> -89.26027847 | S4: =20*LOG10(IMABS(IMSUB(COMPLEX(1,0),IMDIV(COMPLEX(2/50*N4:N39,2/50*M4:M39),COMPLEX(1+2/50*N4:N39,2/50*M4:M39))))) -> -36.08115813 | T4: =ATAN(IMAGINARY(IMSUB(COMPLEX(1,0),IMDIV(COMPLEX(2/50*N4:N39,2/50*M4:M39),COMPLEX(1+2/50*N4:N39,2/50*M4:M39))))/IMREAL(IMSUB(COMPLEX(1,0),IMDIV(COMPLEX(2/50*N4:N39,2/50*M4:M39),COMPLEX(1+2/50*N4:N39,2/50*M4:M39)))))*2/PI()*90 -> 88.36068483 | U4: =20*LOG10(IMABS(IMDIV(COMPLEX(2/50*N4:N39,2/50*M4:M39),COMPLEX(1+2/50*N4:N39,2/50*M4:M39)))) -> -0.002831769445 | V4: =ATAN(IMAGINARY(IMDIV(COMPLEX(2/50*N4:N39,2/50*M4:M39),COMPLEX(1+2/50*N4:N39,2/50*M4:M39)))/IMREAL(IMDIV(COMPLEX(2/50*N4:N39,2/50*M4:M39),COMPLEX(1+2/50*N4:N39,2/50*M4:M39))))*2/PI()*90 -> -0.8995936352 | X4: =Chart!$G$18 -> 25 | Y4: =+X4:X31-$X$4 -> 0 | Z4: =IFERROR(IF(Y4:Y31>Chart!$G$19,NA(),(X4:X31-$X$4)/Chart!$C$40),NA()) -> 0 | AA4: =IFERROR(IF(Y4:Y31>Chart!$G$19,NA(),Chart!$O$19*0.92^((X4:X31-$X$4)/10)),NA()) -> 0.3142232569 | AB4: =IF(Y4:Y31>Chart!$G$19,NA(),IF((Z4:Z31/AA4:AA31)^0.5>Chart!$R$19/Chart!$P$19,NA(),(Z4:Z31/AA4:AA31)^0.5)) -> 0 | AC4: =AB4:AB31*Chart!$P$19 -> 0 | AD4: =IFERROR(IF(Y4:Y31>Chart!$G$19,NA(),Chart!$O$20*0.92^((X4:X31-$X$4)/10)),NA()) -> 0.09804374829 | AE4: =+IF(Y4:Y31>Chart!$G$19,NA(),IF((Z4:Z31/AD4:AD31)^0.5>Chart!$R$19/Chart!$P$19,NA(),(Z4:Z31/AD4:AD31)^0.5)) -> 0 | AF4: =AE4:AE31*Chart!$P$20 -> 0 | AH4: 0 | AI4: =Chart!AU2 -> 100
B5: =B4*10^0.2 -> 1.584893192 | C5: -1117.658057 | D5: 14.4622911 | E5: 1117.751623 | F5: =IFERROR(MAX(MIN((MAX(MIN(Chart!$G$19,125-Chart!$G$18),0)/Chart!$C$40/(D5*0.92^(MAX(MIN(Chart!$G$19,125-Chart!$G$18),0)/10)))^0.5,(Chart!$C$27-Chart!$L$19)/2/2^0.5/E5),0),NA()) -> 0.1423384431 | G5: 159.0990258 | H5: -89.25864445 | I5: -33.01278968 | J5: 87.9778396 | K5: -0.004683669979 | L5: -1.280804851 | M5: -1004.199797 | N5: 12.99416195 | O5: 1004.283865 | P5: =IFERROR(MAX(MIN((MAX(MIN(Chart!$G$19,125-Chart!$G$18),0)/Chart!$C$40/(N5*0.92^(MAX(MIN(Chart!$G$19,125-Chart!$G$18),0)/10)))^0.5,(Chart!$C$27-Chart!$L$20)/2/2^0.5/O5),0),NA()) -> 0.1760226381 | Q5: 176.7766953 | R5: -89.25864445 | S5: -32.08381492 | T5: 87.83323272 | U5: -0.005485393492 | V5: -1.425411736 | X5: =MIN(X4+5,125) -> 30 | Y5: 5 | Z5: 0.07846590725 | AA5: 0.3013923601 | AB5: 0.5102398575 | AC5: 9.03947983 | AD5: 0.09404025974 | AE5: 0.9134474974 | AF5: 1.453496803 | AH5: =AH4+Chart!$C$27/10 -> 50 | AI5: =0.5*Chart!AU3+0.25*Chart!AU2+0.25*Chart!AU4 -> 87.43660714
B6: 2.511886432 | C6: -705.1945547 | D6: 9.156968403 | E6: 705.2540039 | F6: =IFERROR(MAX(MIN((MAX(MIN(Chart!$G$19,125-Chart!$G$18),0)/Chart!$C$40/(D6*0.92^(MAX(MIN(Chart!$G$19,125-Chart!$G$18),0)/10)))^0.5,(Chart!$C$27-Chart!$L$19)/2/2^0.5/E6),0),NA()) -> 0.2255910989 | G6: 159.0990258 | H6: -89.25605472 | I6: -29.01755574 | J6: 87.22697544 | K6: -0.009444708027 | L6: -2.029079288 | M6: -633.6072323 | N6: 8.227405285 | O6: 633.6606466 | P6: =IFERROR(MAX(MIN((MAX(MIN(Chart!$G$19,125-Chart!$G$18),0)/Chart!$C$40/(N6*0.92^(MAX(MIN(Chart!$G$19,125-Chart!$G$18),0)/10)))^0.5,(Chart!$C$27-Chart!$L$20)/2/2^0.5/O6),0),NA()) -> 0.2789769197 | Q6: 176.7766953 | R6: -89.25605472 | S6: -28.0895296 | T6: 86.99806498 | U6: -0.01119504671 | V6: -2.257989744 | X6: 35 | Y6: 10 | Z6: 0.1569318145 | AA6: 0.2890853963 | AB6: 0.7367877925 | AC6: 13.05303435 | AD6: 0.09020024843 | AE6: 1.319020761 | AF6: 2.09885348 | AH6: =AH5+Chart!$C$27/10 -> 100 | AI6: =0.5*Chart!AU4+0.25*Chart!AU3+0.25*Chart!AU5 -> 73.47375
B7: 3.981071706 | C7: -444.9476755 | D7: 5.809536042 | E7: 444.9856005 | F7: =IFERROR(MAX(MIN((MAX(MIN(Chart!$G$19,125-Chart!$G$18),0)/Chart!$C$40/(D7*0.92^(MAX(MIN(Chart!$G$19,125-Chart!$G$18),0)/10)))^0.5,(Chart!$C$27-Chart!$L$19)/2/2^0.5/E7),0),NA()) -> 0.3575374699 | G7: 159.0990258 | H7: -89.25195028 | I7: -25.0281516 | J7: 86.03898765 | K7: -0.02003261866 | L7: -3.212962635 | M7: -399.7791287 | N7: 5.219785123 | O7: 399.8132038 | P7: =IFERROR(MAX(MIN((MAX(MIN(Chart!$G$19,125-Chart!$G$18),0)/Chart!$C$40/(N7*0.92^(MAX(MIN(Chart!$G$19,125-Chart!$G$18),0)/10)))^0.5,(Chart!$C$27-Chart!$L$20)/2/2^0.5/O7),0),NA()) -> 0.4421482173 | Q7: 176.7766953 | R7: -89.25195028 | S7: -24.10234726 | T7: 85.67716422 | U7: -0.02400477889 | V7: -3.574786065 | X7: 40 | Y7: 15 | Z7: 0.2353977218 | AA7: 0.2772809713 | AB7: 0.9213849078 | AC7: 16.32338236 | AD7: 0.08651703896 | AE7: 1.649492343 | AF7: 2.624706789 | AH7: =AH6+Chart!$C$27/10 -> 150 | AI7: =0.5*Chart!AU5+0.25*Chart!AU4+0.25*Chart!AU6 -> 59.43696429
B8: 6.309573445 | C8: -280.7429911 | D8: 3.697448949 | E8: 280.7673381 | F8: =IFERROR(MAX(MIN((MAX(MIN(Chart!$G$19,125-Chart!$G$18),0)/Chart!$C$40/(D8*0.92^(MAX(MIN(Chart!$G$19,125-Chart!$G$18),0)/10)))^0.5,(Chart!$C$27-Chart!$L$19)/2/2^0.5/E8),0),NA()) -> 0.5666578842 | G8: 159.0990258 | H8: -89.2454452 | I8: -21.05252164 | J8: 84.1635176 | K8: -0.04439012516 | L8: -5.081927598 | M8: -252.2435647 | N8: 3.322105032 | O8: 252.2654402 | P8: =IFERROR(MAX(MIN((MAX(MIN(Chart!$G$19,125-Chart!$G$18),0)/Chart!$C$40/(N8*0.92^(MAX(MIN(Chart!$G$19,125-Chart!$G$18),0)/10)))^0.5,(Chart!$C$27-Chart!$L$20)/2/2^0.5/O8),0),NA()) -> 0.5986379602 | Q8: 151.0156685 | R8: -89.2454452 | S8: -20.13201087 | T8: 83.59361678 | U8: -0.05365590287 | V8: -5.651828413 | X8: 45 | Y8: 20 | Z8: 0.313863629 | AA8: 0.2659585646 | AB8: 1.086334334 | AC8: 19.24564919 | AD8: 0.08298422855 | AE8: 1.944790012 | AF8: 3.094590628 | AH8: =AH7+Chart!$C$27/10 -> 200 | AI8: =0.5*Chart!AU6+0.25*Chart!AU5+0.25*Chart!AU7 -> 47.31428571
B9: 10 | C9: -177.1368319 | D9: 2.364811989 | E9: 177.1526166 | F9: =IFERROR(MAX(MIN((MAX(MIN(Chart!$G$19,125-Chart!$G$18),0)/Chart!$C$40/(D9*0.92^(MAX(MIN(Chart!$G$19,125-Chart!$G$18),0)/10)))^0.5,(Chart!$C$27-Chart!$L$19)/2/2^0.5/E9),0),NA()) -> 0.7095330386 | G9: 125.6956343 | H9: -89.23513537 | I9: -17.1098056 | J9: 81.21813848 | K9: -0.1016543486 | L9: -8.016996889 | M9: -159.1549096 | N9: 2.124749745 | O9: 159.1690919 | P9: =IFERROR(MAX(MIN((MAX(MIN(Chart!$G$19,125-Chart!$G$18),0)/Chart!$C$40/(N9*0.92^(MAX(MIN(Chart!$G$19,125-Chart!$G$18),0)/10)))^0.5,(Chart!$C$27-Chart!$L$20)/2/2^0.5/O9),0),NA()) -> 0.7485434922 | Q9: 119.1449879 | R9: -89.23513537 | S9: -16.20194995 | T9: 80.32801874 | U9: -0.1235753541 | V9: -8.907116633 | X9: 50 | Y9: 25 | Z9: 0.3923295363 | AA9: 0.2550984936 | AB9: 1.240142398 | AC9: 21.97053411 | AD9: 0.07959567585 | AE9: 2.220142063 | AF9: 3.532736583 | AH9: =AH8+Chart!$C$27/10 -> 250 | AI9: =0.5*Chart!AU7+0.25*Chart!AU6+0.25*Chart!AU8 -> 37.95892857
B10: 15.84893192 | C10: -111.7657531 | D10: 1.52397476 | E10: 111.7761427 | F10: =IFERROR(MAX(MIN((MAX(MIN(Chart!$G$19,125-Chart!$G$18),0)/Chart!$C$40/(D10*0.92^(MAX(MIN(Chart!$G$19,125-Chart!$G$18),0)/10)))^0.5,(Chart!$C$27-Chart!$L$19)/2/2^0.5/E10),0),NA()) -> 0.8838570793 | G10: 98.79413499 | H10: -89.21879549 | I10: -13.24532827 | J10: 76.64967738 | K10: -0.2371460758 | L10: -12.5691181 | M10: -100.4199271 | N10: 1.369269482 | O10: 100.429262 | P10: =IFERROR(MAX(MIN((MAX(MIN(Chart!$G$19,125-Chart!$G$18),0)/Chart!$C$40/(N10*0.92^(MAX(MIN(Chart!$G$19,125-Chart!$G$18),0)/10)))^0.5,(Chart!$C$27-Chart!$L$20)/2/2^0.5/O10),0),NA()) -> 0.9324519631 | Q10: 93.64546249 | R10: -89.21879548 | S10: -12.36718605 | T10: 75.28687157 | U10: -0.2887807988 | V10: -13.93192391 | X10: 55 | Y10: 30 | Z10: 0.4707954435 | AA10: 0.2446818795 | AB10: 1.387123794 | AC10: 24.57447684 | AD10: 0.07634549027 | AE10: 2.483272798 | AF10: 3.951435724 | AH10: =AH9+Chart!$C$27/10 -> 300 | AI10: =0.5*Chart!AU8+0.25*Chart!AU7+0.25*Chart!AU9 -> 31.37232143
B11: 25.11886432 | C11: -70.51937212 | D11: 0.9934420944 | E11: 70.52636933 | F11: =IFERROR(MAX(MIN((MAX(MIN(Chart!$G$19,125-Chart!$G$18),0)/Chart!$C$40/(D11*0.92^(MAX(MIN(Chart!$G$19,125-Chart!$G$18),0)/10)))^0.5,(Chart!$C$27-Chart!$L$19)/2/2^0.5/E11),0),NA()) -> 1.094711431 | G11: 77.20602267 | H11: -89.19289874 | I11: -9.560639471 | J11: 69.76611242 | K11: -0.552409102 | L11: -19.42678632 | M11: -63.36063988 | N11: 0.8925934198 | O11: 63.36692678 | P11: =IFERROR(MAX(MIN((MAX(MIN(Chart!$G$19,125-Chart!$G$18),0)/Chart!$C$40/(N11*0.92^(MAX(MIN(Chart!$G$19,125-Chart!$G$18),0)/10)))^0.5,(Chart!$C$27-Chart!$L$20)/2/2^0.5/O11),0),NA()) -> 1.154899229 | Q11: 73.18241489 | R11: -89.19289873 | S11: -8.748293072 | T11: 67.77241264 | U11: -0.6698403485 | V11: -21.42048609 | X11: 60 | Y11: 35 | Z11: 0.5492613508 | AA11: 0.2346906141 | AB11: 1.529824668 | AC11: 27.10258524 | AD11: 0.07322802178 | AE11: 2.738740406 | AF11: 4.357941136 | AH11: =AH10+Chart!$C$27/10 -> 350 | AI11: =0.5*Chart!AU9+0.25*Chart!AU8+0.25*Chart!AU10 -> 26.87160714
B12: 39.81071706 | C12: -44.49463545 | D12: 0.6586982312 | E12: 44.49951086 | F12: =IFERROR(MAX(MIN((MAX(MIN(Chart!$G$19,125-Chart!$G$18),0)/Chart!$C$40/(D12*0.92^(MAX(MIN(Chart!$G$19,125-Chart!$G$18),0)/10)))^0.5,(Chart!$C$27-Chart!$L$19)/2/2^0.5/E12),0),NA()) -> 1.34439746 | G12: 59.82502938 | H12: -89.15185569 | I12: -6.254180484 | J12: 60.02926344 | K12: -1.245875913 | L12: -29.12259225 | M12: -39.97778077 | N12: 0.5918307765 | O12: 39.98216126 | P12: =IFERROR(MAX(MIN((MAX(MIN(Chart!$G$19,125-Chart!$G$18),0)/Chart!$C$40/(N12*0.92^(MAX(MIN(Chart!$G$19,125-Chart!$G$18),0)/10)))^0.5,(Chart!$C$27-Chart!$L$20)/2/2^0.5/O12),0),NA()) -> 1.418313247 | Q12: 56.70722893 | R12: -89.15185565 | S12: -5.569129323 | T12: 57.374605 | U12: -1.490604168 | V12: -31.77725065 | X12: 65 | Y12: 40 | Z12: 0.627727258 | AA12: 0.2251073291 | AB12: 1.669900813 | AC12: 29.58419359 | AD12: 0.07023785105 | AE12: 2.989509143 | AF12: 4.756969605 | AH12: =AH11+Chart!$C$27/10 -> 400 | AI12: =0.5*Chart!AU10+0.25*Chart!AU9+0.25*Chart!AU11 -> 23.58583333
B13: 63.09573445 | C13: -28.07408973 | D13: 0.447488528 | E13: 28.07765589 | F13: =IFERROR(MAX(MIN((MAX(MIN(Chart!$G$19,125-Chart!$G$18),0)/Chart!$C$40/(D13*0.92^(MAX(MIN(Chart!$G$19,125-Chart!$G$18),0)/10)))^0.5,(Chart!$C$27-Chart!$L$19)/2/2^0.5/E13),0),NA()) -> 1.631097713 | G13: 45.79740032 | H13: -89.08680804 | I13: -3.611925118 | J13: 47.80956815 | K13: -2.603508348 | L13: -41.2772399 | M13: -25.2241471 | N13: 0.4020617736 | O13: 25.22735124 | P13: =IFERROR(MAX(MIN((MAX(MIN(Chart!$G$19,125-Chart!$G$18),0)/Chart!$C$40/(N13*0.92^(MAX(MIN(Chart!$G$19,125-Chart!$G$18),0)/10)))^0.5,(Chart!$C$27-Chart!$L$20)/2/2^0.5/O13),0),NA()) -> 1.720776791 | Q13: 43.41064051 | R13: -89.08680789 | S13: -3.118461638 | T13: 44.79864741 | U13: -3.039828733 | V13: -44.28816048 | X13: 70 | Y13: 45 | Z13: 0.7061931653 | AA13: 0.215915365 | AB13: 1.808506111 | AC13: 32.0397442 | AD13: 0.06736978004 | AE13: 3.237644721 | AF13: 5.151808139 | AH13: =AH12+Chart!$C$27/10 -> 450 | AI13: =0.5*Chart!AU11+0.25*Chart!AU10+0.25*Chart!AU12 -> 21.02946429
B14: 100 | C14: -17.71335136 | D14: 0.3142232569 | E14: 17.7161382 | F14: =IFERROR(MAX(MIN((MAX(MIN(Chart!$G$19,125-Chart!$G$18),0)/Chart!$C$40/(D14*0.92^(MAX(MIN(Chart!$G$19,125-Chart!$G$18),0)/10)))^0.5,(Chart!$C$27-Chart!$L$19)/2/2^0.5/E14),0),NA()) -> 1.946488172 | G14: 34.48425346 | H14: -88.98371697 | I14: -1.839289995 | J14: 34.98198577 | K14: -4.830708979 | L14: -54.0017312 | M14: -15.91515912 | N14: 0.2823246697 | O14: 15.91766306 | P14: =IFERROR(MAX(MIN((MAX(MIN(Chart!$G$19,125-Chart!$G$18),0)/Chart!$C$40/(N14*0.92^(MAX(MIN(Chart!$G$19,125-Chart!$G$18),0)/10)))^0.5,(Chart!$C$27-Chart!$L$20)/2/2^0.5/O14),0),NA()) -> 2.05350856 | Q14: 32.68705734 | R14: -88.98371638 | S14: -1.547224804 | T14: 32.19031062 | U14: -5.46843883 | V14: -56.79340576 | X14: 75 | Y14: 50 | Z14: 0.7846590725 | AA14: 0.2070987428 | AB14: 1.946488172 | AC14: 34.48425346 | AD14: 0.06461882296 | AE14: 3.484664562 | AF14: 5.544871287 | AH14: =AH13+Chart!$C$27/10 -> 500 | AI14: =Chart!AU12 -> 18.9047619
B15: 158.4893192 | C15: -11.17604939 | D15: 0.2301370375 | E15: 11.17841863 | F15: =IFERROR(MAX(MIN((MAX(MIN(Chart!$G$19,125-Chart!$G$18),0)/Chart!$C$40/(D15*0.92^(MAX(MIN(Chart!$G$19,125-Chart!$G$18),0)/10)))^0.5,(Chart!$C$27-Chart!$L$19)/2/2^0.5/E15),0),NA()) -> 2.274456697 | G15: 25.42482912 | H15: -88.82033291 | I15: -0.8576929861 | J15: 23.89163154 | K15: -7.848885762 | L15: -64.92870136 | M15: -10.04146679 | N15: 0.2067741469 | O15: 10.04359552 | P15: =IFERROR(MAX(MIN((MAX(MIN(Chart!$G$19,125-Chart!$G$18),0)/Chart!$C$40/(N15*0.92^(MAX(MIN(Chart!$G$19,125-Chart!$G$18),0)/10)))^0.5,(Chart!$C$27-Chart!$L$20)/2/2^0.5/O15),0),NA()) -> 2.399511375 | Q15: 24.09972169 | R15: -88.82033053 | S15: -0.7112318039 | T15: 21.72054813 | U15: -8.632247694 | V15: -67.0997824 | X15: 80 | Y15: 55
B16: 251.1886432 | C16: -7.051103685 | D16: 0.1770798144 | E16: 7.053326906 | F16: =IFERROR(MAX(MIN((MAX(MIN(Chart!$G$19,125-Chart!$G$18),0)/Chart!$C$40/(D16*0.92^(MAX(MIN(Chart!$G$19,125-Chart!$G$18),0)/10)))^0.5,(Chart!$C$27-Chart!$L$19)/2/2^0.5/E16),0),NA()) -> 2.592903792 | G16: 18.28859808 | H16: -88.56138922 | I16: -0.3892420382 | J16: 15.64545683 | K16: -11.38016195 | L16: -72.91593238 | M16: -6.335230461 | N16: 0.1591025841 | O16: 6.337227993 | P16: =IFERROR(MAX(MIN((MAX(MIN(Chart!$G$19,125-Chart!$G$18),0)/Chart!$C$40/(N16*0.92^(MAX(MIN(Chart!$G$19,125-Chart!$G$18),0)/10)))^0.5,(Chart!$C$27-Chart!$L$20)/2/2^0.5/O16),0),NA()) -> 2.735472261 | Q16: 17.33531139 | R16: -88.56137975 | S16: -0.3220963061 | T16: 14.13362878 | U16: -12.24290984 | V16: -74.42775098 | X16: 85 | Y16: 60
B17: 398.1071706 | C17: -4.448142494 | D17: 0.1435991573 | E17: 4.450459793 | F17: =IFERROR(MAX(MIN((MAX(MIN(Chart!$G$19,125-Chart!$G$18),0)/Chart!$C$40/(D17*0.92^(MAX(MIN(Chart!$G$19,125-Chart!$G$18),0)/10)))^0.5,(Chart!$C$27-Chart!$L$19)/2/2^0.5/E17),0),NA()) -> 2.879353497 | G17: 12.81444697 | H17: -88.15096544 | I17: -0.1835861946 | J17: 10.03236834 | K17: -15.17428873 | L17: -78.1185971 | M17: -3.996457026 | N17: 0.129020049 | O17: 3.9985391 | P17: =IFERROR(MAX(MIN((MAX(MIN(Chart!$G$19,125-Chart!$G$18),0)/Chart!$C$40/(N17*0.92^(MAX(MIN(Chart!$G$19,125-Chart!$G$18),0)/10)))^0.5,(Chart!$C$27-Chart!$L$20)/2/2^0.5/O17),0),NA()) -> 3.03768216 | Q17: 12.14629089 | R17: -88.15092777 | S17: -0.1531905215 | T17: 9.036499314 | U17: -16.07396375 | V17: -79.11442845 | X17: 90 | Y17: 65
B18: 630.9573445 | C18: -2.805315249 | D18: 0.1224682484 | E18: 2.807987201 | F18: =IFERROR(MAX(MIN((MAX(MIN(Chart!$G$19,125-Chart!$G$18),0)/Chart!$C$40/(D18*0.92^(MAX(MIN(Chart!$G$19,125-Chart!$G$18),0)/10)))^0.5,(Chart!$C$27-Chart!$L$19)/2/2^0.5/E18),0),NA()) -> 3.117878439 | G18: 8.75496275 | H18: -87.50029478 | I18: -0.0962641697 | J18: 6.371571725 | K18: -19.08716187 | L18: -81.12872305 | M18: -2.520320986 | N18: 0.1100332102 | O18: 2.52272178 | P18: =IFERROR(MAX(MIN((MAX(MIN(Chart!$G$19,125-Chart!$G$18),0)/Chart!$C$40/(N18*0.92^(MAX(MIN(Chart!$G$19,125-Chart!$G$18),0)/10)))^0.5,(Chart!$C$27-Chart!$L$20)/2/2^0.5/O18),0),NA()) -> 3.289342074 | Q18: 8.298094892 | R18: -87.50014477 | S18: -0.08167900585 | T18: 5.731642797 | U18: -20.00309205 | V18: -81.76850198 | X18: 95 | Y18: 70
B19: 1000 | C19: -1.768016807 | D19: 0.1091259698 | E19: 1.771381356 | F19: =IFERROR(MAX(MIN((MAX(MIN(Chart!$G$19,125-Chart!$G$18),0)/Chart!$C$40/(D19*0.92^(MAX(MIN(Chart!$G$19,125-Chart!$G$18),0)/10)))^0.5,(Chart!$C$27-Chart!$L$19)/2/2^0.5/E19),0),NA()) -> 3.302987072 | G19: 5.850849717 | H19: -86.46805635 | I19: -0.05931100542 | J19: 4.027738019 | K19: -23.05186979 | L19: -82.44031833 | M19: -1.588197583 | N19: 0.09804374829 | O19: 1.591220959 | P19: =IFERROR(MAX(MIN((MAX(MIN(Chart!$G$19,125-Chart!$G$18),0)/Chart!$C$40/(N19*0.92^(MAX(MIN(Chart!$G$19,125-Chart!$G$18),0)/10)))^0.5,(Chart!$C$27-Chart!$L$20)/2/2^0.5/O19),0),NA()) -> 3.484664562 | Q19: 5.544871287 | R19: -86.46745886 | S19: -0.05135310262 | T19: 3.620833955 | U19: -23.97554347 | V19: -82.8466249 | X19: 100 | Y19: 75
B20: 1584.893192 | C20: -1.112345742 | D20: 0.1006923834 | E20: 1.11689391 | F20: =IFERROR(MAX(MIN((MAX(MIN(Chart!$G$19,125-Chart!$G$18),0)/Chart!$C$40/(D20*0.92^(MAX(MIN(Chart!$G$19,125-Chart!$G$18),0)/10)))^0.5,(Chart!$C$27-Chart!$L$19)/2/2^0.5/E20),0),NA()) -> 3.438528447 | G20: 3.840471481 | H20: -84.82753696 | I20: -0.0434343791 | J20: 2.537421837 | K20: -27.04199609 | L20: -82.29011512 | M20: -0.9988874822 | N20: 0.09046373154 | O20: 1.002975518 | P20: =IFERROR(MAX(MIN((MAX(MIN(Chart!$G$19,125-Chart!$G$18),0)/Chart!$C$40/(N20*0.92^(MAX(MIN(Chart!$G$19,125-Chart!$G$18),0)/10)))^0.5,(Chart!$C$27-Chart!$L$20)/2/2^0.5/O20),0),NA()) -> 3.627719362 | Q20: 3.638513705 | R20: -84.82515426 | S20: -0.03825149468 | T20: 2.279823507 | U20: -27.97124503 | V20: -82.54533075 | X20: 105 | Y20: 80
B21: 2511.886432 | C21: -0.6967751028 | D21: 0.09534709504 | E21: 0.7032685209 | F21: =IFERROR(MAX(MIN((MAX(MIN(Chart!$G$19,125-Chart!$G$18),0)/Chart!$C$40/(D21*0.92^(MAX(MIN(Chart!$G$19,125-Chart!$G$18),0)/10)))^0.5,(Chart!$C$27-Chart!$L$19)/2/2^0.5/E21),0),NA()) -> 3.533598476 | G21: 2.485068574 | H21: -82.20800885 | I21: -0.03641065516 | J21: 1.590415089 | K21: -31.05278726 | L21: -80.61759376 | M21: -0.6251877804 | N21: 0.08565700925 | O21: 0.6310284336 | P21: =IFERROR(MAX(MIN((MAX(MIN(Chart!$G$19,125-Chart!$G$18),0)/Chart!$C$40/(N21*0.92^(MAX(MIN(Chart!$G$19,125-Chart!$G$18),0)/10)))^0.5,(Chart!$C$27-Chart!$L$20)/2/2^0.5/O21),0),NA()) -> 3.728116529 | Q21: 2.352547534 | R21: -82.19847647 | S21: -0.03240604405 | T21: 1.427636827 | U21: -31.99022764 | V21: -80.77083964 | X21: 110 | Y21: 85
B22: 3981.071706 | C22: -0.4316037436 | D22: 0.09193632143 | E22: 0.441286844 | F22: =IFERROR(MAX(MIN((MAX(MIN(Chart!$G$19,125-Chart!$G$18),0)/Chart!$C$40/(D22*0.92^(MAX(MIN(Chart!$G$19,125-Chart!$G$18),0)/10)))^0.5,(Chart!$C$27-Chart!$L$19)/2/2^0.5/E22),0),NA()) -> 3.598548585 | G22: 1.587992148 | H22: -77.97509343 | I22: -0.0331681211 | J22: 0.9854414651 | K22: -35.09754869 | L22: -76.98965196 | M22: -0.3864351968 | N22: 0.08258604783 | O22: 0.395161507 | P22: =IFERROR(MAX(MIN((MAX(MIN(Chart!$G$19,125-Chart!$G$18),0)/Chart!$C$40/(N22*0.92^(MAX(MIN(Chart!$G$19,125-Chart!$G$18),0)/10)))^0.5,(Chart!$C$27-Chart!$L$20)/2/2^0.5/O22),0),NA()) -> 3.796798858 | Q22: 1.500348758 | R22: -77.93664524 | S22: -0.02967676452 | T22: 0.8826583602 | U22: -36.05298428 | V22: -77.05398688 | X22: 115 | Y22: 90
B23: 6309.573445 | C23: -0.2595942841 | D23: 0.08972384521 | E23: 0.2746626308 | F23: =IFERROR(MAX(MIN((MAX(MIN(Chart!$G$19,125-Chart!$G$18),0)/Chart!$C$40/(D23*0.92^(MAX(MIN(Chart!$G$19,125-Chart!$G$18),0)/10)))^0.5,(Chart!$C$27-Chart!$L$19)/2/2^0.5/E23),0),NA()) -> 3.642646214 | G23: 1.000498792 | H23: -70.93326117 | I23: -0.0315823505 | J23: 0.5927975228 | K23: -39.21439101 | L23: -70.34046365 | M23: -0.2310948578 | N23: 0.08058797862 | O23: 0.2447432442 | P23: =IFERROR(MAX(MIN((MAX(MIN(Chart!$G$19,125-Chart!$G$18),0)/Chart!$C$40/(N23*0.92^(MAX(MIN(Chart!$G$19,125-Chart!$G$18),0)/10)))^0.5,(Chart!$C$27-Chart!$L$20)/2/2^0.5/O23),0),NA()) -> 3.843578901 | Q23: 0.9406899696 | R23: -70.77518672 | S23: -0.02832279861 | T23: 0.5279136732 | U23: -40.21290872 | V23: -70.24727305 | X23: 120 | Y23: 95
B24: 10000 | C24: -0.1436183903 | D24: 0.08823210221 | E24: 0.1685560616 | F24: =IFERROR(MAX(MIN((MAX(MIN(Chart!$G$19,125-Chart!$G$18),0)/Chart!$C$40/(D24*0.92^(MAX(MIN(Chart!$G$19,125-Chart!$G$18),0)/10)))^0.5,(Chart!$C$27-Chart!$L$19)/2/2^0.5/E24),0),NA()) -> 3.673310316 | G24: 0.6191587199 | H24: -58.43547229 | I24: -0.03074332112 | J24: 0.327987947 | K24: -43.45465599 | L24: -58.10748435 | M24: -0.1256364679 | N24: 0.07923151729 | O24: 0.1485333478 | P24: =IFERROR(MAX(MIN((MAX(MIN(Chart!$G$19,125-Chart!$G$18),0)/Chart!$C$40/(N24*0.92^(MAX(MIN(Chart!$G$19,125-Chart!$G$18),0)/10)))^0.5,(Chart!$C$27-Chart!$L$20)/2/2^0.5/O24),0),NA()) -> 3.876340739 | Q24: 0.5757658672 | R24: -57.76278527 | S24: -0.02759330788 | T24: 0.2870255073 | U24: -44.54991409 | V24: -57.47575977 | X24: 125 | Y24: 100
B25: 15848.93192 | C25: -0.05864260314 | D25: 0.0871390989 | E25: 0.1050341728 | F25: =IFERROR(MAX(MIN((MAX(MIN(Chart!$G$19,125-Chart!$G$18),0)/Chart!$C$40/(D25*0.92^(MAX(MIN(Chart!$G$19,125-Chart!$G$18),0)/10)))^0.5,(Chart!$C$27-Chart!$L$19)/2/2^0.5/E25),0),NA()) -> 3.696276061 | G25: 0.3882352986 | H25: -33.93964387 | I25: -0.03024631354 | J25: 0.1339318735 | K25: -47.5624341 | L25: -33.805712 | M25: -0.04729677716 | N25: 0.07822387095 | O25: 0.09141093543 | P25: =IFERROR(MAX(MIN((MAX(MIN(Chart!$G$19,125-Chart!$G$18),0)/Chart!$C$40/(N25*0.92^(MAX(MIN(Chart!$G$19,125-Chart!$G$18),0)/10)))^0.5,(Chart!$C$27-Chart!$L$20)/2/2^0.5/O25),0),NA()) -> 3.90122753 | Q25: 0.3566148578 | R25: -31.15856573 | S25: -0.02715077322 | T25: 0.1080579915 | U25: -48.76598788 | V25: -31.05050774 | X25: 125 | Y25: 100
B26: 25118.86432 | C26: 0.01367514664 | D26: 0.08717386283 | E26: 0.08823996825 | F26: =IFERROR(MAX(MIN((MAX(MIN(Chart!$G$19,125-Chart!$G$18),0)/Chart!$C$40/(D26*0.92^(MAX(MIN(Chart!$G$19,125-Chart!$G$18),0)/10)))^0.5,(Chart!$C$27-Chart!$L$19)/2/2^0.5/E26),0),NA()) -> 3.695538972 | G26: 0.3260942415 | H26: 8.915449898 | I26: -0.03023590975 | J26: -0.03123221904 | K26: -49.07572922 | L26: 8.884217679 | M26: 0.02083387888 | N26: 0.07881762971 | O26: 0.08152465432 | P26: =IFERROR(MAX(MIN((MAX(MIN(Chart!$G$19,125-Chart!$G$18),0)/Chart!$C$40/(N26*0.92^(MAX(MIN(Chart!$G$19,125-Chart!$G$18),0)/10)))^0.5,(Chart!$C$27-Chart!$L$20)/2/2^0.5/O26),0),NA()) -> 3.886505144 | Q26: 0.3168459884 | R26: 14.80636192 | S26: -0.02734397009 | T26: -0.04759766085 | U26: -49.76036482 | V26: 14.75876426 | X26: 125 | Y26: 100
B27: 39810.71706 | C27: 0.08894468417 | D27: 0.09151691514 | E27: 0.1276185825 | F27: =IFERROR(MAX(MIN((MAX(MIN(Chart!$G$19,125-Chart!$G$18),0)/Chart!$C$40/(D27*0.92^(MAX(MIN(Chart!$G$19,125-Chart!$G$18),0)/10)))^0.5,(Chart!$C$27-Chart!$L$19)/2/2^0.5/E27),0),NA()) -> 3.606784924 | G27: 0.4602927794 | H27: 44.18338306 | I27: -0.03179274851 | J27: -0.2031018565 | K27: -45.87231459 | L27: 43.9802812 | M27: 0.09346153885 | N27: 0.08300824569 | O27: 0.1250017124 | P27: =IFERROR(MAX(MIN((MAX(MIN(Chart!$G$19,125-Chart!$G$18),0)/Chart!$C$40/(N27*0.92^(MAX(MIN(Chart!$G$19,125-Chart!$G$18),0)/10)))^0.5,(Chart!$C$27-Chart!$L$20)/2/2^0.5/O27),0),NA()) -> 3.787130879 | Q27: 0.4733978449 | R27: 48.38998845 | S27: -0.0288525409 | T27: -0.2134882263 | U27: -46.04933347 | V27: 48.17650023 | X27: 125 | Y27: 100
B28: 63095.73445 | C28: 0.1834129795 | D28: 0.09696773579 | E28: 0.2074682213 | F28: =IFERROR(MAX(MIN((MAX(MIN(Chart!$G$19,125-Chart!$G$18),0)/Chart!$C$40/(D28*0.92^(MAX(MIN(Chart!$G$19,125-Chart!$G$18),0)/10)))^0.5,(Chart!$C$27-Chart!$L$19)/2/2^0.5/E28),0),NA()) -> 3.503945193 | G28: 0.7269572766 | H28: 62.13525248 | I28: -0.03385682142 | J28: -0.4187200088 | K28: -41.65362532 | L28: 61.71653247 | M28: 0.1862629222 | N28: 0.08836288551 | O28: 0.2061598305 | P28: =IFERROR(MAX(MIN((MAX(MIN(Chart!$G$19,125-Chart!$G$18),0)/Chart!$C$40/(N28*0.92^(MAX(MIN(Chart!$G$19,125-Chart!$G$18),0)/10)))^0.5,(Chart!$C$27-Chart!$L$20)/2/2^0.5/O28),0),NA()) -> 3.670590931 | Q28: 0.7567284041 | R28: 64.6203988 | S28: -0.03088565879 | T28: -0.4253718465 | U28: -41.70560486 | V28: 64.19502696 | X28: 125 | Y28: 100
B29: 100000 | C29: 0.317471065 | D29: 0.1047028873 | E29: 0.3342911482 | F29: =IFERROR(MAX(MIN((MAX(MIN(Chart!$G$19,125-Chart!$G$18),0)/Chart!$C$40/(D29*0.92^(MAX(MIN(Chart!$G$19,125-Chart!$G$18),0)/10)))^0.5,(Chart!$C$27-Chart!$L$19)/2/2^0.5/E29),0),NA()) -> 3.372031344 | G29: 1.12724023 | H29: 71.74729309 | I29: -0.03699600515 | J29: -0.7245169438 | K29: -37.51329864 | L29: 71.02277614 | M29: 0.3192692573 | N29: 0.09603735105 | O29: 0.333400707 | P29: =IFERROR(MAX(MIN((MAX(MIN(Chart!$G$19,125-Chart!$G$18),0)/Chart!$C$40/(N29*0.92^(MAX(MIN(Chart!$G$19,125-Chart!$G$18),0)/10)))^0.5,(Chart!$C$27-Chart!$L$20)/2/2^0.5/O29),0),NA()) -> 3.520876936 | Q29: 1.17386286 | R29: 73.25852244 | S29: -0.03400570228 | T29: -0.7288718109 | U29: -37.53347555 | V29: 72.52965063 | X29: 125 | Y29: 100
B30: 158489.3192 | C30: 0.5200554504 | D30: 0.1163920064 | E30: 0.5329209797 | F30: =IFERROR(MAX(MIN((MAX(MIN(Chart!$G$19,125-Chart!$G$18),0)/Chart!$C$40/(D30*0.92^(MAX(MIN(Chart!$G$19,125-Chart!$G$18),0)/10)))^0.5,(Chart!$C$27-Chart!$L$19)/2/2^0.5/E30),0),NA()) -> 3.19822751 | G30: 1.704402538 | H30: 77.3846979 | I30: -0.04220643682 | J30: -1.186186504 | K30: -33.46775026 | L30: 76.19851139 | M30: 0.521190033 | N30: 0.1076881798 | O30: 0.5321990178 | P30: =IFERROR(MAX(MIN((MAX(MIN(Chart!$G$19,125-Chart!$G$18),0)/Chart!$C$40/(N30*0.92^(MAX(MIN(Chart!$G$19,125-Chart!$G$18),0)/10)))^0.5,(Chart!$C$27-Chart!$L$20)/2/2^0.5/O30),0),NA()) -> 3.324963742 | Q30: 1.769542437 | R30: 78.32583752 | S30: -0.03920533561 | T30: -1.189185596 | U30: -33.47652414 | V30: 77.13665193 | X30: 125 | Y30: 100
B31: 251188.6432 | C31: 0.8348940839 | D31: 0.1345581955 | E31: 0.8456678067 | F31: =IFERROR(MAX(MIN((MAX(MIN(Chart!$G$19,125-Chart!$G$18),0)/Chart!$C$40/(D31*0.92^(MAX(MIN(Chart!$G$19,125-Chart!$G$18),0)/10)))^0.5,(Chart!$C$27-Chart!$L$19)/2/2^0.5/E31),0),NA()) -> 2.974512886 | G31: 2.515449789 | H31: 80.8444849 | I31: -0.05141416561 | J31: -1.902493176 | K31: -29.46621838 | L31: 78.94199173 | M31: 0.8356099571 | N31: 0.1258302094 | O31: 0.8450309119 | P31: =IFERROR(MAX(MIN((MAX(MIN(Chart!$G$19,125-Chart!$G$18),0)/Chart!$C$40/(N31*0.92^(MAX(MIN(Chart!$G$19,125-Chart!$G$18),0)/10)))^0.5,(Chart!$C$27-Chart!$L$20)/2/2^0.5/O31),0),NA()) -> 3.075944338 | Q31: 2.599268049 | R31: 81.43646451 | S31: -0.04840900657 | T31: -1.904784204 | U31: -29.46975726 | V31: 79.53168031 | X31: 125 | Y31: 100
B32: 398107.1706 | C32: 1.329945054 | D32: 0.1631226365 | E32: 1.339911505 | F32: =IFERROR(MAX(MIN((MAX(MIN(Chart!$G$19,125-Chart!$G$18),0)/Chart!$C$40/(D32*0.92^(MAX(MIN(Chart!$G$19,125-Chart!$G$18),0)/10)))^0.5,(Chart!$C$27-Chart!$L$19)/2/2^0.5/E32),0),NA()) -> 2.701555014 | G32: 3.619844644 | H32: 83.00738845 | I32: -0.06860532508 | J32: -3.025435472 | K32: -25.48588318 | L32: 79.98195298 | M32: 1.330396739 | N32: 0.1543794068 | O32: 1.339323891 | P32: =IFERROR(MAX(MIN((MAX(MIN(Chart!$G$19,125-Chart!$G$18),0)/Chart!$C$40/(N32*0.92^(MAX(MIN(Chart!$G$19,125-Chart!$G$18),0)/10)))^0.5,(Chart!$C$27-Chart!$L$20)/2/2^0.5/O32),0),NA()) -> 2.777002355 | Q32: 3.7193056 | R32: 83.38099352 | S32: -0.06560341995 | T32: -3.027511072 | U32: -25.48669128 | V32: 80.35348245
B33: 630957.3445 | C33: 2.112065377 | D33: 0.2082509791 | E33: 2.122307383 | F33: =IFERROR(MAX(MIN((MAX(MIN(Chart!$G$19,125-Chart!$G$18),0)/Chart!$C$40/(D33*0.92^(MAX(MIN(Chart!$G$19,125-Chart!$G$18),0)/10)))^0.5,(Chart!$C$27-Chart!$L$19)/2/2^0.5/E33),0),NA()) -> 2.390988052 | G33: 5.074411596 | H33: 84.3688019 | I33: -0.1024345233 | J33: -4.789322949 | K33: -21.525069 | L33: 79.57947895 | M33: 2.112350372 | N33: 0.1994981314 | O33: 2.121750126 | P33: =IFERROR(MAX(MIN((MAX(MIN(Chart!$G$19,125-Chart!$G$18),0)/Chart!$C$40/(N33*0.92^(MAX(MIN(Chart!$G$19,125-Chart!$G$18),0)/10)))^0.5,(Chart!$C$27-Chart!$L$20)/2/2^0.5/O33),0),NA()) -> 2.442876523 | Q33: 5.183173572 | R33: 84.60477915 | S33: -0.09944728273 | T33: -4.791622207 | U33: -21.52436272 | V33: 79.81315694
B34: 1000000 | C34: 3.350076147 | D34: 0.2796842006 | E34: 3.361730721 | F34: =IFERROR(MAX(MIN((MAX(MIN(Chart!$G$19,125-Chart!$G$18),0)/Chart!$C$40/(D34*0.92^(MAX(MIN(Chart!$G$19,125-Chart!$G$18),0)/10)))^0.5,(Chart!$C$27-Chart!$L$19)/2/2^0.5/E34),0),NA()) -> 2.063179268 | G34: 6.935853129 | H34: 85.22767595 | I34: -0.1722401516 | J34: -7.548879528 | K34: -17.59978187 | L34: 77.67879642 | M34: 3.350255966 | N34: 0.2709252842 | O34: 3.361192578 | P34: =IFERROR(MAX(MIN((MAX(MIN(Chart!$G$19,125-Chart!$G$18),0)/Chart!$C$40/(N34*0.92^(MAX(MIN(Chart!$G$19,125-Chart!$G$18),0)/10)))^0.5,(Chart!$C$27-Chart!$L$20)/2/2^0.5/O34),0),NA()) -> 2.096264903 | Q34: 7.045950034 | R34: 85.37672032 | S34: -0.1692901575 | T34: -7.55186644 | U34: -17.59822241 | V34: 77.82485388
B35: 1584893.192 | C35: 5.311202652 | D35: 0.3928411999 | E35: 5.325711015 | F35: =IFERROR(MAX(MIN((MAX(MIN(Chart!$G$19,125-Chart!$G$18),0)/Chart!$C$40/(D35*0.92^(MAX(MIN(Chart!$G$19,125-Chart!$G$18),0)/10)))^0.5,(Chart!$C$27-Chart!$L$19)/2/2^0.5/E35),0),NA()) -> 1.740854272 | G35: 9.27128677 | H35: 85.76984106 | I35: -0.3213843979 | J35: -11.8137535 | K35: -13.75263263 | L35: 73.95608756 | M35: 5.31131611 | N35: 0.3840784544 | O35: 5.325184981 | P35: =IFERROR(MAX(MIN((MAX(MIN(Chart!$G$19,125-Chart!$G$18),0)/Chart!$C$40/(N35*0.92^(MAX(MIN(Chart!$G$19,125-Chart!$G$18),0)/10)))^0.5,(Chart!$C$27-Chart!$L$20)/2/2^0.5/O35),0),NA()) -> 1.760601061 | Q35: 9.375526327 | R35: 85.86395616 | S35: -0.3185199716 | T35: -11.81796237 | U35: -13.75062618 | V35: 74.04599379
B36: 2511886.432 | C36: 8.418755101 | D36: 0.5721469762 | E36: 8.438174542 | F36: =IFERROR(MAX(MIN((MAX(MIN(Chart!$G$19,125-Chart!$G$18),0)/Chart!$C$40/(D36*0.92^(MAX(MIN(Chart!$G$19,125-Chart!$G$18),0)/10)))^0.5,(Chart!$C$27-Chart!$L$19)/2/2^0.5/E36),0),NA()) -> 1.44250434 | G36: 12.1721034 | H36: 86.11210012 | I36: -0.6434424214 | J36: -18.2223622 | K36: -10.07727251 | L36: 67.88973792 | M36: 8.418826688 | N36: 0.5633818148 | O36: 8.437656183 | P36: =IFERROR(MAX(MIN((MAX(MIN(Chart!$G$19,125-Chart!$G$18),0)/Chart!$C$40/(N36*0.92^(MAX(MIN(Chart!$G$19,125-Chart!$G$18),0)/10)))^0.5,(Chart!$C$27-Chart!$L$20)/2/2^0.5/O36),0),NA()) -> 1.453682358 | Q36: 12.26567193 | R36: 86.17151581 | S36: -0.6407632089 | T36: -18.22834195 | U36: -10.07512689 | V36: 67.94317386
B37: 3981071.706 | C37: 13.34350036 | D37: 0.8563047775 | E37: 13.37094835 | F37: =IFERROR(MAX(MIN((MAX(MIN(Chart!$G$19,125-Chart!$G$18),0)/Chart!$C$40/(D37*0.92^(MAX(MIN(Chart!$G$19,125-Chart!$G$18),0)/10)))^0.5,(Chart!$C$27-Chart!$L$19)/2/2^0.5/E37),0),NA()) -> 1.179116586 | G37: 15.76590697 | H37: 86.32814008 | I37: -1.317969636 | J37: -27.29661636 | K37: -6.753525588 | L37: 59.03152372 | M37: 13.34354553 | N37: 0.8475380918 | O37: 13.37043485 | P37: =IFERROR(MAX(MIN((MAX(MIN(Chart!$G$19,125-Chart!$G$18),0)/Chart!$C$40/(N37*0.92^(MAX(MIN(Chart!$G$19,125-Chart!$G$18),0)/10)))^0.5,(Chart!$C$27-Chart!$L$20)/2/2^0.5/O37),0),NA()) -> 1.185199116 | Q37: 15.84662756 | R37: 86.36564288 | S37: -1.315649972 | T37: -27.30461436 | U37: -6.751539503 | V37: 59.06102852
B38: 6309573.445 | C38: 21.14844733 | D38: 1.306650218 | E38: 21.18877437 | F38: =IFERROR(MAX(MIN((MAX(MIN(Chart!$G$19,125-Chart!$G$18),0)/Chart!$C$40/(D38*0.92^(MAX(MIN(Chart!$G$19,125-Chart!$G$18),0)/10)))^0.5,(Chart!$C$27-Chart!$L$19)/2/2^0.5/E38),0),NA()) -> 0.9545336856 | G38: 20.22539889 | H38: 86.46449233 | I38: -2.607568108 | J38: -38.79650424 | K38: -4.044251553 | L38: 47.66798809 | M38: 21.14847583 | N38: 1.29788257 | O38: 21.18826395 | P38: =IFERROR(MAX(MIN((MAX(MIN(Chart!$G$19,125-Chart!$G$18),0)/Chart!$C$40/(N38*0.92^(MAX(MIN(Chart!$G$19,125-Chart!$G$18),0)/10)))^0.5,(Chart!$C$27-Chart!$L$20)/2/2^0.5/O38),0),NA()) -> 0.9577523622 | Q38: 20.29310985 | R38: 86.4881608 | S38: -2.605814208 | T38: -38.8058688 | U38: -4.042706892 | V38: 47.682292
B39: 10000000 | C39: 33.51829802 | D39: 2.020390603 | E39: 33.5791346 | F39: =IFERROR(MAX(MIN((MAX(MIN(Chart!$G$19,125-Chart!$G$18),0)/Chart!$C$40/(D39*0.92^(MAX(MIN(Chart!$G$19,125-Chart!$G$18),0)/10)))^0.5,(Chart!$C$27-Chart!$L$19)/2/2^0.5/E39),0),NA()) -> 0.7676323381 | G39: 25.7764296 | H39: 86.55054201 | I39: -4.721308044 | J39: -51.12637547 | K39: -2.158718232 | L39: 35.42416655 | M39: 33.518316 | N39: 2.011622348 | O39: 33.57862612 | P39: =IFERROR(MAX(MIN((MAX(MIN(Chart!$G$19,125-Chart!$G$18),0)/Chart!$C$40/(N39*0.92^(MAX(MIN(Chart!$G$19,125-Chart!$G$18),0)/10)))^0.5,(Chart!$C$27-Chart!$L$20)/2/2^0.5/O39),0),NA()) -> 0.769303496 | Q39: 25.83215446 | R39: 86.56547817 | S39: -4.72020069 | T39: -51.13547627 | U39: -2.157742406 | V39: 35.4300019

Sheet Calc (hidden)
A1: Applied Voltage, Change in Cap (%) | B1: F | C1: Z | D1: 35 | G1: Y | I1: -55 | J1: 25 | K1: 50 | L1: 80 | M1: 100 | N1: 125 | O1: 150 | Q1: A | S1: -55 | T1: 25 | U1: 50 | V1: 80 | W1: 100 | X1: 125 | Y1: 150 | AA1: P | AC1: -55 | AD1: 25 | AE1: 50 | AF1: 80 | AG1: 100 | AH1: 125 | AI1: 150
A2: 1.2 , 0 | B2: =SUBSTITUTE(LEFT(A2,FIND(",",A2,1)-1),".",",")*1 -> 1.2 | C2: =SUBSTITUTE(RIGHT(A2,LEN(A2)-FIND(",",A2)),".",",")*1 -> 0 | D2: =B2/$D$1 -> 0.03428571429 | E2: =C2+100 -> 100 | I2: 1 | J2: =I2+1 -> 2 | K2: 3 | L2: 4 | M2: 5 | N2: 6 | O2: 7 | S2: 1 | T2: =S2+1 -> 2 | U2: 3 | V2: 4 | W2: 5 | X2: 6 | Y2: 7 | AC2: 1 | AD2: =AC2+1 -> 2 | AE2: 3 | AF2: 4 | AG2: 5 | AH2: 6 | AI2: 7
A3: 3.59 , 0 | B3: 3.59 | C3: 0 | D3: 0.1025714286 | E3: 100 | G3: 0 | H3: 1 | I3: 104 | J3: 100 | K3: 98 | L3: 96 | M3: 94 | N3: 88 | O3: 67 | Q3: =G3 -> 0 | R3: 1 | S3: =T3*0.995 -> 99.5 | T3: 100 | U3: =T3*0.999 -> 99.9 | V3: =U3*0.999 -> 99.8001 | W3: =V3*0.999 -> 99.7002999 | X3: =W3*0.999 -> 99.6005996 | Y3: =X3*0.999 -> 99.500999 | AA3: =G3 -> 0 | AB3: 1 | AC3: =$AD$3-(AC$1-$AD$1)*0.22 -> 117.6 | AD3: =+VLOOKUP(AA3/6,$G$3:$O$252,4) -> 100 | AE3: =$AD$3-(AE$1-$AD$1)*0.22 -> 94.5 | AF3: =$AD$3-(AF$1-$AD$1)*0.22 -> 87.9 | AG3: =$AD$3-(AG$1-$AD$1)*0.22 -> 83.5 | AH3: =$AD$3-(AH$1-$AD$1)*0.22 -> 78 | AI3: =$AD$3-(AI$1-$AD$1)*0.22 -> 72.5
A4: 6 , 0 | B4: 6 | C4: 0 | D4: 0.1714285714 | E4: 100 | G4: =+D3 -> 0.1025714286 | H4: =H3+1 -> 2 | I4: =+J4*$I$3/100 -> 103.402624 | J4: =VLOOKUP(G4,$AP$52:$AU$72,3)+(G4-VLOOKUP(G4,$AP$52:$AU$72,1))*(VLOOKUP(G4,$AP$52:$AU$72,4)-VLOOKUP(G4,$AP$52:$AU$72,3))/(VLOOKUP(G4,$AP$52:$AU$72,2)-VLOOKUP(G4,$AP$52:$AU$72,1)) -> 99.4256 | K4: =$J4*(1+(K$3-100)/100) -> 97.437088 | L4: 95.448576 | M4: 93.460064 | N4: =($J4/100)^0.9*(1+(N$3-100)/100)*100 -> 87.54494427 | O4: =($J4/100)^0.82*(1+(O$3-100)/100)*100 -> 66.68426113 | Q4: =G4*2 -> 0.2051428571 | R4: =R3+1 -> 2 | S4: =+T4*$S$3/100 -> 99.5 | T4: 100 | U4: =$T4*(1+(U$3-100)/100) -> 99.9 | V4: 99.8001 | W4: 99.7002999 | X4: =($T4/100)^0.9*(1+(X$3-100)/100)*100 -> 99.6005996 | Y4: =($T4/100)^0.82*(1+(Y$3-100)/100)*100 -> 99.500999 | AA4: =G4*1.3 -> 0.1333428571 | AB4: =AB3+1 -> 2 | AC4: =+AD4*$AC$3/$AD$3 -> 117.3905967 | AD4: =VLOOKUP(G4,$AP$52:$AU$72,5)+(G4-VLOOKUP(G4,$AP$52:$AU$72,1))*(VLOOKUP(G4,$AP$52:$AU$72,6)-VLOOKUP(G4,$AP$52:$AU$72,5))/(VLOOKUP(G4,$AP$52:$AU$72,2)-VLOOKUP(G4,$AP$52:$AU$72,1)) -> 99.821936 | AE4: =MIN(K4*$AD4/$J4*AE$3/K$3,$AD4,AE$3) -> 94.33172952 | AF4: =MIN(L4*$AD4/$J4*AF$3/L$3,AD4,AE4,AF$3) -> 87.74348174 | AG4: =MIN(M4*$AD4/$J4*AG$3/M$3,AD4,AE4,AF4,AG$3) -> 83.35131656 | AH4: =MIN(N4*$AD4/$J4*AH$3/N$3,AD4,AE4,AF4,AG4,AH$3) -> 77.90597536 | AI4: =MIN(O4*$AD4/$J4*AI$3/O$3,AD4,AE4,AF4,AG4,AH4,AI$3) -> 72.44598397
A5: 8.39 , 0 | B5: 8.39 | C5: 0 | D5: 0.2397142857 | E5: 100 | G5: 0.1714285714 | H5: 3 | I5: 103.0016 | J5: 99.04 | K5: 97.0592 | L5: 95.0784 | M5: 93.0976 | N5: 87.23931376 | O5: 66.47211858 | Q5: 0.3428571429 | R5: 3 | S5: 99.5 | T5: 100 | U5: 99.9 | V5: 99.8001 | W5: 99.7002999 | X5: 99.6005996 | Y5: 99.500999 | AA5: 0.2228571429 | AB5: 3 | AC5: 117.2500224 | AD5: 99.7024 | AE5: 94.218768 | AF5: 87.6384096 | AG5: 83.251504 | AH5: 77.84292602 | AI5: 72.40985961
A6: 10.8 , 0 | B6: 10.8 | C6: 0 | D6: 0.3085714286 | E6: 100 | G6: 0.2397142857 | H6: 4 | I6: 102.603904 | J6: 98.6576 | K6: 96.684448 | L6: 94.711296 | M6: 92.738144 | N6: 86.93610206 | O6: 66.26158966 | Q6: 0.4794285714 | R6: 4 | S6: 99.5 | T6: 100 | U6: 99.9 | V6: 99.8001 | W6: 99.7002999 | X6: 99.6005996 | Y6: 99.500999 | AA6: 0.3116285714 | AB6: 4 | AC6: 117.1106147 | AD6: 99.583856 | AE6: 94.10674392 | AF6: 87.53420942 | AG6: 83.15251976 | AH6: 77.78045631 | AI6: 72.37414511
A7: 13.1 , 0 | B7: 13.1 | C7: 0 | D7: 0.3742857143 | E7: 100 | G7: 0.3085714286 | H7: 5 | I7: 102.20288 | J7: 98.272 | K7: 96.30656 | L7: 94.34112 | M7: 92.37568 | N7: 86.63023399 | O7: 66.04915022 | Q7: 0.6171428571 | R7: 5 | S7: 99.5 | T7: 100 | U7: 99.9 | V7: 99.8001 | W7: 99.7002999 | X7: 99.6005996 | Y7: 99.500999 | AA7: 0.4011428571 | AB7: 5 | AC7: 116.9700403 | AD7: 99.46432 | AE7: 93.9937824 | AF7: 87.42913728 | AG7: 83.0527072 | AH7: 77.71752134 | AI7: 72.33824388
A8: 15.6 , 0 | B8: 15.6 | C8: 0 | D8: 0.4457142857 | E8: 100 | G8: 0.3742857143 | H8: 6 | I8: 101.82016 | J8: 97.904 | K8: 95.94592 | L8: 93.98784 | M8: 92.02976 | N8: 86.33821477 | O8: 65.84626721 | Q8: 0.7485714286 | R8: 6 | S8: 99.5 | T8: 100 | U8: 99.9 | V8: 99.8001 | W8: 99.7002999 | X8: 99.6005996 | Y8: 99.500999 | AA8: 0.4865714286 | AB8: 6 | AC8: 116.8358822 | AD8: 99.35024 | AE8: 93.8859768 | AF8: 87.32886096 | AG8: 82.9574504 | AH8: 77.65751329 | AI8: 72.30408736
A9: 18 , 0 | B9: 18 | C9: 0 | D9: 0.5142857143 | E9: 100 | G9: 0.4457142857 | H9: 7 | I9: 101.40416 | J9: 97.504 | K9: 95.55392 | L9: 93.60384 | M9: 91.65376 | N9: 86.02067803 | O9: 65.62558645 | Q9: 0.8914285714 | R9: 7 | S9: 99.5 | T9: 100 | U9: 99.9 | V9: 99.8001 | W9: 99.7002999 | X9: 99.6005996 | Y9: 99.500999 | AA9: 0.5794285714 | AB9: 7 | AC9: 116.6900582 | AD9: 99.22624 | AE9: 93.7687968 | AF9: 87.21986496 | AG9: 82.8539104 | AH9: 77.59234803 | AI9: 72.26707941
A10: 20.3 , 0 | B10: 20.3 | C10: 0 | D10: 0.58 | E10: 100 | G10: 0.5142857143 | H10: 8 | I10: 100.9780571 | J10: 97.09428571 | K10: 95.1524 | L10: 93.21051429 | M10: 91.26862857 | N10: 85.69529461 | O10: 65.39937727 | Q10: 1.028571429 | R10: 8 | S10: 99.5 | T10: 100 | U10: 99.9 | V10: 99.8001 | W10: 99.7002999 | X10: 99.6005996 | Y10: 99.500999 | AA10: 0.6685714286 | AB10: 8 | AC10: 116.5406928 | AD10: 99.09922857 | AE10: 93.648771 | AF10: 87.10822191 | AG10: 82.74785586 | AH10: 77.52566663 | AI10: 72.22930226
A11: 22.7 , 0 | B11: 22.7 | C11: 0 | D11: 0.6485714286 | E11: 100 | G11: 0.58 | H11: 9 | I11: 100.47232 | J11: 96.608 | K11: 94.67584 | L11: 92.74368 | M11: 90.81152 | N11: 85.30892206 | O11: 65.13066877 | Q11: 1.16 | R11: 9 | S11: 99.5 | T11: 100 | U11: 99.9 | V11: 99.8001 | W11: 99.7002999 | X11: 99.6005996 | Y11: 99.500999 | AA11: 0.754 | AB11: 9 | AC11: 116.3634125 | AD11: 98.94848 | AE11: 93.5063136 | AF11: 86.97571392 | AG11: 82.6219808 | AH11: 77.44661146 | AI11: 72.18463707
A12: 25.2 , 0 | B12: 25.2 | C12: 0 | D12: 0.72 | E12: 100 | G12: 0.6485714286 | H12: 10 | I12: 99.94459429 | J12: 96.10057143 | K12: 94.17856 | L12: 92.25654857 | M12: 90.33453714 | N12: 84.90554328 | O12: 64.85001758 | Q12: 1.297142857 | R12: 10 | S12: 99.5 | T12: 100 | U12: 99.9 | V12: 99.8001 | W12: 99.7002999 | X12: 99.6005996 | Y12: 99.500999 | AA12: 0.8431428571 | AB12: 10 | AC12: 116.1784243 | AD12: 98.79117714 | AE12: 93.3576624 | AF12: 86.83744471 | AG12: 82.49063291 | AH12: 77.36422262 | AI12: 72.13823167
A13: 27.6 , 0 | B13: 27.6 | C13: 0 | D13: 0.7885714286 | E13: 100 | G13: 0.72 | H13: 11 | I13: 99.39488 | J13: 95.572 | K13: 93.66056 | L13: 91.74912 | M13: 89.83768 | N13: 84.48513048 | O13: 64.55738878 | Q13: 1.44 | R13: 11 | S13: 99.5 | T13: 100 | U13: 99.9 | V13: 99.8001 | W13: 99.7002999 | X13: 99.6005996 | Y13: 99.500999 | AA13: 0.936 | AB13: 11 | AC13: 115.9857283 | AD13: 98.62732 | AE13: 93.2028174 | AF13: 86.69341428 | AG13: 82.3538122 | AH13: 77.2785149 | AI13: 72.09011484
A14: 30 , 0 | B14: 30 | C14: 0 | D14: 0.8571428571 | E14: 100 | G14: 0.7885714286 | H14: 12 | I14: 98.86715429 | J14: 95.06457143 | K14: 93.16328 | L14: 91.26198857 | M14: 89.36069714 | N14: 84.0813154 | O14: 64.27619096 | Q14: 1.577142857 | R14: 12 | S14: 99.5 | T14: 100 | U14: 99.9 | V14: 99.8001 | W14: 99.7002999 | X14: 99.6005996 | Y14: 99.500999 | AA14: 1.025142857 | AB14: 12 | AC14: 115.8007402 | AD14: 98.47001714 | AE14: 93.0541662 | AF14: 86.55514507 | AG14: 82.22246431 | AH14: 77.19634649 | AI14: 72.04413893
A15: 32.4 , -1.03 | B15: 32.4 | C15: -1.03 | D15: 0.9257142857 | E15: 98.97 | G15: 0.8571428571 | H15: 13 | I15: 98.33942857 | J15: 94.55714286 | K15: 92.666 | L15: 90.77485714 | M15: 88.88371429 | N15: 83.67728471 | O15: 63.99472282 | Q15: 1.714285714 | R15: 13 | S15: 99.5 | T15: 100 | U15: 99.9 | V15: 99.8001 | W15: 99.7002999 | X15: 99.6005996 | Y15: 99.500999 | AA15: 1.114285714 | AB15: 13 | AC15: 115.615752 | AD15: 98.31271429 | AE15: 92.905515 | AF15: 86.41687586 | AG15: 82.09111643 | AH15: 77.11428837 | AI15: 71.99837785
A16: 34.7 , -2.17 | B16: 34.7 | C16: -2.17 | D16: 0.9914285714 | E16: 97.83 | G16: 0.9257142857 | H16: 14 | I16: 97.81170286 | J16: 94.04971429 | K16: 92.16872 | L16: 90.28772571 | M16: 88.40673143 | N16: 83.27303715 | O16: 63.71298268 | Q16: 1.851428571 | R16: 14 | S16: 99.5 | T16: 100 | U16: 99.9 | V16: 99.8001 | W16: 99.7002999 | X16: 99.6005996 | Y16: 99.500999 | AA16: 1.203428571 | AB16: 14 | AC16: 115.4307638 | AD16: 98.15541143 | AE16: 92.7568638 | AF16: 86.27860665 | AG16: 81.95976854 | AH16: 77.0323421 | AI16: 71.95283462
A17: 37.2 , -3.33 | B17: 37.2 | C17: -3.33 | D17: 1.062857143 | E17: 96.67 | G17: 0.9914285714 | H17: 15 | I17: 97.30596571 | J17: 93.56342857 | K17: 91.69216 | L17: 89.82089143 | M17: 87.94962286 | N17: 82.88542854 | O17: 63.44272485 | Q17: 1.982857143 | R17: 15 | S17: 99.5 | T17: 100 | U17: 99.9 | V17: 99.8001 | W17: 99.7002999 | X17: 99.6005996 | Y17: 99.500999 | AA17: 1.288857143 | AB17: 15 | AC17: 115.2534835 | AD17: 98.00466286 | AE17: 92.6144064 | AF17: 86.14609865 | AG17: 81.83389349 | AH17: 76.9539167 | AI17: 71.90939627
A18: 39.5 , -4.52 | B18: 39.5 | C18: -4.52 | D18: 1.128571429 | E18: 95.48 | G18: 1.062857143 | H18: 16 | I18: 96.65165714 | J18: 92.93428571 | K18: 91.0756 | L18: 89.21691429 | M18: 87.35822857 | N18: 82.38365219 | O18: 63.09269727 | Q18: 2.125714286 | R18: 16 | S18: 99.5 | T18: 100 | U18: 99.9 | V18: 99.8001 | W18: 99.7002999 | X18: 99.6005996 | Y18: 99.500999 | AA18: 1.381714286 | AB18: 16 | AC18: 115.0241232 | AD18: 97.80962857 | AE18: 92.430099 | AF18: 85.97466351 | AG18: 81.67103986 | AH18: 76.85260905 | AI18: 71.85350247
A19: 42 , -5.73 | B19: 42 | C19: -5.73 | D19: 1.2 | E19: 94.27 | G19: 1.128571429 | H19: 17 | I19: 96.03657143 | J19: 92.34285714 | K19: 90.496 | L19: 88.64914286 | M19: 86.80228571 | N19: 81.91164525 | O19: 62.76326315 | Q19: 2.257142857 | R19: 17 | S19: 99.5 | T19: 100 | U19: 99.9 | V19: 99.8001 | W19: 99.7002999 | X19: 99.6005996 | Y19: 99.500999 | AA19: 1.467142857 | AB19: 17 | AC19: 114.808512 | AD19: 97.62628571 | AE19: 92.25684 | AF19: 85.81350514 | AG19: 81.51794857 | AH19: 76.75753837 | AI19: 71.80127854
A20: 44.4 , -6.94 | B20: 44.4 | C20: -6.94 | D20: 1.268571429 | E20: 93.06 | G20: 1.2 | H20: 18 | I20: 95.368 | J20: 91.7 | K20: 89.866 | L20: 88.032 | M20: 86.198 | N20: 81.39825117 | O20: 62.40475147 | Q20: 2.4 | R20: 18 | S20: 99.5 | T20: 100 | U20: 99.9 | V20: 99.8001 | W20: 99.7002999 | X20: 99.6005996 | Y20: 99.500999 | AA20: 1.56 | AB20: 18 | AC20: 114.574152 | AD20: 97.427 | AE20: 92.068515 | AF20: 85.638333 | AG20: 81.351545 | AH20: 76.65438417 | AI20: 71.74487049
A21: 46.7 , -8.16 | B21: 46.7 | C21: -8.16 | D21: 1.334285714 | E21: 91.84 | G21: 1.268571429 | H21: 19 | I21: 94.72617143 | J21: 91.08285714 | K21: 89.2612 | L21: 87.43954286 | M21: 85.61788571 | N21: 80.90505417 | O21: 62.06015442 | Q21: 2.537142857 | R21: 19 | S21: 99.5 | T21: 100 | U21: 99.9 | V21: 99.8001 | W21: 99.7002999 | X21: 99.6005996 | Y21: 99.500999 | AA21: 1.649142857 | AB21: 19 | AC21: 114.3491664 | AD21: 97.23568571 | AE21: 91.887723 | AF21: 85.47016774 | AG21: 81.19179757 | AH21: 76.55553915 | AI21: 71.69107483
A22: 49.2 , -9.38 | B22: 49.2 | C22: -9.38 | D22: 1.405714286 | E22: 90.62 | G22: 1.334285714 | H22: 20 | I22: 94.11108571 | J22: 90.49142857 | K22: 88.6816 | L22: 86.87177143 | M22: 85.06194286 | N22: 80.43209338 | O22: 61.72952101 | Q22: 2.668571429 | R22: 20 | S22: 99.5 | T22: 100 | U22: 99.9 | V22: 99.8001 | W22: 99.7002999 | X22: 99.6005996 | Y22: 99.500999 | AA22: 1.734571429 | AB22: 20 | AC22: 114.1335552 | AD22: 97.05234286 | AE22: 91.714464 | AF22: 85.30900937 | AG22: 81.03870629 | AH22: 76.46098387 | AI22: 71.63985371
A23: 51.5 , -10.6 | B23: 51.5 | C23: -10.6 | D23: 1.471428571 | E23: 89.4 | G23: 1.405714286 | H23: 21 | I23: 93.44251429 | J23: 89.84857143 | K23: 88.0516 | L23: 86.25462857 | M23: 84.45765714 | N23: 79.91765478 | O23: 61.36969534 | Q23: 2.811428571 | R23: 21 | S23: 99.5 | T23: 100 | U23: 99.9 | V23: 99.8001 | W23: 99.7002999 | X23: 99.6005996 | Y23: 99.500999 | AA23: 1.827428571 | AB23: 21 | AC23: 113.8991952 | AD23: 96.85305714 | AE23: 91.526139 | AF23: 85.13383723 | AG23: 80.87230271 | AH23: 76.35839983 | AI23: 71.58455483
A24: 54 , -11.8 | B24: 54 | C24: -11.8 | D24: 1.542857143 | E24: 88.2 | G24: 1.471428571 | H24: 22 | I24: 92.82742857 | J24: 89.25714286 | K24: =$J24*(1+(K$3-100)/100) -> 87.472 | L24: 85.68685714 | M24: 83.90171429 | N24: 79.44404613 | O24: 61.03824625 | Q24: 2.942857143 | R24: 22 | S24: 99.5 | T24: 100 | U24: =$T24*(1+(U$3-100)/100) -> 99.9 | V24: 99.8001 | W24: 99.7002999 | X24: 99.6005996 | Y24: 99.500999 | AA24: 1.912857143 | AB24: 22 | AC24: 113.683584 | AD24: 96.66971429 | AE24: 91.35288 | AF24: 84.97267886 | AG24: 80.71921143 | AH24: 76.26420363 | AI24: 71.53403206
A25: 56.4 , -13 | B25: 56.4 | C25: -13 | D25: 1.611428571 | E25: 87 | G25: 1.542857143 | H25: 23 | I25: 92.04297143 | J25: 88.50285714 | K25: 86.7328 | L25: 84.96274286 | M25: 83.19268571 | N25: 78.83956771 | O25: 60.61495423 | Q25: 3.085714286 | R25: 23 | S25: 99.5 | T25: 100 | U25: 99.9 | V25: 99.8001 | W25: 99.7002999 | X25: 99.6005996 | Y25: 99.500999 | AA25: 2.005714286 | AB25: 23 | AC25: 113.4086016 | AD25: 96.43588571 | AE25: 91.131912 | AF25: 84.76714354 | AG25: 80.52396457 | AH25: 76.14432606 | AI25: 71.47009638
A26: 58.7 , -14.2 | B26: 58.7 | C26: -14.2 | D26: 1.677142857 | E26: 85.8 | G26: 1.611428571 | H26: 24 | I26: 91.21572571 | J26: 87.70742857 | K26: 85.95328 | L26: 84.19913143 | M26: 82.44498286 | N26: 78.2015593 | O26: 60.1678694 | Q26: 3.222857143 | R26: 24 | S26: 99.5 | T26: 100 | U26: 99.9 | V26: 99.8001 | W26: 99.7002999 | X26: 99.6005996 | Y26: 99.500999 | AA26: 2.094857143 | AB26: 24 | AC26: 113.1186202 | AD26: 96.18930286 | AE26: 90.8988912 | AF26: 84.55039721 | AG26: 80.31806789 | AH26: 76.01822802 | AI26: 71.40329208
A27: 61.2 , -15.3 | B27: 61.2 | C27: -15.3 | D27: 1.748571429 | E27: 84.7 | G27: 1.677142857 | H27: 25 | I27: 90.42294857 | J27: 86.94514286 | K27: 85.20624 | L27: 83.46733714 | M27: 81.72843429 | N27: 77.58959144 | O27: 59.73872779 | Q27: 3.354285714 | R27: 25 | S27: 99.5 | T27: 100 | U27: 99.9 | V27: 99.8001 | W27: 99.7002999 | X27: 99.6005996 | Y27: 99.500999 | AA27: 2.180285714 | AB27: 25 | AC27: 112.8407213 | AD27: 95.95299429 | AE27: 90.6755796 | AF27: 84.34268198 | AG27: 80.12075023 | AH27: 75.89769767 | AI27: 71.33988087
A28: 63.5 , -16.5 | B28: 63.5 | C28: -16.5 | D28: 1.814285714 | E28: 83.5 | G28: 1.748571429 | H28: 26 | I28: 89.56123429 | J28: 86.11657143 | K28: 84.39424 | L28: 82.67190857 | M28: 80.94957714 | N28: 76.92379998 | O28: 59.27150052 | Q28: 3.497142857 | R28: 26 | S28: 99.5 | T28: 100 | U28: 99.9 | V28: 99.8001 | W28: 99.7002999 | X28: 99.6005996 | Y28: 99.500999 | AA28: 2.273142857 | AB28: 26 | AC28: 112.5386573 | AD28: 95.69613714 | AE28: 90.4328496 | AF28: 84.11690455 | AG28: 79.90627451 | AH28: 75.76704281 | AI28: 71.27164824
A29: 66 , -17.7 | B29: 66 | C29: -17.7 | D29: 1.885714286 | E29: 82.3 | G29: 1.814285714 | H29: 27 | I29: 88.76845714 | J29: 85.35428571 | K29: 83.6472 | L29: 81.94011429 | M29: 80.23302857 | N29: 76.31070595 | O29: 58.84093636 | Q29: 3.628571429 | R29: 27 | S29: 99.5 | T29: 100 | U29: 99.9 | V29: 99.8001 | W29: 99.7002999 | X29: 99.6005996 | Y29: 99.500999 | AA29: 2.358571429 | AB29: 27 | AC29: 112.2607584 | AD29: 95.45982857 | AE29: 90.209538 | AF29: 83.90918931 | AG29: 79.70895686 | AH29: 75.64717594 | AI29: 71.20952632
A30: 68.4 , -18.8 | B30: 68.4 | C30: -18.8 | D30: 1.954285714 | E30: 81.2 | G30: 1.885714286 | H30: 28 | I30: 87.90674286 | J30: 84.52571429 | K30: 82.8352 | L30: 81.14468571 | M30: 79.45417143 | N30: 75.6436779 | O30: 58.37214589 | Q30: 3.771428571 | R30: 28 | S30: 99.5 | T30: 100 | U30: 99.9 | V30: 99.8001 | W30: 99.7002999 | X30: 99.6005996 | Y30: 99.500999 | AA30: 2.451428571 | AB30: 28 | AC30: 111.9586944 | AD30: 95.20297143 | AE30: 89.966808 | AF30: 83.68341189 | AG30: 79.49448114 | AH30: 75.51725953 | AI30: 71.14272847
A31: 70.8 , -19.9 | B31: 70.8 | C31: -19.9 | D31: 2.022857143 | E31: 80.1 | G31: 1.954285714 | H31: 29 | I31: 87.07949714 | J31: 83.73028571 | K31: 82.05568 | L31: 80.38107429 | M31: 78.70646857 | N31: 75.00271559 | O31: 57.92132827 | Q31: 3.908571429 | R31: 29 | S31: 99.5 | T31: 100 | U31: 99.9 | V31: 99.8001 | W31: 99.7002999 | X31: 99.6005996 | Y31: 99.500999 | AA31: 2.540571429 | AB31: 29 | AC31: 111.668713 | AD31: 94.95638857 | AE31: 89.7337872 | AF31: 83.46666555 | AG31: 79.28858446 | AH31: 75.39291484 | AI31: 71.07933113
A32: 73.1 , -21 | B32: 73.1 | C32: -21 | D32: 2.088571429 | E32: 79 | G32: 2.022857143 | H32: 30 | I32: 86.23323429 | J32: 82.91657143 | K32: 81.25824 | L32: 79.59990857 | M32: 77.94157714 | N32: 74.3463881 | O32: 57.45934859 | Q32: 4.045714286 | R32: 30 | S32: 99.5 | T32: 100 | U32: 99.9 | V32: 99.8001 | W32: 99.7002999 | X32: 99.6005996 | Y32: 99.500999 | AA32: 2.629714286 | AB32: 30 | AC32: 111.3720653 | AD32: 94.70413714 | AE32: 89.4954096 | AF32: 83.24493655 | AG32: 79.07795451 | AH32: 75.2661013 | AI32: 71.01523322
A33: 75.5 , -22.1 | B33: 75.5 | C33: -22.1 | D33: 2.157142857 | E33: 77.9 | G33: 2.088571429 | H33: 31 | I33: 85.38578286 | J33: 82.10171429 | K33: 80.45968 | L33: 78.81764571 | M33: 77.17561143 | N33: 73.68849301 | O33: 56.99590152 | Q33: 4.177142857 | R33: 31 | S33: 99.5 | T33: 100 | U33: 99.9 | V33: 99.8001 | W33: 99.7002999 | X33: 99.6005996 | Y33: 99.500999 | AA33: 2.715142857 | AB33: 31 | AC33: 111.075001 | AD33: 94.45153143 | AE33: 89.2566972 | AF33: 83.02289613 | AG33: 78.86702874 | AH33: 75.13951441 | AI33: 70.95183141
A34: 78 , -23.2 | B34: 78 | C34: -23.2 | D34: 2.228571429 | E34: 76.8 | G34: 2.157142857 | H34: 32 | I34: 84.50148571 | J34: 81.25142857 | K34: 79.6264 | L34: 78.00137143 | M34: 76.37634286 | N34: 73.00129715 | O34: 56.51142091 | Q34: 4.314285714 | R34: 32 | S34: 99.5 | T34: 100 | U34: 99.9 | V34: 99.8001 | W34: 99.7002999 | X34: 99.6005996 | Y34: 99.500999 | AA34: 2.804285714 | AB34: 32 | AC34: 110.7650208 | AD34: 94.18794286 | AE34: 89.007606 | AF34: 82.79120177 | AG34: 78.64693229 | AH34: 75.00786669 | AI34: 70.88653322
A35: 80.4 , -24.3 | B35: 80.4 | C35: -24.3 | D35: 2.297142857 | E35: 75.7 | G35: 2.228571429 | H35: 33 | I35: 83.58034286 | J35: 80.36571429 | K35: 78.7584 | L35: 77.15108571 | M35: 75.54377143 | N35: 72.28470289 | O35: 56.00578207 | Q35: 4.457142857 | R35: 33 | S35: 99.5 | T35: 100 | U35: 99.9 | V35: 99.8001 | W35: 99.7002999 | X35: 99.6005996 | Y35: 99.500999 | AA35: 2.897142857 | AB35: 33 | AC35: 110.4421248 | AD35: 93.91337143 | AE35: 88.748136 | AF35: 82.54985349 | AG35: 78.41766514 | AH35: 74.87122752 | AI35: 70.81947333
A36: 82.8 , -25.3 | B36: 82.8 | C36: -25.3 | D36: 2.365714286 | E36: 74.7 | G36: 2.297142857 | H36: 34 | I36: 82.69604571 | J36: 79.51542857 | K36: 77.92512 | L36: 76.33481143 | M36: 74.74450286 | N36: 71.59602908 | O36: 55.51942429 | Q36: 4.594285714 | R36: 34 | S36: 99.5 | T36: 100 | U36: 99.9 | V36: 99.8001 | W36: 99.7002999 | X36: 99.6005996 | Y36: 99.500999 | AA36: 2.986285714 | AB36: 34 | AC36: 110.1321446 | AD36: 93.64978286 | AE36: 88.4990448 | AF36: 82.31815913 | AG36: 78.19756869 | AH36: 74.74054098 | AI36: 70.7560416
A37: 85.1 , -26.4 | B37: 85.1 | C37: -26.4 | D37: 2.431428571 | E37: 73.6 | G37: 2.365714286 | H37: 35 | I37: 81.81174857 | J37: 78.66514286 | K37: 77.09184 | L37: 75.51853714 | M37: 73.94523429 | N37: 70.90661845 | O37: 55.03212944 | Q37: 4.731428571 | R37: 35 | S37: 99.5 | T37: 100 | U37: 99.9 | V37: 99.8001 | W37: 99.7002999 | X37: 99.6005996 | Y37: 99.500999 | AA37: 3.075428571 | AB37: 35 | AC37: 109.8221645 | AD37: 93.38619429 | AE37: 88.2499536 | AF37: 82.08646478 | AG37: 77.97747223 | AH37: 74.61034468 | AI37: 70.69356177
A38: 87.5 , -27.4 | B38: 87.5 | C38: -27.4 | D38: 2.5 | E38: 72.6 | G38: 2.431428571 | H38: 36 | I38: 80.96429714 | J38: 77.85028571 | K38: 76.29328 | L38: 74.73627429 | M38: 73.17926857 | N38: 70.24523373 | O38: 54.56424817 | Q38: 4.862857143 | R38: 36 | S38: 99.5 | T38: 100 | U38: 99.9 | V38: 99.8001 | W38: 99.7002999 | X38: 99.6005996 | Y38: 99.500999 | AA38: 3.160857143 | AB38: 36 | AC38: 109.5251002 | AD38: 93.13358857 | AE38: 88.0112412 | AF38: 81.86442435 | AG38: 77.76654646 | AH38: 74.48604565 | AI38: 70.63460257
A39: 90 , -28.4 | B39: 90 | C39: -28.4 | D39: 2.571428571 | E39: 71.6 | G39: 2.5 | H39: 37 | I39: 80.08 | J39: 77 | K39: 75.46 | L39: 73.92 | M39: 72.38 | N39: 69.55435455 | O39: 54.07508333 | Q39: 5 | R39: 37 | S39: 99.5 | T39: 100 | U39: 99.9 | V39: 99.8001 | W39: 99.7002999 | X39: 99.6005996 | Y39: 99.500999 | AA39: 3.25 | AB39: 37 | AC39: 109.21512 | AD39: 92.87 | AE39: 87.76215 | AF39: 81.63273 | AG39: 77.54645 | AH39: 74.35684869 | AI39: 70.57406313
A40: 92.4 , -29.4 | B40: 92.4 | C40: -29.4 | D40: 2.64 | E40: 70.6 | G40: 2.571428571 | H40: 38 | I40: 79.18857143 | J40: 76.14285714 | K40: 74.62 | L40: 73.09714286 | M40: 71.57428571 | N40: 68.85713113 | O40: 53.58098847 | Q40: 5.142857143 | R40: 38 | S40: 99.5 | T40: 100 | U40: 99.9 | V40: 99.8001 | W40: 99.7002999 | X40: 99.6005996 | Y40: 99.500999 | AA40: 3.342857143 | AB40: 38 | AC40: 108.90264 | AD40: 92.60428571 | AE40: 87.51105 | AF40: 81.39916714 | AG40: 77.32457857 | AH40: 74.22714764 | AI40: 70.51407973
A41: 94.8 , -30.4 | B41: 94.8 | C41: -30.4 | D41: 2.708571429 | E41: 69.6 | G41: 2.64 | H41: 39 | I41: 78.3328 | J41: 75.32 | K41: 73.8136 | L41: 72.3072 | M41: 70.8008 | N41: 68.18705794 | O41: 53.1057147 | Q41: 5.28 | R41: 39 | S41: 99.5 | T41: 100 | U41: 99.9 | V41: 99.8001 | W41: 99.7002999 | X41: 99.6005996 | Y41: 99.500999 | AA41: 3.432 | AB41: 39 | AC41: 108.6026592 | AD41: 92.3492 | AE41: 87.269994 | AF41: 81.1749468 | AG41: 77.111582 | AH41: 74.10315677 | AI41: 70.45750954
A42: 97.1 , -31.3 | B42: 97.1 | C42: -31.3 | D42: 2.774285714 | E42: 68.7 | G42: 2.708571429 | H42: 40 | I42: 77.47702857 | J42: 74.49714286 | K42: 73.0072 | L42: 71.51725714 | M42: 70.02731429 | N42: 67.51625228 | O42: 52.62950538 | Q42: 5.417142857 | R42: 40 | S42: 99.5 | T42: 100 | U42: 99.9 | V42: 99.8001 | W42: 99.7002999 | X42: 99.6005996 | Y42: 99.500999 | AA42: 3.521142857 | AB42: 40 | AC42: 108.3026784 | AD42: 92.09411429 | AE42: 87.028938 | AF42: 80.95072646 | AG42: 76.89858543 | AH42: 73.97969158 | AI42: 70.40196014
A43: 99.5 , -32.3 | B43: 99.5 | C43: -32.3 | D43: 2.842857143 | E43: 67.7 | G43: 2.774285714 | H43: 41 | I43: 76.65691429 | J43: 73.70857143 | K43: 72.2344 | L43: 70.76022857 | M43: 69.28605714 | N43: 66.87270131 | O43: 52.17224894 | Q43: 5.548571429 | R43: 41 | S43: 99.5 | T43: 100 | U43: 99.9 | V43: 99.8001 | W43: 99.7002999 | X43: 99.6005996 | Y43: 99.500999 | AA43: 3.606571429 | AB43: 41 | AC43: 108.0151968 | AD43: 91.84965714 | AE43: 86.797926 | AF43: 80.73584863 | AG43: 76.69446371 | AH43: 73.8618775 | AI43: 70.34970929
A44: 102 , -33.2 | B44: 102 | C44: -33.2 | D44: 2.914285714 | E44: 66.8 | G44: 2.842857143 | H44: 42 | I44: 75.80114286 | J44: 72.88571429 | K44: =$J44*(1+(K$3-100)/100) -> 71.428 | L44: 69.97028571 | M44: 68.51257143 | N44: 66.20043528 | O44: 51.69417187 | Q44: 5.685714286 | R44: 42 | S44: 99.5 | T44: 100 | U44: =$T44*(1+(U$3-100)/100) -> 99.9 | V44: 99.8001 | W44: 99.7002999 | X44: 99.6005996 | Y44: 99.500999 | AA44: 3.695714286 | AB44: 42 | AC44: 107.715216 | AD44: 91.59457143 | AE44: 86.55687 | AF44: 80.51162829 | AG44: 76.48146714 | AH44: 73.73948433 | AI44: 70.29624175
A45: 104 , -34.1 | B45: 104 | C45: -34.1 | D45: 2.971428571 | E45: 65.9 | G45: 2.914285714 | H45: 43 | I45: 74.90971429 | J45: 72.02857143 | K45: 70.588 | L45: 69.14742857 | M45: 67.70685714 | N45: 65.49935048 | O45: 51.19514057 | Q45: 5.828571429 | R45: 43 | S45: 99.5 | T45: 100 | U45: 99.9 | V45: 99.8001 | W45: 99.7002999 | X45: 99.6005996 | Y45: 99.500999 | AA45: 3.788571429 | AB45: 43 | AC45: 107.402736 | AD45: 91.32885714 | AE45: 86.30577 | AF45: 80.27806543 | AG45: 76.25959571 | AH45: 73.61259802 | AI45: 70.24172451
A46: 106 , -35 | B46: 106 | C46: -35 | D46: 3.028571429 | E46: 65 | G46: 2.971428571 | H46: 44 | I46: 74.19657143 | J46: 71.34285714 | K46: 69.916 | L46: 68.48914286 | M46: 67.06228571 | N46: 64.9378821 | O46: 50.79514578 | Q46: 5.942857143 | R46: 44 | S46: 99.5 | T46: 100 | U46: 99.9 | V46: 99.8001 | W46: 99.7002999 | X46: 99.6005996 | Y46: 99.500999 | AA46: 3.862857143 | AB46: 44 | AC46: 107.152752 | AD46: 91.11628571 | AE46: 86.10489 | AF46: 80.09121514 | AG46: 76.08209857 | AH46: 73.51154672 | AI46: 70.19899986
A47: 109 , -35.9 | B47: 109 | C47: -35.9 | D47: 3.114285714 | E47: 64.1 | G47: 3.028571429 | H47: 45 | I47: 73.48342857 | J47: 70.65714286 | K47: 69.244 | L47: 67.83085714 | M47: 66.41771429 | N47: 64.3758738 | O47: 50.39445836 | Q47: 6.057142857 | R47: 45 | S47: 99.5 | T47: 100 | U47: 99.9 | V47: 99.8001 | W47: 99.7002999 | X47: 99.6005996 | Y47: 99.500999 | AA47: 3.937142857 | AB47: 45 | AC47: 106.902768 | AD47: 90.90371429 | AE47: 85.90401 | AF47: 79.90436486 | AG47: 75.90460143 | AH47: 73.4109128 | AI47: 70.15708602
A48: 111 , -36.8 | B48: 111 | C48: -36.8 | D48: 3.171428571 | E48: 63.2 | G48: 3.114285714 | H48: 46 | I48: 72.41371429 | J48: 69.62857143 | K48: 68.236 | L48: 66.84342857 | M48: 65.45085714 | N48: 63.53183634 | O48: 49.79211113 | Q48: 6.228571429 | R48: 46 | S48: 99.5 | T48: 100 | U48: 99.9 | V48: 99.8001 | W48: 99.7002999 | X48: 99.6005996 | Y48: 99.500999 | AA48: 4.048571429 | AB48: 46 | AC48: 106.527792 | AD48: 90.58485714 | AE48: 85.60269 | AF48: 79.62408943 | AG48: 75.63835571 | AH48: 73.26076646 | AI48: 70.09577843
A49: 114 , -37.6 | B49: 114 | C49: -37.6 | D49: 3.257142857 | E49: 62.4 | G49: 3.171428571 | H49: 47 | I49: 71.70057143 | J49: 68.94285714 | K49: 67.564 | L49: 66.18514286 | M49: 64.80628571 | N49: 62.96845274 | O49: 49.38965702 | Q49: 6.342857143 | R49: 47 | S49: 99.5 | T49: 100 | U49: 99.9 | V49: 99.8001 | W49: 99.7002999 | X49: 99.6005996 | Y49: 99.500999 | AA49: 4.122857143 | AB49: 47 | AC49: 106.277808 | AD49: 90.37228571 | AE49: 85.40181 | AF49: 79.43723914 | AG49: 75.46085857 | AH49: 73.16122045 | AI49: 70.05597848
A50: 116 , -38.5 | B50: 116 | C50: -38.5 | D50: 3.314285714 | E50: 61.5 | G50: 3.257142857 | H50: 48 | I50: 70.63085714 | J50: 67.91428571 | K50: 66.556 | L50: 65.19771429 | M50: 63.83942857 | N50: 62.12232421 | O50: 48.784621 | Q50: 6.514285714 | R50: 48 | S50: 99.5 | T50: 100 | U50: 99.9 | V50: 99.8001 | W50: 99.7002999 | X50: 99.6005996 | Y50: 99.500999 | AA50: 4.234285714 | AB50: 48 | AC50: 105.902832 | AD50: 90.05342857 | AE50: 85.10049 | AF50: 79.15696371 | AG50: 75.19461286 | AH50: 73.01275586 | AI50: 69.99793918
A51: 118 , -39.3 | B51: 118 | C51: -39.3 | D51: 3.371428571 | E51: 60.7 | G51: 3.314285714 | H51: 49 | I51: 69.91771429 | J51: 67.22857143 | K51: 65.884 | L51: 64.53942857 | M51: 63.19485714 | N51: 61.55752735 | O51: 48.38034786 | Q51: 6.628571429 | R51: 49 | S51: 99.5 | T51: 100 | U51: 99.9 | V51: 99.8001 | W51: 99.7002999 | X51: 99.6005996 | Y51: 99.500999 | AA51: 4.308571429 | AB51: 49 | AC51: 105.652848 | AD51: 89.84085714 | AE51: 84.89961 | AF51: 78.97011343 | AG51: 75.01711571 | AH51: 72.91436554 | AI51: 69.96038558
A52: 121 , -40.1 | B52: 121 | C52: -40.1 | D52: 3.457142857 | E52: 59.9 | G52: 3.371428571 | H52: 50 | I52: 69.20457143 | J52: 66.54285714 | K52: 65.212 | L52: 63.88114286 | M52: 62.55028571 | N52: 60.9921541 | O52: 47.97533179 | Q52: 6.742857143 | R52: 50 | S52: 99.5 | T52: 100 | U52: 99.9 | V52: 99.8001 | W52: 99.7002999 | X52: 99.6005996 | Y52: 99.500999 | AA52: 4.382857143 | AB52: 50 | AC52: 105.402864 | AD52: 89.62828571 | AE52: 84.69873 | AF52: 78.78326314 | AG52: 74.83961857 | AH52: 72.81645773 | AI52: 69.92377015 | AP52: 0 | AQ52: =+AP53 -> 0.5 | AR52: 100 | AS52: =+AR53 -> 97.2 | AT52: 100 | AU52: =+AT53 -> 99.132
A53: 123 , -40.9 | B53: 123 | C53: -40.9 | D53: 3.514285714 | E53: 59.1 | G53: 3.457142857 | H53: 51 | I53: 68.13485714 | J53: 65.51428571 | K53: 64.204 | L53: 62.89371429 | M53: 61.58342857 | N53: 60.14299918 | O53: 47.36639488 | Q53: 6.914285714 | R53: 51 | S53: 99.5 | T53: 100 | U53: 99.9 | V53: 99.8001 | W53: 99.7002999 | X53: 99.6005996 | Y53: 99.500999 | AA53: 4.494285714 | AB53: 51 | AC53: 105.027888 | AD53: 89.30942857 | AE53: 84.39741 | AF53: 78.50298771 | AG53: 74.57337286 | AH53: 72.67052744 | AI53: 69.87065834 | AP53: =+AP52+0.5 -> 0.5 | AQ53: 1 | AR53: 97.2 | AS53: 93.5 | AT53: =(((AR53/100)-1)*0.31+1)*100 -> 99.132 | AU53: 97.985
A54: 126 , -41.7 | B54: 126 | C54: -41.7 | D54: 3.6 | E54: 58.3 | G54: 3.514285714 | H54: 52 | I54: 67.45142857 | J54: 64.85714286 | K54: 63.56 | L54: 62.26285714 | M54: 60.96571429 | N54: 59.59978646 | O54: 46.97645163 | Q54: 7.028571429 | R54: 52 | S54: 99.5 | T54: 100 | U54: 99.9 | V54: 99.8001 | W54: 99.7002999 | X54: 99.6005996 | Y54: 99.500999 | AA54: 4.568571429 | AB54: 52 | AC54: 104.78832 | AD54: 89.10571429 | AE54: 84.2049 | AF54: 78.32392286 | AG54: 74.40327143 | AH54: 72.57789655 | AI54: 69.83789749 | AP54: 1 | AQ54: 1.5 | AR54: 93.5 | AS54: 89 | AT54: 97.985 | AU54: 96.59
A55: 128 , -42.5 | B55: 128 | C55: -42.5 | D55: 3.657142857 | E55: 57.5 | G55: 3.6 | H55: 53 | I55: 66.56 | J55: 64 | K55: 62.72 | L55: 61.44 | M55: 60.16 | N55: 58.8904196 | O55: 46.46675893 | Q55: 7.2 | R55: 53 | S55: 99.5 | T55: 100 | U55: 99.9 | V55: 99.8001 | W55: 99.7002999 | X55: 99.6005996 | Y55: 99.500999 | AA55: 4.68 | AB55: 53 | AC55: 104.47584 | AD55: 88.84 | AE55: 83.9538 | AF55: 78.09036 | AG55: 74.1814 | AH55: 72.45780192 | AI55: 69.79658293 | AP55: 1.5 | AQ55: 2 | AR55: 89 | AS55: 83.2 | AT55: 96.59 | AU55: 94.792
A56: 130 , -43.3 | B56: 130 | C56: -43.3 | D56: 3.714285714 | E56: 56.7 | G56: 3.657142857 | H56: 54 | I56: 65.96571429 | J56: 63.42857143 | K56: 62.16 | L56: 60.89142857 | M56: 59.62285714 | N56: 58.41698106 | O56: 46.12628153 | Q56: 7.314285714 | R56: 54 | S56: 99.5 | T56: 100 | U56: 99.9 | V56: 99.8001 | W56: 99.7002999 | X56: 99.6005996 | Y56: 99.500999 | AA56: 4.754285714 | AB56: 54 | AC56: 104.26752 | AD56: 88.66285714 | AE56: 83.7864 | AF56: 77.93465143 | AG56: 74.03348571 | AH56: 72.37820894 | AI56: 69.76995476 | AP56: 2 | AQ56: 2.5 | AR56: 83.2 | AS56: 77 | AT56: 94.792 | AU56: 92.87
A57: 133 , -44 | B57: 133 | C57: -44 | D57: 3.8 | E57: 56 | G57: 3.714285714 | H57: 55 | I57: 65.37142857 | J57: 62.85714286 | K57: 61.6 | L57: 60.34285714 | M57: 59.08571429 | N57: 57.9431158 | O57: 45.78525155 | Q57: 7.428571429 | R57: 55 | S57: 99.5 | T57: 100 | U57: 99.9 | V57: 99.8001 | W57: 99.7002999 | X57: 99.6005996 | Y57: 99.500999 | AA57: 4.828571429 | AB57: 55 | AC57: 104.0592 | AD57: 88.48571429 | AE57: 83.619 | AF57: 77.77894286 | AG57: 73.88557143 | AH57: 72.2990016 | AI57: 69.7440773 | AP57: 2.5 | AQ57: 3 | AR57: 77 | AS57: 71 | AT57: 92.87 | AU57: 91.01
A58: 135 , -44.7 | B58: 135 | C58: -44.7 | D58: 3.857142857 | E58: 55.3 | G58: 3.8 | H58: 56 | I58: 64.48 | J58: 62 | K58: 60.76 | L58: 59.52 | M58: 58.28 | N58: 57.23150844 | O58: 45.27265748 | Q58: 7.6 | R58: 56 | S58: 99.5 | T58: 100 | U58: 99.9 | V58: 99.8001 | W58: 99.7002999 | X58: 99.6005996 | Y58: 99.500999 | AA58: 4.94 | AB58: 56 | AC58: 103.74672 | AD58: 88.22 | AE58: 83.3679 | AF58: 77.54538 | AG58: 73.6637 | AH58: 72.1809323 | AI58: 69.70670525 | AP58: 3 | AQ58: 3.5 | AR58: 71 | AS58: 65 | AT58: 91.01 | AU58: 89.15
A59: 138 , -45.5 | B59: 138 | C59: -45.5 | D59: 3.942857143 | E59: 54.5 | G59: 3.857142857 | H59: 57 | I59: 63.88571429 | J59: 61.42857143 | K59: 60.2 | L59: 58.97142857 | M59: 57.74285714 | N59: 56.75655752 | O59: 44.93021983 | Q59: 7.714285714 | R59: 57 | S59: 99.5 | T59: 100 | U59: 99.9 | V59: 99.8001 | W59: 99.7002999 | X59: 99.6005996 | Y59: 99.500999 | AA59: 5.014285714 | AB59: 57 | AC59: 103.5384 | AD59: 88.04285714 | AE59: 83.2005 | AF59: 77.38967143 | AG59: 73.51578571 | AH59: 72.10272673 | AI59: 69.68277854 | AP59: 3.5 | AQ59: 4 | AR59: 65 | AS59: 60 | AT59: 89.15 | AU59: 87.6
A60: 140 , -46.2 | B60: 140 | C60: -46.2 | D60: 4 | E60: 53.8 | G60: 3.942857143 | H60: 58 | I60: 62.99428571 | J60: 60.57142857 | K60: 59.36 | L60: 58.14857143 | M60: 56.93714286 | N60: 56.04330092 | O60: 44.41548536 | Q60: 7.885714286 | R60: 58 | S60: 99.5 | T60: 100 | U60: 99.9 | V60: 99.8001 | W60: 99.7002999 | X60: 99.6005996 | Y60: 99.500999 | AA60: 5.125714286 | AB60: 58 | AC60: 103.22592 | AD60: 87.77714286 | AE60: 82.9494 | AF60: 77.15610857 | AG60: 73.29391429 | AH60: 71.98620213 | AI60: 69.6484154 | AP60: 4 | AQ60: 5 | AR60: 60 | AS60: 51 | AT60: 87.6 | AU60: 84.81
A61: 142 , -46.9 | B61: 142 | C61: -46.9 | D61: 4.057142857 | E61: 53.1 | G61: 4 | H61: 59 | I61: 62.4 | J61: 60 | K61: 58.8 | L61: 57.6 | M61: 56.4 | N61: 55.56723634 | O61: 44.07160105 | Q61: 8 | R61: 59 | S61: 99.5 | T61: 100 | U61: 99.9 | V61: 99.8001 | W61: 99.7002999 | X61: 99.6005996 | Y61: 99.500999 | AA61: 5.2 | AB61: 59 | AC61: 103.0176 | AD61: 87.6 | AE61: 82.782 | AF61: 77.0004 | AG61: 73.146 | AH61: 71.90905539 | AI61: 69.62655181 | AP61: =+AP60+1 -> 5 | AQ61: 6 | AR61: 51 | AS61: 43.5 | AT61: 84.81 | AU61: 82.485
A62: 145 , -47.6 | B62: 145 | C62: -47.6 | D62: 4.142857143 | E62: 52.4 | G62: 4.057142857 | H62: 60 | I62: 61.86514286 | J62: 59.48571429 | K62: 58.296 | L62: 57.10628571 | M62: 55.91657143 | N62: 55.13839051 | O62: 43.76160089 | Q62: 8.114285714 | R62: 60 | S62: 99.5 | T62: 100 | U62: 99.9 | V62: 99.8001 | W62: 99.7002999 | X62: 99.6005996 | Y62: 99.500999 | AA62: 5.274285714 | AB62: 60 | AC62: 102.830112 | AD62: 87.44057143 | AE62: 82.63134 | AF62: 76.86026229 | AG62: 73.01287714 | AH62: 71.83999968 | AI62: 69.60760819 | AP62: 6 | AQ62: 7 | AR62: 43.5 | AS62: 36.5 | AT62: 82.485 | AU62: 80.315
A63: 147 , -48.3 | B63: 147 | C63: -48.3 | D63: 4.2 | E63: 51.7 | G63: 4.142857143 | H63: 61 | I63: 61.06285714 | J63: 58.71428571 | K63: 57.54 | L63: 56.36571429 | M63: 55.19142857 | N63: 54.49442517 | O63: 43.29569384 | Q63: 8.285714286 | R63: 61 | S63: 99.5 | T63: 100 | U63: 99.9 | V63: 99.8001 | W63: 99.7002999 | X63: 99.6005996 | Y63: 99.500999 | AA63: 5.385714286 | AB63: 61 | AC63: 102.54888 | AD63: 87.20142857 | AE63: 82.40535 | AF63: 76.65005571 | AG63: 72.81319286 | AH63: 71.73710134 | AI63: 69.5805289 | AP63: 7 | AQ63: 8 | AR63: 36.5 | AS63: 32 | AT63: 80.315 | AU63: 78.92
A64: 150 , -49 | B64: 150 | C64: -49 | D64: 4.285714286 | E64: 51 | G64: 4.2 | H64: 62 | I64: 60.528 | J64: 58.2 | K64: =$J64*(1+(K$3-100)/100) -> 57.036 | L64: 55.872 | M64: 54.708 | N64: 54.06464533 | O64: 42.98447731 | Q64: 8.4 | R64: 62 | S64: 99.5 | T64: 100 | U64: =$T64*(1+(U$3-100)/100) -> 99.9 | V64: 99.8001 | W64: 99.7002999 | X64: 99.6005996 | Y64: 99.500999 | AA64: 5.46 | AB64: 62 | AC64: 102.361392 | AD64: 87.042 | AE64: 82.25469 | AF64: 76.509918 | AG64: 72.68007 | AH64: 71.66897044 | AI64: 69.56338882 | AP64: 8 | AQ64: 9 | AR64: 32 | AS64: 29 | AT64: 78.92 | AU64: 77.99
A65: 152 , -49.6 | B65: 152 | C65: -49.6 | D65: 4.342857143 | E65: 50.4 | G65: 4.285714286 | H65: 63 | I65: 59.72571429 | J65: 57.42857143 | K65: 56.28 | L65: 55.13142857 | M65: 53.98285714 | N65: 53.41926201 | O65: 42.516722 | Q65: 8.571428571 | R65: 63 | S65: 99.5 | T65: 100 | U65: 99.9 | V65: 99.8001 | W65: 99.7002999 | X65: 99.6005996 | Y65: 99.500999 | AA65: 5.571428571 | AB65: 63 | AC65: 102.08016 | AD65: 86.80285714 | AE65: 82.0287 | AF65: 76.29971143 | AG65: 72.48038571 | AH65: 71.56749589 | AI65: 69.53908703 | AP65: 9 | AQ65: 10 | AR65: 29 | AS65: 26 | AT65: 77.99 | AU65: 77.06
A66: 154 , -50.3 | B66: =SUBSTITUTE(LEFT(A66,FIND(",",A66,1)-1),".",",")*1 -> 154 | C66: =SUBSTITUTE(RIGHT(A66,LEN(A66)-FIND(",",A66)),".",",")*1 -> -50.3 | D66: =B66/$D$1 -> 4.4 | E66: =C66+100 -> 49.7 | G66: 4.342857143 | H66: 64 | I66: 59.19085714 | J66: 56.91428571 | K66: 55.776 | L66: 54.63771429 | M66: 53.49942857 | N66: 52.98852529 | O66: 42.20425713 | Q66: 8.685714286 | R66: 64 | S66: 99.5 | T66: 100 | U66: 99.9 | V66: 99.8001 | W66: 99.7002999 | X66: 99.6005996 | Y66: 99.500999 | AA66: 5.645714286 | AB66: 64 | AC66: 101.892672 | AD66: 86.64342857 | AE66: 81.87804 | AF66: 76.15957371 | AG66: 72.34726286 | AH66: 71.50033937 | AI66: 69.52384839 | AP66: 10 | AQ66: 11 | AR66: 26 | AS66: 24 | AT66: 77.06 | AU66: 76.44
A67: 157 , -50.9 | B67: 157 | C67: -50.9 | D67: 4.485714286 | E67: 49.1 | G67: 4.4 | H67: 65 | I67: 58.656 | J67: 56.4 | K67: 55.272 | L67: 54.144 | M67: 53.016 | N67: 52.55739916 | O67: 41.89128361 | Q67: 8.8 | R67: 65 | S67: 99.5 | T67: 100 | U67: 99.9 | V67: 99.8001 | W67: 99.7002999 | X67: 99.6005996 | Y67: 99.500999 | AA67: 5.72 | AB67: 65 | AC67: 101.705184 | AD67: 86.484 | AE67: 81.72738 | AF67: 76.019436 | AG67: 72.21414 | AH67: 71.43358731 | AI67: 69.5093994 | AP67: 11 | AQ67: 12 | AR67: 24 | AS67: 22 | AT67: 76.44 | AU67: 75.82
A68: 159 , -51.5 | B68: 159 | C68: -51.5 | D68: 4.542857143 | E68: 48.5 | G68: =+D67 -> 4.485714286 | H68: =H67+1 -> 66 | I68: =+J68*$I$3/100 -> 57.85371429 | J68: =VLOOKUP(G68,$AP$52:$AU$72,3)+(G68-VLOOKUP(G68,$AP$52:$AU$72,1))*(VLOOKUP(G68,$AP$52:$AU$72,4)-VLOOKUP(G68,$AP$52:$AU$72,3))/(VLOOKUP(G68,$AP$52:$AU$72,2)-VLOOKUP(G68,$AP$52:$AU$72,1)) -> 55.62857143 | K68: 54.516 | L68: 53.40342857 | M68: 52.29085714 | N68: =($J68/100)^0.9*(1+(N$3-100)/100)*100 -> 51.90997128 | O68: =($J68/100)^0.82*(1+(O$3-100)/100)*100 -> 41.42085761 | Q68: =G68*2 -> 8.971428571 | R68: =R67+1 -> 66 | S68: =+T68*$S$3/100 -> 99.5 | T68: 100 | U68: 99.9 | V68: 99.8001 | W68: 99.7002999 | X68: =($T68/100)^0.9*(1+(X$3-100)/100)*100 -> 99.6005996 | Y68: =($T68/100)^0.82*(1+(Y$3-100)/100)*100 -> 99.500999 | AA68: =G68*1.3 -> 5.831428571 | AB68: =AB67+1 -> 66 | AC68: =+AD68*$AC$3/$AD$3 -> 101.423952 | AD68: =VLOOKUP(G68,$AP$52:$AU$72,5)+(G68-VLOOKUP(G68,$AP$52:$AU$72,1))*(VLOOKUP(G68,$AP$52:$AU$72,6)-VLOOKUP(G68,$AP$52:$AU$72,5))/(VLOOKUP(G68,$AP$52:$AU$72,2)-VLOOKUP(G68,$AP$52:$AU$72,1)) -> 86.24485714 | AE68: =MIN(K68*$AD68/$J68*AE$3/K$3,$AD68,AE$3) -> 81.50139 | AF68: =MIN(L68*$AD68/$J68*AF$3/L$3,AD68,AE68,AF$3) -> 75.80922943 | AG68: =MIN(M68*$AD68/$J68*AG$3/M$3,AD68,AE68,AF68,AG$3) -> 72.01445571 | AH68: =MIN(N68*$AD68/$J68*AH$3/N$3,AD68,AE68,AF68,AG68,AH$3) -> 71.3342368 | AI68: =MIN(O68*$AD68/$J68*AI$3/O$3,AD68,AE68,AF68,AG68,AH68,AI$3) -> 69.48924457 | AP68: 12 | AQ68: 13 | AR68: 22 | AS68: 20.3 | AT68: 75.82 | AU68: 75.293
A69: 162 , -52.2 | B69: 162 | C69: -52.2 | D69: 4.628571429 | E69: 47.8 | G69: 4.542857143 | H69: 67 | I69: 57.31885714 | J69: 55.11428571 | K69: 54.012 | L69: 52.90971429 | M69: 51.80742857 | N69: 51.47785439 | O69: 41.10658826 | Q69: 9.085714286 | R69: 67 | S69: 99.5 | T69: 100 | U69: 99.9 | V69: 99.8001 | W69: 99.7002999 | X69: 99.6005996 | Y69: 99.500999 | AA69: 5.905714286 | AB69: 67 | AC69: 101.236464 | AD69: 86.08542857 | AE69: 81.35073 | AF69: 75.66909171 | AG69: 71.88133286 | AH69: 71.2685348 | AI69: 69.47684675 | AP69: 13 | AQ69: 14 | AR69: 20.3 | AS69: 19 | AT69: 75.293 | AU69: 74.89
A70: 164 , -52.8 | B70: 164 | C70: -52.8 | D70: 4.685714286 | E70: 47.2 | G70: 4.628571429 | H70: 68 | I70: 56.51657143 | J70: 54.34285714 | K70: 53.256 | L70: 52.16914286 | M70: 51.08228571 | N70: 50.82892135 | O70: 40.63419184 | Q70: 9.257142857 | R70: 68 | S70: 99.5 | T70: 100 | U70: 99.9 | V70: 99.8001 | W70: 99.7002999 | X70: 99.6005996 | Y70: 99.500999 | AA70: 6.017142857 | AB70: 68 | AC70: 100.955232 | AD70: 85.84628571 | AE70: 81.12474 | AF70: 75.45888514 | AG70: 71.68164857 | AH70: 71.1708029 | AI70: 69.45985489 | AP70: 14 | AQ70: 20 | AR70: 19 | AS70: 15 | AT70: 74.89 | AU70: 73.65
A71: 166 , -53.4 | B71: 166 | C71: -53.4 | D71: 4.742857143 | E71: 46.6 | G71: 4.685714286 | H71: 69 | I71: 55.98171429 | J71: 53.82857143 | K71: 52.752 | L71: 51.67542857 | M71: 50.59885714 | N71: 50.39578806 | O71: 40.31859068 | Q71: 9.371428571 | R71: 69 | S71: 99.5 | T71: 100 | U71: 99.9 | V71: 99.8001 | W71: 99.7002999 | X71: 99.6005996 | Y71: 99.500999 | AA71: 6.091428571 | AB71: 69 | AC71: 100.767744 | AD71: 85.68685714 | AE71: 80.97408 | AF71: 75.31874743 | AG71: 71.54852571 | AH71: 71.10621001 | AI71: 69.44962527 | AP71: 20 | AQ71: 25 | AR71: 15 | AS71: 14 | AT71: 73.65 | AU71: 73.34
A72: 169 , -54 | B72: 169 | C72: -54 | D72: 4.828571429 | E72: 46 | G72: 4.742857143 | H72: 70 | I72: 55.44685714 | J72: 53.31428571 | K72: 52.248 | L72: 51.18171429 | M72: 50.11542857 | N72: 49.96224074 | O72: 40.00244628 | Q72: 9.485714286 | R72: 70 | S72: 99.5 | T72: 100 | U72: 99.9 | V72: 99.8001 | W72: 99.7002999 | X72: 99.6005996 | Y72: 99.500999 | AA72: 6.165714286 | AB72: 70 | AC72: 100.580256 | AD72: 85.52742857 | AE72: 80.82342 | AF72: 75.17860971 | AG72: 71.41540286 | AH72: 71.04207831 | AI72: 69.44029775 | AP72: 25 | AQ72: 30 | AR72: 14 | AS72: 13 | AT72: 73.34 | AU72: 0
A73: 171 , -54.5 | B73: 171 | C73: -54.5 | D73: 4.885714286 | E73: 45.5 | G73: 4.828571429 | H73: 71 | I73: 54.64457143 | J73: 52.54285714 | K73: 51.492 | L73: 50.44114286 | M73: 49.39028571 | N73: 49.31113383 | O73: 39.52719755 | Q73: 9.657142857 | R73: 71 | S73: 99.5 | T73: 100 | U73: 99.9 | V73: 99.8001 | W73: 99.7002999 | X73: 99.6005996 | Y73: 99.500999 | AA73: 6.277142857 | AB73: 71 | AC73: 100.299024 | AD73: 85.28828571 | AE73: 80.59743 | AF73: 74.96840314 | AG73: 71.21571857 | AH73: 70.94676859 | AI73: 69.42804376
A74: 174 , -55.1 | B74: 174 | C74: -55.1 | D74: 4.971428571 | E74: 44.9 | G74: 4.885714286 | H74: 72 | I74: 54.10971429 | J74: 52.02857143 | K74: 50.988 | L74: 49.94742857 | M74: 48.90685714 | N74: 48.87653202 | O74: 39.20966772 | Q74: 9.771428571 | R74: 72 | S74: 99.5 | T74: 100 | U74: 99.9 | V74: 99.8001 | W74: 99.7002999 | X74: 99.6005996 | Y74: 99.500999 | AA74: 6.351428571 | AB74: 72 | AC74: 100.111536 | AD74: 85.12885714 | AE74: 80.44677 | AF74: 74.82826543 | AG74: 71.08259571 | AH74: 70.88383656 | AI74: 69.42106426
A75: 176 , -55.7 | B75: 176 | C75: -55.7 | D75: 5.028571429 | E75: 44.3 | G75: 4.971428571 | H75: 73 | I75: 53.30742857 | J75: 51.25714286 | K75: 50.232 | L75: 49.20685714 | M75: 48.18171429 | N75: 48.22382194 | O75: 38.73231062 | Q75: 9.942857143 | R75: 73 | S75: 99.5 | T75: 100 | U75: 99.9 | V75: 99.8001 | W75: 99.7002999 | X75: 99.6005996 | Y75: 99.500999 | AA75: 6.462857143 | AB75: 73 | AC75: 99.830304 | AD75: 84.88971429 | AE75: 80.22078 | AF75: 74.61805886 | AG75: 70.88291143 | AH75: 70.79037862 | AI75: 69.41243623
A76: 178 , -56.2 | B76: 178 | C76: -56.2 | D76: 5.085714286 | E76: 43.8 | G76: 5.028571429 | H76: 74 | I76: 52.81714286 | J76: 50.78571429 | K76: 49.77 | L76: 48.75428571 | M76: 47.73857143 | N76: 47.82446063 | O76: 38.43995637 | Q76: 10.05714286 | R76: 74 | S76: 99.5 | T76: 100 | U76: 99.9 | V76: 99.8001 | W76: 99.7002999 | X76: 99.6005996 | Y76: 99.500999 | AA76: 6.537142857 | AB76: 74 | AC76: 99.65844 | AD76: 84.74357143 | AE76: 80.082675 | AF76: 74.48959929 | AG76: 70.76088214 | AH76: 70.73383567 | AI76: 69.40828087
A77: 181 , -56.8 | B77: 181 | C77: -56.8 | D77: 5.171428571 | E77: 43.2 | G77: 5.085714286 | H77: 75 | I77: 52.37142857 | J77: 50.35714286 | K77: 49.35 | L77: 48.34285714 | M77: 47.33571429 | N77: 47.46108314 | O77: 38.17375566 | Q77: 10.17142857 | R77: 75 | S77: 99.5 | T77: 100 | U77: 99.9 | V77: 99.8001 | W77: 99.7002999 | X77: 99.6005996 | Y77: 99.500999 | AA77: 6.611428571 | AB77: 75 | AC77: 99.5022 | AD77: 84.61071429 | AE77: 79.957125 | AF77: 74.37281786 | AG77: 70.64994643 | AH77: 70.64994643 | AI77: 69.40525806 | AQ77: =VLOOKUP(0.7,$AP$52:$AU$72,1) -> 0.5
A78: 183 , -57.3 | B78: 183 | C78: -57.3 | D78: 5.228571429 | E78: 42.7 | G78: 5.171428571 | H78: 76 | I78: 51.70285714 | J78: 49.71428571 | K78: 48.72 | L78: 47.72571429 | M78: 46.73142857 | N78: 46.91543589 | O78: 37.77368809 | Q78: 10.34285714 | R78: 76 | S78: 99.5 | T78: 100 | U78: 99.9 | V78: 99.8001 | W78: 99.7002999 | X78: 99.6005996 | Y78: 99.500999 | AA78: 6.722857143 | AB78: 76 | AC78: 99.26784 | AD78: 84.41142857 | AE78: 79.7688 | AF78: 74.19764571 | AG78: 70.48354286 | AH78: 70.48354286 | AI78: 69.40210454
A79: 186 , -57.8 | B79: 186 | C79: -57.8 | D79: 5.314285714 | E79: 42.2 | G79: 5.228571429 | H79: 77 | I79: 51.25714286 | J79: 49.28571429 | K79: 48.3 | L79: 47.31428571 | M79: 46.32857143 | N79: 46.55127942 | O79: 37.50645932 | Q79: 10.45714286 | R79: 77 | S79: 99.5 | T79: 100 | U79: 99.9 | V79: 99.8001 | W79: 99.7002999 | X79: 99.6005996 | Y79: 99.500999 | AA79: 6.797142857 | AB79: 77 | AC79: 99.1116 | AD79: 84.27857143 | AE79: 79.64325 | AF79: 74.08086429 | AG79: 70.37260714 | AH79: 70.37260714 | AI79: 69.40094469
A80: 188 , -58.4 | B80: 188 | C80: -58.4 | D80: 5.371428571 | E80: 41.6 | G80: 5.314285714 | H80: 78 | I80: 50.58857143 | J80: 48.64285714 | K80: 47.67 | L80: 46.69714286 | M80: 45.72428571 | N80: 46.00444977 | O80: 37.10482992 | Q80: 10.62857143 | R80: 78 | S80: 99.5 | T80: 100 | U80: 99.9 | V80: 99.8001 | W80: 99.7002999 | X80: 99.6005996 | Y80: 99.500999 | AA80: 6.908571429 | AB80: 78 | AC80: 98.87724 | AD80: 84.07928571 | AE80: 79.454925 | AF80: 73.90569214 | AG80: 70.20620357 | AH80: 70.20620357 | AI80: 69.40065773
A81: 190 , -58.9 | B81: 190 | C81: -58.9 | D81: 5.428571429 | E81: 41.1 | G81: 5.371428571 | H81: 79 | I81: 50.14285714 | J81: 48.21428571 | K81: 47.25 | L81: 46.28571429 | M81: 45.32142857 | N81: 45.63949555 | O81: 36.83654648 | Q81: 10.74285714 | R81: 79 | S81: 99.5 | T81: 100 | U81: 99.9 | V81: 99.8001 | W81: 99.7002999 | X81: 99.6005996 | Y81: 99.500999 | AA81: 6.982857143 | AB81: 79 | AC81: 98.721 | AD81: 83.94642857 | AE81: 79.329375 | AF81: 73.78891071 | AG81: 70.09526786 | AH81: 70.09526786 | AI81: 69.4014586
A82: 193 , -59.4 | B82: 193 | C82: -59.4 | D82: 5.514285714 | E82: 40.6 | G82: 5.428571429 | H82: 80 | I82: 49.69714286 | J82: 47.78571429 | K82: 46.83 | L82: 45.87428571 | M82: 44.91857143 | N82: 45.27421678 | O82: 36.56783343 | Q82: 10.85714286 | R82: 80 | S82: 99.5 | T82: 100 | U82: 99.9 | V82: 99.8001 | W82: 99.7002999 | X82: 99.6005996 | Y82: 99.500999 | AA82: 7.057142857 | AB82: 80 | AC82: 98.56476 | AD82: 83.81357143 | AE82: 79.203825 | AF82: 73.67212929 | AG82: 69.98433214 | AH82: 69.98433214 | AI82: 69.40307275
A83: 195 , -59.9 | B83: 195 | C83: -59.9 | D83: 5.571428571 | E83: 40.1 | G83: 5.514285714 | H83: 81 | I83: 49.02857143 | J83: 47.14285714 | K83: 46.2 | L83: 45.25714286 | M83: 44.31428571 | N83: 44.72568307 | O83: 36.16394837 | Q83: 11.02857143 | R83: 81 | S83: 99.5 | T83: 100 | U83: 99.9 | V83: 99.8001 | W83: 99.7002999 | X83: 99.6005996 | Y83: 99.500999 | AA83: 7.168571429 | AB83: 81 | AC83: 98.3304 | AD83: 83.61428571 | AE83: 79.0155 | AF83: 73.49695714 | AG83: 69.81792857 | AH83: 69.81792857 | AI83: 69.40705682
A84: 198 , -60.4 | B84: 198 | C84: -60.4 | D84: 5.657142857 | E84: 39.6 | G84: 5.571428571 | H84: 82 | I84: 48.58285714 | J84: 46.71428571 | K84: =$J84*(1+(K$3-100)/100) -> 45.78 | L84: 44.84571429 | M84: 43.91142857 | N84: 44.35957877 | O84: 35.89414121 | Q84: 11.14285714 | R84: 82 | S84: 99.5 | T84: 100 | U84: =$T84*(1+(U$3-100)/100) -> 99.9 | V84: 99.8001 | W84: 99.7002999 | X84: 99.6005996 | Y84: 99.500999 | AA84: 7.242857143 | AB84: 82 | AC84: 98.17416 | AD84: 83.48142857 | AE84: 78.88995 | AF84: 73.38017571 | AG84: 69.70699286 | AH84: 69.70699286 | AI84: 69.41078093
A85: 200 , -60.8 | B85: 200 | C85: -60.8 | D85: 5.714285714 | E85: 39.2 | G85: 5.657142857 | H85: 83 | I85: 47.91428571 | J85: 46.07142857 | K85: 45.15 | L85: 44.22857143 | M85: 43.30714286 | N85: 43.80979119 | O85: 35.48859284 | Q85: 11.31428571 | R85: 83 | S85: 99.5 | T85: 100 | U85: 99.9 | V85: 99.8001 | W85: 99.7002999 | X85: 99.6005996 | Y85: 99.500999 | AA85: 7.354285714 | AB85: 83 | AC85: 97.9398 | AD85: 83.28214286 | AE85: 78.701625 | AF85: 73.20500357 | AG85: 69.54058929 | AH85: 69.54058929 | AI85: 69.41801572
A86: 202 , -61.3 | B86: 202 | C86: -61.3 | D86: 5.771428571 | E86: 38.7 | G86: 5.714285714 | H86: 84 | I86: 47.46857143 | J86: 45.64285714 | K86: 44.73 | L86: 43.81714286 | M86: 42.90428571 | N86: 43.44284036 | O86: 35.21766169 | Q86: 11.42857143 | R86: 84 | S86: 99.5 | T86: 100 | U86: 99.9 | V86: 99.8001 | W86: 99.7002999 | X86: 99.6005996 | Y86: 99.500999 | AA86: 7.428571429 | AB86: 84 | AC86: 97.78356 | AD86: 83.14928571 | AE86: 78.576075 | AF86: 73.08822214 | AG86: 69.42965357 | AH86: 69.42965357 | AI86: 69.4239662
A87: 205 , -61.8 | B87: 205 | C87: -61.8 | D87: 5.857142857 | E87: 38.2 | G87: 5.771428571 | H87: 85 | I87: 47.02285714 | J87: 45.21428571 | K87: 44.31 | L87: 43.40571429 | M87: 42.50142857 | N87: 43.07554481 | O87: 34.94627222 | Q87: 11.54285714 | R87: 85 | S87: 99.5 | T87: 100 | U87: 99.9 | V87: 99.8001 | W87: 99.7002999 | X87: 99.6005996 | Y87: 99.500999 | AA87: 7.502857143 | AB87: 85 | AC87: 97.62732 | AD87: 83.01642857 | AE87: 78.450525 | AF87: 72.97144071 | AG87: 69.31871786 | AH87: 69.31871786 | AI87: 69.31871786
A88: 207 , -62.2 | B88: 207 | C88: -62.2 | D88: 5.914285714 | E88: 37.8 | G88: 5.857142857 | H88: 86 | I88: 46.35428571 | J88: 44.57142857 | K88: 43.68 | L88: 42.78857143 | M88: 41.89714286 | N88: 42.52394725 | O88: 34.53831746 | Q88: 11.71428571 | R88: 86 | S88: 99.5 | T88: 100 | U88: 99.9 | V88: 99.8001 | W88: 99.7002999 | X88: 99.6005996 | Y88: 99.500999 | AA88: 7.614285714 | AB88: 86 | AC88: 97.39296 | AD88: 82.81714286 | AE88: 78.2622 | AF88: 72.79626857 | AG88: 69.15231429 | AH88: 69.15231429 | AI88: 69.15231429
A89: 210 , -62.7 | B89: 210 | C89: -62.7 | D89: 6 | E89: 37.3 | G89: 5.914285714 | H89: 87 | I89: 45.90857143 | J89: 44.14285714 | K89: 43.26 | L89: 42.37714286 | M89: 41.49428571 | N89: 42.15577401 | O89: 34.26575955 | Q89: 11.82857143 | R89: 87 | S89: 99.5 | T89: 100 | U89: 99.9 | V89: 99.8001 | W89: 99.7002999 | X89: 99.6005996 | Y89: 99.500999 | AA89: 7.688571429 | AB89: 87 | AC89: 97.23672 | AD89: 82.68428571 | AE89: 78.13665 | AF89: 72.67948714 | AG89: 69.04137857 | AH89: 69.04137857 | AI89: 69.04137857
A90: 212 , -63.1 | B90: 212 | C90: -63.1 | D90: 6.057142857 | E90: 36.9 | G90: 6 | H90: 88 | I90: 45.24 | J90: 43.5 | K90: 42.63 | L90: 41.76 | M90: 40.89 | N90: 41.60284238 | O90: 33.85602708 | Q90: 12 | R90: 88 | S90: 99.5 | T90: 100 | U90: 99.9 | V90: 99.8001 | W90: 99.7002999 | X90: 99.6005996 | Y90: 99.500999 | AA90: 7.8 | AB90: 88 | AC90: 97.00236 | AD90: 82.485 | AE90: 77.948325 | AF90: 72.504315 | AG90: 68.874975 | AH90: 68.874975 | AI90: 68.874975
A91: 214 , -63.6 | B91: 214 | C91: -63.6 | D91: 6.114285714 | E91: 36.4 | G91: 6.057142857 | H91: 89 | I91: 44.824 | J91: 43.1 | K91: 42.238 | L91: 41.376 | M91: 40.514 | N91: 41.25838416 | O91: 33.60053282 | Q91: 12.11428571 | R91: 89 | S91: 99.5 | T91: 100 | U91: 99.9 | V91: 99.8001 | W91: 99.7002999 | X91: 99.6005996 | Y91: 99.500999 | AA91: 7.874285714 | AB91: 89 | AC91: 96.856536 | AD91: 82.361 | AE91: 77.831145 | AF91: 72.395319 | AG91: 68.771435 | AH91: 68.771435 | AI91: 68.771435
A92: 217 , -64 | B92: 217 | C92: -64 | D92: 6.2 | E92: 36 | G92: 6.114285714 | H92: 90 | I92: 44.408 | J92: 42.7 | K92: 41.846 | L92: 40.992 | M92: 40.138 | N92: 40.9136061 | O92: 33.34461138 | Q92: 12.22857143 | R92: 90 | S92: 99.5 | T92: 100 | U92: 99.9 | V92: 99.8001 | W92: 99.7002999 | X92: 99.6005996 | Y92: 99.500999 | AA92: 7.948571429 | AB92: 90 | AC92: 96.710712 | AD92: 82.237 | AE92: 77.713965 | AF92: 72.286323 | AG92: 68.667895 | AH92: 68.667895 | AI92: 68.667895
A93: 219 , -64.4 | B93: 219 | C93: -64.4 | D93: 6.257142857 | E93: 35.6 | G93: 6.2 | H93: 91 | I93: 43.784 | J93: 42.1 | K93: 41.258 | L93: 40.416 | M93: 39.574 | N93: 40.3958321 | O93: 32.9599179 | Q93: 12.4 | R93: 91 | S93: 99.5 | T93: 100 | U93: 99.9 | V93: 99.8001 | W93: 99.7002999 | X93: 99.6005996 | Y93: 99.500999 | AA93: 8.06 | AB93: 91 | AC93: 96.491976 | AD93: 82.051 | AE93: 77.538195 | AF93: 72.122829 | AG93: 68.512585 | AH93: 68.512585 | AI93: 68.512585
A94: 222 , -64.8 | B94: 222 | C94: -64.8 | D94: 6.342857143 | E94: 35.2 | G94: 6.257142857 | H94: 92 | I94: 43.368 | J94: 41.7 | K94: 40.866 | L94: 40.032 | M94: 39.198 | N94: 40.05023988 | O94: 32.70290764 | Q94: 12.51428571 | R94: 92 | S94: 99.5 | T94: 100 | U94: 99.9 | V94: 99.8001 | W94: 99.7002999 | X94: 99.6005996 | Y94: 99.500999 | AA94: 8.134285714 | AB94: 92 | AC94: 96.346152 | AD94: 81.927 | AE94: 77.421015 | AF94: 72.013833 | AG94: 68.409045 | AH94: 68.409045 | AI94: 68.409045
A95: 224 , -65.2 | B95: 224 | C95: -65.2 | D95: 6.4 | E95: 34.8 | G95: 6.342857143 | H95: 93 | I95: 42.744 | J95: 41.1 | K95: 40.278 | L95: 39.456 | M95: 38.634 | N95: 39.53122858 | O95: 32.31655787 | Q95: 12.68571429 | R95: 93 | S95: 99.5 | T95: 100 | U95: 99.9 | V95: 99.8001 | W95: 99.7002999 | X95: 99.6005996 | Y95: 99.500999 | AA95: 8.245714286 | AB95: 93 | AC95: 96.127416 | AD95: 81.741 | AE95: 77.245245 | AF95: 71.850339 | AG95: 68.253735 | AH95: 68.253735 | AI95: 68.253735
A96: 226 , -65.6 | B96: 226 | C96: -65.6 | D96: 6.457142857 | E96: 34.4 | G96: 6.4 | H96: 94 | I96: 42.328 | J96: 40.7 | K96: 39.886 | L96: 39.072 | M96: 38.258 | N96: 39.18480054 | O96: 32.05842767 | Q96: 12.8 | R96: 94 | S96: 99.5 | T96: 100 | U96: 99.9 | V96: 99.8001 | W96: 99.7002999 | X96: 99.6005996 | Y96: 99.500999 | AA96: 8.32 | AB96: 94 | AC96: 95.981592 | AD96: 81.617 | AE96: 77.128065 | AF96: 71.741343 | AG96: 68.150195 | AH96: 68.150195 | AI96: 68.150195
A97: 229 , -66 | B97: 229 | C97: -66 | D97: 6.542857143 | E97: 34 | G97: 6.457142857 | H97: 95 | I97: 41.912 | J97: 40.3 | K97: 39.494 | L97: 38.688 | M97: 37.882 | N97: 38.83803186 | O97: 31.79984042 | Q97: 12.91428571 | R97: 95 | S97: 99.5 | T97: 100 | U97: 99.9 | V97: 99.8001 | W97: 99.7002999 | X97: 99.6005996 | Y97: 99.500999 | AA97: 8.394285714 | AB97: 95 | AC97: 95.835768 | AD97: 81.493 | AE97: 77.010885 | AF97: 71.632347 | AG97: 68.046655 | AH97: 68.046655 | AI97: 68.046655
A98: 231 , -66.4 | B98: 231 | C98: -66.4 | D98: 6.6 | E98: 33.6 | G98: 6.542857143 | H98: 96 | I98: 41.288 | J98: 39.7 | K98: 38.906 | L98: 38.112 | M98: 37.318 | N98: 38.31723197 | O98: 31.4110908 | Q98: 13.08571429 | R98: 96 | S98: 99.5 | T98: 100 | U98: 99.9 | V98: 99.8001 | W98: 99.7002999 | X98: 99.6005996 | Y98: 99.500999 | AA98: 8.505714286 | AB98: 96 | AC98: 95.617032 | AD98: 81.307 | AE98: 76.835115 | AF98: 71.468853 | AG98: 67.891345 | AH98: 67.891345 | AI98: 67.891345
A99: 234 , -66.8 | B99: 234 | C99: -66.8 | D99: 6.685714286 | E99: 33.2 | G99: 6.6 | H99: 97 | I99: 40.872 | J99: 39.3 | K99: 38.514 | L99: 37.728 | M99: 36.942 | N99: 37.96959524 | O99: 31.15133721 | Q99: 13.2 | R99: 97 | S99: 99.5 | T99: 100 | U99: 99.9 | V99: 99.8001 | W99: 99.7002999 | X99: 99.6005996 | Y99: 99.500999 | AA99: 8.58 | AB99: 97 | AC99: 95.471208 | AD99: 81.183 | AE99: 76.717935 | AF99: 71.359857 | AG99: 67.787805 | AH99: 67.787805 | AI99: 67.787805
A100: 236 , -67.2 | B100: 236 | C100: -67.2 | D100: 6.742857143 | E100: 32.8 | G100: 6.685714286 | H100: 98 | I100: 40.248 | J100: 38.7 | K100: 37.926 | L100: 37.152 | M100: 36.378 | N100: 37.4474751 | O100: 30.7608119 | Q100: 13.37142857 | R100: 98 | S100: 99.5 | T100: 100 | U100: 99.9 | V100: 99.8001 | W100: 99.7002999 | X100: 99.6005996 | Y100: 99.500999 | AA100: 8.691428571 | AB100: 98 | AC100: 95.252472 | AD100: 80.997 | AE100: 76.542165 | AF100: 71.196363 | AG100: 67.632495 | AH100: 67.632495 | AI100: 67.632495
A101: 238 , -67.5 | B101: 238 | C101: -67.5 | D101: 6.8 | E101: 32.5 | G101: 6.742857143 | H101: 99 | I101: 39.832 | J101: 38.3 | K101: 37.534 | L101: 36.768 | M101: 36.002 | N101: 37.09894578 | O101: 30.49985659 | Q101: 13.48571429 | R101: 99 | S101: 99.5 | T101: 100 | U101: 99.9 | V101: 99.8001 | W101: 99.7002999 | X101: 99.6005996 | Y101: 99.500999 | AA101: 8.765714286 | AB101: 99 | AC101: 95.106648 | AD101: 80.873 | AE101: 76.424985 | AF101: 71.087367 | AG101: 67.528955 | AH101: 67.528955 | AI101: 67.528955
A102: 241 , -67.9 | B102: 241 | C102: -67.9 | D102: 6.885714286 | E102: 32.1 | G102: 6.8 | H102: 100 | I102: 39.416 | J102: 37.9 | K102: 37.142 | L102: 36.384 | M102: 35.626 | N102: 36.75005227 | O102: 30.23841025 | Q102: 13.6 | R102: 100 | S102: 99.5 | T102: 100 | U102: 99.9 | V102: 99.8001 | W102: 99.7002999 | X102: 99.6005996 | Y102: 99.500999 | AA102: 8.84 | AB102: 100 | AC102: 94.960824 | AD102: 80.749 | AE102: 76.307805 | AF102: 70.978371 | AG102: 67.425415 | AH102: 67.425415 | AI102: 67.425415
A103: 243 , -68.3 | B103: 243 | C103: -68.3 | D103: 6.942857143 | E103: 31.7 | G103: 6.885714286 | H103: 101 | I103: 38.792 | J103: 37.3 | K103: 36.554 | L103: 35.808 | M103: 35.062 | N103: 36.22601985 | O103: 29.8453066 | Q103: 13.77142857 | R103: 101 | S103: 99.5 | T103: 100 | U103: 99.9 | V103: 99.8001 | W103: 99.7002999 | X103: 99.6005996 | Y103: 99.500999 | AA103: 8.951428571 | AB103: 101 | AC103: 94.742088 | AD103: 80.563 | AE103: 76.132035 | AF103: 70.814877 | AG103: 67.270105 | AH103: 67.270105 | AI103: 67.270105
A104: 246 , -68.6 | B104: 246 | C104: -68.6 | D104: 7.028571429 | E104: 31.4 | G104: 6.942857143 | H104: 102 | I104: 38.376 | J104: 36.9 | K104: =$J104*(1+(K$3-100)/100) -> 36.162 | L104: 35.424 | M104: 34.686 | N104: 35.87619713 | O104: 29.58260556 | Q104: 13.88571429 | R104: 102 | S104: 99.5 | T104: 100 | U104: =$T104*(1+(U$3-100)/100) -> 99.9 | V104: 99.8001 | W104: 99.7002999 | X104: 99.6005996 | Y104: 99.500999 | AA104: 9.025714286 | AB104: 102 | AC104: 94.596264 | AD104: 80.439 | AE104: 76.014855 | AF104: 70.705881 | AG104: 67.166565 | AH104: 67.166565 | AI104: 67.166565
A105: 248 , -69 | B105: 248 | C105: -69 | D105: 7.085714286 | E105: 31 | G105: 7.028571429 | H105: 103 | I105: 37.82628571 | J105: 36.37142857 | K105: 35.644 | L105: 34.91657143 | M105: 34.18914286 | N105: 35.41334868 | O105: 29.23467683 | Q105: 14.05714286 | R105: 103 | S105: 99.5 | T105: 100 | U105: 99.9 | V105: 99.8001 | W105: 99.7002999 | X105: 99.6005996 | Y105: 99.500999 | AA105: 9.137142857 | AB105: 103 | AC105: 94.403568 | AD105: 80.27514286 | AE105: 75.86001 | AF105: 70.56185057 | AG105: 67.02974429 | AH105: 67.02974429 | AI105: 67.02974429
A106: 250 , -69.3 | B106: 250 | C106: -69.3 | D106: 7.142857143 | E106: 30.7 | G106: 7.085714286 | H106: 104 | I106: 37.55885714 | J106: 36.11428571 | K106: 35.392 | L106: 34.66971429 | M106: 33.94742857 | N106: 35.18793644 | O106: 29.06508564 | Q106: 14.17142857 | R106: 104 | S106: 99.5 | T106: 100 | U106: 99.9 | V106: 99.8001 | W106: 99.7002999 | X106: 99.6005996 | Y106: 99.500999 | AA106: 9.211428571 | AB106: 104 | AC106: 94.309824 | AD106: 80.19542857 | AE106: 75.78468 | AF106: 70.49178171 | AG106: 66.96318286 | AH106: 66.96318286 | AI106: 66.96318286
A107: 253 , -69.6 | B107: 253 | C107: -69.6 | D107: 7.228571429 | E107: 30.4 | G107: 7.142857143 | H107: 105 | I107: 37.29142857 | J107: 35.85714286 | K107: 35.14 | L107: 34.42285714 | M107: 33.70571429 | N107: 34.96236363 | O107: 28.89527696 | Q107: 14.28571429 | R107: 105 | S107: 99.5 | T107: 100 | U107: 99.9 | V107: 99.8001 | W107: 99.7002999 | X107: 99.6005996 | Y107: 99.500999 | AA107: 9.285714286 | AB107: 105 | AC107: 94.21608 | AD107: 80.11571429 | AE107: 75.70935 | AF107: 70.42171286 | AG107: 66.89662143 | AH107: 66.89662143 | AI107: 66.89662143
A108: 255 , -70 | B108: 255 | C108: -70 | D108: 7.285714286 | E108: 30 | G108: 7.228571429 | H108: 106 | I108: 36.89028571 | J108: 35.47142857 | K108: 34.762 | L108: 34.05257143 | M108: 33.34314286 | N108: 34.62370061 | O108: 28.64015209 | Q108: 14.45714286 | R108: 106 | S108: 99.5 | T108: 100 | U108: 99.9 | V108: 99.8001 | W108: 99.7002999 | X108: 99.6005996 | Y108: 99.500999 | AA108: 9.397142857 | AB108: 106 | AC108: 94.075464 | AD108: 79.99614286 | AE108: 75.596355 | AF108: 70.31660957 | AG108: 66.79677929 | AH108: 66.79677929 | AI108: 66.79677929
A109: 258 , -70.3 | B109: 258 | C109: -70.3 | D109: 7.371428571 | E109: 29.7 | G109: 7.285714286 | H109: 107 | I109: 36.62285714 | J109: 35.21428571 | K109: 34.51 | L109: 33.80571429 | M109: 33.10142857 | N109: 34.39772082 | O109: 28.46979154 | Q109: 14.57142857 | R109: 107 | S109: 99.5 | T109: 100 | U109: 99.9 | V109: 99.8001 | W109: 99.7002999 | X109: 99.6005996 | Y109: 99.500999 | AA109: 9.471428571 | AB109: 107 | AC109: 93.98172 | AD109: 79.91642857 | AE109: 75.521025 | AF109: 70.24654071 | AG109: 66.73021786 | AH109: 66.73021786 | AI109: 66.73021786
A110: 260 , -70.6 | B110: 260 | C110: -70.6 | D110: 7.428571429 | E110: 29.4 | G110: 7.371428571 | H110: 108 | I110: 36.22171429 | J110: 34.82857143 | K110: 34.132 | L110: 33.43542857 | M110: 32.73885714 | N110: 34.05844121 | O110: 28.21382998 | Q110: 14.74285714 | R110: 108 | S110: 99.5 | T110: 100 | U110: 99.9 | V110: 99.8001 | W110: 99.7002999 | X110: 99.6005996 | Y110: 99.500999 | AA110: 9.582857143 | AB110: 108 | AC110: 93.841104 | AD110: 79.79685714 | AE110: 75.40803 | AF110: 70.14143743 | AG110: 66.63037571 | AH110: 66.63037571 | AI110: 66.63037571
A111: 262 , -70.9 | B111: 262 | C111: -70.9 | D111: 7.485714286 | E111: 29.1 | G111: 7.428571429 | H111: 109 | I111: 35.95428571 | J111: 34.57142857 | K111: 33.88 | L111: 33.18857143 | M111: 32.49714286 | N111: 33.83204623 | O111: 28.0429056 | Q111: 14.85714286 | R111: 109 | S111: 99.5 | T111: 100 | U111: 99.9 | V111: 99.8001 | W111: 99.7002999 | X111: 99.6005996 | Y111: 99.500999 | AA111: 9.657142857 | AB111: 109 | AC111: 93.74736 | AD111: 79.71714286 | AE111: 75.3327 | AF111: 70.07136857 | AG111: 66.56381429 | AH111: 66.56381429 | AI111: 66.56381429
A112: 265 , -71.2 | B112: 265 | C112: -71.2 | D112: 7.571428571 | E112: 28.8 | G112: 7.485714286 | H112: 110 | I112: 35.68685714 | J112: 34.31428571 | K112: 33.628 | L112: 32.94171429 | M112: 32.25542857 | N112: 33.60548278 | O112: 27.87175222 | Q112: 14.97142857 | R112: 110 | S112: 99.5 | T112: 100 | U112: 99.9 | V112: 99.8001 | W112: 99.7002999 | X112: 99.6005996 | Y112: 99.500999 | AA112: 9.731428571 | AB112: 110 | AC112: 93.653616 | AD112: 79.63742857 | AE112: 75.25737 | AF112: 70.00129971 | AG112: 66.49725286 | AH112: 66.49725286 | AI112: 66.49725286
A113: 267 , -71.5 | B113: 267 | C113: -71.5 | D113: 7.628571429 | E113: 28.5 | G113: 7.571428571 | H113: 111 | I113: 35.28571429 | J113: 33.92857143 | K113: 33.25 | L113: 32.57142857 | M113: 31.89285714 | N113: 33.26531871 | O113: 27.61458833 | Q113: 15.14285714 | R113: 111 | S113: 99.5 | T113: 100 | U113: 99.9 | V113: 99.8001 | W113: 99.7002999 | X113: 99.6005996 | Y113: 99.500999 | AA113: 9.842857143 | AB113: 111 | AC113: 93.513 | AD113: 79.51785714 | AE113: 75.144375 | AF113: 69.89619643 | AG113: 66.39741071 | AH113: 66.39741071 | AI113: 66.39741071
A114: 270 , -71.8 | B114: 270 | C114: -71.8 | D114: 7.714285714 | E114: 28.2 | G114: 7.628571429 | H114: 112 | I114: 35.01828571 | J114: 33.67142857 | K114: 32.998 | L114: 32.32457143 | M114: 31.65114286 | N114: 33.03832799 | O114: 27.44285352 | Q114: 15.25714286 | R114: 112 | S114: 99.5 | T114: 100 | U114: 99.9 | V114: 99.8001 | W114: 99.7002999 | X114: 99.6005996 | Y114: 99.500999 | AA114: 9.917142857 | AB114: 112 | AC114: 93.419256 | AD114: 79.43814286 | AE114: 75.069045 | AF114: 69.82612757 | AG114: 66.33084929 | AH114: 66.33084929 | AI114: 66.33084929
A115: 272 , -72.1 | B115: 272 | C115: -72.1 | D115: 7.771428571 | E115: 27.9 | G115: 7.714285714 | H115: 113 | I115: 34.61714286 | J115: 33.28571429 | K115: 32.62 | L115: 31.95428571 | M115: 31.28857143 | N115: 32.69751631 | O115: 27.18480769 | Q115: 15.42857143 | R115: 113 | S115: 99.5 | T115: 100 | U115: 99.9 | V115: 99.8001 | W115: 99.7002999 | X115: 99.6005996 | Y115: 99.500999 | AA115: 10.02857143 | AB115: 113 | AC115: 93.27864 | AD115: 79.31857143 | AE115: 74.95605 | AF115: 69.72102429 | AG115: 66.23100714 | AH115: 66.23100714 | AI115: 66.23100714
A116: 274 , -72.4 | B116: 274 | C116: -72.4 | D116: 7.828571429 | E116: 27.6 | G116: 7.771428571 | H116: 114 | I116: 34.34971429 | J116: 33.02857143 | K116: 32.368 | L116: 31.70742857 | M116: 31.04685714 | N116: 32.47008929 | O116: 27.01247825 | Q116: 15.54285714 | R116: 114 | S116: 99.5 | T116: 100 | U116: 99.9 | V116: 99.8001 | W116: 99.7002999 | X116: 99.6005996 | Y116: 99.500999 | AA116: 10.10285714 | AB116: 114 | AC116: 93.184896 | AD116: 79.23885714 | AE116: 74.88072 | AF116: 69.65095543 | AG116: 66.16444571 | AH116: 66.16444571 | AI116: 66.16444571
A117: 277 , -72.7 | B117: 277 | C117: -72.7 | D117: 7.914285714 | E117: 27.3 | G117: 7.828571429 | H117: 115 | I117: 34.08228571 | J117: 32.77142857 | K117: 32.116 | L117: 31.46057143 | M117: 30.80514286 | N117: 32.24248514 | O117: 26.83990714 | Q117: 15.65714286 | R117: 115 | S117: 99.5 | T117: 100 | U117: 99.9 | V117: 99.8001 | W117: 99.7002999 | X117: 99.6005996 | Y117: 99.500999 | AA117: 10.17714286 | AB117: 115 | AC117: 93.091152 | AD117: 79.15914286 | AE117: 74.80539 | AF117: 69.58088657 | AG117: 66.09788429 | AH117: 66.09788429 | AI117: 66.09788429
A118: 279 , -73 | B118: 279 | C118: -73 | D118: 7.971428571 | E118: 27 | G118: 7.914285714 | H118: 116 | I118: 33.68114286 | J118: 32.38571429 | K118: 31.738 | L118: 31.09028571 | M118: 30.44257143 | N118: 31.90074344 | O118: 26.58059244 | Q118: 15.82857143 | R118: 116 | S118: 99.5 | T118: 100 | U118: 99.9 | V118: 99.8001 | W118: 99.7002999 | X118: 99.6005996 | Y118: 99.500999 | AA118: 10.28857143 | AB118: 116 | AC118: 92.950536 | AD118: 79.03957143 | AE118: 74.692395 | AF118: 69.47578329 | AG118: 65.99804214 | AH118: 65.99804214 | AI118: 65.99804214
A119: 282 , -73.3 | B119: 282 | C119: -73.3 | D119: 8.057142857 | E119: 26.7 | G119: 7.971428571 | H119: 117 | I119: 33.41371429 | J119: 32.12857143 | K119: 31.486 | L119: 30.84342857 | M119: 30.20085714 | N119: 31.6726897 | O119: 26.40740726 | Q119: 15.94285714 | R119: 117 | S119: 99.5 | T119: 100 | U119: 99.9 | V119: 99.8001 | W119: 99.7002999 | X119: 99.6005996 | Y119: 99.500999 | AA119: 10.36285714 | AB119: 117 | AC119: 92.856792 | AD119: 78.95985714 | AE119: 74.617065 | AF119: 69.40571443 | AG119: 65.93148071 | AH119: 65.93148071 | AI119: 65.93148071
A120: 284 , -73.5 | B120: 284 | C120: -73.5 | D120: 8.114285714 | E120: 26.5 | G120: 8.057142857 | H120: 118 | I120: 33.10171429 | J120: 31.82857143 | K120: 31.192 | L120: 30.55542857 | M120: 29.91885714 | N120: 31.40639612 | O120: 26.20504216 | Q120: 16.11428571 | R120: 118 | S120: 99.5 | T120: 100 | U120: 99.9 | V120: 99.8001 | W120: 99.7002999 | X120: 99.6005996 | Y120: 99.500999 | AA120: 10.47428571 | AB120: 118 | AC120: 92.747424 | AD120: 78.86685714 | AE120: 74.52918 | AF120: 69.32396743 | AG120: 65.85382571 | AH120: 65.85382571 | AI120: 65.85382571
A121: 286 , -73.8 | B121: 286 | C121: -73.8 | D121: 8.171428571 | E121: 26.2 | G121: 8.114285714 | H121: 119 | I121: 32.92342857 | J121: 31.65714286 | K121: 31.024 | L121: 30.39085714 | M121: 29.75771429 | N121: 31.25411578 | O121: 26.08925093 | Q121: 16.22857143 | R121: 119 | S121: 99.5 | T121: 100 | U121: 99.9 | V121: 99.8001 | W121: 99.7002999 | X121: 99.6005996 | Y121: 99.500999 | AA121: 10.54857143 | AB121: 119 | AC121: 92.684928 | AD121: 78.81371429 | AE121: 74.47896 | AF121: 69.27725486 | AG121: 65.80945143 | AH121: 65.80945143 | AI121: 65.80945143
A122: 289 , -74.1 | B122: 289 | C122: -74.1 | D122: 8.257142857 | E122: 25.9 | G122: 8.171428571 | H122: 120 | I122: 32.74514286 | J122: 31.48571429 | K122: 30.856 | L122: 30.22628571 | M122: 29.59657143 | N122: 31.10175295 | O122: 25.97334677 | Q122: 16.34285714 | R122: 120 | S122: 99.5 | T122: 100 | U122: 99.9 | V122: 99.8001 | W122: 99.7002999 | X122: 99.6005996 | Y122: 99.500999 | AA122: 10.62285714 | AB122: 120 | AC122: 92.622432 | AD122: 78.76057143 | AE122: 74.42874 | AF122: 69.23054229 | AG122: 65.76507714 | AH122: 65.76507714 | AI122: 65.76507714
A123: 291 , -74.3 | B123: 291 | C123: -74.3 | D123: 8.314285714 | E123: 25.7 | G123: 8.257142857 | H123: 121 | I123: 32.47771429 | J123: 31.22857143 | K123: 30.604 | L123: 29.97942857 | M123: 29.35485714 | N123: 30.87305297 | O123: 25.79927722 | Q123: 16.51428571 | R123: 121 | S123: 99.5 | T123: 100 | U123: 99.9 | V123: 99.8001 | W123: 99.7002999 | X123: 99.6005996 | Y123: 99.500999 | AA123: 10.73428571 | AB123: 121 | AC123: 92.528688 | AD123: 78.68085714 | AE123: 74.35341 | AF123: 69.16047343 | AG123: 65.69851571 | AH123: 65.69851571 | AI123: 65.69851571
A124: 294 , -74.6 | B124: 294 | C124: -74.6 | D124: 8.4 | E124: 25.4 | G124: 8.314285714 | H124: 122 | I124: 32.29942857 | J124: 31.05714286 | K124: =$J124*(1+(K$3-100)/100) -> 30.436 | L124: 29.81485714 | M124: 29.19371429 | N124: 30.72048175 | O124: 25.68308757 | Q124: 16.62857143 | R124: 122 | S124: 99.5 | T124: 100 | U124: =$T124*(1+(U$3-100)/100) -> 99.9 | V124: 99.8001 | W124: 99.7002999 | X124: 99.6005996 | Y124: 99.500999 | AA124: 10.80857143 | AB124: 122 | AC124: 92.466192 | AD124: 78.62771429 | AE124: 74.30319 | AF124: 69.11376086 | AG124: 65.65414143 | AH124: 65.65414143 | AI124: 65.65414143
A125: 296 , -74.8 | B125: 296 | C125: -74.8 | D125: 8.457142857 | E125: 25.2 | G125: 8.4 | H125: 123 | I125: 32.032 | J125: 30.8 | K125: 30.184 | L125: 29.568 | M125: 28.952 | N125: 30.49146682 | O125: 25.50858629 | Q125: 16.8 | R125: 123 | S125: 99.5 | T125: 100 | U125: 99.9 | V125: 99.8001 | W125: 99.7002999 | X125: 99.6005996 | Y125: 99.500999 | AA125: 10.92 | AB125: 123 | AC125: 92.372448 | AD125: 78.548 | AE125: 74.22786 | AF125: 69.043692 | AG125: 65.58758 | AH125: 65.58758 | AI125: 65.58758
A126: 298 , -75.1 | B126: 298 | C126: -75.1 | D126: 8.514285714 | E126: 24.9 | G126: 8.457142857 | H126: 124 | I126: 31.85371429 | J126: 30.62857143 | K126: 30.016 | L126: 29.40342857 | M126: 28.79085714 | N126: 30.33868404 | O126: 25.39210646 | Q126: 16.91428571 | R126: 124 | S126: 99.5 | T126: 100 | U126: 99.9 | V126: 99.8001 | W126: 99.7002999 | X126: 99.6005996 | Y126: 99.500999 | AA126: 10.99428571 | AB126: 124 | AC126: 92.309952 | AD126: 78.49485714 | AE126: 74.17764 | AF126: 68.99697943 | AG126: 65.54320571 | AH126: 65.54320571 | AI126: 65.54320571
A127: 301 , -75.3 | B127: 301 | C127: -75.3 | D127: 8.6 | E127: 24.7 | G127: 8.514285714 | H127: 125 | I127: 31.67542857 | J127: 30.45714286 | K127: 29.848 | L127: 29.23885714 | M127: 28.62971429 | N127: 30.18581572 | O127: 25.27550923 | Q127: 17.02857143 | R127: 125 | S127: 99.5 | T127: 100 | U127: 99.9 | V127: 99.8001 | W127: 99.7002999 | X127: 99.6005996 | Y127: 99.500999 | AA127: 11.06857143 | AB127: 125 | AC127: 92.247456 | AD127: 78.44171429 | AE127: 74.12742 | AF127: 68.95026686 | AG127: 65.49883143 | AH127: 65.49883143 | AI127: 65.49883143
A128: 303 , -75.6 | B128: 303 | C128: -75.6 | D128: 8.657142857 | E128: 24.4 | G128: 8.6 | H128: 126 | I128: 31.408 | J128: 30.2 | K128: 29.596 | L128: 28.992 | M128: 28.388 | N128: 29.9563517 | O128: 25.10039153 | Q128: 17.2 | R128: 126 | S128: 99.5 | T128: 100 | U128: 99.9 | V128: 99.8001 | W128: 99.7002999 | X128: 99.6005996 | Y128: 99.500999 | AA128: 11.18 | AB128: 126 | AC128: 92.153712 | AD128: 78.362 | AE128: 74.05209 | AF128: 68.880198 | AG128: 65.43227 | AH128: 65.43227 | AI128: 65.43227
A129: 306 , -75.8 | B129: 306 | C129: -75.8 | D129: 8.742857143 | E129: 24.2 | G129: 8.657142857 | H129: 127 | I129: 31.22971429 | J129: 30.02857143 | K129: 29.428 | L129: 28.82742857 | M129: 28.22685714 | N129: 29.80326721 | O129: 24.98349734 | Q129: 17.31428571 | R129: 127 | S129: 99.5 | T129: 100 | U129: 99.9 | V129: 99.8001 | W129: 99.7002999 | X129: 99.6005996 | Y129: 99.500999 | AA129: 11.25428571 | AB129: 127 | AC129: 92.091216 | AD129: 78.30885714 | AE129: 74.00187 | AF129: 68.83348543 | AG129: 65.38789571 | AH129: 65.38789571 | AI129: 65.38789571
A130: 308 , -76 | B130: =SUBSTITUTE(LEFT(A130,FIND(",",A130,1)-1),".",",")*1 -> 308 | C130: =SUBSTITUTE(RIGHT(A130,LEN(A130)-FIND(",",A130)),".",",")*1 -> -76 | D130: =B130/$D$1 -> 8.8 | E130: =C130+100 -> 24 | G130: 8.742857143 | H130: 128 | I130: 30.96228571 | J130: 29.77142857 | K130: 29.176 | L130: 28.58057143 | M130: 27.98514286 | N130: 29.57347639 | O130: 24.80793046 | Q130: 17.48571429 | R130: 128 | S130: 99.5 | T130: 100 | U130: 99.9 | V130: 99.8001 | W130: 99.7002999 | X130: 99.6005996 | Y130: 99.500999 | AA130: 11.36571429 | AB130: 128 | AC130: 91.997472 | AD130: 78.22914286 | AE130: 73.92654 | AF130: 68.76341657 | AG130: 65.32133429 | AH130: 65.32133429 | AI130: 65.32133429
A131: 310 , -76.3 | B131: 310 | C131: -76.3 | D131: 8.857142857 | E131: 23.7 | G131: 8.8 | H131: 129 | I131: 30.784 | J131: 29.6 | K131: 29.008 | L131: 28.416 | M131: 27.824 | N131: 29.42017232 | O131: 24.69073429 | Q131: 17.6 | R131: 129 | S131: 99.5 | T131: 100 | U131: 99.9 | V131: 99.8001 | W131: 99.7002999 | X131: 99.6005996 | Y131: 99.500999 | AA131: 11.44 | AB131: 129 | AC131: 91.934976 | AD131: 78.176 | AE131: 73.87632 | AF131: 68.716704 | AG131: 65.27696 | AH131: 65.27696 | AI131: 65.27696
A132: 313 , -76.5 | B132: 313 | C132: -76.5 | D132: 8.942857143 | E132: 23.5 | G132: =+D131 -> 8.857142857 | H132: =H131+1 -> 130 | I132: =+J132*$I$3/100 -> 30.60571429 | J132: =VLOOKUP(G132,$AP$52:$AU$72,3)+(G132-VLOOKUP(G132,$AP$52:$AU$72,1))*(VLOOKUP(G132,$AP$52:$AU$72,4)-VLOOKUP(G132,$AP$52:$AU$72,3))/(VLOOKUP(G132,$AP$52:$AU$72,2)-VLOOKUP(G132,$AP$52:$AU$72,1)) -> 29.42857143 | K132: 28.84 | L132: 28.25142857 | M132: 27.66285714 | N132: =($J132/100)^0.9*(1+(N$3-100)/100)*100 -> 29.26677943 | O132: =($J132/100)^0.82*(1+(O$3-100)/100)*100 -> 24.57341587 | Q132: =G132*2 -> 17.71428571 | R132: =R131+1 -> 130 | S132: =+T132*$S$3/100 -> 99.5 | T132: 100 | U132: 99.9 | V132: 99.8001 | W132: 99.7002999 | X132: =($T132/100)^0.9*(1+(X$3-100)/100)*100 -> 99.6005996 | Y132: =($T132/100)^0.82*(1+(Y$3-100)/100)*100 -> 99.500999 | AA132: =G132*1.3 -> 11.51428571 | AB132: =AB131+1 -> 130 | AC132: =+AD132*$AC$3/$AD$3 -> 91.87248 | AD132: =VLOOKUP(G132,$AP$52:$AU$72,5)+(G132-VLOOKUP(G132,$AP$52:$AU$72,1))*(VLOOKUP(G132,$AP$52:$AU$72,6)-VLOOKUP(G132,$AP$52:$AU$72,5))/(VLOOKUP(G132,$AP$52:$AU$72,2)-VLOOKUP(G132,$AP$52:$AU$72,1)) -> 78.12285714 | AE132: =MIN(K132*$AD132/$J132*AE$3/K$3,$AD132,AE$3) -> 73.8261 | AF132: =MIN(L132*$AD132/$J132*AF$3/L$3,AD132,AE132,AF$3) -> 68.66999143 | AG132: =MIN(M132*$AD132/$J132*AG$3/M$3,AD132,AE132,AF132,AG$3) -> 65.23258571 | AH132: =MIN(N132*$AD132/$J132*AH$3/N$3,AD132,AE132,AF132,AG132,AH$3) -> 65.23258571 | AI132: =MIN(O132*$AD132/$J132*AI$3/O$3,AD132,AE132,AF132,AG132,AH132,AI$3) -> 65.23258571
A133: 315 , -76.7 | B133: 315 | C133: -76.7 | D133: 9 | E133: 23.3 | G133: 8.942857143 | H133: 131 | I133: 30.33828571 | J133: 29.17142857 | K133: 28.588 | L133: 28.00457143 | M133: 27.42114286 | N133: 29.03652232 | O133: 24.39720722 | Q133: 17.88571429 | R133: 131 | S133: 99.5 | T133: 100 | U133: 99.9 | V133: 99.8001 | W133: 99.7002999 | X133: 99.6005996 | Y133: 99.500999 | AA133: 11.62571429 | AB133: 131 | AC133: 91.778736 | AD133: 78.04314286 | AE133: 73.75077 | AF133: 68.59992257 | AG133: 65.16602429 | AH133: 65.16602429 | AI133: 65.16602429
A134: 318 , -76.9 | B134: 318 | C134: -76.9 | D134: 9.085714286 | E134: 23.1 | G134: 9 | H134: 132 | I134: 30.16 | J134: 29 | K134: 28.42 | L134: 27.84 | M134: 27.26 | N134: 28.8829049 | O134: 24.27957951 | Q134: 18 | R134: 132 | S134: 99.5 | T134: 100 | U134: 99.9 | V134: 99.8001 | W134: 99.7002999 | X134: 99.6005996 | Y134: 99.500999 | AA134: 11.7 | AB134: 132 | AC134: 91.71624 | AD134: 77.99 | AE134: 73.70055 | AF134: 68.55321 | AG134: 65.12165 | AH134: 65.12165 | AI134: 65.12165
A135: 320 , -77.1 | B135: 320 | C135: -77.1 | D135: 9.142857143 | E135: 22.9 | G135: 9.085714286 | H135: 133 | I135: 29.89257143 | J135: 28.74285714 | K135: 28.168 | L135: 27.59314286 | M135: 27.01828571 | N135: 28.65230826 | O135: 24.10290286 | Q135: 18.17142857 | R135: 133 | S135: 99.5 | T135: 100 | U135: 99.9 | V135: 99.8001 | W135: 99.7002999 | X135: 99.6005996 | Y135: 99.500999 | AA135: 11.81142857 | AB135: 133 | AC135: 91.622496 | AD135: 77.91028571 | AE135: 73.62522 | AF135: 68.48314114 | AG135: 65.05508857 | AH135: 65.05508857 | AI135: 65.05508857
A136: 322 , -77.3 | B136: 322 | C136: -77.3 | D136: 9.2 | E136: 22.7 | G136: 9.142857143 | H136: 134 | I136: 29.71428571 | J136: 28.57142857 | K136: 28 | L136: 27.42857143 | M136: 26.85714286 | N136: 28.49846262 | O136: 23.98496043 | Q136: 18.28571429 | R136: 134 | S136: 99.5 | T136: 100 | U136: 99.9 | V136: 99.8001 | W136: 99.7002999 | X136: 99.6005996 | Y136: 99.500999 | AA136: 11.88571429 | AB136: 134 | AC136: 91.56 | AD136: 77.85714286 | AE136: 73.575 | AF136: 68.43642857 | AG136: 65.01071429 | AH136: 65.01071429 | AI136: 65.01071429
A137: 325 , -77.5 | B137: 325 | C137: -77.5 | D137: 9.285714286 | E137: 22.5 | G137: 9.2 | H137: 135 | I137: 29.536 | J137: 28.4 | K137: 27.832 | L137: 27.264 | M137: 26.696 | N137: 28.34452466 | O137: 23.86689055 | Q137: 18.4 | R137: 135 | S137: 99.5 | T137: 100 | U137: 99.9 | V137: 99.8001 | W137: 99.7002999 | X137: 99.6005996 | Y137: 99.500999 | AA137: 11.96 | AB137: 135 | AC137: 91.497504 | AD137: 77.804 | AE137: 73.52478 | AF137: 68.389716 | AG137: 64.96634 | AH137: 64.96634 | AI137: 64.96634
A138: 327 , -77.7 | B138: 327 | C138: -77.7 | D138: 9.342857143 | E138: 22.3 | G138: 9.285714286 | H138: 136 | I138: 29.26857143 | J138: 28.14285714 | K138: 27.58 | L138: 27.01714286 | M138: 26.45428571 | N138: 28.11344323 | O138: 23.68954478 | Q138: 18.57142857 | R138: 136 | S138: 99.5 | T138: 100 | U138: 99.9 | V138: 99.8001 | W138: 99.7002999 | X138: 99.6005996 | Y138: 99.500999 | AA138: 12.07142857 | AB138: 136 | AC138: 91.40376 | AD138: 77.72428571 | AE138: 73.44945 | AF138: 68.31964714 | AG138: 64.89977857 | AH138: 64.89977857 | AI138: 64.89977857
A139: 330 , -77.9 | B139: 330 | C139: -77.9 | D139: 9.428571429 | E139: 22.1 | G139: 9.342857143 | H139: 137 | I139: 29.09028571 | J139: 27.97142857 | K139: 27.412 | L139: 26.85257143 | M139: 26.29314286 | N139: 27.95927173 | O139: 23.57115228 | Q139: 18.68571429 | R139: 137 | S139: 99.5 | T139: 100 | U139: 99.9 | V139: 99.8001 | W139: 99.7002999 | X139: 99.6005996 | Y139: 99.500999 | AA139: 12.14571429 | AB139: 137 | AC139: 91.341264 | AD139: 77.67114286 | AE139: 73.39923 | AF139: 68.27293457 | AG139: 64.85540429 | AH139: 64.85540429 | AI139: 64.85540429
A140: 332 , -78.1 | B140: 332 | C140: -78.1 | D140: 9.485714286 | E140: 21.9 | G140: 9.428571429 | H140: 138 | I140: 28.82285714 | J140: 27.71428571 | K140: 27.16 | L140: 26.60571429 | M140: 26.05142857 | N140: 27.72783705 | O140: 23.39331821 | Q140: 18.85714286 | R140: 138 | S140: 99.5 | T140: 100 | U140: 99.9 | V140: 99.8001 | W140: 99.7002999 | X140: 99.6005996 | Y140: 99.500999 | AA140: 12.25714286 | AB140: 138 | AC140: 91.24752 | AD140: 77.59142857 | AE140: 73.3239 | AF140: 68.20286571 | AG140: 64.78884286 | AH140: 64.78884286 | AI140: 64.78884286
A141: 334 , -78.3 | B141: 334 | C141: -78.3 | D141: 9.542857143 | E141: 21.7 | G141: 9.485714286 | H141: 139 | I141: 28.64457143 | J141: 27.54285714 | K141: 26.992 | L141: 26.44114286 | M141: 25.89028571 | N141: 27.57342804 | O141: 23.27459723 | Q141: 18.97142857 | R141: 139 | S141: 99.5 | T141: 100 | U141: 99.9 | V141: 99.8001 | W141: 99.7002999 | X141: 99.6005996 | Y141: 99.500999 | AA141: 12.33142857 | AB141: 139 | AC141: 91.185024 | AD141: 77.53828571 | AE141: 73.27368 | AF141: 68.15615314 | AG141: 64.74446857 | AH141: 64.74446857 | AI141: 64.74446857
A142: 337 , -78.5 | B142: 337 | C142: -78.5 | D142: 9.628571429 | E142: 21.5 | G142: 9.542857143 | H142: 140 | I142: 28.46628571 | J142: 27.37142857 | K142: 26.824 | L142: 26.27657143 | M142: 25.72914286 | N142: 27.4189229 | O142: 23.15574316 | Q142: 19.08571429 | R142: 140 | S142: 99.5 | T142: 100 | U142: 99.9 | V142: 99.8001 | W142: 99.7002999 | X142: 99.6005996 | Y142: 99.500999 | AA142: 12.40571429 | AB142: 140 | AC142: 91.122528 | AD142: 77.48514286 | AE142: 73.22346 | AF142: 68.10944057 | AG142: 64.70009429 | AH142: 64.70009429 | AI142: 64.70009429
A143: 339 , -78.7 | B143: 339 | C143: -78.7 | D143: 9.685714286 | E143: 21.3 | G143: 9.628571429 | H143: 141 | I143: 28.19885714 | J143: 27.11428571 | K143: 26.572 | L143: 26.02971429 | M143: 25.48742857 | N143: 27.18698349 | O143: 22.97721037 | Q143: 19.25714286 | R143: 141 | S143: 99.5 | T143: 100 | U143: 99.9 | V143: 99.8001 | W143: 99.7002999 | X143: 99.6005996 | Y143: 99.500999 | AA143: 12.51714286 | AB143: 141 | AC143: 91.028784 | AD143: 77.40542857 | AE143: 73.14813 | AF143: 68.03937171 | AG143: 64.63353286 | AH143: 64.63353286 | AI143: 64.63353286
A144: 342 , -78.9 | B144: 342 | C144: -78.9 | D144: 9.771428571 | E144: 21.1 | G144: 9.685714286 | H144: 142 | I144: 28.02057143 | J144: 26.94285714 | K144: =$J144*(1+(K$3-100)/100) -> 26.404 | L144: 25.86514286 | M144: 25.32628571 | N144: 27.03223509 | O144: 22.85801926 | Q144: 19.37142857 | R144: 142 | S144: 99.5 | T144: 100 | U144: =$T144*(1+(U$3-100)/100) -> 99.9 | V144: 99.8001 | W144: 99.7002999 | X144: 99.6005996 | Y144: 99.500999 | AA144: 12.59142857 | AB144: 142 | AC144: 90.966288 | AD144: 77.35228571 | AE144: 73.09791 | AF144: 67.99265914 | AG144: 64.58915857 | AH144: 64.58915857 | AI144: 64.58915857
A145: 344 , -79.1 | B145: 344 | C145: -79.1 | D145: 9.828571429 | E145: 20.9 | G145: 9.771428571 | H145: 143 | I145: 27.75314286 | J145: 26.68571429 | K145: 26.152 | L145: 25.61828571 | M145: 25.08457143 | N145: 26.7999276 | O145: 22.67897618 | Q145: 19.54285714 | R145: 143 | S145: 99.5 | T145: 100 | U145: 99.9 | V145: 99.8001 | W145: 99.7002999 | X145: 99.6005996 | Y145: 99.500999 | AA145: 12.70285714 | AB145: 143 | AC145: 90.872544 | AD145: 77.27257143 | AE145: 73.02258 | AF145: 67.92259029 | AG145: 64.52259714 | AH145: 64.52259714 | AI145: 64.52259714
A146: 346 , -79.3 | B146: 346 | C146: -79.3 | D146: 9.885714286 | E146: 20.7 | G146: 9.828571429 | H146: 144 | I146: 27.57485714 | J146: 26.51428571 | K146: 25.984 | L146: 25.45371429 | M146: 24.92342857 | N146: 26.64493167 | O146: 22.55944166 | Q146: 19.65714286 | R146: 144 | S146: 99.5 | T146: 100 | U146: 99.9 | V146: 99.8001 | W146: 99.7002999 | X146: 99.6005996 | Y146: 99.500999 | AA146: 12.77714286 | AB146: 144 | AC146: 90.810048 | AD146: 77.21942857 | AE146: 72.97236 | AF146: 67.87587771 | AG146: 64.47822286 | AH146: 64.47822286 | AI146: 64.47822286
A147: 349 , -79.4 | B147: 349 | C147: -79.4 | D147: 9.971428571 | E147: 20.6 | G147: 9.885714286 | H147: 145 | I147: 27.39657143 | J147: 26.34285714 | K147: 25.816 | L147: 25.28914286 | M147: 24.76228571 | N147: 26.48983549 | O147: 22.43976795 | Q147: 19.77142857 | R147: 145 | S147: 99.5 | T147: 100 | U147: 99.9 | V147: 99.8001 | W147: 99.7002999 | X147: 99.6005996 | Y147: 99.500999 | AA147: 12.85142857 | AB147: 145 | AC147: 90.747552 | AD147: 77.16628571 | AE147: 72.92214 | AF147: 67.82916514 | AG147: 64.43384857 | AH147: 64.43384857 | AI147: 64.43384857
A148: 351 , -79.6 | B148: 351 | C148: -79.6 | D148: 10.02857143 | E148: 20.4 | G148: 9.971428571 | H148: 146 | I148: 27.12914286 | J148: 26.08571429 | K148: 25.564 | L148: 25.04228571 | M148: 24.52057143 | N148: 26.25700168 | O148: 22.25999405 | Q148: 19.94285714 | R148: 146 | S148: 99.5 | T148: 100 | U148: 99.9 | V148: 99.8001 | W148: 99.7002999 | X148: 99.6005996 | Y148: 99.500999 | AA148: 12.96285714 | AB148: 146 | AC148: 90.653808 | AD148: 77.08657143 | AE148: 72.84681 | AF148: 67.75909629 | AG148: 64.36728714 | AH148: 64.36728714 | AI148: 64.36728714
A149: 354 , -79.8 | B149: 354 | C149: -79.8 | D149: 10.11428571 | E149: 20.2 | G149: 10.02857143 | H149: 147 | I149: 26.98057143 | J149: 25.94285714 | K149: 25.424 | L149: 24.90514286 | M149: 24.38628571 | N149: 26.1275505 | O149: 22.15998194 | Q149: 20.05714286 | R149: 147 | S149: 99.5 | T149: 100 | U149: 99.9 | V149: 99.8001 | W149: 99.7002999 | X149: 99.6005996 | Y149: 99.500999 | AA149: 13.03714286 | AB149: 147 | AC149: 90.601728 | AD149: 77.04228571 | AE149: 72.80496 | AF149: 67.72016914 | AG149: 64.33030857 | AH149: 64.33030857 | AI149: 64.33030857
A150: 356 , -79.9 | B150: 356 | C150: -79.9 | D150: 10.17142857 | E150: 20.1 | G150: 10.11428571 | H150: 148 | I150: 26.80228571 | J150: 25.77142857 | K150: 25.256 | L150: 24.74057143 | M150: 24.22514286 | N150: 25.97211493 | O150: 22.03983643 | Q150: 20.22857143 | R150: 148 | S150: 99.5 | T150: 100 | U150: 99.9 | V150: 99.8001 | W150: 99.7002999 | X150: 99.6005996 | Y150: 99.500999 | AA150: 13.14857143 | AB150: 148 | AC150: 90.539232 | AD150: 76.98914286 | AE150: 72.75474 | AF150: 67.67345657 | AG150: 64.28593429 | AH150: 64.28593429 | AI150: 64.28593429
A151: 358 , -80.1 | B151: 358 | C151: -80.1 | D151: 10.22857143 | E151: 19.9 | G151: 10.17142857 | H151: 149 | I151: 26.68342857 | J151: 25.65714286 | K151: 25.144 | L151: 24.63085714 | M151: 24.11771429 | N151: 25.8684338 | O151: 21.95965953 | Q151: 20.34285714 | R151: 149 | S151: 99.5 | T151: 100 | U151: 99.9 | V151: 99.8001 | W151: 99.7002999 | X151: 99.6005996 | Y151: 99.500999 | AA151: 13.22285714 | AB151: 149 | AC151: 90.497568 | AD151: 76.95371429 | AE151: 72.72126 | AF151: 67.64231486 | AG151: 64.25635143 | AH151: 64.25635143 | AI151: 64.25635143
A152: 361 , -80.3 | B152: 361 | C152: -80.3 | D152: 10.31428571 | E152: 19.7 | G152: 10.22857143 | H152: 150 | I152: 26.56457143 | J152: 25.54285714 | K152: 25.032 | L152: 24.52114286 | M152: 24.01028571 | N152: 25.76470648 | O152: 21.87941832 | Q152: 20.45714286 | R152: 150 | S152: 99.5 | T152: 100 | U152: 99.9 | V152: 99.8001 | W152: 99.7002999 | X152: 99.6005996 | Y152: 99.500999 | AA152: 13.29714286 | AB152: 150 | AC152: 90.455904 | AD152: 76.91828571 | AE152: 72.68778 | AF152: 67.61117314 | AG152: 64.22676857 | AH152: 64.22676857 | AI152: 64.22676857
A153: 363 , -80.4 | B153: 363 | C153: -80.4 | D153: 10.37142857 | E153: 19.6 | G153: 10.31428571 | H153: 151 | I153: 26.38628571 | J153: 25.37142857 | K153: 24.864 | L153: 24.35657143 | M153: 23.84914286 | N153: 25.60902838 | O153: 21.75893517 | Q153: 20.62857143 | R153: 151 | S153: 99.5 | T153: 100 | U153: 99.9 | V153: 99.8001 | W153: 99.7002999 | X153: 99.6005996 | Y153: 99.500999 | AA153: 13.40857143 | AB153: 151 | AC153: 90.393408 | AD153: 76.86514286 | AE153: 72.63756 | AF153: 67.56446057 | AG153: 64.18239429 | AH153: 64.18239429 | AI153: 64.18239429
A154: 366 , -80.6 | B154: 366 | C154: -80.6 | D154: 10.45714286 | E154: 19.4 | G154: 10.37142857 | H154: 152 | I154: 26.26742857 | J154: 25.25714286 | K154: 24.752 | L154: 24.24685714 | M154: 23.74171429 | N154: 25.50518457 | O154: 21.67853169 | Q154: 20.74285714 | R154: 152 | S154: 99.5 | T154: 100 | U154: 99.9 | V154: 99.8001 | W154: 99.7002999 | X154: 99.6005996 | Y154: 99.500999 | AA154: 13.48285714 | AB154: 152 | AC154: 90.351744 | AD154: 76.82971429 | AE154: 72.60408 | AF154: 67.53331886 | AG154: 64.15281143 | AH154: 64.15281143 | AI154: 64.15281143
A155: 368 , -80.7 | B155: 368 | C155: -80.7 | D155: 10.51428571 | E155: 19.3 | G155: 10.45714286 | H155: 153 | I155: 26.08914286 | J155: 25.08571429 | K155: 24.584 | L155: 24.08228571 | M155: 23.58057143 | N155: 25.34933067 | O155: 21.55780352 | Q155: 20.91428571 | R155: 153 | S155: 99.5 | T155: 100 | U155: 99.9 | V155: 99.8001 | W155: 99.7002999 | X155: 99.6005996 | Y155: 99.500999 | AA155: 13.59428571 | AB155: 153 | AC155: 90.289248 | AD155: 76.77657143 | AE155: 72.55386 | AF155: 67.48660629 | AG155: 64.10843714 | AH155: 64.10843714 | AI155: 64.10843714
A156: 370 , -80.9 | B156: 370 | C156: -80.9 | D156: 10.57142857 | E156: 19.1 | G156: 10.51428571 | H156: 154 | I156: 25.97028571 | J156: 24.97142857 | K156: 24.472 | L156: 23.97257143 | M156: 23.47314286 | N156: 25.24536892 | O156: 21.47723559 | Q156: 21.02857143 | R156: 154 | S156: 99.5 | T156: 100 | U156: 99.9 | V156: 99.8001 | W156: 99.7002999 | X156: 99.6005996 | Y156: 99.500999 | AA156: 13.66857143 | AB156: 154 | AC156: 90.247584 | AD156: 76.74114286 | AE156: 72.52038 | AF156: 67.45546457 | AG156: 64.07885429 | AH156: 64.07885429 | AI156: 64.07885429
A157: 373 , -81 | B157: 373 | C157: -81 | D157: 10.65714286 | E157: 19 | G157: 10.57142857 | H157: 155 | I157: 25.85142857 | J157: 24.85714286 | K157: 24.36 | L157: 23.86285714 | M157: 23.36571429 | N157: 25.14135958 | O157: 21.39660126 | Q157: 21.14285714 | R157: 155 | S157: 99.5 | T157: 100 | U157: 99.9 | V157: 99.8001 | W157: 99.7002999 | X157: 99.6005996 | Y157: 99.500999 | AA157: 13.74285714 | AB157: 155 | AC157: 90.20592 | AD157: 76.70571429 | AE157: 72.4869 | AF157: 67.42432286 | AG157: 64.04927143 | AH157: 64.04927143 | AI157: 64.04927143
A158: 375 , -81.2 | B158: 375 | C158: -81.2 | D158: 10.71428571 | E158: 18.8 | G158: 10.65714286 | H158: 156 | I158: 25.67314286 | J158: 24.68571429 | K158: 24.192 | L158: 23.69828571 | M158: 23.20457143 | N158: 24.98525582 | O158: 21.27552449 | Q158: 21.31428571 | R158: 156 | S158: 99.5 | T158: 100 | U158: 99.9 | V158: 99.8001 | W158: 99.7002999 | X158: 99.6005996 | Y158: 99.500999 | AA158: 13.85428571 | AB158: 156 | AC158: 90.143424 | AD158: 76.65257143 | AE158: 72.43668 | AF158: 67.37761029 | AG158: 64.00489714 | AH158: 64.00489714 | AI158: 64.00489714
A159: 378 , -81.3 | B159: 378 | C159: -81.3 | D159: 10.8 | E159: 18.7 | G159: 10.71428571 | H159: 157 | I159: 25.55428571 | J159: 24.57142857 | K159: 24.08 | L159: 23.58857143 | M159: 23.09714286 | N159: 24.88112645 | O159: 21.19472258 | Q159: 21.42857143 | R159: 157 | S159: 99.5 | T159: 100 | U159: 99.9 | V159: 99.8001 | W159: 99.7002999 | X159: 99.6005996 | Y159: 99.500999 | AA159: 13.92857143 | AB159: 157 | AC159: 90.10176 | AD159: 76.61714286 | AE159: 72.4032 | AF159: 67.34646857 | AG159: 63.97531429 | AH159: 63.97531429 | AI159: 63.97531429
A160: 380 , -81.5 | B160: 380 | C160: -81.5 | D160: 10.85714286 | E160: 18.5 | G160: 10.8 | H160: 158 | I160: 25.376 | J160: 24.4 | K160: 23.912 | L160: 23.424 | M160: 22.936 | N160: 24.72484148 | O160: 21.0733927 | Q160: 21.6 | R160: 158 | S160: 99.5 | T160: 100 | U160: 99.9 | V160: 99.8001 | W160: 99.7002999 | X160: 99.6005996 | Y160: 99.500999 | AA160: 14.04 | AB160: 158 | AC160: 90.039264 | AD160: 76.564 | AE160: 72.35298 | AF160: 67.299756 | AG160: 63.93094 | AH160: 63.93094 | AI160: 63.93094
A161: 382 , -81.6 | B161: 382 | C161: -81.6 | D161: 10.91428571 | E161: 18.4 | G161: 10.85714286 | H161: 159 | I161: 25.25714286 | J161: 24.28571429 | K161: 23.8 | L161: 23.31428571 | M161: 22.82857143 | N161: 24.62059053 | O161: 20.9924209 | Q161: 21.71428571 | R161: 159 | S161: 99.5 | T161: 100 | U161: 99.9 | V161: 99.8001 | W161: 99.7002999 | X161: 99.6005996 | Y161: 99.500999 | AA161: 14.11428571 | AB161: 159 | AC161: 89.9976 | AD161: 76.52857143 | AE161: 72.3195 | AF161: 67.26861429 | AG161: 63.90135714 | AH161: 63.90135714 | AI161: 63.90135714
A162: 385 , -81.8 | B162: 385 | C162: -81.8 | D162: 11 | E162: 18.2 | G162: 10.91428571 | H162: 160 | I162: 25.13828571 | J162: 24.17142857 | K162: 23.688 | L162: 23.20457143 | M162: 22.72114286 | N162: 24.51629051 | O162: 20.91138048 | Q162: 21.82857143 | R162: 160 | S162: 99.5 | T162: 100 | U162: 99.9 | V162: 99.8001 | W162: 99.7002999 | X162: 99.6005996 | Y162: 99.500999 | AA162: 14.18857143 | AB162: 160 | AC162: 89.955936 | AD162: 76.49314286 | AE162: 72.28602 | AF162: 67.23747257 | AG162: 63.87177429 | AH162: 63.87177429 | AI162: 63.87177429
A163: 387 , -81.9 | B163: 387 | C163: -81.9 | D163: 11.05714286 | E163: 18.1 | G163: 11 | H163: 161 | I163: 24.96 | J163: 24 | K163: 23.52 | L163: 23.04 | M163: 22.56 | N163: 24.35974791 | O163: 20.78969035 | Q163: 22 | R163: 161 | S163: 99.5 | T163: 100 | U163: 99.9 | V163: 99.8001 | W163: 99.7002999 | X163: 99.6005996 | Y163: 99.500999 | AA163: 14.3 | AB163: 161 | AC163: 89.89344 | AD163: 76.44 | AE163: 72.2358 | AF163: 67.19076 | AG163: 63.8274 | AH163: 63.8274 | AI163: 63.8274
A164: 390 , -82 | B164: 390 | C164: -82 | D164: 11.14285714 | E164: 18 | G164: 11.05714286 | H164: 162 | I164: 24.84114286 | J164: 23.88571429 | K164: =$J164*(1+(K$3-100)/100) -> 23.408 | L164: 22.93028571 | M164: 22.45257143 | N164: 24.25532409 | O164: 20.70847671 | Q164: 22.11428571 | R164: 162 | S164: 99.5 | T164: 100 | U164: =$T164*(1+(U$3-100)/100) -> 99.9 | V164: 99.8001 | W164: 99.7002999 | X164: 99.6005996 | Y164: 99.500999 | AA164: 14.37428571 | AB164: 162 | AC164: 89.851776 | AD164: 76.40457143 | AE164: 72.20232 | AF164: 67.15961829 | AG164: 63.79781714 | AH164: 63.79781714 | AI164: 63.79781714
A165: 392 , -82.2 | B165: 392 | C165: -82.2 | D165: 11.2 | E165: 17.8 | G165: 11.14285714 | H165: 163 | I165: 24.66285714 | J165: 23.71428571 | K165: 23.24 | L165: 22.76571429 | M165: 22.29142857 | N165: 24.09859458 | O165: 20.58652491 | Q165: 22.28571429 | R165: 163 | S165: 99.5 | T165: 100 | U165: 99.9 | V165: 99.8001 | W165: 99.7002999 | X165: 99.6005996 | Y165: 99.500999 | AA165: 14.48571429 | AB165: 163 | AC165: 89.78928 | AD165: 76.35142857 | AE165: 72.1521 | AF165: 67.11290571 | AG165: 63.75344286 | AH165: 63.75344286 | AI165: 63.75344286
A166: 394 , -82.3 | B166: 394 | C166: -82.3 | D166: 11.25714286 | E166: 17.7 | G166: 11.2 | H166: 164 | I166: 24.544 | J166: 23.6 | K166: 23.128 | L166: 22.656 | M166: 22.184 | N166: 23.99404532 | O166: 20.50513558 | Q166: 22.4 | R166: 164 | S166: 99.5 | T166: 100 | U166: 99.9 | V166: 99.8001 | W166: 99.7002999 | X166: 99.6005996 | Y166: 99.500999 | AA166: 14.56 | AB166: 164 | AC166: 89.747616 | AD166: 76.316 | AE166: 72.11862 | AF166: 67.081764 | AG166: 63.72386 | AH166: 63.72386 | AI166: 63.72386
A167: 397 , -82.4 | B167: 397 | C167: -82.4 | D167: 11.34285714 | E167: 17.6 | G167: 11.25714286 | H167: 165 | I167: 24.42514286 | J167: 23.48571429 | K167: 23.016 | L167: 22.54628571 | M167: 22.07657143 | N167: 23.88944542 | O167: 20.42367527 | Q167: 22.51428571 | R167: 165 | S167: 99.5 | T167: 100 | U167: 99.9 | V167: 99.8001 | W167: 99.7002999 | X167: 99.6005996 | Y167: 99.500999 | AA167: 14.63428571 | AB167: 165 | AC167: 89.705952 | AD167: 76.28057143 | AE167: 72.08514 | AF167: 67.05062229 | AG167: 63.69427714 | AH167: 63.69427714 | AI167: 63.69427714
A168: 399 , -82.5 | B168: 399 | C168: -82.5 | D168: 11.4 | E168: 17.5 | G168: 11.34285714 | H168: 166 | I168: 24.24685714 | J168: 23.31428571 | K168: 22.848 | L168: 22.38171429 | M168: 21.91542857 | N168: 23.73245003 | O168: 20.30135084 | Q168: 22.68571429 | R168: 166 | S168: 99.5 | T168: 100 | U168: 99.9 | V168: 99.8001 | W168: 99.7002999 | X168: 99.6005996 | Y168: 99.500999 | AA168: 14.74571429 | AB168: 166 | AC168: 89.643456 | AD168: 76.22742857 | AE168: 72.03492 | AF168: 67.00390971 | AG168: 63.64990286 | AH168: 63.64990286 | AI168: 63.64990286
A169: 402 , -82.7 | B169: 402 | C169: -82.7 | D169: 11.48571429 | E169: 17.3 | G169: 11.4 | H169: 167 | I169: 24.128 | J169: 23.2 | K169: 22.736 | L169: 22.272 | M169: 21.808 | N169: 23.62772234 | O169: 20.2197113 | Q169: 22.8 | R169: 167 | S169: 99.5 | T169: 100 | U169: 99.9 | V169: 99.8001 | W169: 99.7002999 | X169: 99.6005996 | Y169: 99.500999 | AA169: 14.82 | AB169: 167 | AC169: 89.601792 | AD169: 76.192 | AE169: 72.00144 | AF169: 66.972768 | AG169: 63.62032 | AH169: 63.62032 | AI169: 63.62032
A170: 404 , -82.8 | B170: 404 | C170: -82.8 | D170: 11.54285714 | E170: 17.2 | G170: 11.48571429 | H170: 168 | I170: 23.94971429 | J170: 23.02857143 | K170: 22.568 | L170: 22.10742857 | M170: 21.64685714 | N170: 23.47053395 | O170: 20.09711606 | Q170: 22.97142857 | R170: 168 | S170: 99.5 | T170: 100 | U170: 99.9 | V170: 99.8001 | W170: 99.7002999 | X170: 99.6005996 | Y170: 99.500999 | AA170: 14.93142857 | AB170: 168 | AC170: 89.539296 | AD170: 76.13885714 | AE170: 71.95122 | AF170: 66.92605543 | AG170: 63.57594571 | AH170: 63.57594571 | AI170: 63.57594571
A171: 406 , -82.9 | B171: 406 | C171: -82.9 | D171: 11.6 | E171: 17.1 | G171: 11.54285714 | H171: 169 | I171: 23.83085714 | J171: 22.91428571 | K171: 22.456 | L171: 21.99771429 | M171: 21.53942857 | N171: 23.36567672 | O171: 20.01529467 | Q171: 23.08571429 | R171: 169 | S171: 99.5 | T171: 100 | U171: 99.9 | V171: 99.8001 | W171: 99.7002999 | X171: 99.6005996 | Y171: 99.500999 | AA171: 15.00571429 | AB171: 169 | AC171: 89.497632 | AD171: 76.10342857 | AE171: 71.91774 | AF171: 66.89491371 | AG171: 63.54636286 | AH171: 63.54636286 | AI171: 63.54636286
A172: 409 , -83 | B172: 409 | C172: -83 | D172: 11.68571429 | E172: 17 | G172: 11.6 | H172: 170 | I172: 23.712 | J172: 22.8 | K172: 22.344 | L172: 21.888 | M172: 21.432 | N172: 23.26076718 | O172: 19.93339979 | Q172: 23.2 | R172: 170 | S172: 99.5 | T172: 100 | U172: 99.9 | V172: 99.8001 | W172: 99.7002999 | X172: 99.6005996 | Y172: 99.500999 | AA172: 15.08 | AB172: 170 | AC172: 89.455968 | AD172: 76.068 | AE172: 71.88426 | AF172: 66.863772 | AG172: 63.51678 | AH172: 63.51678 | AI172: 63.51678
A173: 411 , -83.1 | B173: 411 | C173: -83.1 | D173: 11.74285714 | E173: 16.9 | G173: 11.68571429 | H173: 171 | I173: 23.53371429 | J173: 22.62857143 | K173: 22.176 | L173: 21.72342857 | M173: 21.27085714 | N173: 23.10330416 | O173: 19.81041873 | Q173: 23.37142857 | R173: 171 | S173: 99.5 | T173: 100 | U173: 99.9 | V173: 99.8001 | W173: 99.7002999 | X173: 99.6005996 | Y173: 99.500999 | AA173: 15.19142857 | AB173: 171 | AC173: 89.393472 | AD173: 76.01485714 | AE173: 71.83404 | AF173: 66.81705943 | AG173: 63.47240571 | AH173: 63.47240571 | AI173: 63.47240571
A174: 414 , -83.2 | B174: 414 | C174: -83.2 | D174: 11.82857143 | E174: 16.8 | G174: 11.74285714 | H174: 172 | I174: 23.41485714 | J174: 22.51428571 | K174: 22.064 | L174: 21.61371429 | M174: 21.16342857 | N174: 22.99826257 | O174: 19.72833821 | Q174: 23.48571429 | R174: 172 | S174: 99.5 | T174: 100 | U174: 99.9 | V174: 99.8001 | W174: 99.7002999 | X174: 99.6005996 | Y174: 99.500999 | AA174: 15.26571429 | AB174: 172 | AC174: 89.351808 | AD174: 75.97942857 | AE174: 71.80056 | AF174: 66.78591771 | AG174: 63.44282286 | AH174: 63.44282286 | AI174: 63.44282286
A175: 416 , -83.4 | B175: 416 | C175: -83.4 | D175: 11.88571429 | E175: 16.6 | G175: 11.82857143 | H175: 173 | I175: 23.23657143 | J175: 22.34285714 | K175: 21.896 | L175: 21.44914286 | M175: 21.00228571 | N175: 22.84060009 | O175: 19.60507662 | Q175: 23.65714286 | R175: 173 | S175: 99.5 | T175: 100 | U175: 99.9 | V175: 99.8001 | W175: 99.7002999 | X175: 99.6005996 | Y175: 99.500999 | AA175: 15.37714286 | AB175: 173 | AC175: 89.289312 | AD175: 75.92628571 | AE175: 71.75034 | AF175: 66.73920514 | AG175: 63.39844857 | AH175: 63.39844857 | AI175: 63.39844857
A176: 418 , -83.5 | B176: 418 | C176: -83.5 | D176: 11.94285714 | E176: 16.5 | G176: 11.88571429 | H176: 174 | I176: 23.11771429 | J176: 22.22857143 | K176: 21.784 | L176: 21.33942857 | M176: 20.89485714 | N176: 22.73542461 | O176: 19.52280767 | Q176: 23.77142857 | R176: 174 | S176: 99.5 | T176: 100 | U176: 99.9 | V176: 99.8001 | W176: 99.7002999 | X176: 99.6005996 | Y176: 99.500999 | AA176: 15.45142857 | AB176: 174 | AC176: 89.247648 | AD176: 75.89085714 | AE176: 71.71686 | AF176: 66.70806343 | AG176: 63.36886571 | AH176: 63.36886571 | AI176: 63.36886571
A177: 421 , -83.6 | B177: 421 | C177: -83.6 | D177: 12.02857143 | E177: 16.4 | G177: 11.94285714 | H177: 175 | I177: 22.99885714 | J177: 22.11428571 | K177: 21.672 | L177: 21.22971429 | M177: 20.78742857 | N177: 22.63019503 | O177: 19.44046256 | Q177: 23.88571429 | R177: 175 | S177: 99.5 | T177: 100 | U177: 99.9 | V177: 99.8001 | W177: 99.7002999 | X177: 99.6005996 | Y177: 99.500999 | AA177: 15.52571429 | AB177: 175 | AC177: 89.205984 | AD177: 75.85542857 | AE177: 71.68338 | AF177: 66.67692171 | AG177: 63.33928286 | AH177: 63.33928286 | AI177: 63.33928286
A178: 423 , -83.7 | B178: 423 | C178: -83.7 | D178: 12.08571429 | E178: 16.3 | G178: 12.02857143 | H178: 176 | I178: 22.82948571 | J178: 21.95142857 | K178: 21.5124 | L178: 21.07337143 | M178: 20.63434286 | N178: 22.48014883 | O178: 19.32298824 | Q178: 24.05714286 | R178: 176 | S178: 99.5 | T178: 100 | U178: 99.9 | V178: 99.8001 | W178: 99.7002999 | X178: 99.6005996 | Y178: 99.500999 | AA178: 15.63714286 | AB178: 176 | AC178: 89.1466128 | AD178: 75.80494286 | AE178: 71.635671 | AF178: 66.63254477 | AG178: 63.29712729 | AH178: 63.29712729 | AI178: 63.29712729
A179: 426 , -83.8 | B179: 426 | C179: -83.8 | D179: 12.17142857 | E179: 16.2 | G179: 12.08571429 | H179: 177 | I179: 22.72845714 | J179: 21.85428571 | K179: 21.4172 | L179: 20.98011429 | M179: 20.54302857 | N179: 22.39059462 | O179: 19.25284118 | Q179: 24.17142857 | R179: 177 | S179: 99.5 | T179: 100 | U179: 99.9 | V179: 99.8001 | W179: 99.7002999 | X179: 99.6005996 | Y179: 99.500999 | AA179: 15.71142857 | AB179: 177 | AC179: 89.1111984 | AD179: 75.77482857 | AE179: 71.607213 | AF179: 66.60607431 | AG179: 63.27198186 | AH179: 63.27198186 | AI179: 63.27198186
A180: 428 , -83.9 | B180: 428 | C180: -83.9 | D180: 12.22857143 | E180: 16.1 | G180: 12.17142857 | H180: 178 | I180: 22.57691429 | J180: 21.70857143 | K180: 21.2744 | L180: 20.84022857 | M180: 20.40605714 | N180: 22.25618858 | O180: 19.14751522 | Q180: 24.34285714 | R180: 178 | S180: 99.5 | T180: 100 | U180: 99.9 | V180: 99.8001 | W180: 99.7002999 | X180: 99.6005996 | Y180: 99.500999 | AA180: 15.82285714 | AB180: 178 | AC180: 89.0580768 | AD180: 75.72965714 | AE180: 71.564526 | AF180: 66.56636863 | AG180: 63.23426371 | AH180: 63.23426371 | AI180: 63.23426371
A181: 430 , -84 | B181: 430 | C181: -84 | D181: 12.28571429 | E181: 16 | G181: 12.22857143 | H181: 179 | I181: 22.47588571 | J181: 21.61142857 | K181: 21.1792 | L181: 20.74697143 | M181: 20.31474286 | N181: 22.16653446 | O181: 19.07722724 | Q181: 24.45714286 | R181: 179 | S181: 99.5 | T181: 100 | U181: 99.9 | V181: 99.8001 | W181: 99.7002999 | X181: 99.6005996 | Y181: 99.500999 | AA181: 15.89714286 | AB181: 179 | AC181: 89.0226624 | AD181: 75.69954286 | AE181: 71.536068 | AF181: 66.53989817 | AG181: 63.20911829 | AH181: 63.20911829 | AI181: 63.20911829
A182: 433 , -84.1 | B182: 433 | C182: -84.1 | D182: 12.37142857 | E182: 15.9 | G182: 12.28571429 | H182: 180 | I182: 22.37485714 | J182: 21.51428571 | K182: 21.084 | L182: 20.65371429 | M182: 20.22342857 | N182: 22.07684003 | O182: 19.00688236 | Q182: 24.57142857 | R182: 180 | S182: 99.5 | T182: 100 | U182: 99.9 | V182: 99.8001 | W182: 99.7002999 | X182: 99.6005996 | Y182: 99.500999 | AA182: 15.97142857 | AB182: 180 | AC182: 88.987248 | AD182: 75.66942857 | AE182: 71.50761 | AF182: 66.51342771 | AG182: 63.18397286 | AH182: 63.18397286 | AI182: 63.18397286
A183: 435 , -84.2 | B183: 435 | C183: -84.2 | D183: 12.42857143 | E183: 15.8 | G183: 12.37142857 | H183: 181 | I183: 22.22331429 | J183: 21.36857143 | K183: 20.9412 | L183: 20.51382857 | M183: 20.08645714 | N183: 21.94222238 | O183: 18.90125771 | Q183: 24.74285714 | R183: 181 | S183: 99.5 | T183: 100 | U183: 99.9 | V183: 99.8001 | W183: 99.7002999 | X183: 99.6005996 | Y183: 99.500999 | AA183: 16.08285714 | AB183: 181 | AC183: 88.9341264 | AD183: 75.62425714 | AE183: 71.464923 | AF183: 66.47372203 | AG183: 63.14625471 | AH183: 63.14625471 | AI183: 63.14625471
A184: 438 , -84.3 | B184: 438 | C184: -84.3 | D184: 12.51428571 | E184: 15.7 | G184: 12.42857143 | H184: 182 | I184: 22.12228571 | J184: 21.27142857 | K184: =$J184*(1+(K$3-100)/100) -> 20.846 | L184: 20.42057143 | M184: 19.99514286 | N184: 21.8524263 | O184: 18.83076927 | Q184: 24.85714286 | R184: 182 | S184: 99.5 | T184: 100 | U184: =$T184*(1+(U$3-100)/100) -> 99.9 | V184: 99.8001 | W184: 99.7002999 | X184: 99.6005996 | Y184: 99.500999 | AA184: 16.15714286 | AB184: 182 | AC184: 88.898712 | AD184: 75.59414286 | AE184: 71.436465 | AF184: 66.44725157 | AG184: 63.12110929 | AH184: 63.12110929 | AI184: 63.12110929
A185: 440 , -84.4 | B185: 440 | C185: -84.4 | D185: 12.57142857 | E185: 15.6 | G185: 12.51428571 | H185: 183 | I185: 21.97074286 | J185: 21.12571429 | K185: 20.7032 | L185: 20.28068571 | M185: 19.85817143 | N185: 21.7176552 | O185: 18.72492782 | Q185: 25.02857143 | R185: 183 | S185: 99.5 | T185: 100 | U185: 99.9 | V185: 99.8001 | W185: 99.7002999 | X185: 99.6005996 | Y185: 99.500999 | AA185: 16.26857143 | AB185: 183 | AC185: 88.8455904 | AD185: 75.54897143 | AE185: 71.393778 | AF185: 66.40754589 | AG185: 63.08339114 | AH185: 63.08339114 | AI185: 63.08339114
A186: 442 , -84.5 | B186: 442 | C186: -84.5 | D186: 12.62857143 | E186: 15.5 | G186: 12.57142857 | H186: 184 | I186: 21.86971429 | J186: 21.02857143 | K186: 20.608 | L186: 20.18742857 | M186: 19.76685714 | N186: 21.62775619 | O186: 18.65429387 | Q186: 25.14285714 | R186: 184 | S186: 99.5 | T186: 100 | U186: 99.9 | V186: 99.8001 | W186: 99.7002999 | X186: 99.6005996 | Y186: 99.500999 | AA186: 16.34285714 | AB186: 184 | AC186: 88.810176 | AD186: 75.51885714 | AE186: 71.36532 | AF186: 66.38107543 | AG186: 63.05824571 | AH186: 63.05824571 | AI186: 63.05824571
A187: 445 , -84.6 | B187: 445 | C187: -84.6 | D187: 12.71428571 | E187: 15.4 | G187: 12.62857143 | H187: 185 | I187: 21.76868571 | J187: 20.93142857 | K187: 20.5128 | L187: 20.09417143 | M187: 19.67554286 | N187: 21.53781564 | O187: 18.58360116 | Q187: 25.25714286 | R187: 185 | S187: 99.5 | T187: 100 | U187: 99.9 | V187: 99.8001 | W187: 99.7002999 | X187: 99.6005996 | Y187: 99.500999 | AA187: 16.41714286 | AB187: 185 | AC187: 88.7747616 | AD187: 75.48874286 | AE187: 71.336862 | AF187: 66.35460497 | AG187: 63.03310029 | AH187: 63.03310029 | AI187: 63.03310029
A188: 447 , -84.6 | B188: 447 | C188: -84.6 | D188: 12.77142857 | E188: 15.4 | G188: 12.71428571 | H188: 186 | I188: 21.61714286 | J188: 20.78571429 | K188: 20.37 | L188: 19.95428571 | M188: 19.53857143 | N188: 21.40282646 | O188: 18.47745122 | Q188: 25.42857143 | R188: 186 | S188: 99.5 | T188: 100 | U188: 99.9 | V188: 99.8001 | W188: 99.7002999 | X188: 99.6005996 | Y188: 99.500999 | AA188: 16.52857143 | AB188: 186 | AC188: 88.72164 | AD188: 75.44357143 | AE188: 71.294175 | AF188: 66.31489929 | AG188: 62.99538214 | AH188: 62.99538214 | AI188: 62.99538214
A189: 450 , -84.7 | B189: 450 | C189: -84.7 | D189: 12.85714286 | E189: 15.3 | G189: 12.77142857 | H189: 187 | I189: 21.51611429 | J189: 20.68857143 | K189: 20.2748 | L189: 19.86102857 | M189: 19.44725714 | N189: 21.31278113 | O189: 18.4066102 | Q189: 25.54285714 | R189: 187 | S189: 99.5 | T189: 100 | U189: 99.9 | V189: 99.8001 | W189: 99.7002999 | X189: 99.6005996 | Y189: 99.500999 | AA189: 16.60285714 | AB189: 187 | AC189: 88.6862256 | AD189: 75.41345714 | AE189: 71.265717 | AF189: 66.28842883 | AG189: 62.97023671 | AH189: 62.97023671 | AI189: 62.97023671
A190: 452 , -84.8 | B190: 452 | C190: -84.8 | D190: 12.91428571 | E190: 15.2 | G190: 12.85714286 | H190: 188 | I190: 21.36457143 | J190: 20.54285714 | K190: 20.132 | L190: 19.72114286 | M190: 19.31028571 | N190: 21.17763377 | O190: 18.30023625 | Q190: 25.71428571 | R190: 188 | S190: 99.5 | T190: 100 | U190: 99.9 | V190: 99.8001 | W190: 99.7002999 | X190: 99.6005996 | Y190: 99.500999 | AA190: 16.71428571 | AB190: 188 | AC190: 88.633104 | AD190: 75.36828571 | AE190: 71.22303 | AF190: 66.24872314 | AG190: 62.93251857 | AH190: 62.93251857 | AI190: 62.93251857
A191: 454 , -84.9 | B191: 454 | C191: -84.9 | D191: 12.97142857 | E191: 15.1 | G191: 12.91428571 | H191: 189 | I191: 21.26354286 | J191: 20.44571429 | K191: 20.0368 | L191: 19.62788571 | M191: 19.21897143 | N191: 21.08748229 | O191: 18.22924486 | Q191: 25.82857143 | R191: 189 | S191: 99.5 | T191: 100 | U191: 99.9 | V191: 99.8001 | W191: 99.7002999 | X191: 99.6005996 | Y191: 99.500999 | AA191: 16.78857143 | AB191: 189 | AC191: 88.5976896 | AD191: 75.33817143 | AE191: 71.194572 | AF191: 66.22225269 | AG191: 62.90737314 | AH191: 62.90737314 | AI191: 62.90737314
A192: 457 , -85 | B192: 457 | C192: -85 | D192: 13.05714286 | E192: 15 | G192: 12.97142857 | H192: 190 | I192: 21.16251429 | J192: 20.34857143 | K192: 19.9416 | L192: 19.53462857 | M192: 19.12765714 | N192: 20.99728798 | O192: 18.15819272 | Q192: 25.94285714 | R192: 190 | S192: 99.5 | T192: 100 | U192: 99.9 | V192: 99.8001 | W192: 99.7002999 | X192: 99.6005996 | Y192: 99.500999 | AA192: 16.86285714 | AB192: 190 | AC192: 88.5622752 | AD192: 75.30805714 | AE192: 71.166114 | AF192: 66.19578223 | AG192: 62.88222771 | AH192: 62.88222771 | AI192: 62.88222771
A193: 459 , -85.1 | B193: 459 | C193: -85.1 | D193: 13.11428571 | E193: 14.9 | G193: 13.05714286 | H193: 191 | I193: 21.03474286 | J193: 20.22571429 | K193: 19.8212 | L193: 19.41668571 | M193: 19.01217143 | N193: 20.88315699 | O193: 18.06824515 | Q193: 26.11428571 | R193: 191 | S193: 99.5 | T193: 100 | U193: 99.9 | V193: 99.8001 | W193: 99.7002999 | X193: 99.6005996 | Y193: 99.500999 | AA193: 16.97428571 | AB193: 191 | AC193: 88.5174864 | AD193: 75.26997143 | AE193: 71.130123 | AF193: 66.16230489 | AG193: 62.85042614 | AH193: 62.85042614 | AI193: 62.85042614
A194: 462 , -85.2 | B194: =SUBSTITUTE(LEFT(A194,FIND(",",A194,1)-1),".",",")*1 -> 462 | C194: =SUBSTITUTE(RIGHT(A194,LEN(A194)-FIND(",",A194)),".",",")*1 -> -85.2 | D194: =B194/$D$1 -> 13.2 | E194: =C194+100 -> 14.8 | G194: 13.11428571 | H194: 192 | I194: 20.95748571 | J194: 20.15142857 | K194: 19.7484 | L194: 19.34537143 | M194: 18.94234286 | N194: 20.81411394 | O194: 18.01381055 | Q194: 26.22857143 | R194: 192 | S194: 99.5 | T194: 100 | U194: 99.9 | V194: 99.8001 | W194: 99.7002999 | X194: 99.6005996 | Y194: 99.500999 | AA194: 17.04857143 | AB194: 192 | AC194: 88.4904048 | AD194: 75.24694286 | AE194: 71.108361 | AF194: 66.14206277 | AG194: 62.83119729 | AH194: 62.83119729 | AI194: 62.83119729
A195: 464 , -85.2 | B195: 464 | C195: -85.2 | D195: 13.25714286 | E195: 14.8 | G195: 13.2 | H195: 193 | I195: 20.8416 | J195: 20.04 | K195: 19.6392 | L195: 19.2384 | M195: 18.8376 | N195: 20.71050161 | O195: 17.93209086 | Q195: 26.4 | R195: 193 | S195: 99.5 | T195: 100 | U195: 99.9 | V195: 99.8001 | W195: 99.7002999 | X195: 99.6005996 | Y195: 99.500999 | AA195: 17.16 | AB195: 193 | AC195: 88.4497824 | AD195: 75.2124 | AE195: 71.075718 | AF195: 66.1116996 | AG195: 62.802354 | AH195: 62.802354 | AI195: 62.802354
A196: 466 , -85.3 | B196: 466 | C196: -85.3 | D196: 13.31428571 | E196: 14.7 | G196: =+D195 -> 13.25714286 | H196: =H195+1 -> 194 | I196: =+J196*$I$3/100 -> 20.76434286 | J196: =VLOOKUP(G196,$AP$52:$AU$72,3)+(G196-VLOOKUP(G196,$AP$52:$AU$72,1))*(VLOOKUP(G196,$AP$52:$AU$72,4)-VLOOKUP(G196,$AP$52:$AU$72,3))/(VLOOKUP(G196,$AP$52:$AU$72,2)-VLOOKUP(G196,$AP$52:$AU$72,1)) -> 19.96571429 | K196: 19.5664 | L196: 19.16708571 | M196: 18.76777143 | N196: =($J196/100)^0.9*(1+(N$3-100)/100)*100 -> 20.64139472 | O196: =($J196/100)^0.82*(1+(O$3-100)/100)*100 -> 17.87756564 | Q196: =G196*2 -> 26.51428571 | R196: =R195+1 -> 194 | S196: =+T196*$S$3/100 -> 99.5 | T196: 100 | U196: 99.9 | V196: 99.8001 | W196: 99.7002999 | X196: =($T196/100)^0.9*(1+(X$3-100)/100)*100 -> 99.6005996 | Y196: =($T196/100)^0.82*(1+(Y$3-100)/100)*100 -> 99.500999 | AA196: =G196*1.3 -> 17.23428571 | AB196: =AB195+1 -> 194 | AC196: =+AD196*$AC$3/$AD$3 -> 88.4227008 | AD196: =VLOOKUP(G196,$AP$52:$AU$72,5)+(G196-VLOOKUP(G196,$AP$52:$AU$72,1))*(VLOOKUP(G196,$AP$52:$AU$72,6)-VLOOKUP(G196,$AP$52:$AU$72,5))/(VLOOKUP(G196,$AP$52:$AU$72,2)-VLOOKUP(G196,$AP$52:$AU$72,1)) -> 75.18937143 | AE196: =MIN(K196*$AD196/$J196*AE$3/K$3,$AD196,AE$3) -> 71.053956 | AF196: =MIN(L196*$AD196/$J196*AF$3/L$3,AD196,AE196,AF$3) -> 66.09145749 | AG196: =MIN(M196*$AD196/$J196*AG$3/M$3,AD196,AE196,AF196,AG$3) -> 62.78312514 | AH196: =MIN(N196*$AD196/$J196*AH$3/N$3,AD196,AE196,AF196,AG196,AH$3) -> 62.78312514 | AI196: =MIN(O196*$AD196/$J196*AI$3/O$3,AD196,AE196,AF196,AG196,AH196,AI$3) -> 62.78312514
A197: 469 , -85.4 | B197: 469 | C197: -85.4 | D197: 13.4 | E197: 14.6 | G197: 13.31428571 | H197: 195 | I197: 20.68708571 | J197: 19.89142857 | K197: 19.4936 | L197: 19.09577143 | M197: 18.69794286 | N197: 20.57226212 | O197: 17.82300389 | Q197: 26.62857143 | R197: 195 | S197: 99.5 | T197: 100 | U197: 99.9 | V197: 99.8001 | W197: 99.7002999 | X197: 99.6005996 | Y197: 99.500999 | AA197: 17.30857143 | AB197: 195 | AC197: 88.3956192 | AD197: 75.16634286 | AE197: 71.032194 | AF197: 66.07121537 | AG197: 62.76389629 | AH197: 62.76389629 | AI197: 62.76389629
A198: 471 , -85.5 | B198: 471 | C198: -85.5 | D198: 13.45714286 | E198: 14.5 | G198: 13.4 | H198: 196 | I198: 20.5712 | J198: 19.78 | K198: 19.3844 | L198: 18.9888 | M198: 18.5932 | N198: 20.46851477 | O198: 17.74109242 | Q198: 26.8 | R198: 196 | S198: 99.5 | T198: 100 | U198: 99.9 | V198: 99.8001 | W198: 99.7002999 | X198: 99.6005996 | Y198: 99.500999 | AA198: 17.42 | AB198: 196 | AC198: 88.3549968 | AD198: 75.1318 | AE198: 70.999551 | AF198: 66.0408522 | AG198: 62.735053 | AH198: 62.735053 | AI198: 62.735053
A199: 474 , -85.6 | B199: 474 | C199: -85.6 | D199: 13.54285714 | E199: 14.4 | G199: 13.45714286 | H199: 197 | I199: 20.49394286 | J199: 19.70571429 | K199: 19.3116 | L199: 18.91748571 | M199: 18.52337143 | N199: 20.39931741 | O199: 17.68643864 | Q199: 26.91428571 | R199: 197 | S199: 99.5 | T199: 100 | U199: 99.9 | V199: 99.8001 | W199: 99.7002999 | X199: 99.6005996 | Y199: 99.500999 | AA199: 17.49428571 | AB199: 197 | AC199: 88.3279152 | AD199: 75.10877143 | AE199: 70.977789 | AF199: 66.02061009 | AG199: 62.71582414 | AH199: 62.71582414 | AI199: 62.71582414
A200: 476 , -85.6 | B200: 476 | C200: -85.6 | D200: 13.6 | E200: 14.4 | G200: 13.54285714 | H200: 198 | I200: 20.37805714 | J200: 19.59428571 | K200: 19.2024 | L200: 18.81051429 | M200: 18.41862857 | N200: 20.29547242 | O200: 17.60438835 | Q200: 27.08571429 | R200: 198 | S200: 99.5 | T200: 100 | U200: 99.9 | V200: 99.8001 | W200: 99.7002999 | X200: 99.6005996 | Y200: 99.500999 | AA200: 17.60571429 | AB200: 198 | AC200: 88.2872928 | AD200: 75.07422857 | AE200: 70.945146 | AF200: 65.99024691 | AG200: 62.68698086 | AH200: 62.68698086 | AI200: 62.68698086
... 52 more rows

Sheet Data (hidden)
DJ1: 0.7 | DK1: 0.64 | DL1: 0.61 | DM1: 0.59 | DN1: 0.57 | DO1: 0.55 | DP1: 0.53 | DQ1: 0.51 | DR1: 0.49
B2: Type | E2: Size | H2: Volt | M2: Ceram | P2: Capa | S2: Ep | T2: nb pcs max BME | U2: =IFERROR(MIN(ROUNDDOWN(U4/S4,0),6),1) -> 1 | V2: =IFERROR(ROUNDDOWN((Chart!C42*2.54+0.6)*IF(Chart!$C$25="1210",2,1)/S4,0),1) -> 0 | AF2: Tolérance | AK2: Term | AR2: Lead | AZ2: Package | BD2: Screen | BK2: Lead/height stack | BT2: Data Size | CA2: Data Stack | CE2: Data tailles | CN2: Data Tols | DJ2: 0.86 | DK2: 0.77 | DL2: 0.73 | DM2: 0.71 | DN2: 0.71 | DO2: 0.71 | DP2: 0.7 | DQ2: 0.7 | DR2: 0.69 | GE2: Ecran | GF2: Nouvelle référence | GG2: Taille | GH2: Type | GI2: Pouces | GJ2: Elect. série | GK2: Format | GL2: reception | GM2: Opérationnel | GN2: Date obso | GO2: Mesh | GP2: Shift Y en mm | GQ2: Tension | GR2: Nb pcs | GS2: Surface active en cru (mm²) | GT2: Surface avant recalcul | GU2: Commentaires | GV2: Code | GW2: LastEcran | GX2: marge
E3: ="Data!E8:E"&(VLOOKUP("",$E$8:$F$93,2,FALSE)+6) -> Data!E8:E36 | H3: ="Data!H8:H"&(VLOOKUP(0,$H$8:$I$31,2,FALSE)+6) -> Data!H8:H24 | P3: ="Data!P8:P"&(VLOOKUP("",$P$8:$Q$107,2,FALSE)+6) -> Data!P8:P62 | Q3: maxPME | R3: =capa($E$7,$M$7,$H$7,,Chart!H2) -> 377099.6562 | S3: =capa($E$7,$M$7,$H$7,"ep",Chart!H2) -> 2.477898569 | T3: nb pcs max PME | U3: =IFERROR(MIN(ROUNDDOWN(U4/S3,0),6),1) -> 1 | V3: =IFERROR(ROUNDDOWN((Chart!C42*2.54+0.6)*IF(Chart!$C$25="1210",2,1)/S3,0),1) -> 0 | CX3: size | CY3: long | CZ3: larg | DA3: ep min | DB3: ep max | DC3: margesize | DD3: ter min | DE3: ter max | DF3: retrait cru | DG3: base min cuit | DH3: nbelm | DI3: 1 | DJ3: 2 | DK3: 3 | DL3: 4 | DM3: 5 | DN3: 6 | DO3: 7 | DP3: 8 | DQ3: 9 | DR3: 10 | DS3: Vmax | DT3: nbpc4 | DU3: nbpc6 | DV3: nbpc8 | DW3: Colonne3 | DX3: Ecran | DY3: Ecran cuit 0,75 | DZ3: Ecran cuit 0,84 | GE3: CA05 D1 | GF3: 5G TF V3 | GG3: CA05 | GH3: Planar | GI3: 4 | GJ3: 1 | GK3: Planar | GL3: 2016-04-06 | GM3: TRUE | GO3: 400 | GP3: 10.85 | GQ3: 26-28 | GR3: 128 | GS3: 6.5988 | GT3: 6.11 | GV3: CA05/4/1Planar | GW3: CA05/4/1Planar
E4: =VLOOKUP(B7,$B$8:$C$13,2,FALSE) -> 1210 | Q4: maxBME | R4: =_xlfn.MAXIFS(Datamax[Capa],Datamax[Taille],Data!$E$4,Datamax[Cer],Data!$M$7,Datamax[Volt],">="&$H$7,Datamax[BME],"B") -> 150000 | S4: =IF(S5=0,S3,S5) -> 2.477898569 | T4: hauteur smd max | U4: =IFERROR(IF(BK7=0,U5-U6,MIN(BK7-Chart!F14,U5-U6)),"") ->  | CX4: 0204 | CY4: =ROUND(LEFT(CX4,2)*2.54/10,1) -> 0.5 | CZ4: =ROUND(RIGHT(CX4,2)*2.54/10,1) -> 1 | DA4: 0.4 | DB4: 0.6 | DC4: 0.1 | DD4: 0.1 | DE4: 0.2 | DF4: 0.37 | DG4: 0.09 | DH4: 1 | DI4: =MIN((Size[[#This Row],[long]]^0.5*Size[[#This Row],[larg]]^0.2)/3*0.6+0.16,0.8)*Size[[#This Row],[long]]*Size[[#This Row],[larg]] -> 0.1507106781 | DS4: 500 | DT4: =7500/(Size[[#This Row],[long]]*Size[[#This Row],[larg]])^1.1 -> 16076.60194 | DU4: =Size[[#This Row],[nbpc4]]*5.6*5.6/3.6/3.6 -> 38901.40716 | DV4: =Size[[#This Row],[nbpc4]]*7.6*7.6/3.6/3.6 -> 71650.04074 | DW4: =7500/(Size[[#This Row],[long]]*Size[[#This Row],[larg]])^1.1 -> 16076.60194 | EB4: cer | EC4: const | ED4: Type | EE4: retrait | EF4: Haltep | EG4: HaltV | EH4: HaltT | EI4: HaltEOLY | EJ4: Vmax | EK4: Filmmax | EL4: Filmsizemax | EM4: Filmpentemax | EN4: Nbc500max | EO4: Nbc1000max | EP4: Nbc2000max | EQ4: Nbc3000max | ER4: Nbc5000max | ES4: Nbc8000max | ET4: Nbc10000max | EU4: Nbc30000max | EV4: 300max | EW4: 500max | EX4: 750max | EY4: 1000max | EZ4: 1500max | FA4: 2000max | FB4: 2500max | FC4: 3000max | FD4: Vrel | FE4: Filmrel | FF4: Filmsizerel | FG4: Filmpenterel | FH4: Nbc500rel | FI4: Nbc1000rel | FJ4: Nbc2000rel | FK4: Nbc3000rel | FL4: Nbc5000rel | FM4: Nbc8000rel | FN4: Nbc10000rel | FO4: Nbc30000rel | FP4: 300rel | FQ4: 500rel | FR4: 750rel | FS4: 1000rel | FT4: 1500rel | FU4: 2000rel | FV4: 2500rel | FW4: 3000rel | GE4: CA05 D2 | GF4: 5G TF V4 | GG4: CA05 | GH4: Planar | GI4: 4 | GJ4: 1 | GK4: Planar | GL4: 2016-02-01 | GM4: TRUE | GO4: 400 UMC | GP4: 10.85 | GQ4: 26-28 | GR4: 128 | GS4: 5.076 | GT4: 4.7 | GV4: CA05/4/1Planar | GW4: CA05/4/1Planar
Q5: min | R5: =IFERROR(VLOOKUP("Min"&$E$7&$M$7&$H$7,Dataall,2,FALSE),10) -> 10 | S5: =_xlfn.MINIFS(Datamax[Ep],Datamax[Taille],Data!$E$4,Datamax[Cer],Data!$M$7,Datamax[Volt],">="&$H$7,Datamax[BME],"B",Datamax[Capa],$R$4,Datamax[Ep],">0",Datamax[Ep],"<>""") -> 0 | T5: hauteur max | U5: =IF(B7="Stack",VLOOKUP(E7,$CA$8:$CC$23,2,FALSE),"") ->  | AF5: ="Data!AF"&IF(AND(AF7="A",H7>=100),12,8)&":AF"&(VLOOKUP(0,AF8:AG17,2,FALSE)+6) -> Data!AF8:AF10 | AK5: ="Data!AK8:AK"&(VLOOKUP(0,AK8:AL17,2,FALSE)+6) -> Data!AK8:AK16 | AR5: ="Data!AR9:AR"&(VLOOKUP(0,AR9:AT14,3,FALSE)+7) -> Data!AR9:AR9 | AZ5: ="Data!AZ8:AZ9" -> Data!AZ8:AZ9 | BG5: ="Data!bg8:bg"&(VLOOKUP("",BG8:BI24,3,FALSE)+6) -> Data!bg8:bg14 | BK5: =IFERROR("Data!BK8:BK"&(VLOOKUP(0,BK8:BL26,2,FALSE)+6),("Data!BK8:BK8")) -> Data!BK8:BK8 | CX5: 0303 | CY5: 0.8 | CZ5: 0.8 | DA5: 0.78 | DB5: 0.8 | DC5: 0.1 | DD5: 0.1 | DE5: 0.2 | DF5: 0.5 | DG5: 0.1 | DH5: 1 | DI5: =MIN((Size[[#This Row],[long]]^0.5*Size[[#This Row],[larg]]^0.2)/3*0.6+0.16,0.8)*Size[[#This Row],[long]]*Size[[#This Row],[larg]] -> 0.211889623 | DS5: 500 | DT5: =7500/(Size[[#This Row],[long]]*Size[[#This Row],[larg]])^1.1 -> 12253.58851 | DU5: =Size[[#This Row],[nbpc4]]*5.6*5.6/3.6/3.6 -> 29650.65861 | DV5: =Size[[#This Row],[nbpc4]]*7.6*7.6/3.6/3.6 -> 54611.67223 | DW5: =7500/(Size[[#This Row],[long]]*Size[[#This Row],[larg]])^1.1 -> 12253.58851 | DX5: 0.27 | DY5: =+DX5*0.75*0.75 -> 0.151875 | DZ5: =+DX5*0.84*0.84 -> 0.190512 | EB5: AD302 | EC5: 3060 | ED5: Y | EE5: 0.8112304 | EF5: 16 | EG5: 400 | EH5: 140 | EI5: 0.03 | EJ5: 450 | EK5: 18 | EL5: 20 | EM5: 0.15 | EN5: 100 | EO5: 100 | EP5: 35 | EQ5: 24 | ER5: 17 | ES5: 15 | ET5: 13 | EU5: 10 | EV5: 16.90063333 | EW5: 16.90063333 | EX5: 15.96170926 | EY5: 15.02278519 | EZ5: 8.785714286 | FA5: 0 | FB5: 0 | FC5: 0 | FD5: 450 | FE5: 18 | FF5: 20 | FG5: 0.15 | FH5: 50 | FI5: 50 | FJ5: 50 | FK5: 45 | FL5: 45 | FM5: 35 | FN5: 25 | FO5: 15 | FP5: 12.3 | FQ5: 12.05882353 | FR5: 10.98214286 | FS5: 10.25 | FT5: 8.785714286 | FU5: 0 | FV5: 0 | FW5: 0 | GE5: CA05 B1 | GF5: 3G CA05 V3 | GG5: CA05 | GH5: Planar | GI5: 4 | GJ5: 1 | GK5: Planar | GL5: 2013-06-01 | GM5: FALSE | GO5: 325 | GP5: 2.33 | GQ5: 29-32 | GR5: 48 | GS5: 5.076 | GT5: 4.7 | GV5: CA05/4/1Planar
H6: =VLOOKUP(E7,Size[],22) -> 4000 | Q6: max | R6: =IF(Chart!G20="PME",Data!R3,MAX(Data!R3,Data!R4)) -> 377099.6562 | S6: =IF(P7>R3,S4,S3) -> 2.477898569 | T6: lead | U6: =IF(LEFT(B7,5)="Stack",VLOOKUP(E7,$CA$8:$CC$23,3,FALSE),"") ->  | AF6: =VLOOKUP(Chart!$C$29,Data!$AF$32:$AK$41,6,FALSE) -> 0.8450879222 | AG6: =Chart!C29 -> ± 10% | AK6: =IFERROR(VLOOKUP(AK7,AK8:AM16,3,FALSE),IF(B7="SMD","X","")) -> X | AL6: =IF($B$7="Stack","",IF($B$7="SMD",AO8,"")) -> Nickel Tin | AR6: =IF(LEFT(Chart!C24,5)="Stack","L","") ->  | AS6: =IFERROR(VLOOKUP(Chart!C31,Data!$AR$9:$AS$14,2,FALSE),"") -> 0 | BK6: =IF(Chart!C24="Stack Vertical",4,"") ->  | CX6: 0306 | CY6: =ROUND(LEFT(CX6,2)*2.54/10,1) -> 0.8 | CZ6: 1.6 | DA6: 0.7 | DB6: 0.92 | DC6: 0.1 | DD6: 0.1 | DE6: 0.3 | DF6: 0.53 | DG6: 0.13 | DH6: 1 | DI6: =MIN((Size[[#This Row],[long]]^0.5*Size[[#This Row],[larg]]^0.2)/3*0.6+0.16,0.8)*Size[[#This Row],[long]]*Size[[#This Row],[larg]] -> 0.4563410997 | DS6: 500 | DT6: =7500/(Size[[#This Row],[long]]*Size[[#This Row],[larg]])^1.1 -> 5716.501171 | DU6: =Size[[#This Row],[nbpc4]]*5.6*5.6/3.6/3.6 -> 13832.52135 | DV6: =Size[[#This Row],[nbpc4]]*7.6*7.6/3.6/3.6 -> 25477.24596 | DW6: =7500/(Size[[#This Row],[long]]*Size[[#This Row],[larg]])^1.1 -> 5716.501171 | EB6: COG150L | EC6: 15.2955 | ED6: A | EE6: 0.7717813051 | EF6: 13.3 | EG6: 400 | EH6: 140 | EI6: 0.03 | EJ6: 2550 | EK6: 18 | EL6: 20 | EM6: 0.15 | EN6: 100 | EO6: 100 | EP6: 50 | EQ6: 40 | ER6: 35 | ES6: 35 | ET6: 30 | EU6: 25 | EV6: 18 | EW6: 18 | EX6: 18 | EY6: 18 | EZ6: 14 | FA6: 12 | FB6: 8 | FC6: 1 | FD6: 1750 | FE6: 18 | FF6: 20 | FG6: 0.15 | FH6: 60 | FI6: 60 | FJ6: 50 | FK6: 40 | FL6: 35 | FM6: 35 | FN6: 30 | FO6: 25 | FP6: 18 | FQ6: 18 | FR6: 18 | FS6: 18 | FT6: 14 | FU6: 8.111111111 | FV6: 8.111111111 | FW6: 1 | GE6: CA05 | GF6: 3G CA05 V2 | GG6: CA05 | GH6: Planar | GI6: 4 | GJ6: 1 | GK6: Planar | GL6: 2013-05-01 | GM6: FALSE | GO6: 325 | GP6: 2.35 | GR6: 48 | GS6: 2.23344 | GT6: 2.068 | GV6: CA05/4/1Planar
B7: =Chart!C24 -> SMD | C7: Default | E7: =Chart!C2 -> 1210 | H7: =Chart!C27 -> 500 | M7: =Chart!C8 -> Y | P7: =Chart!C28 -> 100 nF | R7: nb pcs | S7: =IF(B7="Stack",IF(R4>R3,U2,U3),IF(B7="Stack vertical",IF(R4>R3,V2,V3),1)) -> 1 | AF7: =IF(OR(M7="A",M7="P"),"A","Y") -> Y | AK7: =Chart!C30 -> Nickel Tin | AR7: =Chart!C31 -> 0 | BD7: =Chart!$C$2&"/"&Chart!J3&"/"&IF(Chart!$G9<>"",Chart!$G9,Chart!$F9) -> 1210/4/1 | BK7: =Chart!C42 -> 0 | BQ7: SMD | BR7: SMD | BT7: SMD | BU7: Stack | BV7: Stack vertical | BW7: Dipped radial | BX7: Encapsulated radial | BY7: Encapsulated axial | CA7: Stack | CB7: Max height | CC7: lead height | CE7: Encapsulated radial | CF7: Chip | CG7: X | CH7: Y | CI7: ep | CJ7: width | CK7: dia | CN7: A | CP7: 0.91 | CR7: Y | CT7: 0.91 | CX7: 0402 | CY7: 1 | CZ7: 0.5 | DA7: 0.4 | DB7: 0.6 | DC7: 0.1 | DD7: 0.1 | DE7: 0.3 | DF7: 0.37 | DG7: 0.09 | DH7: 1 | DI7: =MIN((Size[[#This Row],[long]]^0.5*Size[[#This Row],[larg]]^0.2)/3*0.6+0.16,0.8)*Size[[#This Row],[long]]*Size[[#This Row],[larg]] -> 0.1670550563 | DS7: 500 | DT7: =7500/(Size[[#This Row],[long]]*Size[[#This Row],[larg]])^1.1 -> 16076.60194 | DU7: =Size[[#This Row],[nbpc4]]*5.6*5.6/3.6/3.6 -> 38901.40716 | DV7: =Size[[#This Row],[nbpc4]]*7.6*7.6/3.6/3.6 -> 71650.04074 | DW7: =7500/(Size[[#This Row],[long]]*Size[[#This Row],[larg]])^1.1 -> 16076.60194 | DX7: 0.23 | DY7: =+DX7*0.75*0.75 -> 0.129375 | DZ7: =+DX7*0.84*0.84 -> 0.162288 | EB7: COG630 | EC7: 66.49335 | ED7: A | EE7: 0.7575727197 | EF7: 13.3 | EG7: 400 | EH7: 140 | EI7: 0.03 | EJ7: 2550 | EK7: 18 | EL7: 20 | EM7: 0.15 | EN7: 100 | EO7: 100 | EP7: 50 | EQ7: 40 | ER7: 35 | ES7: 35 | ET7: 30 | EU7: 25 | EV7: 18 | EW7: 18 | EX7: 18 | EY7: 18 | EZ7: 14 | FA7: 12 | FB7: 8 | FC7: 1 | FD7: 2550 | FE7: 18 | FF7: 20 | FG7: 0.15 | FH7: 60 | FI7: 60 | FJ7: 50 | FK7: 40 | FL7: 35 | FM7: 35 | FN7: 30 | FO7: 25 | FP7: 18 | FQ7: 18 | FR7: 18 | FS7: 18 | FT7: 14 | FU7: 8.111111111 | FV7: 8.111111111 | FW7: 1 | GE7: CA05 1G V6 | GF7: CA05 1G V6 | GG7: CA05 | GH7: Planar | GI7: 4 | GJ7: 1 | GK7: Planar | GL7: 2021-03-29 | GM7: TRUE | GO7: 400 | GR7: 119 | GS7: 5.076 | GT7: 4.7 | GV7: CA05/4/1Planar | GW7: CA05/4/1Planar
B8: SMD | C8: 1210 | E8: =IF(HLOOKUP($B$7,$BT$7:$BY$88,F8+1,FALSE)="","",HLOOKUP($B$7,$BT$7:$BY$88,F8+1,FALSE)) -> 0204 | F8: 1 | H8: =J8 -> 16 | I8: 1 | J8: 16 | K8: J | L8: 16 | M8: NPO | N8: A | P8: =IF(R8<>"",fmt(R8,"isomin"),"") -> 10 pF | Q8: 1 | R8: =R5 -> 10 | T8: =IF(V8<>"",fmt(V8,"isomin"),"") -> 10 pF | U8: 1 | V8: =R5 -> 10 | X8: =IF(V8<>"",capa($E$7,$M$7,$H$7,"det",Chart!$H$2,,V8),"") -> X7R262L 1e 0.0c 562µ 613µb 1.00mm 0.9Vµ | Y8: =IF(V8="","",IFERROR(_xlfn.XLOOKUP($E$7&$H$7&$M$7&$V8,#REF!,#REF!),"")) ->  | Z8: =IF(Y8="","",IFERROR(_xlfn.XLOOKUP($E$7&$H$7&$M$7&$V8,#REF!,#REF!),"")) ->  | AA8: =IF(Y8="","",IFERROR(_xlfn.XLOOKUP($E$7&$H$7&$M$7&$V8,#REF!,#REF!),"")) ->  | AB8: =IF(Y8="","",IFERROR(_xlfn.XLOOKUP($E$7&$H$7&$M$7&$V8,#REF!,#REF!),"")) ->  | AC8: =IF(Y8="","",IFERROR(_xlfn.XLOOKUP($E$7&$H$7&$M$7&$V8,#REF!,#REF!),"")) ->  | AD8: =IF(Z8="","",IFERROR(_xlfn.XLOOKUP($E$7&$H$7&$M$7&$V8,#REF!,#REF!),"")) ->  | AF8: =IF(OR($M$7="A",$M$7="P"),CN8,CR8) -> ± 5% | AG8: 1 | AH8: =IF(OR($M$7="A",$M$7="P"),CO8,CS8) -> J | AI8: =MIN(AI32+(AJ32-AI32)*Chart!$P$5/100,AJ32) -> 0 | AK8: =IF($B$7="Stack","",IF(B7="SMD",AO8,"")) -> Nickel Tin | AL8: 1 | AM8: =IFERROR(VLOOKUP(AK8,$AO$8:$AP$16,2,FALSE),"") -> X | AO8: Nickel Tin | AP8: X | AU8: Stack | AV8: Stack Vertical | AZ8: Reel | BA8: B | BD8: =_xlfn._xlws.FILTER(Ecran[Ecran],Ecran[LastEcran]=$BD$7,"") -> 1210 1G V3-1 | BE8: =IF(ISNA(BD8),"",BD8) -> 1210 1G V3-1 | BF8: =IF(ISNA(BD8),0,_xlfn.XLOOKUP(BD8,Ecran[Ecran],Ecran[reception])) -> 43886 | BG8: =_xlfn._xlws.SORT($BE$8:$BF$24,2,-1,FALSE) -> 1210 1G V3-1 | BH8: 43886 | BI8: 1 | BK8: =IF($B$7="Stack","",IF($B$7="Stack vertical",BN8,"")) ->  | BL8: 1 | BN8: 2 | BQ8: 0204 | BR8: 0204 | BT8: 0204 | BU8: 1210 | BV8: 1210 | BW8: SRMC31 | BX8: SR41 | BY8: SA40 | CA8: 1210 | CB8: 8.05 | CC8: 1 | CE8: SR41 | CF8: 0603 | CG8: 4 | CH8: 4.5 | CI8: 2.5 | CJ8: 2.54 | CK8: 0.6 | CN8: ± 0.05pF/0.1% | CO8: A | CP8: 0.1 | CQ8: =CP8*$CP$7 -> 0.091 | CR8: ± 5% | CS8: J | CT8: 0.45 | CU8: =CT8*$CT$7 -> 0.4095 | CX8: 0404 | CY8: 1 | CZ8: 1 | DA8: 0.6 | DB8: 0.9 | DC8: 0.1 | DD8: 0.1 | DE8: 0.3 | DF8: 0.37 | DG8: 0.09 | DH8: 1 | DI8: =MIN((Size[[#This Row],[long]]^0.5*Size[[#This Row],[larg]]^0.2)/3*0.6+0.16,0.8)*Size[[#This Row],[long]]*Size[[#This Row],[larg]] -> 0.36 | DS8: 500 | DT8: =7500/(Size[[#This Row],[long]]*Size[[#This Row],[larg]])^1.1 -> 7500 | DU8: =Size[[#This Row],[nbpc4]]*5.6*5.6/3.6/3.6 -> 18148.14815 | DV8: =Size[[#This Row],[nbpc4]]*7.6*7.6/3.6/3.6 -> 33425.92593 | DW8: =7500/(Size[[#This Row],[long]]*Size[[#This Row],[larg]])^1.1 -> 7500 | DY8: =+DX8*0.75*0.75 -> 0 | DZ8: =+DX8*0.84*0.84 -> 0 | EB8: N2T | EC8: 444.96 | ED8: P | EE8: 0.8111111111 | EF8: 14 | EG8: 400 | EH8: 140 | EI8: 0.03 | EJ8: 2550 | EK8: 18 | EL8: 20 | EM8: 0.15 | EN8: 100 | EO8: 100 | EP8: 45 | EQ8: 45 | ER8: 45 | ES8: 45 | ET8: 45 | EU8: 30 | EV8: 30 | EW8: 30 | EX8: 30 | EY8: 30 | EZ8: 30 | FA8: 25 | FB8: 20 | FC8: 18 | FD8: 2550 | FE8: 18 | FF8: 20 | FG8: 0.15 | FH8: 55 | FI8: 55 | FJ8: 45 | FK8: 45 | FL8: 45 | FM8: 45 | FN8: 40 | FO8: 35 | FP8: 16.9 | FQ8: 16.9 | FR8: 16.9 | FS8: 16.9 | FT8: 13.5 | FU8: 8.1 | FV8: 8.111111111 | FW8: 1 | GE8: CA05 E1 | GF8: CA05 E1 | GG8: CA05 | GH8: Planar | GI8: 4 | GJ8: 1 | GK8: Planar | GM8: FALSE | GO8: 400 | GR8: 220 | GS8: 5.076 | GT8: 4.7 | GV8: CA05/4/1Planar
B9: Stack | C9: 2220 | E9: =IF(HLOOKUP($B$7,$BT$7:$BY$89,F9+1,FALSE)="","",HLOOKUP($B$7,$BT$7:$BY$89,F9+1,FALSE)) -> 0306 | F9: 2 | H9: =IF(J9<=$H$6,J9,"") -> 25 | I9: 2 | J9: 25 | K9: X | L9: 25 | M9: N2T | N9: P | P9: =IF(R9<>"",fmt(R9,"isomin"),"") -> 12 pF | Q9: 2 | R9: =IF(R8="","",IF(fmt(R8*1.3,"iso",,1)>$R$6*$S$7,"",fmt(R8*1.3,"iso",,1))) -> 12 | T9: =IF(V9<>"",fmt(V9,"isomin"),"") -> 12 pF | U9: 2 | V9: =IF(V8="","",IF(fmt(V8*1.3,"iso",,1)>$R$6,"",fmt(V8*1.3,"iso",,1))) -> 12 | X9: =IF(V9<>"",capa($E$7,$M$7,$H$7,"det",Chart!$H$2,,V9),"") -> X7R262L 1e 0.0c 562µ 613µb 1.00mm 0.9Vµ | Y9: =IF(V9="","",IFERROR(_xlfn.XLOOKUP($E$7&$H$7&$M$7&$V9,#REF!,#REF!),"")) ->  | Z9: =IF(Y9="","",IFERROR(_xlfn.XLOOKUP($E$7&$H$7&$M$7&$V9,#REF!,#REF!),"")) ->  | AA9: =IF(Y9="","",IFERROR(_xlfn.XLOOKUP($E$7&$H$7&$M$7&$V9,#REF!,#REF!),"")) ->  | AB9: =IF(Y9="","",IFERROR(_xlfn.XLOOKUP($E$7&$H$7&$M$7&$V9,#REF!,#REF!),"")) ->  | AC9: =IF(Y9="","",IFERROR(_xlfn.XLOOKUP($E$7&$H$7&$M$7&$V9,#REF!,#REF!),"")) ->  | AD9: =IF(Z9="","",IFERROR(_xlfn.XLOOKUP($E$7&$H$7&$M$7&$V9,#REF!,#REF!),"")) ->  | AF9: ± 10% | AG9: =AG8+1 -> 2 | AH9: K | AI9: =IF(OR($M$7="A",$M$7="P"),CQ9,CU9) -> 0.819 | AK9: =IF(LEFT($B$7,5)="Stack",AO10,IF($B$7="SMD",AO9,IF(OR(LEFT($B$7,5)="Dippe",LEFT($B$7,5)="Encap"),AO11,0))) -> Palladium-Silver | AL9: =AL8+1 -> 2 | AM9: F | AO9: Palladium-Silver | AP9: F | AR9: =IF($B$7="Stack",AU9,IF($B$7="Stack vertical",AW9,"")) ->  | AS9: =IF($B$7="Stack",AV9,IF($B$7="Stack vertical",AX9,0)) -> 0 | AT9: 1 | AU9: L | AV9: L | AW9: L | AX9: L | AZ9: Bulk | BA9: V | BD9: 1210 1G V3 | BE9: 1210 1G V3 | BF9: =IF(ISNA(BD9),0,_xlfn.XLOOKUP(BD9,Ecran[Ecran],Ecran[reception])) -> 43536 | BG9: 1210 1G V3 | BH9: 43536 | BI9: 2 | BK9: =IF($B$7="Stack",BM9,IF($B$7="Stack vertical",BN9,"")) ->  | BL9: =BL8+1 -> 2 | BM9: 4 | BN9: =BN8+1 -> 3 | BQ9: 0303 | BR9: 0306 | BT9: 0306 | BU9: 1812 | BV9: 1812 | BW9: SRMC32 | BX9: SR43 | BY9: SA50 | CA9: 1812 | CB9: 9.66 | CC9: 1.3 | CE9: SR43 | CF9: 1210 | CG9: 5 | CH9: 5 | CI9: 2.5 | CJ9: 2.54 | CK9: 0.6 | CN9: ± 0.1pF | CO9: B | CP9: 0.13 | CQ9: 0.1183 | CR9: ± 10% | CS9: K | CT9: 0.9 | CU9: =CT9*$CT$7 -> 0.819 | CX9: 0504 | CY9: 1.25 | CZ9: 1 | DA9: 0.7 | DB9: 1 | DC9: 0.1 | DD9: 0.1 | DE9: 0.3 | DF9: 0.5 | DG9: 0.13 | DH9: 1 | DI9: =MIN((Size[[#This Row],[long]]^0.5*Size[[#This Row],[larg]]^0.2)/3*0.6+0.16,0.8)*Size[[#This Row],[long]]*Size[[#This Row],[larg]] -> 0.4795084972 | DS9: 500 | DT9: =7500/(Size[[#This Row],[long]]*Size[[#This Row],[larg]])^1.1 -> 5867.596611 | DU9: =Size[[#This Row],[nbpc4]]*5.6*5.6/3.6/3.6 -> 14198.13501 | DV9: =Size[[#This Row],[nbpc4]]*7.6*7.6/3.6/3.6 -> 26150.64663 | DW9: =7500/(Size[[#This Row],[long]]*Size[[#This Row],[larg]])^1.1 -> 5867.596611 | EB9: UCG980 | EC9: 102.9588 | ED9: A | EE9: 0.7995508883 | EF9: 13.3 | EG9: 400 | EH9: 140 | EI9: 0.03 | EJ9: 2550 | EK9: 18 | EL9: 20 | EM9: 0.15 | EN9: 100 | EO9: 100 | EP9: 70 | EQ9: 40 | ER9: 35 | ES9: 35 | ET9: 35 | EU9: 30 | EV9: 19.98877221 | EW9: 19.98877221 | EX9: 19.98877221 | EY9: 19.98877221 | EZ9: 19.98877221 | FA9: 19.98877221 | FB9: 19.98877221 | FC9: 5 | FD9: 2550 | FE9: 18 | FF9: 20 | FG9: 0.15 | FH9: 60 | FI9: 60 | FJ9: 50 | FK9: 40 | FL9: 35 | FM9: 35 | FN9: 35 | FO9: 30 | FP9: 25 | FQ9: 25 | FR9: 25 | FS9: 25 | FT9: 23 | FU9: 22 | FV9: 21 | FW9: 8 | GE9: CA05B1 | GF9: CA05B1 | GG9: CA05 | GH9: Planar | GI9: 4 | GJ9: 1 | GK9: Planar | GL9: 2013-07-01 | GM9: FALSE | GO9: 400 | GR9: 224 | GS9: 5.076 | GT9: 4.7 | GV9: CA05/4/1Planar
B10: Stack vertical | C10: 2220 | E10: 0402 | F10: 3 | H10: 50 | I10: 3 | J10: 50 | K10: A | L10: 50 | M10: X7R | N10: Y | P10: =IF(R10<>"",fmt(R10,"isomin"),"") -> 15 pF | Q10: 3 | R10: =IF(R9="","",IF(fmt(R9*1.3,"iso",,1)>$R$6*$S$7,"",fmt(R9*1.3,"iso",,1))) -> 15 | T10: =IF(V10<>"",fmt(V10,"isomin"),"") -> 15 pF | U10: 3 | V10: =IF(V9="","",IF(fmt(V9*1.3,"iso",,1)>$R$6,"",fmt(V9*1.3,"iso",,1))) -> 15 | X10: =IF(V10<>"",capa($E$7,$M$7,$H$7,"det",Chart!$H$2,,V10),"") -> X7R262L 1e 0.0c 562µ 613µb 1.00mm 0.9Vµ | Y10: =IF(V10="","",IFERROR(_xlfn.XLOOKUP($E$7&$H$7&$M$7&$V10,#REF!,#REF!),"")) ->  | Z10: =IF(Y10="","",IFERROR(_xlfn.XLOOKUP($E$7&$H$7&$M$7&$V10,#REF!,#REF!),"")) ->  | AA10: =IF(Y10="","",IFERROR(_xlfn.XLOOKUP($E$7&$H$7&$M$7&$V10,#REF!,#REF!),"")) ->  | AB10: =IF(Y10="","",IFERROR(_xlfn.XLOOKUP($E$7&$H$7&$M$7&$V10,#REF!,#REF!),"")) ->  | AC10: =IF(Y10="","",IFERROR(_xlfn.XLOOKUP($E$7&$H$7&$M$7&$V10,#REF!,#REF!),"")) ->  | AD10: =IF(Z10="","",IFERROR(_xlfn.XLOOKUP($E$7&$H$7&$M$7&$V10,#REF!,#REF!),"")) ->  | AF10: ± 20% | AG10: 3 | AH10: M | AI10: 0.91 | AK10: =IF(LEFT($B$7,5)="Stack",0,IF($B$7="SMD",AO10,0)) -> Polymer Tin (Flex) | AL10: 3 | AM10: P | AO10: Polymer Tin (Flex) | AP10: P | AR10: =IF($B$7="Stack",AU10,IF($B$7="Stack vertical",AW10,0)) -> 0 | AS10: =IF($B$7="Stack",AV10,IF($B$7="Stack vertical",AX10,0)) -> 0 | AT10: 2 | AU10: J | AV10: J | AW10: J | AX10: J | BD10: 1210 B3 | BE10: 1210 B3 | BF10: =IF(ISNA(BD10),0,_xlfn.XLOOKUP(BD10,Ecran[Ecran],Ecran[reception])) -> 43067 | BG10: 1210 B3 | BH10: 43067 | BI10: 3 | BL10: 3 | BM10: =BM9+1 -> 5 | BN10: 4 | BQ10: 0306 | BR10: 0402 | BT10: 0402 | BU10: 1825 | BV10: 2220 | BW10: SRMC38 | BX10: SR45 | BY10: SA60 | CA10: 1825 | CB10: 16.905 | CC10: 1.3 | CE10: SR45 | CF10: 2220 | CG10: 7.5 | CH10: 7.5 | CI10: 2.5 | CJ10: 4.32 | CK10: 0.6 | CN10: ± 0,25pF | CO10: C | CP10: 0.15 | CQ10: 0.1365 | CR10: ± 20% | CS10: M | CT10: 1 | CU10: =CT10*$CT$7 -> 0.91 | CX10: 0505 | CY10: =ROUND(LEFT(CX10,2)*2.54/10,1) -> 1.3 | CZ10: =ROUND(RIGHT(CX10,2)*2.54/10,1) -> 1.3 | DA10: 0.7 | DB10: 1 | DC10: 0.1 | DD10: 0.1 | DE10: 0.4 | DF10: 0.6 | DG10: 0.13 | DH10: 1 | DI10: =MIN((Size[[#This Row],[long]]^0.5*Size[[#This Row],[larg]]^0.2)/3*0.6+0.16,0.8)*Size[[#This Row],[long]]*Size[[#This Row],[larg]] -> 0.6765411993 | DS10: 500 | DT10: =7500/(Size[[#This Row],[long]]*Size[[#This Row],[larg]])^1.1 -> 4211.006272 | DU10: =Size[[#This Row],[nbpc4]]*5.6*5.6/3.6/3.6 -> 10189.59542 | DV10: =Size[[#This Row],[nbpc4]]*7.6*7.6/3.6/3.6 -> 18767.57116 | DW10: =7500/(Size[[#This Row],[long]]*Size[[#This Row],[larg]])^1.1 -> 4211.006272 | DX10: 0.8 | DY10: =+DX10*0.75*0.75 -> 0.45 | DZ10: =+DX10*0.84*0.84 -> 0.56448 | EB10: UCG980V | EC10: 102.9588 | ED10: A | EE10: 0.7984780275 | EF10: 13.3 | EG10: 400 | EH10: 140 | EI10: 0.03 | EJ10: 2550 | EK10: 18 | EL10: 20 | EM10: 0.15 | EN10: 100 | EO10: 100 | EP10: 50 | EQ10: 40 | ER10: 35 | ES10: 35 | ET10: 35 | EU10: 30 | EV10: 30 | EW10: 30 | EX10: 30 | EY10: 30 | EZ10: 30 | FA10: 25 | FB10: 15 | FC10: 5 | FD10: 2550 | FE10: 18 | FF10: 20 | FG10: 0.15 | FH10: 60 | FI10: 60 | FJ10: 50 | FK10: 40 | FL10: 35 | FM10: 35 | FN10: 35 | FO10: 30 | FP10: 19.96195069 | FQ10: 19.96195069 | FR10: 19.96195069 | FS10: 19.96195069 | FT10: 19.96195069 | FU10: 19.96195069 | FV10: 19.96195069 | FW10: 5 | GE10: CA05 C1 | GF10: 3G CA05 2C V3 | GG10: CA05 | GH10: Planar | GI10: 4 | GJ10: 2 | GK10: Planar | GL10: 2015-12-01 | GM10: TRUE | GO10: 400 | GP10: 4.1 | GR10: 48 | GS10: 1.71225929 | GT10: 1.585425268 | GV10: CA05/4/2Planar | GW10: CA05/4/2Planar
B11: Dipped radial | C11: SRMC41 | E11: 0504 | F11: 4 | H11: 63 | I11: 4 | J11: 63 | K11: U | L11: 63 | M11: BX | N11: X | P11: =IF(R11<>"",fmt(R11,"isomin"),"") -> 18 pF | Q11: 4 | R11: =IF(R10="","",IF(fmt(R10*1.3,"iso",,1)>$R$6*$S$7,"",fmt(R10*1.3,"iso",,1))) -> 18 | T11: =IF(V11<>"",fmt(V11,"isomin"),"") -> 18 pF | U11: 4 | V11: =IF(V10="","",IF(fmt(V10*1.3,"iso",,1)>$R$6,"",fmt(V10*1.3,"iso",,1))) -> 18 | X11: =IF(V11<>"",capa($E$7,$M$7,$H$7,"det",Chart!$H$2,,V11),"") -> X7R262L 1e 0.0c 562µ 613µb 1.00mm 0.9Vµ | Y11: =IF(V11="","",IFERROR(_xlfn.XLOOKUP($E$7&$H$7&$M$7&$V11,#REF!,#REF!),"")) ->  | Z11: =IF(Y11="","",IFERROR(_xlfn.XLOOKUP($E$7&$H$7&$M$7&$V11,#REF!,#REF!),"")) ->  | AA11: =IF(Y11="","",IFERROR(_xlfn.XLOOKUP($E$7&$H$7&$M$7&$V11,#REF!,#REF!),"")) ->  | AB11: =IF(Y11="","",IFERROR(_xlfn.XLOOKUP($E$7&$H$7&$M$7&$V11,#REF!,#REF!),"")) ->  | AC11: =IF(Y11="","",IFERROR(_xlfn.XLOOKUP($E$7&$H$7&$M$7&$V11,#REF!,#REF!),"")) ->  | AD11: =IF(Z11="","",IFERROR(_xlfn.XLOOKUP($E$7&$H$7&$M$7&$V11,#REF!,#REF!),"")) ->  | AF11: 0 | AG11: 4 | AH11: 0 | AI11: 0 | AK11: =IF($B$7="Stack",0,IF($B$7="SMD",AO11,0)) -> Copper Tin (Non magnetic) | AL11: 4 | AM11: C | AO11: Copper Tin (Non magnetic) | AP11: C | AR11: =IF($B$7="Stack",AU11,IF($B$7="Stack vertical",AW11,0)) -> 0 | AS11: =IF($B$7="Stack",AV11,IF($B$7="Stack vertical",AX11,0)) -> 0 | AT11: 3 | AU11: D | AV11: D | AW11: D | AX11: D | BD11: 1210 E1 | BE11: 1210 E1 | BF11: =IF(ISNA(BD11),0,_xlfn.XLOOKUP(BD11,Ecran[Ecran],Ecran[reception])) -> 41733 | BG11: 1210 E1 | BH11: 41733 | BI11: 4 | BL11: 4 | BM11: 6 | BN11: 5 | BQ11: 0402 | BR11: 0504 | BT11: 0504 | BU11: 2220 | BV11: 2225 | BW11: SRMC40 | BX11: SR47 | BY11: SA70 | CA11: 2220 | CB11: 14.03 | CC11: 1.3 | CE11: SR47 | CF11: 0603 | CG11: 4 | CH11: 4.5 | CI11: 2.5 | CJ11: 5.08 | CK11: 0.6 | CN11: ± 0,5pF | CO11: D | CP11: 0.18 | CQ11: 0.1638 | CX11: 0508 | CY11: 1.3 | CZ11: 2 | DA11: 0.7 | DB11: 2 | DC11: 0.2 | DD11: 0.25 | DE11: 0.4 | DF11: 1.05 | DG11: 0.13 | DH11: 2 | DI11: =MIN((Size[[#This Row],[long]]^0.5*Size[[#This Row],[larg]]^0.2)/3*0.6+0.16,0.8)*Size[[#This Row],[long]]*Size[[#This Row],[larg]] -> 1.09705317 | DJ11: =$DI11/DJ$3*IF($DI11<10,DJ$1,DJ$1+MIN(($DI11-10)/30,1)*(DJ$2-DJ$1)) -> 0.3839686096 | DS11: 1000 | DT11: =7500/(Size[[#This Row],[long]]*Size[[#This Row],[larg]])^1.1 -> 2621.745798 | DU11: =Size[[#This Row],[nbpc4]]*5.6*5.6/3.6/3.6 -> 6343.977487 | DV11: =Size[[#This Row],[nbpc4]]*7.6*7.6/3.6/3.6 -> 11684.57078 | DW11: =7500/(Size[[#This Row],[long]]*Size[[#This Row],[larg]])^1.1 -> 2621.745798 | DX11: 0.68 | DY11: =+DX11*0.75*0.75 -> 0.3825 | DZ11: =+DX11*0.84*0.84 -> 0.479808 | EB11: VLF220 | EC11: 23.76 | ED11: A | EE11: 0.8068181818 | EF11: 13.3 | EG11: 400 | EH11: 140 | EI11: 0.03 | EJ11: 2550 | EK11: 18 | EL11: 20 | EM11: 0.15 | EN11: 100 | EO11: 100 | EP11: 50 | EQ11: 40 | ER11: 35 | ES11: 35 | ET11: 30 | EU11: 25 | EV11: 18 | EW11: 18 | EX11: 18 | EY11: 18 | EZ11: 14 | FA11: 8 | FB11: 4 | FC11: 1 | FD11: 2550 | FE11: 18 | FF11: 20 | FG11: 0.15 | FH11: 60 | FI11: 60 | FJ11: 50 | FK11: 40 | FL11: 35 | FM11: 35 | FN11: 30 | FO11: 25 | FP11: 18 | FQ11: 18 | FR11: 18 | FS11: 18 | FT11: 14 | FU11: 8.111111111 | FV11: 8.111111111 | FW11: 1 | GE11: TF V3 | GF11: 5G TF V3 | GG11: CA05 | GH11: Planar | GI11: 4 | GJ11: 1 | GK11: Planar | GL11: 2016-04-06 | GM11: FALSE | GO11: 400 | GP11: 10.85 | GQ11: 26-28 | GR11: 128 | GS11: 5.076 | GT11: 4.7 | GV11: CA05/4/1Planar
B12: Encapsulated radial | C12: SR50 | E12: 0505 | F12: 5 | H12: 100 | I12: 5 | J12: 100 | K12: B | L12: 100 | P12: =IF(R12<>"",fmt(R12,"isomin"),"") -> 22 pF | Q12: 5 | R12: =IF(R11="","",IF(fmt(R11*1.3,"iso",,1)>$R$6*$S$7,"",fmt(R11*1.3,"iso",,1))) -> 22 | T12: =IF(V12<>"",fmt(V12,"isomin"),"") -> 22 pF | U12: 5 | V12: =IF(V11="","",IF(fmt(V11*1.3,"iso",,1)>$R$6,"",fmt(V11*1.3,"iso",,1))) -> 22 | X12: =IF(V12<>"",capa($E$7,$M$7,$H$7,"det",Chart!$H$2,,V12),"") -> X7R262L 1e 0.0c 562µ 613µb 1.00mm 0.9Vµ | Y12: =IF(V12="","",IFERROR(_xlfn.XLOOKUP($E$7&$H$7&$M$7&$V12,#REF!,#REF!),"")) ->  | Z12: =IF(Y12="","",IFERROR(_xlfn.XLOOKUP($E$7&$H$7&$M$7&$V12,#REF!,#REF!),"")) ->  | AA12: =IF(Y12="","",IFERROR(_xlfn.XLOOKUP($E$7&$H$7&$M$7&$V12,#REF!,#REF!),"")) ->  | AB12: =IF(Y12="","",IFERROR(_xlfn.XLOOKUP($E$7&$H$7&$M$7&$V12,#REF!,#REF!),"")) ->  | AC12: =IF(Y12="","",IFERROR(_xlfn.XLOOKUP($E$7&$H$7&$M$7&$V12,#REF!,#REF!),"")) ->  | AD12: =IF(Z12="","",IFERROR(_xlfn.XLOOKUP($E$7&$H$7&$M$7&$V12,#REF!,#REF!),"")) ->  | AF12: 0 | AG12: 5 | AH12: 0 | AI12: 0 | AK12: Nickel Gold | AL12: 5 | AM12: W | AO12: Nickel Gold | AP12: W | AR12: =IF($B$7="Stack",AU12,IF($B$7="Stack vertical",AW12,0)) -> 0 | AS12: =IF($B$7="Stack",AV12,IF($B$7="Stack vertical",AX12,0)) -> 0 | AT12: 4 | AU12: M | AV12: M | AW12: 2 Wire | AX12: T | BD12: 1210 1G V3-4 | BE12: 1210 1G V3-4 | BF12: =IF(ISNA(BD12),0,_xlfn.XLOOKUP(BD12,Ecran[Ecran],Ecran[reception])) -> 0 | BG12: 1210 1G V3-4 | BH12: 0 | BI12: 5 | BL12: 5 | BM12: 7 | BN12: 6 | BQ12: 0404 | BR12: 0505 | BT12: 0505 | BU12: 2225 | BV12: 2825 | BW12: SRMC41 | BX12: SR50 | BY12: SA75 | CA12: 2225 | CB12: 16.905 | CC12: 1.3 | CE12: SR50 | CF12: 1210 | CG12: 5 | CH12: 5 | CI12: 2.5 | CJ12: 5.08 | CK12: 0.6 | CN12: ± 0.5% | CO12: E | CP12: 0.2 | CQ12: 0.182 | CX12: 0603 | CY12: 1.6 | CZ12: 0.8 | DA12: 0.7 | DB12: 0.92 | DC12: 0.2 | DD12: 0.25 | DE12: 0.4 | DF12: 0.53 | DG12: 0.13 | DH12: 2 | DI12: =MIN((Size[[#This Row],[long]]^0.5*Size[[#This Row],[larg]]^0.2)/3*0.6+0.16,0.8)*Size[[#This Row],[long]]*Size[[#This Row],[larg]] -> 0.5144834197 | DJ12: 0.1800691969 | DS12: 1500 | DT12: =7500/(Size[[#This Row],[long]]*Size[[#This Row],[larg]])^1.1 -> 5716.501171 | DU12: =Size[[#This Row],[nbpc4]]*5.6*5.6/3.6/3.6 -> 13832.52135 | DV12: =Size[[#This Row],[nbpc4]]*7.6*7.6/3.6/3.6 -> 25477.24596 | DW12: =7500/(Size[[#This Row],[long]]*Size[[#This Row],[larg]])^1.1 -> 5716.501171 | EB12: X7R262L | EC12: 2548 | ED12: Y | EE12: 0.8161758846 | EF12: 16 | EG12: 400 | EH12: 140 | EI12: 0.03 | EJ12: 1550 | EK12: 18 | EL12: 20 | EM12: 0.15 | EN12: 100 | EO12: 100 | EP12: 45 | EQ12: 45 | ER12: 45 | ES12: 45 | ET12: 45 | EU12: 40 | EV12: 17.00366426 | EW12: 17.00366426 | EX12: 13.91208894 | EY12: 13 | EZ12: 8.785714286 | FA12: 0 | FB12: 0 | FC12: 0 | FD12: 1350 | FE12: 18 | FF12: 20 | FG12: 0.15 | FH12: 50 | FI12: 50 | FJ12: 50 | FK12: 45 | FL12: 40 | FM12: 30 | FN12: 25 | FO12: 15 | FP12: 14 | FQ12: 14 | FR12: 12.7 | FS12: 12.3 | FT12: 11.8 | FU12: 9 | FV12: 0 | FW12: 0 | GE12: TF2C V2 | GF12: TF 2C V2 | GG12: CA05 | GH12: Planar | GI12: 4 | GJ12: 2 | GK12: Planar | GL12: 2015-01-01 | GM12: TRUE | GO12: 400 | GP12: 8.86 | GR12: 128 | GS12: 1.458 | GT12: 1.35 | GV12: CA05/4/2Planar | GW12: CA05/4/2Planar
B13: Encapsulated axial | C13: SA50 | E13: 0603 | F13: 6 | H13: 200 | I13: 6 | J13: 200 | K13: C | L13: 200 | P13: =IF(R13<>"",fmt(R13,"isomin"),"") -> 27 pF | Q13: 6 | R13: =IF(R12="","",IF(fmt(R12*1.3,"iso",,1)>$R$6*$S$7,"",fmt(R12*1.3,"iso",,1))) -> 27 | T13: =IF(V13<>"",fmt(V13,"isomin"),"") -> 27 pF | U13: 6 | V13: =IF(V12="","",IF(fmt(V12*1.3,"iso",,1)>$R$6,"",fmt(V12*1.3,"iso",,1))) -> 27 | X13: =IF(V13<>"",capa($E$7,$M$7,$H$7,"det",Chart!$H$2,,V13),"") -> X7R262L 1e 0.0c 562µ 613µb 1.00mm 0.9Vµ | Y13: =IF(V13="","",IFERROR(_xlfn.XLOOKUP($E$7&$H$7&$M$7&$V13,#REF!,#REF!),"")) ->  | Z13: =IF(Y13="","",IFERROR(_xlfn.XLOOKUP($E$7&$H$7&$M$7&$V13,#REF!,#REF!),"")) ->  | AA13: =IF(Y13="","",IFERROR(_xlfn.XLOOKUP($E$7&$H$7&$M$7&$V13,#REF!,#REF!),"")) ->  | AB13: =IF(Y13="","",IFERROR(_xlfn.XLOOKUP($E$7&$H$7&$M$7&$V13,#REF!,#REF!),"")) ->  | AC13: =IF(Y13="","",IFERROR(_xlfn.XLOOKUP($E$7&$H$7&$M$7&$V13,#REF!,#REF!),"")) ->  | AD13: =IF(Z13="","",IFERROR(_xlfn.XLOOKUP($E$7&$H$7&$M$7&$V13,#REF!,#REF!),"")) ->  | AF13: 0 | AG13: 6 | AH13: 0 | AI13: 0 | AK13: Dipped SnPb | AL13: 6 | AM13: H | AO13: Dipped SnPb | AP13: H | AR13: =IF($B$7="Stack",AU13,IF($B$7="Stack vertical",AR35,0)) -> 0 | AS13: =IF($B$7="Stack",AV13,IF($B$7="Stack vertical",AS35,0)) -> 0 | AT13: 5 | AU13: 4 Wire | AV13: U | BD13: 1210 1G V3-5+ | BE13: 1210 1G V3-5+ | BF13: =IF(ISNA(BD13),0,_xlfn.XLOOKUP(BD13,Ecran[Ecran],Ecran[reception])) -> 0 | BG13: 1210 1G V3-5+ | BH13: 0 | BI13: 6 | BL13: 6 | BM13: 8 | BN13: 7 | BQ13: 0504 | BR13: 0603 | BT13: 0603 | BU13: 2825 | BV13: 3033 | BW13: SRMC43 | BX13: SR60 | BY13: SA80 | CA13: 2825 | CB13: 16.905 | CC13: 1.3 | CE13: SR60 | CF13: 2220 | CG13: 7.5 | CH13: 7.5 | CI13: 2.5 | CJ13: 5.08 | CK13: 0.6 | CN13: ± 1% | CO13: F | CP13: 0.4 | CQ13: 0.364 | CX13: 0610 | CY13: =ROUND(LEFT(CX13,2)*2.54/10,1) -> 1.5 | CZ13: =ROUND(RIGHT(CX13,2)*2.54/10,1) -> 2.5 | DA13: 0.7 | DB13: 2.5 | DC13: 0.2 | DD13: 0.25 | DE13: 0.4 | DF13: 0.6 | DG13: 0.13 | DH13: 2 | DI13: =MIN((Size[[#This Row],[long]]^0.5*Size[[#This Row],[larg]]^0.2)/3*0.6+0.16,0.8)*Size[[#This Row],[long]]*Size[[#This Row],[larg]] -> 1.703303243 | DJ13: 0.596156135 | DS13: 2000 | DT13: =7500/(Size[[#This Row],[long]]*Size[[#This Row],[larg]])^1.1 -> 1752.374274 | DU13: =Size[[#This Row],[nbpc4]]*5.6*5.6/3.6/3.6 -> 4240.313059 | DV13: =Size[[#This Row],[nbpc4]]*7.6*7.6/3.6/3.6 -> 7809.964358 | DW13: =7500/(Size[[#This Row],[long]]*Size[[#This Row],[larg]])^1.1 -> 1752.374274 | EB13: BX | EC13: 2548 | ED13: Y | EE13: 0.8161758846 | EF13: 16 | EG13: 400 | EH13: 140 | EI13: 0.03 | EJ13: 1550 | EK13: 18 | EL13: 20 | EM13: 0.15 | EN13: 100 | EO13: 100 | EP13: 45 | EQ13: 45 | ER13: 45 | ES13: 45 | ET13: 45 | EU13: 30 | EV13: 1.632351769 | EW13: 1.632351769 | EX13: 1.632351769 | EY13: 1.632351769 | EZ13: 1.632351769 | FA13: 0 | FB13: 0 | FC13: 0 | FD13: 1250 | FE13: 18 | FF13: 20 | FG13: 0.15 | FH13: 45 | FI13: 38 | FJ13: 33 | FK13: 28 | FL13: 24 | FM13: 17 | FN13: 13 | FO13: 5 | FP13: 1.632351769 | FQ13: 1.632351769 | FR13: 1.632351769 | FS13: 1.632351769 | FT13: 1.632351769 | FU13: 0 | FV13: 0 | FW13: 0 | GE13: 0603 FC 5G V1-2 | GF13: 0603 FC 5G V1-2 | GG13: 0603 | GH13: EMI | GI13: 4 | GJ13: 1 | GK13: 0603 | GL13: 2020-09-01 | GM13: TRUE | GO13: 325 | GP13: 1.5 | GQ13: 30-30 | GR13: 3200 | GS13: 3.8016 | GT13: 3.52 | GV13: 0603/4/1EMI | GW13: 0603/4/1EMI | GX13: 0.8892777292
E14: 0612 | F14: 7 | H14: 250 | I14: 7 | J14: 250 | K14: P | L14: 250 | P14: =IF(R14<>"",fmt(R14,"isomin"),"") -> 33 pF | Q14: 7 | R14: =IF(R13="","",IF(fmt(R13*1.3,"iso",,1)>$R$6*$S$7,"",fmt(R13*1.3,"iso",,1))) -> 33 | T14: =IF(V14<>"",fmt(V14,"isomin"),"") -> 33 pF | U14: 7 | V14: =IF(V13="","",IF(fmt(V13*1.3,"iso",,1)>$R$6,"",fmt(V13*1.3,"iso",,1))) -> 33 | X14: =IF(V14<>"",capa($E$7,$M$7,$H$7,"det",Chart!$H$2,,V14),"") -> X7R262L 1e 0.0c 562µ 613µb 1.00mm 0.9Vµ | Y14: =IF(V14="","",IFERROR(_xlfn.XLOOKUP($E$7&$H$7&$M$7&$V14,#REF!,#REF!),"")) ->  | Z14: =IF(Y14="","",IFERROR(_xlfn.XLOOKUP($E$7&$H$7&$M$7&$V14,#REF!,#REF!),"")) ->  | AA14: =IF(Y14="","",IFERROR(_xlfn.XLOOKUP($E$7&$H$7&$M$7&$V14,#REF!,#REF!),"")) ->  | AB14: =IF(Y14="","",IFERROR(_xlfn.XLOOKUP($E$7&$H$7&$M$7&$V14,#REF!,#REF!),"")) ->  | AC14: =IF(Y14="","",IFERROR(_xlfn.XLOOKUP($E$7&$H$7&$M$7&$V14,#REF!,#REF!),"")) ->  | AD14: =IF(Z14="","",IFERROR(_xlfn.XLOOKUP($E$7&$H$7&$M$7&$V14,#REF!,#REF!),"")) ->  | AF14: 0 | AG14: 7 | AH14: 0 | AI14: 0 | AK14: Dipped SAC | AL14: 7 | AM14: S | AO14: Dipped SAC | AP14: S | AR14: =IF($B$7="Stack",AR28,IF($B$7="Stack vertical",AR36,0)) -> 0 | AS14: =IF($B$7="Stack",AS28,IF($B$7="Stack vertical",AS36,0)) -> 0 | AT14: 6 | BD14: 1210 1G V3-5 | BE14: 1210 1G V3-5 | BF14: =IF(ISNA(BD14),0,_xlfn.XLOOKUP(BD14,Ecran[Ecran],Ecran[reception])) -> 0 | BG14: 1210 1G V3-5 | BH14: 0 | BI14: 7 | BL14: 7 | BM14: 9 | BN14: 8 | BQ14: 0505 | BR14: 0612 | BT14: 0612 | BU14: 3033 | BV14: 3740 | BW14: SRMC44 | BX14: SR62 | BY14: SA90 | CA14: 3033 | CB14: 21.62 | CC14: 1.3 | CE14: SR62 | CF14: 2220 | CG14: 8.1 | CH14: 8.1 | CI14: 5 | CJ14: 5.08 | CK14: 0.6 | CN14: ± 2% | CO14: G | CP14: 0.5 | CQ14: 0.455 | CX14: 0612 | CY14: 1.6 | CZ14: 3.2 | DA14: 0.7 | DB14: 3 | DC14: 0.2 | DD14: 0.25 | DE14: 0.7 | DF14: 0.6 | DG14: 0.13 | DH14: 2 | DI14: =MIN((Size[[#This Row],[long]]^0.5*Size[[#This Row],[larg]]^0.2)/3*0.6+0.16,0.8)*Size[[#This Row],[long]]*Size[[#This Row],[larg]] -> 2.453718888 | DJ14: 0.8588016109 | DS14: 2000 | DT14: =7500/(Size[[#This Row],[long]]*Size[[#This Row],[larg]])^1.1 -> 1244.125829 | DU14: =Size[[#This Row],[nbpc4]]*5.6*5.6/3.6/3.6 -> 3010.477314 | DV14: =Size[[#This Row],[nbpc4]]*7.6*7.6/3.6/3.6 -> 5544.807705 | DW14: =7500/(Size[[#This Row],[long]]*Size[[#This Row],[larg]])^1.1 -> 1244.125829 | DX14: 2.06 | DY14: =+DX14*0.75*0.75 -> 1.15875 | DZ14: =+DX14*0.84*0.84 -> 1.453536 | GE14: 0805 5G V2 | GF14: 0805 5G V2 | GG14: 0805 | GH14: EMI | GI14: 4 | GJ14: 1 | GK14: 0805 | GL14: 2016-04-06 | GM14: TRUE | GO14: 400 | GP14: 2.48 | GQ14: 26-28 | GR14: 1855 | GS14: 1.5653088 | GT14: 1.44936 | GU14: Rq : sur typon ref plan SRTMC-161302 | GV14: 0805/4/1EMI | GW14: 0805/4/1EMI | GX14: 0.6900363391
E15: 0805 | F15: 8 | H15: 300 | I15: 8 | J15: 300 | K15: D | L15: 300 | P15: =IF(R15<>"",fmt(R15,"isomin"),"") -> 39 pF | Q15: 8 | R15: =IF(R14="","",IF(fmt(R14*1.3,"iso",,1)>$R$6*$S$7,"",fmt(R14*1.3,"iso",,1))) -> 39 | T15: =IF(V15<>"",fmt(V15,"isomin"),"") -> 39 pF | U15: 8 | V15: =IF(V14="","",IF(fmt(V14*1.3,"iso",,1)>$R$6,"",fmt(V14*1.3,"iso",,1))) -> 39 | X15: =IF(V15<>"",capa($E$7,$M$7,$H$7,"det",Chart!$H$2,,V15),"") -> X7R262L 1e 0.0c 562µ 613µb 1.00mm 0.9Vµ | Y15: =IF(V15="","",IFERROR(_xlfn.XLOOKUP($E$7&$H$7&$M$7&$V15,#REF!,#REF!),"")) ->  | Z15: =IF(Y15="","",IFERROR(_xlfn.XLOOKUP($E$7&$H$7&$M$7&$V15,#REF!,#REF!),"")) ->  | AA15: =IF(Y15="","",IFERROR(_xlfn.XLOOKUP($E$7&$H$7&$M$7&$V15,#REF!,#REF!),"")) ->  | AB15: =IF(Y15="","",IFERROR(_xlfn.XLOOKUP($E$7&$H$7&$M$7&$V15,#REF!,#REF!),"")) ->  | AC15: =IF(Y15="","",IFERROR(_xlfn.XLOOKUP($E$7&$H$7&$M$7&$V15,#REF!,#REF!),"")) ->  | AD15: =IF(Z15="","",IFERROR(_xlfn.XLOOKUP($E$7&$H$7&$M$7&$V15,#REF!,#REF!),"")) ->  | AF15: 0 | AG15: 8 | AH15: 0 | AI15: 0 | AK15: Electrolytic SnPb | AL15: 8 | AM15: I | AO15: Electrolytic SnPb | AP15: I | BF15: =IF(ISNA(BD15),0,_xlfn.XLOOKUP(BD15,Ecran[Ecran],Ecran[reception])) -> 0 | BH15: 0 | BI15: 8 | BL15: 8 | BM15: 10 | BN15: 9 | BQ15: 0508 | BR15: 0805 | BT15: 0805 | BU15: 3640 | BV15: 4040 | BW15: SRMC45 | BX15: SR64 | CA15: 3640 | CB15: 25.76 | CC15: 1.3 | CE15: SR64 | CF15: 2825 | CG15: 10 | CH15: 11 | CI15: 3.5 | CJ15: 5.08 | CK15: 0.8 | CN15: ± 5% | CO15: J | CP15: 0.8 | CQ15: 0.728 | CX15: 0805 | CY15: 2 | CZ15: 1.25 | DA15: 0.8 | DB15: 1.4 | DC15: 0.2 | DD15: 0.25 | DE15: 0.7 | DF15: 0.53 | DG15: 0.13 | DH15: 2 | DI15: =MIN((Size[[#This Row],[long]]^0.5*Size[[#This Row],[larg]]^0.2)/3*0.6+0.16,0.8)*Size[[#This Row],[long]]*Size[[#This Row],[larg]] -> 1.139378818 | DJ15: 0.3987825864 | DS15: 2000 | DT15: =7500/(Size[[#This Row],[long]]*Size[[#This Row],[larg]])^1.1 -> 2737.33061 | DU15: =Size[[#This Row],[nbpc4]]*5.6*5.6/3.6/3.6 -> 6623.664191 | DV15: =Size[[#This Row],[nbpc4]]*7.6*7.6/3.6/3.6 -> 12199.70803 | DW15: =7500/(Size[[#This Row],[long]]*Size[[#This Row],[larg]])^1.1 -> 2737.33061 | GE15: 0805 X2Y B1 | GF15: 5G 0805 X2Y V3 | GG15: 0805 | GH15: EMI | GI15: 4 | GJ15: 1 | GK15: 0805 | GL15: 2016-04-06 | GM15: TRUE | GO15: 400 | GP15: 2.48 | GQ15: 26-28 | GR15: 1855 | GS15: 1.796256 | GT15: 1.6632 | GV15: 0805/4/1EMI | GW15: 0805/4/1EMI | GX15: 0.6900363391
E16: 1111 | F16: 9 | H16: 500 | I16: 9 | J16: 500 | K16: E | L16: 500 | P16: =IF(R16<>"",fmt(R16,"isomin"),"") -> 47 pF | Q16: 9 | R16: =IF(R15="","",IF(fmt(R15*1.3,"iso",,1)>$R$6*$S$7,"",fmt(R15*1.3,"iso",,1))) -> 47 | T16: =IF(V16<>"",fmt(V16,"isomin"),"") -> 47 pF | U16: 9 | V16: =IF(V15="","",IF(fmt(V15*1.3,"iso",,1)>$R$6,"",fmt(V15*1.3,"iso",,1))) -> 47 | X16: =IF(V16<>"",capa($E$7,$M$7,$H$7,"det",Chart!$H$2,,V16),"") -> X7R262L 1e 0.0c 562µ 613µb 1.00mm 0.9Vµ | Y16: =IF(V16="","",IFERROR(_xlfn.XLOOKUP($E$7&$H$7&$M$7&$V16,#REF!,#REF!),"")) ->  | Z16: =IF(Y16="","",IFERROR(_xlfn.XLOOKUP($E$7&$H$7&$M$7&$V16,#REF!,#REF!),"")) ->  | AA16: =IF(Y16="","",IFERROR(_xlfn.XLOOKUP($E$7&$H$7&$M$7&$V16,#REF!,#REF!),"")) ->  | AB16: =IF(Y16="","",IFERROR(_xlfn.XLOOKUP($E$7&$H$7&$M$7&$V16,#REF!,#REF!),"")) ->  | AC16: =IF(Y16="","",IFERROR(_xlfn.XLOOKUP($E$7&$H$7&$M$7&$V16,#REF!,#REF!),"")) ->  | AD16: =IF(Z16="","",IFERROR(_xlfn.XLOOKUP($E$7&$H$7&$M$7&$V16,#REF!,#REF!),"")) ->  | AF16: 0 | AG16: 9 | AH16: 0 | AI16: 0 | AK16: Solderable Silver | AL16: 9 | AM16: Q | AO16: Solderable Silver | AP16: Q | BF16: =IF(ISNA(BD16),0,_xlfn.XLOOKUP(BD16,Ecran[Ecran],Ecran[reception])) -> 0 | BH16: 0 | BI16: 9 | BL16: 9 | BM16: 11 | BN16: 10 | BQ16: 0603 | BR16: 1111 | BT16: 1111 | BU16: 4040 | BV16: 5440 | BW16: SRMC47 | BX16: SR65 | CA16: 3740 | CB16: 25.76 | CC16: 1.3 | CE16: SR65 | CF16: 3033 | CG16: 10.5 | CH16: 9 | CI16: 6.5 | CJ16: 7.62 | CK16: 0.8 | CN16: ± 10% | CO16: K | CP16: 0.96 | CQ16: 0.8736 | CX16: 0907 | CY16: =ROUND(LEFT(CX16,2)*2.54/10,1) -> 2.3 | CZ16: =ROUND(RIGHT(CX16,2)*2.54/10,1) -> 1.8 | DA16: 0.8 | DB16: 1.8 | DC16: 0.2 | DD16: 0.25 | DE16: 0.7 | DF16: 0.8 | DG16: 0.13 | DH16: 2 | DI16: =MIN((Size[[#This Row],[long]]^0.5*Size[[#This Row],[larg]]^0.2)/3*0.6+0.16,0.8)*Size[[#This Row],[long]]*Size[[#This Row],[larg]] -> 2.074770883 | DJ16: 0.7261698092 | DS16: 2000 | DT16: =7500/(Size[[#This Row],[long]]*Size[[#This Row],[larg]])^1.1 -> 1571.66828 | DU16: =Size[[#This Row],[nbpc4]]*5.6*5.6/3.6/3.6 -> 3803.049171 | DV16: =Size[[#This Row],[nbpc4]]*7.6*7.6/3.6/3.6 -> 7004.595668 | DW16: =7500/(Size[[#This Row],[long]]*Size[[#This Row],[larg]])^1.1 -> 1571.66828 | DX16: 4.95 | DY16: =+DX16*0.75*0.75 -> 2.784375 | DZ16: =+DX16*0.84*0.84 -> 3.49272 | GE16: 0805 X2Y A1 | GF16: 5G 0805 X2Y V1 | GG16: 0805 | GH16: EMI | GI16: 4 | GJ16: 1 | GK16: 0805 | GL16: 2015-12-01 | GM16: TRUE | GO16: 325 | GP16: 1.5 | GQ16: 24-30 | GR16: 3400 | GS16: 1.469556 | GT16: 1.3607 | GV16: 0805/4/1EMI | GW16: 0805/4/1EMI | GX16: -0.4811628547
E17: 1206 | F17: 10 | H17: 630 | I17: 10 | J17: 630 | K17: F | L17: 630 | P17: =IF(R17<>"",fmt(R17,"isomin"),"") -> 56 pF | Q17: 10 | R17: =IF(R16="","",IF(fmt(R16*1.3,"iso",,1)>$R$6*$S$7,"",fmt(R16*1.3,"iso",,1))) -> 56 | T17: =IF(V17<>"",fmt(V17,"isomin"),"") -> 56 pF | U17: 10 | V17: =IF(V16="","",IF(fmt(V16*1.3,"iso",,1)>$R$6,"",fmt(V16*1.3,"iso",,1))) -> 56 | X17: =IF(V17<>"",capa($E$7,$M$7,$H$7,"det",Chart!$H$2,,V17),"") -> X7R262L 1e 0.0c 567µ 615µb 1.00mm 0.9Vµ | Y17: =IF(V17="","",IFERROR(_xlfn.XLOOKUP($E$7&$H$7&$M$7&$V17,#REF!,#REF!),"")) ->  | Z17: =IF(Y17="","",IFERROR(_xlfn.XLOOKUP($E$7&$H$7&$M$7&$V17,#REF!,#REF!),"")) ->  | AA17: =IF(Y17="","",IFERROR(_xlfn.XLOOKUP($E$7&$H$7&$M$7&$V17,#REF!,#REF!),"")) ->  | AB17: =IF(Y17="","",IFERROR(_xlfn.XLOOKUP($E$7&$H$7&$M$7&$V17,#REF!,#REF!),"")) ->  | AC17: =IF(Y17="","",IFERROR(_xlfn.XLOOKUP($E$7&$H$7&$M$7&$V17,#REF!,#REF!),"")) ->  | AD17: =IF(Z17="","",IFERROR(_xlfn.XLOOKUP($E$7&$H$7&$M$7&$V17,#REF!,#REF!),"")) ->  | AF17: 0 | AG17: 10 | AH17: 0 | AI17: 0 | AK17: 0 | AL17: 10 | BF17: =IF(ISNA(BD17),0,_xlfn.XLOOKUP(BD17,Ecran[Ecran],Ecran[reception])) -> 0 | BH17: 0 | BI17: 10 | BL17: 10 | BM17: 12 | BQ17: 0610 | BR17: 1206 | BT17: 1206 | BU17: 40100 | BV17: 5550 | BW17: SRMC48 | BX17: SR68 | CA17: 4040 | CB17: 25.76 | CC17: 1.3 | CE17: SR68 | CF17: 3640 | CG17: 13 | CH17: 12 | CI17: 3.5 | CJ17: 10.16 | CK17: 0.8 | CX17: 1111 | CY17: 2.8 | CZ17: 2.8 | DA17: 1 | DB17: 2.8 | DC17: 0.2 | DD17: 0.25 | DE17: 0.7 | DF17: 1.3 | DG17: 0.15 | DH17: 2 | DI17: =MIN((Size[[#This Row],[long]]^0.5*Size[[#This Row],[larg]]^0.2)/3*0.6+0.16,0.8)*Size[[#This Row],[long]]*Size[[#This Row],[larg]] -> 4.478115299 | DJ17: 1.567340355 | DS17: 3600 | DT17: =7500/(Size[[#This Row],[long]]*Size[[#This Row],[larg]])^1.1 -> 778.5985569 | DU17: =Size[[#This Row],[nbpc4]]*5.6*5.6/3.6/3.6 -> 1884.016261 | DV17: =Size[[#This Row],[nbpc4]]*7.6*7.6/3.6/3.6 -> 3470.050359 | DW17: =7500/(Size[[#This Row],[long]]*Size[[#This Row],[larg]])^1.1 -> 778.5985569 | DX17: 3.61 | DY17: =+DX17*0.75*0.75 -> 2.030625 | DZ17: =+DX17*0.84*0.84 -> 2.547216 | GE17: 0805 FC A1 | GF17: 5G 0805FC V1 | GG17: 0805 | GH17: EMI | GI17: 4 | GJ17: 1 | GK17: 0805 | GL17: 2015-03-25 | GM17: TRUE | GO17: 325 | GP17: 1.5 | GQ17: 30-30 | GR17: 2400 | GS17: 1.39968 | GT17: 1.296 | GV17: 0805/4/1EMI | GW17: 0805/4/1EMI | GX17: 0.2350701408
E18: 1210 | F18: 11 | H18: 1000 | I18: 11 | J18: 1000 | K18: G | L18: 1000 | P18: =IF(R18<>"",fmt(R18,"isomin"),"") -> 68 pF | Q18: 11 | R18: =IF(R17="","",IF(fmt(R17*1.3,"iso",,1)>$R$6*$S$7,"",fmt(R17*1.3,"iso",,1))) -> 68 | T18: =IF(V18<>"",fmt(V18,"isomin"),"") -> 68 pF | U18: 11 | V18: =IF(V17="","",IF(fmt(V17*1.3,"iso",,1)>$R$6,"",fmt(V17*1.3,"iso",,1))) -> 68 | X18: =IF(V18<>"",capa($E$7,$M$7,$H$7,"det",Chart!$H$2,,V18),"") -> X7R262L 1e 0.0c 782µ 747µb 1.22mm 0.6Vµ | Y18: =IF(V18="","",IFERROR(_xlfn.XLOOKUP($E$7&$H$7&$M$7&$V18,#REF!,#REF!),"")) ->  | Z18: =IF(Y18="","",IFERROR(_xlfn.XLOOKUP($E$7&$H$7&$M$7&$V18,#REF!,#REF!),"")) ->  | AA18: =IF(Y18="","",IFERROR(_xlfn.XLOOKUP($E$7&$H$7&$M$7&$V18,#REF!,#REF!),"")) ->  | AB18: =IF(Y18="","",IFERROR(_xlfn.XLOOKUP($E$7&$H$7&$M$7&$V18,#REF!,#REF!),"")) ->  | AC18: =IF(Y18="","",IFERROR(_xlfn.XLOOKUP($E$7&$H$7&$M$7&$V18,#REF!,#REF!),"")) ->  | AD18: =IF(Z18="","",IFERROR(_xlfn.XLOOKUP($E$7&$H$7&$M$7&$V18,#REF!,#REF!),"")) ->  | BF18: =IF(ISNA(BD18),0,_xlfn.XLOOKUP(BD18,Ecran[Ecran],Ecran[reception])) -> 0 | BH18: 0 | BI18: 11 | BL18: 11 | BM18: 13 | BQ18: 0612 | BR18: 1210 | BT18: 1210 | BU18: 5550 | BV18: 6560 | BW18: SRMC49 | BX18: SR70 | CA18: 40100 | CB18: 89.93 | CC18: 1.3 | CE18: SR70 | CF18: 4040 | CG18: 13 | CH18: 12 | CI18: 6.5 | CJ18: 10.16 | CK18: 0.8 | CX18: 1206 | CY18: 3.2 | CZ18: 1.6 | DA18: 0.9 | DB18: 1.7 | DC18: 0.2 | DD18: 0.25 | DE18: 0.7 | DF18: 0.85 | DG18: 0.17 | DH18: 3 | DI18: =MIN((Size[[#This Row],[long]]^0.5*Size[[#This Row],[larg]]^0.2)/3*0.6+0.16,0.8)*Size[[#This Row],[long]]*Size[[#This Row],[larg]] -> 2.831528798 | DJ18: 0.9910350793 | DK18: =$DI18/DK$3*IF($DI18<10,DK$1,DK$1+MIN(($DI18-10)/30,1)*(DK$2-DK$1)) -> 0.6040594769 | DS18: 4000 | DT18: =7500/(Size[[#This Row],[long]]*Size[[#This Row],[larg]])^1.1 -> 1244.125829 | DU18: =Size[[#This Row],[nbpc4]]*5.6*5.6/3.6/3.6 -> 3010.477314 | DV18: =Size[[#This Row],[nbpc4]]*7.6*7.6/3.6/3.6 -> 5544.807705 | DW18: =7500/(Size[[#This Row],[long]]*Size[[#This Row],[larg]])^1.1 -> 1244.125829 | DX18: 6.54 | DY18: =+DX18*0.75*0.75 -> 3.67875 | DZ18: =+DX18*0.84*0.84 -> 4.614624 | GE18: 0805 FC 5G V2 | GF18: 0805 FC 5G V2 | GG18: 0805 | GH18: EMI | GI18: 4 | GJ18: 1 | GK18: 0805 | GM18: TRUE | GO18: 400 | GR18: 3600 | GS18: 1.469556 | GT18: 1.3607 | GV18: 0805/4/1EMI | GW18: 0805/4/1EMI | GX18: -0.6110785363
E19: 1515 | F19: 12 | H19: 1200 | I19: 12 | J19: 1200 | K19: M | L19: 1200 | P19: =IF(R19<>"",fmt(R19,"isomin"),"") -> 82 pF | Q19: 12 | R19: =IF(R18="","",IF(fmt(R18*1.3,"iso",,1)>$R$6*$S$7,"",fmt(R18*1.3,"iso",,1))) -> 82 | T19: =IF(V19<>"",fmt(V19,"isomin"),"") -> 82 pF | U19: 12 | V19: =IF(V18="","",IF(fmt(V18*1.3,"iso",,1)>$R$6,"",fmt(V18*1.3,"iso",,1))) -> 82 | X19: =IF(V19<>"",capa($E$7,$M$7,$H$7,"det",Chart!$H$2,,V19),"") -> X7R262L 1e 0.0c 1033µ 901µb 1.47mm 0.5Vµ | Y19: =IF(V19="","",IFERROR(_xlfn.XLOOKUP($E$7&$H$7&$M$7&$V19,#REF!,#REF!),"")) ->  | Z19: =IF(Y19="","",IFERROR(_xlfn.XLOOKUP($E$7&$H$7&$M$7&$V19,#REF!,#REF!),"")) ->  | AA19: =IF(Y19="","",IFERROR(_xlfn.XLOOKUP($E$7&$H$7&$M$7&$V19,#REF!,#REF!),"")) ->  | AB19: =IF(Y19="","",IFERROR(_xlfn.XLOOKUP($E$7&$H$7&$M$7&$V19,#REF!,#REF!),"")) ->  | AC19: =IF(Y19="","",IFERROR(_xlfn.XLOOKUP($E$7&$H$7&$M$7&$V19,#REF!,#REF!),"")) ->  | AD19: =IF(Z19="","",IFERROR(_xlfn.XLOOKUP($E$7&$H$7&$M$7&$V19,#REF!,#REF!),"")) ->  | BF19: =IF(ISNA(BD19),0,_xlfn.XLOOKUP(BD19,Ecran[Ecran],Ecran[reception])) -> 0 | BH19: 0 | BI19: 12 | BL19: 12 | BM19: 14 | BQ19: 0805 | BR19: 1515 | BT19: 1515 | BU19: 6080 | BV19: 6080 | BW19: SRMC52 | BX19: SR74 | CA19: 5550 | CB19: 31.51 | CC19: 1.3 | CE19: SR74 | CF19: 4540 | CG19: 18.4 | CH19: 12.7 | CI19: 8 | CJ19: 12.2 | CK19: 0.8 | CX19: 1210 | CY19: 3.2 | CZ19: 2.5 | DA19: 1 | DB19: 2.5 | DC19: 0.2 | DD19: 0.25 | DE19: 0.8 | DF19: 0.95 | DG19: 0.19 | DH19: 3 | DI19: =MIN((Size[[#This Row],[long]]^0.5*Size[[#This Row],[larg]]^0.2)/3*0.6+0.16,0.8)*Size[[#This Row],[long]]*Size[[#This Row],[larg]] -> 4.717818731 | DJ19: 1.651236556 | DK19: 1.006467996 | DS19: 4000 | DT19: =7500/(Size[[#This Row],[long]]*Size[[#This Row],[larg]])^1.1 -> 761.4866216 | DU19: =Size[[#This Row],[nbpc4]]*5.6*5.6/3.6/3.6 -> 1842.609603 | DV19: =Size[[#This Row],[nbpc4]]*7.6*7.6/3.6/3.6 -> 3393.786054 | DW19: =7500/(Size[[#This Row],[long]]*Size[[#This Row],[larg]])^1.1 -> 761.4866216 | GE19: 0805 FC 5G V3 | GF19: 0805 FC 5G V3 | GG19: 0805 | GH19: EMI | GI19: 4 | GJ19: 1 | GK19: 0805 | GL19: 2020-01-01 | GM19: FALSE | GO19: 400 | GR19: 1600 | GS19: 1.469556 | GT19: 1.3607 | GV19: 0805/4/1EMI | GX19: 0.9259476425
E20: 1808 | F20: 13 | H20: 1500 | I20: 13 | J20: 1500 | K20: O | L20: 1500 | P20: =IF(R20<>"",fmt(R20,"isomin"),"") -> 100 pF | Q20: 13 | R20: =IF(R19="","",IF(fmt(R19*1.3,"iso",,1)>$R$6*$S$7,"",fmt(R19*1.3,"iso",,1))) -> 100 | T20: =IF(V20<>"",fmt(V20,"isomin"),"") -> 100 pF | U20: 13 | V20: =IF(V19="","",IF(fmt(V19*1.3,"iso",,1)>$R$6,"",fmt(V19*1.3,"iso",,1))) -> 100 | X20: =IF(V20<>"",capa($E$7,$M$7,$H$7,"det",Chart!$H$2,,V20),"") -> X7R262L 1e 0.0c 1356µ 1099µb 1.79mm 0.4Vµ | Y20: =IF(V20="","",IFERROR(_xlfn.XLOOKUP($E$7&$H$7&$M$7&$V20,#REF!,#REF!),"")) ->  | Z20: =IF(Y20="","",IFERROR(_xlfn.XLOOKUP($E$7&$H$7&$M$7&$V20,#REF!,#REF!),"")) ->  | AA20: =IF(Y20="","",IFERROR(_xlfn.XLOOKUP($E$7&$H$7&$M$7&$V20,#REF!,#REF!),"")) ->  | AB20: =IF(Y20="","",IFERROR(_xlfn.XLOOKUP($E$7&$H$7&$M$7&$V20,#REF!,#REF!),"")) ->  | AC20: =IF(Y20="","",IFERROR(_xlfn.XLOOKUP($E$7&$H$7&$M$7&$V20,#REF!,#REF!),"")) ->  | AD20: =IF(Z20="","",IFERROR(_xlfn.XLOOKUP($E$7&$H$7&$M$7&$V20,#REF!,#REF!),"")) ->  | BF20: =IF(ISNA(BD20),0,_xlfn.XLOOKUP(BD20,Ecran[Ecran],Ecran[reception])) -> 0 | BH20: 0 | BI20: 13 | BL20: 13 | BM20: 15 | BQ20: 0907 | BR20: 1808 | BT20: 1808 | BU20: 6660 | BV20: 6660 | BW20: SRMC54 | BX20: SR78 | CA20: 6080 | CB20: 48.99 | CC20: 1.3 | CE20: SR78 | CF20: 5440 | CG20: 18 | CH20: 16 | CI20: 8 | CJ20: 15.2 | CK20: 0.8 | CX20: 1410 | CY20: =ROUND(LEFT(CX20,2)*2.54/10,1) -> 3.6 | CZ20: =ROUND(RIGHT(CX20,2)*2.54/10,1) -> 2.5 | DA20: 1 | DB20: 2.5 | DC20: 0.2 | DD20: 0.25 | DE20: 0.8 | DF20: 0.8 | DG20: 0.2 | DH20: 3 | DI20: =MIN((Size[[#This Row],[long]]^0.5*Size[[#This Row],[larg]]^0.2)/3*0.6+0.16,0.8)*Size[[#This Row],[long]]*Size[[#This Row],[larg]] -> 5.542152082 | DJ20: 1.939753229 | DK20: 1.182325777 | DS20: 4000 | DT20: =7500/(Size[[#This Row],[long]]*Size[[#This Row],[larg]])^1.1 -> 668.9513015 | DU20: =Size[[#This Row],[nbpc4]]*5.6*5.6/3.6/3.6 -> 1618.696976 | DV20: =Size[[#This Row],[nbpc4]]*7.6*7.6/3.6/3.6 -> 2981.375553 | DW20: =7500/(Size[[#This Row],[long]]*Size[[#This Row],[larg]])^1.1 -> 668.9513015 | GE20: 1206 FC C1 | GF20: 5G 1206FC V3 | GG20: 1206 | GH20: EMI | GI20: 4 | GJ20: 1 | GK20: 1206 FC | GL20: 2017-05-17 | GM20: TRUE | GO20: 400 UMC | GP20: 17.1 | GQ20: 23-24 | GR20: 1000 | GS20: 1.9926 | GT20: 1.845 | GV20: 1206/4/1EMI | GW20: 1206/4/1EMI | GX20: 0.5221067717
E21: 1812 | F21: 14 | H21: 2000 | I21: 14 | J21: 2000 | K21: H | L21: 2000 | P21: =IF(R21<>"",fmt(R21,"isomin"),"") -> 120 pF | Q21: 14 | R21: =IF(R20="","",IF(fmt(R20*1.3,"iso",,1)>$R$6*$S$7,"",fmt(R20*1.3,"iso",,1))) -> 120 | T21: =IF(V21<>"",fmt(V21,"isomin"),"") -> 120 pF | U21: 14 | V21: =IF(V20="","",IF(fmt(V20*1.3,"iso",,1)>$R$6,"",fmt(V20*1.3,"iso",,1))) -> 120 | X21: =IF(V21<>"",capa($E$7,$M$7,$H$7,"det",Chart!$H$2,,V21),"") -> X7R262L 1e 0.0c 1715µ 1319µb 2.15mm 0.3Vµ | Y21: =IF(V21="","",IFERROR(_xlfn.XLOOKUP($E$7&$H$7&$M$7&$V21,#REF!,#REF!),"")) ->  | Z21: =IF(Y21="","",IFERROR(_xlfn.XLOOKUP($E$7&$H$7&$M$7&$V21,#REF!,#REF!),"")) ->  | AA21: =IF(Y21="","",IFERROR(_xlfn.XLOOKUP($E$7&$H$7&$M$7&$V21,#REF!,#REF!),"")) ->  | AB21: =IF(Y21="","",IFERROR(_xlfn.XLOOKUP($E$7&$H$7&$M$7&$V21,#REF!,#REF!),"")) ->  | AC21: =IF(Y21="","",IFERROR(_xlfn.XLOOKUP($E$7&$H$7&$M$7&$V21,#REF!,#REF!),"")) ->  | AD21: =IF(Z21="","",IFERROR(_xlfn.XLOOKUP($E$7&$H$7&$M$7&$V21,#REF!,#REF!),"")) ->  | BF21: =IF(ISNA(BD21),0,_xlfn.XLOOKUP(BD21,Ecran[Ecran],Ecran[reception])) -> 0 | BH21: 0 | BI21: 14 | BL21: 14 | BM21: 16 | BQ21: 1111 | BR21: 1812 | BT21: 1812 | BU21: 8060 | BV21: 8060 | BW21: SRMC58 | BX21: SR82 | CA21: 6660 | CB21: 37.26 | CC21: 1.3 | CE21: SR82 | CF21: 6560 | CG21: 20 | CH21: 19 | CI21: 8 | CJ21: 17.3 | CK21: 0.8 | CX21: 1515 | CY21: =ROUND(LEFT(CX21,2)*2.54/10,1) -> 3.8 | CZ21: =ROUND(RIGHT(CX21,2)*2.54/10,1) -> 3.8 | DA21: 1 | DB21: 3.6 | DC21: 0.2 | DD21: 0.25 | DE21: 0.8 | DF21: 0.8 | DG21: 0.2 | DH21: 3 | DI21: =MIN((Size[[#This Row],[long]]^0.5*Size[[#This Row],[larg]]^0.2)/3*0.6+0.16,0.8)*Size[[#This Row],[long]]*Size[[#This Row],[larg]] -> 9.663080699 | DJ21: 3.382078245 | DK21: 2.061457216 | DS21: 5000 | DT21: =7500/(Size[[#This Row],[long]]*Size[[#This Row],[larg]])^1.1 -> 397.6832971 | DU21: =Size[[#This Row],[nbpc4]]*5.6*5.6/3.6/3.6 -> 962.2953857 | DV21: =Size[[#This Row],[nbpc4]]*7.6*7.6/3.6/3.6 -> 1772.390991 | DW21: =7500/(Size[[#This Row],[long]]*Size[[#This Row],[larg]])^1.1 -> 397.6832971 | DX21: 3.75 | DY21: =+DX21*0.75*0.75 -> 2.109375 | DZ21: =+DX21*0.84*0.84 -> 2.646 | GE21: 1206 FC B1 | GF21: 5G 1206FC V2 | GG21: 1206 | GH21: EMI | GI21: 4 | GJ21: 1 | GK21: 1206 FC | GL21: 2017-03-20 | GM21: TRUE | GO21: 400 UMC | GP21: 1.9 | GQ21: 30-30 | GR21: 1150 | GS21: 2.6568 | GT21: 2.46 | GV21: 1206/4/1EMI | GW21: 1206/4/1EMI | GX21: 0.2703750183
E22: 1825 | F22: 15 | H22: 2500 | I22: 15 | J22: 2500 | K22: T | L22: 2500 | P22: =IF(R22<>"",fmt(R22,"isomin"),"") -> 150 pF | Q22: 15 | R22: =IF(R21="","",IF(fmt(R21*1.3,"iso",,1)>$R$6*$S$7,"",fmt(R21*1.3,"iso",,1))) -> 150 | T22: =IF(V22<>"",fmt(V22,"isomin"),"") -> 150 pF | U22: 15 | V22: =IF(V21="","",IF(fmt(V21*1.3,"iso",,1)>$R$6,"",fmt(V21*1.3,"iso",,1))) -> 150 | X22: =IF(V22<>"",capa($E$7,$M$7,$H$7,"det",Chart!$H$2,,V22),"") -> X7R262L 1e 1.0c 2062µ 268µb 2.12mm 0.2Vµ | Y22: =IF(V22="","",IFERROR(_xlfn.XLOOKUP($E$7&$H$7&$M$7&$V22,#REF!,#REF!),"")) ->  | Z22: =IF(Y22="","",IFERROR(_xlfn.XLOOKUP($E$7&$H$7&$M$7&$V22,#REF!,#REF!),"")) ->  | AA22: =IF(Y22="","",IFERROR(_xlfn.XLOOKUP($E$7&$H$7&$M$7&$V22,#REF!,#REF!),"")) ->  | AB22: =IF(Y22="","",IFERROR(_xlfn.XLOOKUP($E$7&$H$7&$M$7&$V22,#REF!,#REF!),"")) ->  | AC22: =IF(Y22="","",IFERROR(_xlfn.XLOOKUP($E$7&$H$7&$M$7&$V22,#REF!,#REF!),"")) ->  | AD22: =IF(Z22="","",IFERROR(_xlfn.XLOOKUP($E$7&$H$7&$M$7&$V22,#REF!,#REF!),"")) ->  | BF22: =IF(ISNA(BD22),0,_xlfn.XLOOKUP(BD22,Ecran[Ecran],Ecran[reception])) -> 0 | BH22: 0 | BI22: 15 | BL22: 15 | BM22: 17 | BQ22: 1206 | BR22: 1825 | BT22: 1825 | BU22: 80150 | BW22: SRMC60 | BX22: SR86 | CA22: 8060 | CB22: 37.26 | CC22: 1.3 | CE22: SR86 | CF22: 8060 | CG22: 28.5 | CH22: 19 | CI22: 8 | CJ22: 19.8 | CK22: 0.8 | CX22: 1605 | CY22: 4 | CZ22: 1.25 | DA22: 0.9 | DB22: 1.3 | DC22: 0.2 | DD22: 0.25 | DE22: 0.8 | DF22: 0.7 | DG22: 0.2 | DH22: 3 | DI22: =MIN((Size[[#This Row],[long]]^0.5*Size[[#This Row],[larg]]^0.2)/3*0.6+0.16,0.8)*Size[[#This Row],[long]]*Size[[#This Row],[larg]] -> 2.891279105 | DJ22: 1.011947687 | DK22: 0.6168062091 | DS22: 4000 | DT22: =7500/(Size[[#This Row],[long]]*Size[[#This Row],[larg]])^1.1 -> 1277.009884 | DU22: =Size[[#This Row],[nbpc4]]*5.6*5.6/3.6/3.6 -> 3090.048608 | DV22: =Size[[#This Row],[nbpc4]]*7.6*7.6/3.6/3.6 -> 5691.365038 | DW22: =7500/(Size[[#This Row],[long]]*Size[[#This Row],[larg]])^1.1 -> 1277.009884 | GE22: 1206 X2Y V1 | GF22: 3G 1206 X2Y V1 | GG22: 1206 | GH22: EMI | GI22: 4 | GJ22: 1 | GK22: 1206 | GL22: 2017-01-10 | GM22: TRUE | GO22: 325 | GP22: 1.9 | GQ22: 24-25 | GR22: 1070 | GS22: 1.979316 | GT22: 1.8327 | GV22: 1206/4/1EMI | GW22: 1206/4/1EMI | GX22: 0.4024392709
E23: 2220 | F23: 16 | H23: 3000 | I23: 16 | J23: 3000 | K23: I | L23: 3000 | P23: =IF(R23<>"",fmt(R23,"isomin"),"") -> 180 pF | Q23: 16 | R23: =IF(R22="","",IF(fmt(R22*1.3,"iso",,1)>$R$6*$S$7,"",fmt(R22*1.3,"iso",,1))) -> 180 | T23: =IF(V23<>"",fmt(V23,"isomin"),"") -> 180 pF | U23: 16 | V23: =IF(V22="","",IF(fmt(V22*1.3,"iso",,1)>$R$6,"",fmt(V22*1.3,"iso",,1))) -> 180 | X23: =IF(V23<>"",capa($E$7,$M$7,$H$7,"det",Chart!$H$2,,V23),"") -> X7R262L 1e 1.0c 1209µ 268µb 1.42mm 0.4Vµ | Y23: =IF(V23="","",IFERROR(_xlfn.XLOOKUP($E$7&$H$7&$M$7&$V23,#REF!,#REF!),"")) ->  | Z23: =IF(Y23="","",IFERROR(_xlfn.XLOOKUP($E$7&$H$7&$M$7&$V23,#REF!,#REF!),"")) ->  | AA23: =IF(Y23="","",IFERROR(_xlfn.XLOOKUP($E$7&$H$7&$M$7&$V23,#REF!,#REF!),"")) ->  | AB23: =IF(Y23="","",IFERROR(_xlfn.XLOOKUP($E$7&$H$7&$M$7&$V23,#REF!,#REF!),"")) ->  | AC23: =IF(Y23="","",IFERROR(_xlfn.XLOOKUP($E$7&$H$7&$M$7&$V23,#REF!,#REF!),"")) ->  | AD23: =IF(Z23="","",IFERROR(_xlfn.XLOOKUP($E$7&$H$7&$M$7&$V23,#REF!,#REF!),"")) ->  | AH23: 1 | AI23: 100 | BF23: =IF(ISNA(BD23),0,_xlfn.XLOOKUP(BD23,Ecran[Ecran],Ecran[reception])) -> 0 | BH23: 0 | BI23: 16 | BL23: 16 | BM23: 18 | BQ23: 1210 | BR23: 2220 | BT23: 2220 | BW23: SRMC63 | BX23: SR90 | CA23: 80150 | CB23: 89.93 | CC23: 1.3 | CE23: SR90 | CF23: 11060 | CG23: 31 | CH23: 24 | CI23: 8 | CJ23: 27.9 | CK23: 1 | CX23: 1620 | CY23: =ROUND(LEFT(CX23,2)*2.54/10,1) -> 4.1 | CZ23: =ROUND(RIGHT(CX23,2)*2.54/10,1) -> 5.1 | DA23: 1 | DB23: 4 | DC23: 0.2 | DD23: 0.25 | DE23: 0.8 | DF23: 0.8 | DG23: 0.2 | DH23: 3 | DI23: =MIN((Size[[#This Row],[long]]^0.5*Size[[#This Row],[larg]]^0.2)/3*0.6+0.16,0.8)*Size[[#This Row],[long]]*Size[[#This Row],[larg]] -> 15.07538339 | DJ23: 5.480419786 | DK23: 3.326601073 | DS23: 7200 | DT23: =7500/(Size[[#This Row],[long]]*Size[[#This Row],[larg]])^1.1 -> 264.6499567 | DU23: =Size[[#This Row],[nbpc4]]*5.6*5.6/3.6/3.6 -> 640.3875496 | DV23: =Size[[#This Row],[nbpc4]]*7.6*7.6/3.6/3.6 -> 1179.489313 | DW23: =7500/(Size[[#This Row],[long]]*Size[[#This Row],[larg]])^1.1 -> 264.6499567 | GE23: 1206 FC A1 | GF23: 5G 1206FC V1 | GG23: 1206 | GH23: EMI | GI23: 4 | GJ23: 1 | GK23: 1206 FC | GL23: 2015-03-25 | GM23: TRUE | GO23: 325 | GP23: 1.9 | GQ23: 30-30 | GR23: 1150 | GS23: 3.9852 | GT23: 3.69 | GV23: 1206/4/1EMI | GW23: 1206/4/1EMI | GX23: 0.2703750183
E24: 2225 | F24: 17 | H24: =IF(J24<=$H$6,J24,0) -> 4000 | I24: 17 | J24: 4000 | K24: K | L24: 4000 | P24: =IF(R24<>"",fmt(R24,"isomin"),"") -> 220 pF | Q24: 17 | R24: =IF(R23="","",IF(fmt(R23*1.3,"iso",,1)>$R$6*$S$7,"",fmt(R23*1.3,"iso",,1))) -> 220 | T24: =IF(V24<>"",fmt(V24,"isomin"),"") -> 220 pF | U24: 17 | V24: =IF(V23="","",IF(fmt(V23*1.3,"iso",,1)>$R$6,"",fmt(V23*1.3,"iso",,1))) -> 220 | X24: =IF(V24<>"",capa($E$7,$M$7,$H$7,"det",Chart!$H$2,,V24),"") -> X7R262L 1e 1.0c 818µ 268µb 1.11mm 0.6Vµ | Y24: =IF(V24="","",IFERROR(_xlfn.XLOOKUP($E$7&$H$7&$M$7&$V24,#REF!,#REF!),"")) ->  | Z24: =IF(Y24="","",IFERROR(_xlfn.XLOOKUP($E$7&$H$7&$M$7&$V24,#REF!,#REF!),"")) ->  | AA24: =IF(Y24="","",IFERROR(_xlfn.XLOOKUP($E$7&$H$7&$M$7&$V24,#REF!,#REF!),"")) ->  | AB24: =IF(Y24="","",IFERROR(_xlfn.XLOOKUP($E$7&$H$7&$M$7&$V24,#REF!,#REF!),"")) ->  | AC24: =IF(Y24="","",IFERROR(_xlfn.XLOOKUP($E$7&$H$7&$M$7&$V24,#REF!,#REF!),"")) ->  | AD24: =IF(Z24="","",IFERROR(_xlfn.XLOOKUP($E$7&$H$7&$M$7&$V24,#REF!,#REF!),"")) ->  | AF24: 0 | AG24: 0.0001 | AH24: 0.01 | AI24: 0.01 | BF24: =IF(ISNA(BD24),0,_xlfn.XLOOKUP(BD24,Ecran[Ecran],Ecran[reception])) -> 0 | BH24: 0 | BI24: 17 | BL24: 17 | BM24: 19 | BQ24: 1410 | BR24: 2225 | BT24: 2225 | BW24: SRMC68 | BX24: SR94 | CE24: SR94 | CF24: 16080 | CG24: 45 | CH24: 23 | CI24: 8 | CJ24: 40.6 | CK24: 1 | CX24: 1805 | CY24: =ROUND(LEFT(CX24,2)*2.54/10,1) -> 4.6 | CZ24: =ROUND(RIGHT(CX24,2)*2.54/10,1) -> 1.3 | DA24: 0.9 | DB24: 1.4 | DC24: 0.2 | DD24: 0.25 | DE24: 0.8 | DF24: 0.8 | DG24: 0.2 | DH24: 3 | DI24: =MIN((Size[[#This Row],[long]]^0.5*Size[[#This Row],[larg]]^0.2)/3*0.6+0.16,0.8)*Size[[#This Row],[long]]*Size[[#This Row],[larg]] -> 3.660128145 | DJ24: 1.281044851 | DK24: 0.7808273376 | DS24: 4000 | DT24: =7500/(Size[[#This Row],[long]]*Size[[#This Row],[larg]])^1.1 -> 1048.793437 | DU24: =Size[[#This Row],[nbpc4]]*5.6*5.6/3.6/3.6 -> 2537.821156 | DV24: =Size[[#This Row],[nbpc4]]*7.6*7.6/3.6/3.6 -> 4674.252231 | DW24: =7500/(Size[[#This Row],[long]]*Size[[#This Row],[larg]])^1.1 -> 1048.793437 | DY24: =+DX24*0.75*0.75 -> 0 | DZ24: =+DX24*0.84*0.84 -> 0 | GE24: 1806 FC A1 | GF24: 5G 1806 2C V1 | GG24: 1806 | GH24: EMI | GI24: 4 | GJ24: 1 | GK24: 1806 FC | GL24: 2015-12-17 | GM24: TRUE | GO24: 400 | GP24: 1.9 | GQ24: 26-24 | GR24: 810 | GS24: 4.86 | GT24: 4.5 | GV24: 1806/4/1EMI | GW24: 1806/4/1EMI | GX24: 0.2881533796
E25: 2825 | F25: 18 | H25: 0 | I25: 18 | J25: 5000 | K25: L | L25: 5000 | P25: =IF(R25<>"",fmt(R25,"isomin"),"") -> 270 pF | Q25: 18 | R25: =IF(R24="","",IF(fmt(R24*1.3,"iso",,1)>$R$6*$S$7,"",fmt(R24*1.3,"iso",,1))) -> 270 | T25: =IF(V25<>"",fmt(V25,"isomin"),"") -> 270 pF | U25: 18 | V25: =IF(V24="","",IF(fmt(V24*1.3,"iso",,1)>$R$6,"",fmt(V24*1.3,"iso",,1))) -> 270 | X25: =IF(V25<>"",capa($E$7,$M$7,$H$7,"det",Chart!$H$2,,V25),"") -> X7R262L 1e 1.0c 598µ 268µb 0.93mm 0.8Vµ | Y25: =IF(V25="","",IFERROR(_xlfn.XLOOKUP($E$7&$H$7&$M$7&$V25,#REF!,#REF!),"")) ->  | Z25: =IF(Y25="","",IFERROR(_xlfn.XLOOKUP($E$7&$H$7&$M$7&$V25,#REF!,#REF!),"")) ->  | AA25: =IF(Y25="","",IFERROR(_xlfn.XLOOKUP($E$7&$H$7&$M$7&$V25,#REF!,#REF!),"")) ->  | AB25: =IF(Y25="","",IFERROR(_xlfn.XLOOKUP($E$7&$H$7&$M$7&$V25,#REF!,#REF!),"")) ->  | AC25: =IF(Y25="","",IFERROR(_xlfn.XLOOKUP($E$7&$H$7&$M$7&$V25,#REF!,#REF!),"")) ->  | AD25: =IF(Z25="","",IFERROR(_xlfn.XLOOKUP($E$7&$H$7&$M$7&$V25,#REF!,#REF!),"")) ->  | AF25: 0.0001 | AG25: 0.005 | AH25: 0.05 | AI25: 0.08 | BL25: 18 | BM25: 20 | BQ25: 1515 | BR25: 2825 | BT25: 2825 | BW25: SRMC72 | CE25: SA40 | CF25: 0603 | CG25: 4.3 | CH25: 2.5 | CI25: NA | CJ25: NA | CK25: 0.5 | CX25: 1806 | CY25: 4.5 | CZ25: 1.6 | DA25: 0.9 | DB25: 1.7 | DC25: 0.2 | DD25: 0.25 | DE25: 0.8 | DF25: 0.8 | DG25: 0.2 | DH25: 3 | DI25: =MIN((Size[[#This Row],[long]]^0.5*Size[[#This Row],[larg]]^0.2)/3*0.6+0.16,0.8)*Size[[#This Row],[long]]*Size[[#This Row],[larg]] -> 4.507774314 | DJ25: 1.57772101 | DK25: 0.9616585203 | DS25: 5000 | DT25: =7500/(Size[[#This Row],[long]]*Size[[#This Row],[larg]])^1.1 -> 855.0578871 | DU25: =Size[[#This Row],[nbpc4]]*5.6*5.6/3.6/3.6 -> 2069.028961 | DV25: =Size[[#This Row],[nbpc4]]*7.6*7.6/3.6/3.6 -> 3810.813546 | DW25: =7500/(Size[[#This Row],[long]]*Size[[#This Row],[larg]])^1.1 -> 855.0578871 | DX25: 7.99 | DY25: =+DX25*0.75*0.75 -> 4.494375 | DZ25: =+DX25*0.84*0.84 -> 5.637744 | GE25: 1806 MCF V1-4 | GF25: 5G 1806 2C V1 | GG25: 1806 | GH25: EMI | GI25: 4 | GJ25: 1 | GK25: 1806 FC | GL25: 2015-12-17 | GM25: TRUE | GO25: 400 | GP25: 1.9 | GQ25: 26-24 | GR25: 810 | GS25: 4.86 | GT25: 4.5 | GV25: 1806/4/1EMI | GW25: 1806/4/1EMI | GX25: 0.2881533796
E26: 3033 | F26: 19 | H26: 0 | I26: 19 | J26: 6000 | K26: 6 | L26: 6000 | P26: =IF(R26<>"",fmt(R26,"isomin"),"") -> 330 pF | Q26: 19 | R26: =IF(R25="","",IF(fmt(R25*1.3,"iso",,1)>$R$6*$S$7,"",fmt(R25*1.3,"iso",,1))) -> 330 | T26: =IF(V26<>"",fmt(V26,"isomin"),"") -> 330 pF | U26: 19 | V26: =IF(V25="","",IF(fmt(V25*1.3,"iso",,1)>$R$6,"",fmt(V25*1.3,"iso",,1))) -> 330 | X26: =IF(V26<>"",capa($E$7,$M$7,$H$7,"det",Chart!$H$2,,V26),"") -> X7R262L 1e 1.0c 459µ 268µb 0.81mm 1.1Vµ | Y26: =IF(V26="","",IFERROR(_xlfn.XLOOKUP($E$7&$H$7&$M$7&$V26,#REF!,#REF!),"")) ->  | Z26: =IF(Y26="","",IFERROR(_xlfn.XLOOKUP($E$7&$H$7&$M$7&$V26,#REF!,#REF!),"")) ->  | AA26: =IF(Y26="","",IFERROR(_xlfn.XLOOKUP($E$7&$H$7&$M$7&$V26,#REF!,#REF!),"")) ->  | AB26: =IF(Y26="","",IFERROR(_xlfn.XLOOKUP($E$7&$H$7&$M$7&$V26,#REF!,#REF!),"")) ->  | AC26: =IF(Y26="","",IFERROR(_xlfn.XLOOKUP($E$7&$H$7&$M$7&$V26,#REF!,#REF!),"")) ->  | AD26: =IF(Z26="","",IFERROR(_xlfn.XLOOKUP($E$7&$H$7&$M$7&$V26,#REF!,#REF!),"")) ->  | AF26: 0.005 | AG26: 0.01 | AH26: 0.09321939079 | AI26: 0.157995627 | BL26: 19 | BQ26: 1605 | BR26: 3033 | BT26: 3033 | BW26: SRMC74 | CE26: SA50 | CF26: 0805 | CG26: 6.4 | CH26: 2.5 | CI26: NA | CJ26: NA | CK26: 0.5 | CX26: 1808 | CY26: 4.5 | CZ26: 2 | DA26: 1 | DB26: 2.1 | DC26: 0.2 | DD26: 0.25 | DE26: 0.8 | DF26: 0.8 | DG26: 0.21 | DH26: 6 | DI26: =MIN((Size[[#This Row],[long]]^0.5*Size[[#This Row],[larg]]^0.2)/3*0.6+0.16,0.8)*Size[[#This Row],[long]]*Size[[#This Row],[larg]] -> 5.82616294 | DJ26: 2.039157029 | DK26: 1.242914761 | DL26: =$DI26/DL$3*IF($DI26<10,DL$1,DL$1+MIN(($DI26-10)/30,1)*(DL$2-DL$1)) -> 0.8884898484 | DM26: 0.687487227 | DN26: 0.5534854793 | DS26: 10001 | DT26: =7500/(Size[[#This Row],[long]]*Size[[#This Row],[larg]])^1.1 -> 668.9513015 | DU26: =Size[[#This Row],[nbpc4]]*5.6*5.6/3.6/3.6 -> 1618.696976 | DV26: =Size[[#This Row],[nbpc4]]*7.6*7.6/3.6/3.6 -> 2981.375553 | DW26: =7500/(Size[[#This Row],[long]]*Size[[#This Row],[larg]])^1.1 -> 668.9513015 | DX26: 14.76 | DY26: =+DX26*0.75*0.75 -> 8.3025 | DZ26: =+DX26*0.84*0.84 -> 10.414656 | GE26: 1812 MPF | GF26: 5G 1812 FC V1 | GG26: 1812 | GH26: EMI | GI26: 4 | GJ26: 1 | GK26: 1812 | GL26: 2016-05-23 | GM26: TRUE | GO26: 400 | GP26: 3.8 | GR26: 170 | GS26: 14.270256 | GT26: 13.2132 | GV26: 1812/4/1EMI | GW26: 1812/4/1EMI | GX26: 1.595155657
E27: 3640 | F27: 20 | H27: 0 | I27: 20 | J27: 8000 | K27: 8 | L27: 8000 | P27: =IF(R27<>"",fmt(R27,"isomin"),"") -> 390 pF | Q27: 20 | R27: =IF(R26="","",IF(fmt(R26*1.3,"iso",,1)>$R$6*$S$7,"",fmt(R26*1.3,"iso",,1))) -> 390 | T27: =IF(V27<>"",fmt(V27,"isomin"),"") -> 390 pF | U27: 20 | V27: =IF(V26="","",IF(fmt(V26*1.3,"iso",,1)>$R$6,"",fmt(V26*1.3,"iso",,1))) -> 390 | X27: =IF(V27<>"",capa($E$7,$M$7,$H$7,"det",Chart!$H$2,,V27),"") -> X7R262L 1e 1.0c 375µ 268µb 0.74mm 1.3Vµ | Y27: =IF(V27="","",IFERROR(_xlfn.XLOOKUP($E$7&$H$7&$M$7&$V27,#REF!,#REF!),"")) ->  | Z27: =IF(Y27="","",IFERROR(_xlfn.XLOOKUP($E$7&$H$7&$M$7&$V27,#REF!,#REF!),"")) ->  | AA27: =IF(Y27="","",IFERROR(_xlfn.XLOOKUP($E$7&$H$7&$M$7&$V27,#REF!,#REF!),"")) ->  | AB27: =IF(Y27="","",IFERROR(_xlfn.XLOOKUP($E$7&$H$7&$M$7&$V27,#REF!,#REF!),"")) ->  | AC27: =IF(Y27="","",IFERROR(_xlfn.XLOOKUP($E$7&$H$7&$M$7&$V27,#REF!,#REF!),"")) ->  | AD27: =IF(Z27="","",IFERROR(_xlfn.XLOOKUP($E$7&$H$7&$M$7&$V27,#REF!,#REF!),"")) ->  | AF27: 0.01 | AG27: 0.02 | AH27: 0.1849111663 | AI27: 0.3098570229 | BQ27: 1620 | BR27: 3640 | BT27: 3640 | BW27: SRMC76 | CE27: SA60 | CF27: 1210 | CG27: 6.6 | CH27: 3.9 | CI27: NA | CJ27: NA | CK27: 0.6 | CX27: 1812 | CY27: 4.5 | CZ27: 3.2 | DA27: 1 | DB27: 3.3 | DC27: 0.2 | DD27: 0.25 | DE27: 0.8 | DF27: 0.8 | DG27: 0.22 | DH27: 6 | DI27: =MIN((Size[[#This Row],[long]]^0.5*Size[[#This Row],[larg]]^0.2)/3*0.6+0.16,0.8)*Size[[#This Row],[long]]*Size[[#This Row],[larg]] -> 10.01354487 | DJ27: 3.50510239 | DK27: 2.136418818 | DL27: 1.527201225 | DM27: 1.1817068 | DN27: 0.9513922542 | DS27: 10001 | DT27: =7500/(Size[[#This Row],[long]]*Size[[#This Row],[larg]])^1.1 -> 398.8986092 | DU27: =Size[[#This Row],[nbpc4]]*5.6*5.6/3.6/3.6 -> 965.2361407 | DV27: =Size[[#This Row],[nbpc4]]*7.6*7.6/3.6/3.6 -> 1777.807382 | DW27: =7500/(Size[[#This Row],[long]]*Size[[#This Row],[larg]])^1.1 -> 398.8986092 | GE27: 1812 5G M2F V1 | GF27: 5G 1812 FC V1 | GG27: 1812 | GH27: EMI | GI27: 4 | GJ27: 1 | GK27: 1812 | GL27: 2016-05-23 | GM27: TRUE | GO27: 400 | GP27: 3.8 | GR27: 170 | GS27: 14.60212944 | GT27: 13.52049023 | GV27: 1812/4/1EMI | GW27: 1812/4/1EMI | GX27: 1.595155657
E28: 4020 | F28: 21 | H28: 0 | I28: 21 | J28: 10000 | K28: 10 | L28: 10000 | P28: =IF(R28<>"",fmt(R28,"isomin"),"") -> 470 pF | Q28: 21 | R28: =IF(R27="","",IF(fmt(R27*1.3,"iso",,1)>$R$6*$S$7,"",fmt(R27*1.3,"iso",,1))) -> 470 | T28: =IF(V28<>"",fmt(V28,"isomin"),"") -> 470 pF | U28: 21 | V28: =IF(V27="","",IF(fmt(V27*1.3,"iso",,1)>$R$6,"",fmt(V27*1.3,"iso",,1))) -> 470 | X28: =IF(V28<>"",capa($E$7,$M$7,$H$7,"det",Chart!$H$2,,V28),"") -> X7R262L 1e 1.0c 302µ 268µb 0.68mm 1.7Vµ | Y28: =IF(V28="","",IFERROR(_xlfn.XLOOKUP($E$7&$H$7&$M$7&$V28,#REF!,#REF!),"")) ->  | Z28: =IF(Y28="","",IFERROR(_xlfn.XLOOKUP($E$7&$H$7&$M$7&$V28,#REF!,#REF!),"")) ->  | AA28: =IF(Y28="","",IFERROR(_xlfn.XLOOKUP($E$7&$H$7&$M$7&$V28,#REF!,#REF!),"")) ->  | AB28: =IF(Y28="","",IFERROR(_xlfn.XLOOKUP($E$7&$H$7&$M$7&$V28,#REF!,#REF!),"")) ->  | AC28: =IF(Y28="","",IFERROR(_xlfn.XLOOKUP($E$7&$H$7&$M$7&$V28,#REF!,#REF!),"")) ->  | AD28: =IF(Z28="","",IFERROR(_xlfn.XLOOKUP($E$7&$H$7&$M$7&$V28,#REF!,#REF!),"")) ->  | AF28: 0.02 | AG28: 0.05 | AH28: 0.4373117455 | AI28: 0.6810704597 | BQ28: 1805 | BR28: 4040 | BT28: 4020 | BW28: SRMC80 | CE28: SA70 | CF28: 1812 | CG28: 10 | CH28: 3.9 | CI28: NA | CJ28: NA | CK28: 0.6 | CX28: 1816 | CY28: =ROUND(LEFT(CX28,2)*2.54/10,1) -> 4.6 | CZ28: =ROUND(RIGHT(CX28,2)*2.54/10,1) -> 4.1 | DA28: 1.1 | DB28: 3.6 | DC28: 0.2 | DD28: 0.25 | DE28: 0.8 | DF28: 0.9 | DG28: 0.22 | DH28: 6 | DI28: =MIN((Size[[#This Row],[long]]^0.5*Size[[#This Row],[larg]]^0.2)/3*0.6+0.16,0.8)*Size[[#This Row],[long]]*Size[[#This Row],[larg]] -> 13.74531856 | DJ28: 4.948143086 | DK28: 3.006695487 | DL28: 2.147641677 | DM28: 1.663132067 | DN28: 1.345845727 | DS28: 10001 | DT28: =7500/(Size[[#This Row],[long]]*Size[[#This Row],[larg]])^1.1 -> 296.4595234 | DU28: =Size[[#This Row],[nbpc4]]*5.6*5.6/3.6/3.6 -> 717.3588469 | DV28: =Size[[#This Row],[nbpc4]]*7.6*7.6/3.6/3.6 -> 1321.257876 | DW28: =7500/(Size[[#This Row],[long]]*Size[[#This Row],[larg]])^1.1 -> 296.4595234 | DX28: 31.96 | DY28: =+DX28*0.75*0.75 -> 17.9775 | DZ28: =+DX28*0.84*0.84 -> 22.550976 | GE28: 2220 FC2 | GF28: 3G 2220 FC -V2 | GG28: 2220 | GH28: EMI | GI28: 4 | GJ28: 1 | GK28: 2220 filtre | GL28: 2013-11-19 | GM28: TRUE | GO28: 325 | GP28: 0 / 6 / 12 | GQ28: 28-30 | GR28: 48 | GS28: 12.312 | GT28: 11.4 | GV28: 2220/4/1EMI | GW28: 2220/4/1EMI | GX28: 2.20037928
E29: 4040 | F29: 22 | H29: 0 | I29: 22 | J29: 12000 | K29: 12 | L29: 12000 | P29: =IF(R29<>"",fmt(R29,"isomin"),"") -> 560 pF | Q29: 22 | R29: =IF(R28="","",IF(fmt(R28*1.3,"iso",,1)>$R$6*$S$7,"",fmt(R28*1.3,"iso",,1))) -> 560 | T29: =IF(V29<>"",fmt(V29,"isomin"),"") -> 560 pF | U29: 22 | V29: =IF(V28="","",IF(fmt(V28*1.3,"iso",,1)>$R$6,"",fmt(V28*1.3,"iso",,1))) -> 560 | X29: =IF(V29<>"",capa($E$7,$M$7,$H$7,"det",Chart!$H$2,,V29),"") -> X7R262L 1e 1.0c 249µ 268µb 0.64mm 2.0Vµ | Y29: =IF(V29="","",IFERROR(_xlfn.XLOOKUP($E$7&$H$7&$M$7&$V29,#REF!,#REF!),"")) ->  | Z29: =IF(Y29="","",IFERROR(_xlfn.XLOOKUP($E$7&$H$7&$M$7&$V29,#REF!,#REF!),"")) ->  | AA29: =IF(Y29="","",IFERROR(_xlfn.XLOOKUP($E$7&$H$7&$M$7&$V29,#REF!,#REF!),"")) ->  | AB29: =IF(Y29="","",IFERROR(_xlfn.XLOOKUP($E$7&$H$7&$M$7&$V29,#REF!,#REF!),"")) ->  | AC29: =IF(Y29="","",IFERROR(_xlfn.XLOOKUP($E$7&$H$7&$M$7&$V29,#REF!,#REF!),"")) ->  | AD29: =IF(Z29="","",IFERROR(_xlfn.XLOOKUP($E$7&$H$7&$M$7&$V29,#REF!,#REF!),"")) ->  | AF29: 0.05 | AG29: 0.1 | AH29: 0.7363964736 | AI29: 0.9537793709 | BQ29: 1806 | BR29: 4055 | BT29: 4040 | BW29: SRMC82 | CE29: SA75 | CF29: 1812 | CG29: 11 | CH29: 5.5 | CI29: NA | CJ29: NA | CK29: 0.6 | CX29: 1825 | CY29: 4.5 | CZ29: 6.35 | DA29: 1.2 | DB29: 3.6 | DC29: 0.3 | DD29: 0.25 | DE29: 0.8 | DF29: 1 | DG29: 0.22 | DH29: 6 | DI29: =MIN((Size[[#This Row],[long]]^0.5*Size[[#This Row],[larg]]^0.2)/3*0.6+0.16,0.8)*Size[[#This Row],[long]]*Size[[#This Row],[larg]] -> 22.11796411 | DJ29: 8.456019959 | DK29: 5.105645792 | DL29: 3.641014222 | DM29: 2.824339521 | DN29: 2.309670242 | DS29: 10001 | DT29: =7500/(Size[[#This Row],[long]]*Size[[#This Row],[larg]])^1.1 -> 187.7052416 | DU29: =Size[[#This Row],[nbpc4]]*5.6*5.6/3.6/3.6 -> 454.2003378 | DV29: =Size[[#This Row],[nbpc4]]*7.6*7.6/3.6/3.6 -> 836.5628671 | DW29: =7500/(Size[[#This Row],[long]]*Size[[#This Row],[larg]])^1.1 -> 187.7052416 | GE29: 2220 FC | GF29: 3G 2220 FC -V1 | GG29: 2220 | GH29: EMI | GI29: 4 | GJ29: 1 | GK29: 2220 filtre | GL29: 2013-03-18 | GM29: TRUE | GO29: 325 | GP29: 0 / 6 / 12 | GQ29: 28-30 | GR29: 48 | GS29: 12.312 | GT29: 11.4 | GV29: 2220/4/1EMI | GW29: 2220/4/1EMI | GX29: 2.20037928
E30: 4055 | F30: 23 | H30: 0 | I30: 23 | J30: 15000 | K30: 15 | L30: 15000 | P30: =IF(R30<>"",fmt(R30,"isomin"),"") -> 680 pF | Q30: 23 | R30: =IF(R29="","",IF(fmt(R29*1.3,"iso",,1)>$R$6*$S$7,"",fmt(R29*1.3,"iso",,1))) -> 680 | T30: =IF(V30<>"",fmt(V30,"isomin"),"") -> 680 pF | U30: 23 | V30: =IF(V29="","",IF(fmt(V29*1.3,"iso",,1)>$R$6,"",fmt(V29*1.3,"iso",,1))) -> 680 | X30: =IF(V30<>"",capa($E$7,$M$7,$H$7,"det",Chart!$H$2,,V30),"") -> X7R262L 1e 1.0c 202µ 268µb 0.60mm 2.5Vµ | Y30: =IF(V30="","",IFERROR(_xlfn.XLOOKUP($E$7&$H$7&$M$7&$V30,#REF!,#REF!),"")) ->  | Z30: =IF(Y30="","",IFERROR(_xlfn.XLOOKUP($E$7&$H$7&$M$7&$V30,#REF!,#REF!),"")) ->  | AA30: =IF(Y30="","",IFERROR(_xlfn.XLOOKUP($E$7&$H$7&$M$7&$V30,#REF!,#REF!),"")) ->  | AB30: =IF(Y30="","",IFERROR(_xlfn.XLOOKUP($E$7&$H$7&$M$7&$V30,#REF!,#REF!),"")) ->  | AC30: =IF(Y30="","",IFERROR(_xlfn.XLOOKUP($E$7&$H$7&$M$7&$V30,#REF!,#REF!),"")) ->  | AD30: =IF(Z30="","",IFERROR(_xlfn.XLOOKUP($E$7&$H$7&$M$7&$V30,#REF!,#REF!),"")) ->  | AF30: 0.1 | AG30: 0.2 | AH30: 0.9540440668 | AI30: 0.9999331289 | BQ30: 1808 | BR30: 40100 | BT30: 4055 | BW30: SRMC84 | CE30: SA80 | CF30: 2220 | CG30: 12.7 | CH30: 6.4 | CI30: NA | CJ30: NA | CK30: 0.6 | CX30: 2025 | CY30: =ROUND(LEFT(CX30,2)*2.54/10,1) -> 5.1 | CZ30: =ROUND(RIGHT(CX30,2)*2.54/10,1) -> 6.4 | DA30: 1.2 | DB30: 3.8 | DC30: 0.3 | DD30: 0.25 | DE30: 0.8 | DF30: 1 | DG30: 0.22 | DH30: 6 | DI30: =MIN((Size[[#This Row],[long]]^0.5*Size[[#This Row],[larg]]^0.2)/3*0.6+0.16,0.8)*Size[[#This Row],[long]]*Size[[#This Row],[larg]] -> 26.112 | DJ30: 10.26111078 | DK30: 6.178261675 | DL30: 4.402796544 | DM30: 3.417789235 | DN30: 2.807863979 | DS30: 10001 | DT30: =7500/(Size[[#This Row],[long]]*Size[[#This Row],[larg]])^1.1 -> 162.1571483 | DU30: =Size[[#This Row],[nbpc4]]*5.6*5.6/3.6/3.6 -> 392.3802601 | DV30: =Size[[#This Row],[nbpc4]]*7.6*7.6/3.6/3.6 -> 722.7003771 | DW30: =7500/(Size[[#This Row],[long]]*Size[[#This Row],[larg]])^1.1 -> 162.1571483 | GE30: 2220 FC V3 5G | GF30: 5G 2220 FC V3 | GG30: 2220 | GH30: EMI | GI30: 4 | GJ30: 1 | GK30: 2220 | GM30: TRUE | GO30: 400 UMC | GR30: 48 | GS30: 18.468 | GT30: 17.1 | GV30: 2220/4/1EMI | GW30: 2220/4/1EMI | GX30: 2.20037928
E31: 40100 | F31: 24 | H31: 0 | I31: 24 | P31: =IF(R31<>"",fmt(R31,"isomin"),"") -> 820 pF | Q31: 24 | R31: =IF(R30="","",IF(fmt(R30*1.3,"iso",,1)>$R$6*$S$7,"",fmt(R30*1.3,"iso",,1))) -> 820 | T31: =IF(V31<>"",fmt(V31,"isomin"),"") -> 820 pF | U31: 24 | V31: =IF(V30="","",IF(fmt(V30*1.3,"iso",,1)>$R$6,"",fmt(V30*1.3,"iso",,1))) -> 820 | X31: =IF(V31<>"",capa($E$7,$M$7,$H$7,"det",Chart!$H$2,,V31),"") -> X7R262L 1e 1.0c 166µ 268µb 0.57mm 3.0Vµ | Y31: =IF(V31="","",IFERROR(_xlfn.XLOOKUP($E$7&$H$7&$M$7&$V31,#REF!,#REF!),"")) ->  | Z31: =IF(Y31="","",IFERROR(_xlfn.XLOOKUP($E$7&$H$7&$M$7&$V31,#REF!,#REF!),"")) ->  | AA31: =IF(Y31="","",IFERROR(_xlfn.XLOOKUP($E$7&$H$7&$M$7&$V31,#REF!,#REF!),"")) ->  | AB31: =IF(Y31="","",IFERROR(_xlfn.XLOOKUP($E$7&$H$7&$M$7&$V31,#REF!,#REF!),"")) ->  | AC31: =IF(Y31="","",IFERROR(_xlfn.XLOOKUP($E$7&$H$7&$M$7&$V31,#REF!,#REF!),"")) ->  | AD31: =IF(Z31="","",IFERROR(_xlfn.XLOOKUP($E$7&$H$7&$M$7&$V31,#REF!,#REF!),"")) ->  | BQ31: 1812 | BR31: 5440 | BT31: 40100 | BW31: SRMC88 | CE31: SA90 | CF31: 2520 | CG31: 17.5 | CH31: 8.9 | CI31: NA | CJ31: NA | CK31: 0.6 | CX31: 2211 | CY31: =ROUND(LEFT(CX31,2)*2.54/10,1) -> 5.6 | CZ31: =ROUND(RIGHT(CX31,2)*2.54/10,1) -> 2.8 | DA31: 1.2 | DB31: 3.9 | DC31: 0.3 | DD31: 0.25 | DE31: 0.8 | DF31: 1 | DG31: 0.22 | DH31: 7 | DI31: =MIN((Size[[#This Row],[long]]^0.5*Size[[#This Row],[larg]]^0.2)/3*0.6+0.16,0.8)*Size[[#This Row],[long]]*Size[[#This Row],[larg]] -> 11.62684379 | DJ31: 4.119835484 | DK31: 2.507715094 | DL31: 1.792008737 | DM31: 1.387099615 | DN31: 1.119261873 | DO31: =$DI31/DO$3*IF($DI31<10,DO$1,DO$1+MIN(($DI31-10)/30,1)*(DO$2-DO$1)) -> 0.9279491999 | DS31: 10001 | DT31: =7500/(Size[[#This Row],[long]]*Size[[#This Row],[larg]])^1.1 -> 363.2290704 | DU31: =Size[[#This Row],[nbpc4]]*5.6*5.6/3.6/3.6 -> 878.9246641 | DV31: =Size[[#This Row],[nbpc4]]*7.6*7.6/3.6/3.6 -> 1618.835733 | DW31: =7500/(Size[[#This Row],[long]]*Size[[#This Row],[larg]])^1.1 -> 363.2290704 | GE31: 2220 5G M2F V1 | GF31: 5G 2220 FC V3 | GG31: 2220 | GH31: EMI | GI31: 4 | GJ31: 1 | GK31: 2220 | GM31: TRUE | GO31: 400 UMC | GR31: 48 | GS31: 18.468 | GT31: 17.1 | GV31: 2220/4/1EMI | GW31: 2220/4/1EMI | GX31: 2.20037928
E32: 5440 | F32: 25 | P32: =IF(R32<>"",fmt(R32,"isomin"),"") -> 1.0 nF | Q32: 25 | R32: =IF(R31="","",IF(fmt(R31*1.3,"iso",,1)>$R$6*$S$7,"",fmt(R31*1.3,"iso",,1))) -> 1000 | T32: =IF(V32<>"",fmt(V32,"isomin"),"") -> 1.0 nF | U32: 25 | V32: =IF(V31="","",IF(fmt(V31*1.3,"iso",,1)>$R$6,"",fmt(V31*1.3,"iso",,1))) -> 1000 | X32: =IF(V32<>"",capa($E$7,$M$7,$H$7,"det",Chart!$H$2,,V32),"") -> X7R262L 1e 1.0c 135µ 268µb 0.55mm 3.7Vµ | Y32: =IF(V32="","",IFERROR(_xlfn.XLOOKUP($E$7&$H$7&$M$7&$V32,#REF!,#REF!),"")) ->  | Z32: =IF(Y32="","",IFERROR(_xlfn.XLOOKUP($E$7&$H$7&$M$7&$V32,#REF!,#REF!),"")) ->  | AA32: =IF(Y32="","",IFERROR(_xlfn.XLOOKUP($E$7&$H$7&$M$7&$V32,#REF!,#REF!),"")) ->  | AB32: =IF(Y32="","",IFERROR(_xlfn.XLOOKUP($E$7&$H$7&$M$7&$V32,#REF!,#REF!),"")) ->  | AC32: =IF(Y32="","",IFERROR(_xlfn.XLOOKUP($E$7&$H$7&$M$7&$V32,#REF!,#REF!),"")) ->  | AD32: =IF(Z32="","",IFERROR(_xlfn.XLOOKUP($E$7&$H$7&$M$7&$V32,#REF!,#REF!),"")) ->  | AF32: ± 0.05pF/0.1% | AG32: 0.05 | AH32: =AG32/Chart!$C$14 -> 5e-07 | AI32: =IFERROR(VLOOKUP($AH32,$AG$24:$AH$30,1,TRUE),0) -> 0 | AJ32: =IFERROR(VLOOKUP($AH32,$AG$24:$AI$30,1,TRUE),0) -> 0 | AK32: =(AI32+AJ32)/2 -> 0 | BQ32: 1816 | BR32: 5550 | BT32: 5440 | BW32: SRMC90 | CE32: SRMC31 | CF32: 0805 | CG32: 3.8 | CH32: 3.8 | CI32: 2.54 | CJ32: 2.54 | CK32: 0.6 | CX32: 2215 | CY32: =ROUND(LEFT(CX32,2)*2.54/10,1) -> 5.6 | CZ32: =ROUND(RIGHT(CX32,2)*2.54/10,1) -> 3.8 | DA32: 1.2 | DB32: 4.1 | DC32: 0.3 | DD32: 0.25 | DE32: 0.8 | DF32: 1 | DG32: 0.22 | DH32: 7 | DI32: =MIN((Size[[#This Row],[long]]^0.5*Size[[#This Row],[larg]]^0.2)/3*0.6+0.16,0.8)*Size[[#This Row],[long]]*Size[[#This Row],[larg]] -> 16.55863386 | DJ32: 6.085127228 | DK32: 3.689378136 | DL32: 2.63379368 | DM32: 2.040800409 | DN32: 1.657538452 | DO32: 1.383779911 | DS32: 10001 | DT32: =7500/(Size[[#This Row],[long]]*Size[[#This Row],[larg]])^1.1 -> 259.5927011 | DU32: =Size[[#This Row],[nbpc4]]*5.6*5.6/3.6/3.6 -> 628.1502398 | DV32: =Size[[#This Row],[nbpc4]]*7.6*7.6/3.6/3.6 -> 1156.950187 | DW32: =7500/(Size[[#This Row],[long]]*Size[[#This Row],[larg]])^1.1 -> 259.5927011 | DX32: 32.33 | DY32: =+DX32*0.75*0.75 -> 18.185625 | DZ32: =+DX32*0.84*0.84 -> 22.812048 | GE32: 7312 A1 6C | GF32: PMK 1kV 2G V2 | GG32: 7312 | GH32: EMI | GI32: 4 | GJ32: 6 | GK32: 7312 | GL32: 2014-12-18 | GM32: TRUE | GO32: 400 | GP32: 3.9 | GQ32: 28-30 | GR32: 84 | GS32: 10.8 | GT32: 10 | GV32: 7312/4/6EMI | GW32: 7312/4/6EMI
E33: 5550 | F33: 26 | P33: =IF(R33<>"",fmt(R33,"isomin"),"") -> 1.2 nF | Q33: 26 | R33: =IF(R32="","",IF(fmt(R32*1.3,"iso",,1)>$R$6*$S$7,"",fmt(R32*1.3,"iso",,1))) -> 1200 | T33: =IF(V33<>"",fmt(V33,"isomin"),"") -> 1.2 nF | U33: 26 | V33: =IF(V32="","",IF(fmt(V32*1.3,"iso",,1)>$R$6,"",fmt(V32*1.3,"iso",,1))) -> 1200 | X33: =IF(V33<>"",capa($E$7,$M$7,$H$7,"det",Chart!$H$2,,V33),"") -> X7R262L 1e 1.0c 111µ 268µb 0.53mm 4.5Vµ | Y33: =IF(V33="","",IFERROR(_xlfn.XLOOKUP($E$7&$H$7&$M$7&$V33,#REF!,#REF!),"")) ->  | Z33: =IF(Y33="","",IFERROR(_xlfn.XLOOKUP($E$7&$H$7&$M$7&$V33,#REF!,#REF!),"")) ->  | AA33: =IF(Y33="","",IFERROR(_xlfn.XLOOKUP($E$7&$H$7&$M$7&$V33,#REF!,#REF!),"")) ->  | AB33: =IF(Y33="","",IFERROR(_xlfn.XLOOKUP($E$7&$H$7&$M$7&$V33,#REF!,#REF!),"")) ->  | AC33: =IF(Y33="","",IFERROR(_xlfn.XLOOKUP($E$7&$H$7&$M$7&$V33,#REF!,#REF!),"")) ->  | AD33: =IF(Z33="","",IFERROR(_xlfn.XLOOKUP($E$7&$H$7&$M$7&$V33,#REF!,#REF!),"")) ->  | AF33: ± 0.1pF | AG33: 0.1 | AH33: =AG33/Chart!$C$14 -> 1e-06 | AI33: =IFERROR(VLOOKUP($AH33,$AG$24:$AH$30,1,TRUE),0) -> 0 | AJ33: =IFERROR(VLOOKUP($AH33,$AG$24:$AI$30,1,TRUE),0) -> 0 | AK33: 0 | BQ33: 1825 | BR33: 6660 | BT33: 5550 | BW33: SRMC91 | CE33: SRMC32 | CF33: 1210 | CG33: 5 | CH33: 5 | CI33: 3.2 | CJ33: 2.54 | CK33: 0.6 | CX33: 2220 | CY33: 5.6 | CZ33: 5.1 | DA33: 1.2 | DB33: 4.1 | DC33: 0.4 | DD33: 0.25 | DE33: 0.8 | DF33: 1 | DG33: 0.22 | DH33: 10 | DI33: =MIN((Size[[#This Row],[long]]^0.5*Size[[#This Row],[larg]]^0.2)/3*0.6+0.16,0.8)*Size[[#This Row],[long]]*Size[[#This Row],[larg]] -> 22.848 | DJ33: 8.779602944 | DK33: 5.298258261 | DL33: 3.777871104 | DM33: 2.930904883 | DN33: 2.398877525 | DO33: 2.018857984 | DP33: =$DI33/DP$3*IF($DI33<10,DP$1,DP$1+MIN(($DI33-10)/30,1)*(DP$2-DP$1)) -> 1.721612032 | DQ33: =$DI33/DQ$3*IF($DI33<10,DQ$1,DQ$1+MIN(($DI33-10)/30,1)*(DQ$2-DQ$1)) -> 1.501292999 | DR33: =$DI33/DR$3*IF($DI33<10,DR$1,DR$1+MIN(($DI33-10)/30,1)*(DR$2-DR$1)) -> 1.315252736 | DS33: 10000 | DT33: =7500/(Size[[#This Row],[long]]*Size[[#This Row],[larg]])^1.1 -> 187.8136877 | DU33: =Size[[#This Row],[nbpc4]]*5.6*5.6/3.6/3.6 -> 454.4627504 | DV33: =Size[[#This Row],[nbpc4]]*7.6*7.6/3.6/3.6 -> 837.0461882 | DW33: =7500/(Size[[#This Row],[long]]*Size[[#This Row],[larg]])^1.1 -> 187.8136877 | DX33: 41.48 | DY33: =+DX33*0.75*0.75 -> 23.3325 | DZ33: =+DX33*0.84*0.84 -> 29.268288 | GE33: 13412 A1 8C | GF33: PMK 2,5kV 2G V2 | GG33: 13412 | GH33: PMK | GI33: 4 | GJ33: 8 | GK33: 13412 | GL33: 2014-12-18 | GM33: TRUE | GO33: 400 | GP33: 3.9 | GQ33: 26-28 | GR33: 42 | GS33: 2.108106 | GT33: 1.95195 | GV33: 13412/4/8PMK | GW33: 13412/4/8PMK
E34: 6660 | F34: 27 | P34: =IF(R34<>"",fmt(R34,"isomin"),"") -> 1.5 nF | Q34: 27 | R34: =IF(R33="","",IF(fmt(R33*1.3,"iso",,1)>$R$6*$S$7,"",fmt(R33*1.3,"iso",,1))) -> 1500 | T34: =IF(V34<>"",fmt(V34,"isomin"),"") -> 1.5 nF | U34: 27 | V34: =IF(V33="","",IF(fmt(V33*1.3,"iso",,1)>$R$6,"",fmt(V33*1.3,"iso",,1))) -> 1500 | X34: =IF(V34<>"",capa($E$7,$M$7,$H$7,"det",Chart!$H$2,,V34),"") -> X7R262L 1e 1.0c 89µ 268µb 0.51mm 5.6Vµ | Y34: =IF(V34="","",IFERROR(_xlfn.XLOOKUP($E$7&$H$7&$M$7&$V34,#REF!,#REF!),"")) ->  | Z34: =IF(Y34="","",IFERROR(_xlfn.XLOOKUP($E$7&$H$7&$M$7&$V34,#REF!,#REF!),"")) ->  | AA34: =IF(Y34="","",IFERROR(_xlfn.XLOOKUP($E$7&$H$7&$M$7&$V34,#REF!,#REF!),"")) ->  | AB34: =IF(Y34="","",IFERROR(_xlfn.XLOOKUP($E$7&$H$7&$M$7&$V34,#REF!,#REF!),"")) ->  | AC34: =IF(Y34="","",IFERROR(_xlfn.XLOOKUP($E$7&$H$7&$M$7&$V34,#REF!,#REF!),"")) ->  | AD34: =IF(Z34="","",IFERROR(_xlfn.XLOOKUP($E$7&$H$7&$M$7&$V34,#REF!,#REF!),"")) ->  | AF34: ± 0,25pF | AG34: 0.25 | AH34: =AG34/Chart!$C$14 -> 2.5e-06 | AI34: =IFERROR(VLOOKUP($AH34,$AG$24:$AH$30,1,TRUE),0) -> 0 | AJ34: =IFERROR(VLOOKUP($AH34,$AG$24:$AI$30,1,TRUE),0) -> 0 | AK34: 0 | BQ34: 2025 | BR34: 80150 | BT34: 6660 | BW34: SRMC92 | CE34: SRMC38 | CF34: 1210 | CG34: 6.4 | CH34: 5.6 | CI34: 5 | CJ34: 4.3 | CK34: 0.6 | CX34: 2225 | CY34: 5.6 | CZ34: 6.35 | DA34: 1.3 | DB34: 4.1 | DC34: 0.4 | DD34: 0.25 | DE34: 1 | DF34: 1 | DG34: 0.22 | DH34: 8 | DI34: =MIN((Size[[#This Row],[long]]^0.5*Size[[#This Row],[larg]]^0.2)/3*0.6+0.16,0.8)*Size[[#This Row],[long]]*Size[[#This Row],[larg]] -> 28.448 | DJ34: 11.35628988 | DK34: 6.826963684 | DL34: 4.863128704 | DM34: 3.776710963 | DN34: 3.110744548 | DO34: 2.635054251 | DP34: =$DI34/DP$3*IF($DI34<10,DP$1,DP$1+MIN(($DI34-10)/30,1)*(DP$2-DP$1)) -> 2.256419499 | DS34: 10000 | DT34: =7500/(Size[[#This Row],[long]]*Size[[#This Row],[larg]])^1.1 -> 147.5717868 | DU34: =Size[[#This Row],[nbpc4]]*5.6*5.6/3.6/3.6 -> 357.0872867 | DV34: =Size[[#This Row],[nbpc4]]*7.6*7.6/3.6/3.6 -> 657.6964821 | DW34: =7500/(Size[[#This Row],[long]]*Size[[#This Row],[larg]])^1.1 -> 147.5717868 | GE34: 21612 A1 10C | GF34: PMK 2,5kV 2G V2 | GG34: 21612 | GH34: PMK | GI34: 4 | GJ34: 10 | GK34: 13412 | GL34: 2014-12-18 | GM34: TRUE | GO34: 400 | GP34: 3.9 | GQ34: 24-29 | GR34: 21 | GS34: 1.00386 | GT34: 0.9295 | GV34: 21612/4/10PMK | GW34: 21612/4/10PMK
E35: 80150 | F35: 28 | P35: =IF(R35<>"",fmt(R35,"isomin"),"") -> 1.8 nF | Q35: 28 | R35: =IF(R34="","",IF(fmt(R34*1.3,"iso",,1)>$R$6*$S$7,"",fmt(R34*1.3,"iso",,1))) -> 1800 | T35: =IF(V35<>"",fmt(V35,"isomin"),"") -> 1.8 nF | U35: 28 | V35: =IF(V34="","",IF(fmt(V34*1.3,"iso",,1)>$R$6,"",fmt(V34*1.3,"iso",,1))) -> 1800 | X35: =IF(V35<>"",capa($E$7,$M$7,$H$7,"det",Chart!$H$2,,V35),"") -> X7R262L 1e 2.0c 148µ 502µb 1.06mm 3.4Vµ | Y35: =IF(V35="","",IFERROR(_xlfn.XLOOKUP($E$7&$H$7&$M$7&$V35,#REF!,#REF!),"")) ->  | Z35: =IF(Y35="","",IFERROR(_xlfn.XLOOKUP($E$7&$H$7&$M$7&$V35,#REF!,#REF!),"")) ->  | AA35: =IF(Y35="","",IFERROR(_xlfn.XLOOKUP($E$7&$H$7&$M$7&$V35,#REF!,#REF!),"")) ->  | AB35: =IF(Y35="","",IFERROR(_xlfn.XLOOKUP($E$7&$H$7&$M$7&$V35,#REF!,#REF!),"")) ->  | AC35: =IF(Y35="","",IFERROR(_xlfn.XLOOKUP($E$7&$H$7&$M$7&$V35,#REF!,#REF!),"")) ->  | AD35: =IF(Z35="","",IFERROR(_xlfn.XLOOKUP($E$7&$H$7&$M$7&$V35,#REF!,#REF!),"")) ->  | AF35: ± 0,5pF | AG35: 0.5 | AH35: =AG35/Chart!$C$14 -> 5e-06 | AI35: =IFERROR(VLOOKUP($AH35,$AG$24:$AH$30,1,TRUE),0) -> 0 | AJ35: =IFERROR(VLOOKUP($AH35,$AG$24:$AI$30,1,TRUE),0) -> 0 | AK35: 0 | BQ35: 2211 | BR35: 8060 | BT35: 80150 | BW35: SRMC96 | CE35: SRMC40 | CF35: 0805 | CG35: 3.8 | CH35: 3.8 | CI35: 2.54 | CJ35: 5.08 | CK35: 0.6 | CX35: 2320 | CY35: =ROUND(LEFT(CX35,2)*2.54/10,1) -> 5.8 | CZ35: =ROUND(RIGHT(CX35,2)*2.54/10,1) -> 5.1 | DA35: 1.3 | DB35: 4.1 | DC35: 0.4 | DD35: 0.25 | DE35: 1 | DF35: 1.2 | DG35: 0.22 | DH35: 8 | DI35: =MIN((Size[[#This Row],[long]]^0.5*Size[[#This Row],[larg]]^0.2)/3*0.6+0.16,0.8)*Size[[#This Row],[long]]*Size[[#This Row],[larg]] -> 23.664 | DJ35: 9.144653056 | DK35: 5.515373739 | DL35: 3.932104896 | DM35: 3.051027917 | DN35: 2.499570475 | DO35: 2.105672302 | DP35: 1.796775968 | DS35: 10000 | DT35: =7500/(Size[[#This Row],[long]]*Size[[#This Row],[larg]])^1.1 -> 180.7021321 | DU35: =Size[[#This Row],[nbpc4]]*5.6*5.6/3.6/3.6 -> 437.2545418 | DV35: =Size[[#This Row],[nbpc4]]*7.6*7.6/3.6/3.6 -> 805.3514775 | DW35: =7500/(Size[[#This Row],[long]]*Size[[#This Row],[larg]])^1.1 -> 180.7021321 | GE35: PMK V1 | GF35: 1kV | GG35: PMK | GH35: PMK | GI35: 4 | GJ35: 6 | GK35: 7312 | GL35: 2014-01-08 | GM35: TRUE | GO35: 400 | GP35: 3.9 | GQ35: 20-20 | GR35: 10 | GS35: 0.9126 | GT35: 0.845 | GV35: PMK /4/6PMK | GW35: PMK /4/6PMK
E36: 8060 | F36: 29 | P36: =IF(R36<>"",fmt(R36,"isomin"),"") -> 2.2 nF | Q36: 29 | R36: =IF(R35="","",IF(fmt(R35*1.3,"iso",,1)>$R$6*$S$7,"",fmt(R35*1.3,"iso",,1))) -> 2200 | T36: =IF(V36<>"",fmt(V36,"isomin"),"") -> 2.2 nF | U36: 29 | V36: =IF(V35="","",IF(fmt(V35*1.3,"iso",,1)>$R$6,"",fmt(V35*1.3,"iso",,1))) -> 2200 | X36: =IF(V36<>"",capa($E$7,$M$7,$H$7,"det",Chart!$H$2,,V36),"") -> X7R262L 1e 2.0c 120µ 522µb 1.05mm 4.1Vµ | Y36: =IF(V36="","",IFERROR(_xlfn.XLOOKUP($E$7&$H$7&$M$7&$V36,#REF!,#REF!),"")) ->  | Z36: =IF(Y36="","",IFERROR(_xlfn.XLOOKUP($E$7&$H$7&$M$7&$V36,#REF!,#REF!),"")) ->  | AA36: =IF(Y36="","",IFERROR(_xlfn.XLOOKUP($E$7&$H$7&$M$7&$V36,#REF!,#REF!),"")) ->  | AB36: =IF(Y36="","",IFERROR(_xlfn.XLOOKUP($E$7&$H$7&$M$7&$V36,#REF!,#REF!),"")) ->  | AC36: =IF(Y36="","",IFERROR(_xlfn.XLOOKUP($E$7&$H$7&$M$7&$V36,#REF!,#REF!),"")) ->  | AD36: =IF(Z36="","",IFERROR(_xlfn.XLOOKUP($E$7&$H$7&$M$7&$V36,#REF!,#REF!),"")) ->  | AF36: ± 0.5% | AH36: 0.005 | AI36: 0.05 | AJ36: 0.08 | AK36: 0.065 | BQ36: 2215 | BT36: 8060 | CE36: SRMC41 | CF36: 1210 | CG36: 5.1 | CH36: 5.1 | CI36: 3.2 | CJ36: 5.08 | CK36: 0.6 | CX36: 2325 | CY36: 5.8 | CZ36: 6.4 | DA36: 1.4 | DB36: 4.1 | DC36: 0.4 | DD36: 0.25 | DE36: 1 | DF36: 1.2 | DG36: 0.22 | DH36: 8 | DI36: =MIN((Size[[#This Row],[long]]^0.5*Size[[#This Row],[larg]]^0.2)/3*0.6+0.16,0.8)*Size[[#This Row],[long]]*Size[[#This Row],[larg]] -> 29.696 | DJ36: 11.95331311 | DK36: 7.179991268 | DL36: 5.113532416 | DM36: 3.972041933 | DN36: 3.276036324 | DO36: 2.77888946 | DP36: 2.381658795 | DS36: 10000 | DT36: =7500/(Size[[#This Row],[long]]*Size[[#This Row],[larg]])^1.1 -> 140.7642916 | DU36: =Size[[#This Row],[nbpc4]]*5.6*5.6/3.6/3.6 -> 340.6148291 | DV36: =Size[[#This Row],[nbpc4]]*7.6*7.6/3.6/3.6 -> 627.3569046 | DW36: =7500/(Size[[#This Row],[long]]*Size[[#This Row],[larg]])^1.1 -> 140.7642916 | GE36: PMK V1 ini | GF36: 1kV- 2,5kV- 4kV | GG36: PMK | GH36: PMK | GI36: 4 | GJ36: 6- 8- 10 | GK36: (73-12)-(134-12)-(216-12) | GL36: 2014-01-08 | GM36: TRUE | GO36: 400 | GP36: 3.9 | GQ36: 20-20 | GR36: 10 | GS36: 1.08 | GT36: 1 | GV36: PMK /4/6- 8- 10PMK | GW36: PMK /4/6- 8- 10PMK
F37: 30 | P37: =IF(R37<>"",fmt(R37,"isomin"),"") -> 2.7 nF | Q37: 30 | R37: =IF(R36="","",IF(fmt(R36*1.3,"iso",,1)>$R$6*$S$7,"",fmt(R36*1.3,"iso",,1))) -> 2700 | T37: =IF(V37<>"",fmt(V37,"isomin"),"") -> 2.7 nF | U37: 30 | V37: =IF(V36="","",IF(fmt(V36*1.3,"iso",,1)>$R$6,"",fmt(V36*1.3,"iso",,1))) -> 2700 | X37: =IF(V37<>"",capa($E$7,$M$7,$H$7,"det",Chart!$H$2,,V37),"") -> X7R262L 1e 2.0c 98µ 539µb 1.04mm 5.1Vµ | Y37: =IF(V37="","",IFERROR(_xlfn.XLOOKUP($E$7&$H$7&$M$7&$V37,#REF!,#REF!),"")) ->  | Z37: =IF(Y37="","",IFERROR(_xlfn.XLOOKUP($E$7&$H$7&$M$7&$V37,#REF!,#REF!),"")) ->  | AA37: =IF(Y37="","",IFERROR(_xlfn.XLOOKUP($E$7&$H$7&$M$7&$V37,#REF!,#REF!),"")) ->  | AB37: =IF(Y37="","",IFERROR(_xlfn.XLOOKUP($E$7&$H$7&$M$7&$V37,#REF!,#REF!),"")) ->  | AC37: =IF(Y37="","",IFERROR(_xlfn.XLOOKUP($E$7&$H$7&$M$7&$V37,#REF!,#REF!),"")) ->  | AD37: =IF(Z37="","",IFERROR(_xlfn.XLOOKUP($E$7&$H$7&$M$7&$V37,#REF!,#REF!),"")) ->  | AF37: ± 1% | AH37: 0.01 | AI37: 0.09321939079 | AJ37: 0.157995627 | AK37: 0.1256075089 | BQ37: 2220 | CE37: SRMC43 | CF37: 1812 | CG37: 6.5 | CH37: 5.8 | CI37: 3.8 | CJ37: 5.08 | CK37: 0.6 | CX37: 2512 | CY37: 6.4 | CZ37: 3 | DA37: 1.4 | DB37: 4.1 | DC37: 0.4 | DD37: 0.25 | DE37: 1 | DF37: 1.2 | DG37: 0.22 | DH37: 8 | DI37: =MIN((Size[[#This Row],[long]]^0.5*Size[[#This Row],[larg]]^0.2)/3*0.6+0.16,0.8)*Size[[#This Row],[long]]*Size[[#This Row],[larg]] -> 15.17367436 | DJ37: 5.520129091 | DK37: 3.35044469 | DL37: 2.392488989 | DM37: 1.853296494 | DN37: 1.502557458 | DO37: 1.252029575 | DP37: 1.060862678 | DS37: 10000 | DT37: =7500/(Size[[#This Row],[long]]*Size[[#This Row],[larg]])^1.1 -> 290.6898795 | DU37: =Size[[#This Row],[nbpc4]]*5.6*5.6/3.6/3.6 -> 703.397733 | DV37: =Size[[#This Row],[nbpc4]]*7.6*7.6/3.6/3.6 -> 1295.543784 | DW37: =7500/(Size[[#This Row],[long]]*Size[[#This Row],[larg]])^1.1 -> 290.6898795 | GE37: 0303 D1 | GF37: 1G 0303-V3 | GG37: 0303 | GH37: SMD | GI37: 4 | GJ37: 1 | GK37: 0303 | GL37: 2012-07-10 | GM37: FALSE | GO37: 400 | GP37: 0.6 | GQ37: 28-30 | GR37: 720 | GS37: 0.2592 | GT37: 0.24 | GV37: 0303/4/1 | GX37: 2.956632031
F38: 31 | P38: =IF(R38<>"",fmt(R38,"isomin"),"") -> 3.3 nF | Q38: 31 | R38: =IF(R37="","",IF(fmt(R37*1.3,"iso",,1)>$R$6*$S$7,"",fmt(R37*1.3,"iso",,1))) -> 3300 | T38: =IF(V38<>"",fmt(V38,"isomin"),"") -> 3.3 nF | U38: 31 | V38: =IF(V37="","",IF(fmt(V37*1.3,"iso",,1)>$R$6,"",fmt(V37*1.3,"iso",,1))) -> 3300 | X38: =IF(V38<>"",capa($E$7,$M$7,$H$7,"det",Chart!$H$2,,V38),"") -> X7R262L 1e 3.0c 120µ 453µb 1.03mm 4.2Vµ | Y38: =IF(V38="","",IFERROR(_xlfn.XLOOKUP($E$7&$H$7&$M$7&$V38,#REF!,#REF!),"")) ->  | Z38: =IF(Y38="","",IFERROR(_xlfn.XLOOKUP($E$7&$H$7&$M$7&$V38,#REF!,#REF!),"")) ->  | AA38: =IF(Y38="","",IFERROR(_xlfn.XLOOKUP($E$7&$H$7&$M$7&$V38,#REF!,#REF!),"")) ->  | AB38: =IF(Y38="","",IFERROR(_xlfn.XLOOKUP($E$7&$H$7&$M$7&$V38,#REF!,#REF!),"")) ->  | AC38: =IF(Y38="","",IFERROR(_xlfn.XLOOKUP($E$7&$H$7&$M$7&$V38,#REF!,#REF!),"")) ->  | AD38: =IF(Z38="","",IFERROR(_xlfn.XLOOKUP($E$7&$H$7&$M$7&$V38,#REF!,#REF!),"")) ->  | AF38: ± 2% | AH38: 0.02 | AI38: 0.1849111663 | AJ38: 0.3098570229 | AK38: 0.2473840946 | BQ38: 2225 | CE38: SRMC44 | CF38: 2220 | CG38: 7.6 | CH38: 7 | CI38: 4.5 | CJ38: 5.08 | CK38: 0.6 | CX38: 2520 | CY38: 6.4 | CZ38: 5.1 | DA38: 1.4 | DB38: 4.1 | DC38: 0.4 | DD38: 0.25 | DE38: 1 | DF38: 1.4 | DG38: 0.22 | DH38: 8 | DI38: =MIN((Size[[#This Row],[long]]^0.5*Size[[#This Row],[larg]]^0.2)/3*0.6+0.16,0.8)*Size[[#This Row],[long]]*Size[[#This Row],[larg]] -> 26.112 | DJ38: 10.26111078 | DK38: 6.178261675 | DL38: 4.402796544 | DM38: 3.417789235 | DN38: 2.807863979 | DO38: 2.372203081 | DP38: 2.027927552 | DS38: 10000 | DT38: =7500/(Size[[#This Row],[long]]*Size[[#This Row],[larg]])^1.1 -> 162.1571483 | DU38: =Size[[#This Row],[nbpc4]]*5.6*5.6/3.6/3.6 -> 392.3802601 | DV38: =Size[[#This Row],[nbpc4]]*7.6*7.6/3.6/3.6 -> 722.7003771 | DW38: =7500/(Size[[#This Row],[long]]*Size[[#This Row],[larg]])^1.1 -> 162.1571483 | GE38: 0303 C1 | GF38: 3G 0303-V2 | GG38: 0303 | GH38: SMD | GI38: 4 | GJ38: 1 | GK38: 0303 | GL38: 2010-10-10 | GM38: FALSE | GO38: 400 | GP38: 1.2 | GQ38: 25-27 | GR38: 720 | GS38: 0.2592 | GT38: 0.24 | GV38: 0303/4/1 | GX38: 2.956632031
F39: 32 | P39: =IF(R39<>"",fmt(R39,"isomin"),"") -> 3.9 nF | Q39: 32 | R39: =IF(R38="","",IF(fmt(R38*1.3,"iso",,1)>$R$6*$S$7,"",fmt(R38*1.3,"iso",,1))) -> 3900 | T39: =IF(V39<>"",fmt(V39,"isomin"),"") -> 3.9 nF | U39: 32 | V39: =IF(V38="","",IF(fmt(V38*1.3,"iso",,1)>$R$6,"",fmt(V38*1.3,"iso",,1))) -> 3900 | X39: =IF(V39<>"",capa($E$7,$M$7,$H$7,"det",Chart!$H$2,,V39),"") -> X7R262L 1e 3.0c 101µ 478µb 1.03mm 4.9Vµ | Y39: =IF(V39="","",IFERROR(_xlfn.XLOOKUP($E$7&$H$7&$M$7&$V39,#REF!,#REF!),"")) ->  | Z39: =IF(Y39="","",IFERROR(_xlfn.XLOOKUP($E$7&$H$7&$M$7&$V39,#REF!,#REF!),"")) ->  | AA39: =IF(Y39="","",IFERROR(_xlfn.XLOOKUP($E$7&$H$7&$M$7&$V39,#REF!,#REF!),"")) ->  | AB39: =IF(Y39="","",IFERROR(_xlfn.XLOOKUP($E$7&$H$7&$M$7&$V39,#REF!,#REF!),"")) ->  | AC39: =IF(Y39="","",IFERROR(_xlfn.XLOOKUP($E$7&$H$7&$M$7&$V39,#REF!,#REF!),"")) ->  | AD39: =IF(Z39="","",IFERROR(_xlfn.XLOOKUP($E$7&$H$7&$M$7&$V39,#REF!,#REF!),"")) ->  | AF39: ± 5% | AH39: 0.05 | AI39: 0.4373117455 | AJ39: 0.6810704597 | AK39: 0.5591911026 | BQ39: 2320 | CE39: SRMC45 | CF39: 3033 | CG39: 10.1 | CH39: 10.2 | CI39: 4.5 | CJ39: 5.08 | CK39: 0.6 | CX39: 2525 | CY39: 6.4 | CZ39: 6.4 | DA39: 1.4 | DB39: 4.1 | DC39: 0.4 | DD39: 0.25 | DE39: 1 | DF39: 1.4 | DG39: 0.22 | DH39: 8 | DI39: =MIN((Size[[#This Row],[long]]^0.5*Size[[#This Row],[larg]]^0.2)/3*0.6+0.16,0.8)*Size[[#This Row],[long]]*Size[[#This Row],[larg]] -> 32.768 | DJ39: 13.4582982 | DK39: 8.068151524 | DL39: 5.743181824 | DM39: 4.463473459 | DN39: 3.693230308 | DO39: 3.143056628 | DP39: 2.699340459 | DS39: 10000 | DT39: =7500/(Size[[#This Row],[long]]*Size[[#This Row],[larg]])^1.1 -> 126.3180232 | DU39: =Size[[#This Row],[nbpc4]]*5.6*5.6/3.6/3.6 -> 305.6584265 | DV39: =Size[[#This Row],[nbpc4]]*7.6*7.6/3.6/3.6 -> 562.9729182 | DW39: =7500/(Size[[#This Row],[long]]*Size[[#This Row],[larg]])^1.1 -> 126.3180232 | GE39: 0303 1G V5-5 | GF39: 0303 1G V5-5 | GG39: 0303 | GH39: SMD | GI39: 4 | GJ39: 1 | GK39: 0303 | GL39: 2018-10-20 | GM39: TRUE | GO39: 500 UMC | GP39: 0.66 | GR39: 5900 | GS39: 0.28728 | GT39: 0.266 | GU39: 500 mesh Ultra Mince Calandré | GV39: 0303/4/1 | GW39: 0303/4/1 | GX39: 1.013261107
F40: 33 | P40: =IF(R40<>"",fmt(R40,"isomin"),"") -> 4.7 nF | Q40: 33 | R40: =IF(R39="","",IF(fmt(R39*1.3,"iso",,1)>$R$6*$S$7,"",fmt(R39*1.3,"iso",,1))) -> 4700 | T40: =IF(V40<>"",fmt(V40,"isomin"),"") -> 4.7 nF | U40: 33 | V40: =IF(V39="","",IF(fmt(V39*1.3,"iso",,1)>$R$6,"",fmt(V39*1.3,"iso",,1))) -> 4700 | X40: =IF(V40<>"",capa($E$7,$M$7,$H$7,"det",Chart!$H$2,,V40),"") -> X7R262L 1e 3.0c 84µ 501µb 1.02mm 6.0Vµ | Y40: =IF(V40="","",IFERROR(_xlfn.XLOOKUP($E$7&$H$7&$M$7&$V40,#REF!,#REF!),"")) ->  | Z40: =IF(Y40="","",IFERROR(_xlfn.XLOOKUP($E$7&$H$7&$M$7&$V40,#REF!,#REF!),"")) ->  | AA40: =IF(Y40="","",IFERROR(_xlfn.XLOOKUP($E$7&$H$7&$M$7&$V40,#REF!,#REF!),"")) ->  | AB40: =IF(Y40="","",IFERROR(_xlfn.XLOOKUP($E$7&$H$7&$M$7&$V40,#REF!,#REF!),"")) ->  | AC40: =IF(Y40="","",IFERROR(_xlfn.XLOOKUP($E$7&$H$7&$M$7&$V40,#REF!,#REF!),"")) ->  | AD40: =IF(Z40="","",IFERROR(_xlfn.XLOOKUP($E$7&$H$7&$M$7&$V40,#REF!,#REF!),"")) ->  | AF40: ± 10% | AH40: 0.1 | AI40: 0.7363964736 | AJ40: 0.9537793709 | AK40: 0.8450879222 | BQ40: 2325 | CE40: SRMC47 | CF40: 2220 | CG40: 8.1 | CH40: 7.1 | CI40: 5 | CJ40: 5.6 | CK40: 0.6 | CX40: 2530 | CY40: 6.4 | CZ40: 7.6 | DA40: 1.5 | DB40: 4.1 | DC40: 0.4 | DD40: 0.25 | DE40: 1 | DF40: 1.4 | DG40: 0.22 | DH40: 8 | DI40: =MIN((Size[[#This Row],[long]]^0.5*Size[[#This Row],[larg]]^0.2)/3*0.6+0.16,0.8)*Size[[#This Row],[long]]*Size[[#This Row],[larg]] -> 38.912 | DJ40: 16.61926332 | DK40: 9.926260964 | DL40: 7.059103744 | DM40: 5.491634995 | DN40: 4.571658468 | DO40: 3.914532376 | DP40: 3.374811819 | DS40: 10000 | DT40: =7500/(Size[[#This Row],[long]]*Size[[#This Row],[larg]])^1.1 -> 104.5606659 | DU40: =Size[[#This Row],[nbpc4]]*5.6*5.6/3.6/3.6 -> 253.0109941 | DV40: =Size[[#This Row],[nbpc4]]*7.6*7.6/3.6/3.6 -> 466.0049432 | DW40: =7500/(Size[[#This Row],[long]]*Size[[#This Row],[larg]])^1.1 -> 104.5606659 | GE40: 0303 G1 | GF40: 1G 0303-V4 | GG40: 0303 | GH40: SMD | GI40: 4 | GJ40: 1 | GK40: 0303 | GL40: 2016-07-20 | GM40: TRUE | GO40: 400 UMC | GP40: 0.66 | GR40: 5900 | GS40: 0.28728 | GT40: 0.266 | GU40: 400 mesh Ultra Mince Calandré | GV40: 0303/4/1 | GW40: 0303/4/1 | GX40: 1.013261107
E41: =IF(HLOOKUP($B$7,$BT$7:$BY$89,F41+1,FALSE)="","",HLOOKUP($B$7,$BT$7:$BY$89,F41+1,FALSE)) ->  | F41: 34 | P41: =IF(R41<>"",fmt(R41,"isomin"),"") -> 5.6 nF | Q41: 34 | R41: =IF(R40="","",IF(fmt(R40*1.3,"iso",,1)>$R$6*$S$7,"",fmt(R40*1.3,"iso",,1))) -> 5600 | T41: =IF(V41<>"",fmt(V41,"isomin"),"") -> 5.6 nF | U41: 34 | V41: =IF(V40="","",IF(fmt(V40*1.3,"iso",,1)>$R$6,"",fmt(V40*1.3,"iso",,1))) -> 5600 | X41: =IF(V41<>"",capa($E$7,$M$7,$H$7,"det",Chart!$H$2,,V41),"") -> X7R262L 1e 4.0c 94µ 437µb 1.02mm 5.3Vµ | Y41: =IF(V41="","",IFERROR(_xlfn.XLOOKUP($E$7&$H$7&$M$7&$V41,#REF!,#REF!),"")) ->  | Z41: =IF(Y41="","",IFERROR(_xlfn.XLOOKUP($E$7&$H$7&$M$7&$V41,#REF!,#REF!),"")) ->  | AA41: =IF(Y41="","",IFERROR(_xlfn.XLOOKUP($E$7&$H$7&$M$7&$V41,#REF!,#REF!),"")) ->  | AB41: =IF(Y41="","",IFERROR(_xlfn.XLOOKUP($E$7&$H$7&$M$7&$V41,#REF!,#REF!),"")) ->  | AC41: =IF(Y41="","",IFERROR(_xlfn.XLOOKUP($E$7&$H$7&$M$7&$V41,#REF!,#REF!),"")) ->  | AD41: =IF(Z41="","",IFERROR(_xlfn.XLOOKUP($E$7&$H$7&$M$7&$V41,#REF!,#REF!),"")) ->  | AF41: ± 20% | AH41: 0.2 | AI41: 0.9540440668 | AJ41: 0.9999331289 | AK41: 0.9769885979 | BQ41: 2512 | CE41: SRMC48 | CF41: 1206 | CG41: 5.1 | CH41: 3.8 | CI41: 4 | CJ41: 6.4 | CK41: 0.6 | CX41: 2824 | CY41: 7.1 | CZ41: 6.1 | DA41: 1.5 | DB41: 4.1 | DC41: 0.4 | DD41: 0.25 | DE41: 1 | DF41: 1.4 | DG41: 0.22 | DH41: 8 | DI41: =MIN((Size[[#This Row],[long]]^0.5*Size[[#This Row],[larg]]^0.2)/3*0.6+0.16,0.8)*Size[[#This Row],[long]]*Size[[#This Row],[larg]] -> 34.648 | DJ41: 14.40414374 | DK41: 8.625134528 | DL41: 6.137823904 | DM41: 4.771667123 | DN41: 3.955785259 | DO41: 3.373012498 | DP41: 2.900349432 | DS41: 10000 | DT41: =7500/(Size[[#This Row],[long]]*Size[[#This Row],[larg]])^1.1 -> 118.7994038 | DU41: =Size[[#This Row],[nbpc4]]*5.6*5.6/3.6/3.6 -> 287.4652241 | DV41: =Size[[#This Row],[nbpc4]]*7.6*7.6/3.6/3.6 -> 529.4640097 | DW41: =7500/(Size[[#This Row],[long]]*Size[[#This Row],[larg]])^1.1 -> 118.7994038 | DX41: 43.21 | DY41: =+DX41*0.75*0.75 -> 24.305625 | DZ41: =+DX41*0.84*0.84 -> 30.488976 | GE41: 0303 F1 | GF41: 1G 0303-V4 | GG41: 0303 | GH41: SMD | GI41: 4 | GJ41: 1 | GK41: 0303 | GL41: 2016-07-20 | GM41: FALSE | GO41: 400 SDC | GP41: 0.66 | GQ41: 24-26 | GR41: 5900 | GS41: 0.3389904 | GT41: 0.31388 | GV41: 0303/4/1 | GX41: 1.013261107
F42: 35 | P42: =IF(R42<>"",fmt(R42,"isomin"),"") -> 6.8 nF | Q42: 35 | R42: =IF(R41="","",IF(fmt(R41*1.3,"iso",,1)>$R$6*$S$7,"",fmt(R41*1.3,"iso",,1))) -> 6800 | T42: =IF(V42<>"",fmt(V42,"isomin"),"") -> 6.8 nF | U42: 35 | V42: =IF(V41="","",IF(fmt(V41*1.3,"iso",,1)>$R$6,"",fmt(V41*1.3,"iso",,1))) -> 6800 | X42: =IF(V42<>"",capa($E$7,$M$7,$H$7,"det",Chart!$H$2,,V42),"") -> X7R262L 1e 5.0c 97µ 381µb 1.02mm 5.2Vµ | Y42: =IF(V42="","",IFERROR(_xlfn.XLOOKUP($E$7&$H$7&$M$7&$V42,#REF!,#REF!),"")) ->  | Z42: =IF(Y42="","",IFERROR(_xlfn.XLOOKUP($E$7&$H$7&$M$7&$V42,#REF!,#REF!),"")) ->  | AA42: =IF(Y42="","",IFERROR(_xlfn.XLOOKUP($E$7&$H$7&$M$7&$V42,#REF!,#REF!),"")) ->  | AB42: =IF(Y42="","",IFERROR(_xlfn.XLOOKUP($E$7&$H$7&$M$7&$V42,#REF!,#REF!),"")) ->  | AC42: =IF(Y42="","",IFERROR(_xlfn.XLOOKUP($E$7&$H$7&$M$7&$V42,#REF!,#REF!),"")) ->  | AD42: =IF(Z42="","",IFERROR(_xlfn.XLOOKUP($E$7&$H$7&$M$7&$V42,#REF!,#REF!),"")) ->  | BQ42: 2520 | CE42: SRMC49 | CF42: 2520 | CG42: 9.4 | CH42: 7.6 | CI42: 5 | CJ42: 7 | CK42: 0.6 | CX42: 2825 | CY42: 7.1 | CZ42: 6.35 | DA42: 1.6 | DB42: 4.1 | DC42: 0.4 | DD42: 0.25 | DE42: 1 | DF42: 1.6 | DG42: 0.22 | DH42: 8 | DI42: =MIN((Size[[#This Row],[long]]^0.5*Size[[#This Row],[larg]]^0.2)/3*0.6+0.16,0.8)*Size[[#This Row],[long]]*Size[[#This Row],[larg]] -> 36.068 | DJ42: 15.131055 | DK42: 9.052603124 | DL42: 6.440590624 | DM42: 5.008200499 | DN42: 4.157742708 | DO42: 3.550272856 | DP42: 3.055494609 | DS42: 10000 | DT42: =7500/(Size[[#This Row],[long]]*Size[[#This Row],[larg]])^1.1 -> 113.6647973 | DU42: =Size[[#This Row],[nbpc4]]*5.6*5.6/3.6/3.6 -> 275.0407442 | DV42: =Size[[#This Row],[nbpc4]]*7.6*7.6/3.6/3.6 -> 506.5801462 | DW42: =7500/(Size[[#This Row],[long]]*Size[[#This Row],[larg]])^1.1 -> 113.6647973 | GE42: 0303 E1 | GF42: 1G 0303-V4 | GG42: 0303 | GH42: SMD | GI42: 4 | GJ42: 1 | GK42: 0303 | GL42: 2016-02-11 | GM42: FALSE | GO42: 400 | GP42: 0.66 | GR42: 5900 | GS42: 0.3399960231 | GT42: 0.3148111325 | GV42: 0303/4/1 | GX42: 1.013261107
F43: 36 | P43: =IF(R43<>"",fmt(R43,"isomin"),"") -> 8.2 nF | Q43: 36 | R43: =IF(R42="","",IF(fmt(R42*1.3,"iso",,1)>$R$6*$S$7,"",fmt(R42*1.3,"iso",,1))) -> 8200 | T43: =IF(V43<>"",fmt(V43,"isomin"),"") -> 8.2 nF | U43: 36 | V43: =IF(V42="","",IF(fmt(V42*1.3,"iso",,1)>$R$6,"",fmt(V42*1.3,"iso",,1))) -> 8200 | X43: =IF(V43<>"",capa($E$7,$M$7,$H$7,"det",Chart!$H$2,,V43),"") -> X7R262L 1e 5.0c 80µ 421µb 1.01mm 6.3Vµ | Y43: =IF(V43="","",IFERROR(_xlfn.XLOOKUP($E$7&$H$7&$M$7&$V43,#REF!,#REF!),"")) ->  | Z43: =IF(Y43="","",IFERROR(_xlfn.XLOOKUP($E$7&$H$7&$M$7&$V43,#REF!,#REF!),"")) ->  | AA43: =IF(Y43="","",IFERROR(_xlfn.XLOOKUP($E$7&$H$7&$M$7&$V43,#REF!,#REF!),"")) ->  | AB43: =IF(Y43="","",IFERROR(_xlfn.XLOOKUP($E$7&$H$7&$M$7&$V43,#REF!,#REF!),"")) ->  | AC43: =IF(Y43="","",IFERROR(_xlfn.XLOOKUP($E$7&$H$7&$M$7&$V43,#REF!,#REF!),"")) ->  | AD43: =IF(Z43="","",IFERROR(_xlfn.XLOOKUP($E$7&$H$7&$M$7&$V43,#REF!,#REF!),"")) ->  | BQ43: 2525 | CE43: SRMC52 | CF43: 1812 | CG43: 6.6 | CH43: 5.8 | CI43: 4 | CJ43: 7.62 | CK43: 0.6 | CX43: 2924 | CY43: =ROUND(LEFT(CX43,2)*2.54/10,1) -> 7.4 | CZ43: =ROUND(RIGHT(CX43,2)*2.54/10,1) -> 6.1 | DA43: 1.6 | DB43: 4.1 | DC43: 0.4 | DD43: 0.25 | DE43: 1 | DF43: 1.6 | DG43: 0.22 | DH43: 8 | DI43: =MIN((Size[[#This Row],[long]]^0.5*Size[[#This Row],[larg]]^0.2)/3*0.6+0.16,0.8)*Size[[#This Row],[long]]*Size[[#This Row],[larg]] -> 36.112 | DJ43: =$DI43/DJ$3*IF($DI43<10,DJ$1,DJ$1+MIN(($DI43-10)/30,1)*(DJ$2-DJ$1)) -> 15.15375078 | DK43: 9.065941675 | DL43: 6.450036544 | DM43: 5.015581235 | DN43: 4.164050645 | DO43: 3.55581451 | DP43: 3.060347552 | DS43: 10000 | DT43: =7500/(Size[[#This Row],[long]]*Size[[#This Row],[larg]])^1.1 -> 113.5124646 | DU43: =Size[[#This Row],[nbpc4]]*5.6*5.6/3.6/3.6 -> 274.6721365 | DV43: =Size[[#This Row],[nbpc4]]*7.6*7.6/3.6/3.6 -> 505.901231 | DW43: =7500/(Size[[#This Row],[long]]*Size[[#This Row],[larg]])^1.1 -> 113.5124646 | GE43: 0402 1G400-1 | GF43: 1G 0402 | GG43: 0402 | GH43: SMD | GI43: 4 | GJ43: 1 | GK43: 0402 | GL43: 2019-06-03 | GM43: TRUE | GO43: 400 UMC | GP43: 1.19 | GQ43: 19-21 | GR43: 6400 | GS43: 0.293112 | GT43: 0.2714 | GV43: 0402/4/1 | GW43: 0402/4/1 | GX43: 1.250483985
F44: 37 | P44: =IF(R44<>"",fmt(R44,"isomin"),"") -> 10 nF | Q44: 37 | R44: =IF(R43="","",IF(fmt(R43*1.3,"iso",,1)>$R$6*$S$7,"",fmt(R43*1.3,"iso",,1))) -> 10000 | T44: =IF(V44<>"",fmt(V44,"isomin"),"") -> 10 nF | U44: 37 | V44: =IF(V43="","",IF(fmt(V43*1.3,"iso",,1)>$R$6,"",fmt(V43*1.3,"iso",,1))) -> 10000 | X44: =IF(V44<>"",capa($E$7,$M$7,$H$7,"det",Chart!$H$2,,V44),"") -> X7R262L 1e 6.0c 79µ 383µb 1.01mm 6.4Vµ | Y44: =IF(V44="","",IFERROR(_xlfn.XLOOKUP($E$7&$H$7&$M$7&$V44,#REF!,#REF!),"")) ->  | Z44: =IF(Y44="","",IFERROR(_xlfn.XLOOKUP($E$7&$H$7&$M$7&$V44,#REF!,#REF!),"")) ->  | AA44: =IF(Y44="","",IFERROR(_xlfn.XLOOKUP($E$7&$H$7&$M$7&$V44,#REF!,#REF!),"")) ->  | AB44: =IF(Y44="","",IFERROR(_xlfn.XLOOKUP($E$7&$H$7&$M$7&$V44,#REF!,#REF!),"")) ->  | AC44: =IF(Y44="","",IFERROR(_xlfn.XLOOKUP($E$7&$H$7&$M$7&$V44,#REF!,#REF!),"")) ->  | AD44: =IF(Z44="","",IFERROR(_xlfn.XLOOKUP($E$7&$H$7&$M$7&$V44,#REF!,#REF!),"")) ->  | AF44: A | AG44: 0 | AH44: 0.05 | BQ44: 2530 | CE44: SRMC54 | CF44: 2520 | CG44: 9 | CH44: 7.5 | CI44: 4 | CJ44: 7.62 | CK44: 0.6 | CX44: 3010 | CY44: =ROUND(LEFT(CX44,2)*2.54/10,1) -> 7.6 | CZ44: =ROUND(RIGHT(CX44,2)*2.54/10,1) -> 2.5 | DA44: 1.6 | DB44: 4.1 | DC44: 0.4 | DD44: 0.5 | DE44: 1.2 | DF44: 1.6 | DG44: 0.23 | DH44: 8 | DI44: =MIN((Size[[#This Row],[long]]^0.5*Size[[#This Row],[larg]]^0.2)/3*0.6+0.16,0.8)*Size[[#This Row],[long]]*Size[[#This Row],[larg]] -> 15.2 | DJ44: 5.530773333 | DK44: 3.356835556 | DL44: 2.39704 | DM44: 1.856832 | DN44: 1.505475556 | DO44: 1.254506667 | DP44: 1.062986667 | DS44: 10000 | DT44: =7500/(Size[[#This Row],[long]]*Size[[#This Row],[larg]])^1.1 -> 294.0575282 | DU44: =Size[[#This Row],[nbpc4]]*5.6*5.6/3.6/3.6 -> 711.5466115 | DV44: =Size[[#This Row],[nbpc4]]*7.6*7.6/3.6/3.6 -> 1310.552688 | DW44: =7500/(Size[[#This Row],[long]]*Size[[#This Row],[larg]])^1.1 -> 294.0575282 | GE44: 0402 1G325-1 | GF44: 1G 0402 | GG44: 0402 | GH44: SMD | GI44: 4 | GJ44: 1 | GK44: 0402 | GL44: 2019-05-22 | GM44: TRUE | GO44: 325 | GP44: 1.19 | GQ44: 28-30 | GR44: 6400 | GS44: 0.293112 | GT44: 0.2714 | GV44: 0402/4/1 | GW44: 0402/4/1 | GX44: 1.250483985
F45: 38 | P45: =IF(R45<>"",fmt(R45,"isomin"),"") -> 12 nF | Q45: 38 | R45: =IF(R44="","",IF(fmt(R44*1.3,"iso",,1)>$R$6*$S$7,"",fmt(R44*1.3,"iso",,1))) -> 12000 | T45: =IF(V45<>"",fmt(V45,"isomin"),"") -> 12 nF | U45: 38 | V45: =IF(V44="","",IF(fmt(V44*1.3,"iso",,1)>$R$6,"",fmt(V44*1.3,"iso",,1))) -> 12000 | X45: =IF(V45<>"",capa($E$7,$M$7,$H$7,"det",Chart!$H$2,,V45),"") -> X7R262L 1e 7.0c 76µ 351µb 1.01mm 6.5Vµ | Y45: =IF(V45="","",IFERROR(_xlfn.XLOOKUP($E$7&$H$7&$M$7&$V45,#REF!,#REF!),"")) ->  | Z45: =IF(Y45="","",IFERROR(_xlfn.XLOOKUP($E$7&$H$7&$M$7&$V45,#REF!,#REF!),"")) ->  | AA45: =IF(Y45="","",IFERROR(_xlfn.XLOOKUP($E$7&$H$7&$M$7&$V45,#REF!,#REF!),"")) ->  | AB45: =IF(Y45="","",IFERROR(_xlfn.XLOOKUP($E$7&$H$7&$M$7&$V45,#REF!,#REF!),"")) ->  | AC45: =IF(Y45="","",IFERROR(_xlfn.XLOOKUP($E$7&$H$7&$M$7&$V45,#REF!,#REF!),"")) ->  | AD45: =IF(Z45="","",IFERROR(_xlfn.XLOOKUP($E$7&$H$7&$M$7&$V45,#REF!,#REF!),"")) ->  | AF45: B | AG45: 0 | AH45: 0.1 | BQ45: 2824 | CE45: SRMC58 | CF45: 3033 | CG45: 11.9 | CH45: 10.2 | CI45: 5 | CJ45: 9.5 | CK45: 0.6 | CX45: 3020 | CY45: =ROUND(LEFT(CX45,2)*2.54/10,1) -> 7.6 | CZ45: =ROUND(RIGHT(CX45,2)*2.54/10,1) -> 5.1 | DA45: 1.6 | DB45: 4.1 | DC45: 0.4 | DD45: 0.5 | DE45: 1.2 | DF45: 1.6 | DG45: 0.23 | DH45: 8 | DI45: =MIN((Size[[#This Row],[long]]^0.5*Size[[#This Row],[larg]]^0.2)/3*0.6+0.16,0.8)*Size[[#This Row],[long]]*Size[[#This Row],[larg]] -> 31.008 | DJ45: 12.5899095 | DK45: 7.555974315 | DL45: 5.380136064 | DM45: 4.180076851 | DN45: 3.452416939 | DO45: 2.932659858 | DP45: 2.515699712 | DS45: 10000 | DT45: =7500/(Size[[#This Row],[long]]*Size[[#This Row],[larg]])^1.1 -> 134.2267634 | DU45: =Size[[#This Row],[nbpc4]]*5.6*5.6/3.6/3.6 -> 324.795625 | DV45: =Size[[#This Row],[nbpc4]]*7.6*7.6/3.6/3.6 -> 598.2205134 | DW45: =7500/(Size[[#This Row],[long]]*Size[[#This Row],[larg]])^1.1 -> 134.2267634 | GE45: 0402 A1 | GF45: 1G 0402 | GG45: 0402 | GH45: SMD | GI45: 4 | GJ45: 1 | GK45: 0402 | GL45: 2011-12-09 | GM45: TRUE | GO45: 325 | GP45: 1.19 | GQ45: 26-29 | GR45: 6400 | GS45: 0.2826048237 | GT45: 0.284989671 | GV45: 0402/4/1 | GW45: 0402/4/1 | GX45: 1.250483985
F46: 39 | P46: =IF(R46<>"",fmt(R46,"isomin"),"") -> 15 nF | Q46: 39 | R46: =IF(R45="","",IF(fmt(R45*1.3,"iso",,1)>$R$6*$S$7,"",fmt(R45*1.3,"iso",,1))) -> 15000 | T46: =IF(V46<>"",fmt(V46,"isomin"),"") -> 15 nF | U46: 39 | V46: =IF(V45="","",IF(fmt(V45*1.3,"iso",,1)>$R$6,"",fmt(V45*1.3,"iso",,1))) -> 15000 | X46: =IF(V46<>"",capa($E$7,$M$7,$H$7,"det",Chart!$H$2,,V46),"") -> X7R262L 1e 8.0c 70µ 338µb 1.01mm 7.2Vµ | Y46: =IF(V46="","",IFERROR(_xlfn.XLOOKUP($E$7&$H$7&$M$7&$V46,#REF!,#REF!),"")) ->  | Z46: =IF(Y46="","",IFERROR(_xlfn.XLOOKUP($E$7&$H$7&$M$7&$V46,#REF!,#REF!),"")) ->  | AA46: =IF(Y46="","",IFERROR(_xlfn.XLOOKUP($E$7&$H$7&$M$7&$V46,#REF!,#REF!),"")) ->  | AB46: =IF(Y46="","",IFERROR(_xlfn.XLOOKUP($E$7&$H$7&$M$7&$V46,#REF!,#REF!),"")) ->  | AC46: =IF(Y46="","",IFERROR(_xlfn.XLOOKUP($E$7&$H$7&$M$7&$V46,#REF!,#REF!),"")) ->  | AD46: =IF(Z46="","",IFERROR(_xlfn.XLOOKUP($E$7&$H$7&$M$7&$V46,#REF!,#REF!),"")) ->  | AF46: C | AG46: 0 | AH46: 0.25 | BQ46: 2825 | CE46: SRMC60 | CF46: 3033 | CG46: 10 | CH46: 10 | CI46: 5 | CJ46: 10.16 | CK46: 0.6 | CX46: 3024 | CY46: =ROUND(LEFT(CX46,2)*2.54/10,1) -> 7.6 | CZ46: =ROUND(RIGHT(CX46,2)*2.54/10,1) -> 6.1 | DA46: 1.7 | DB46: 4.1 | DC46: 0.4 | DD46: 0.5 | DE46: 1.2 | DF46: 1.6 | DG46: 0.23 | DH46: 8 | DI46: =MIN((Size[[#This Row],[long]]^0.5*Size[[#This Row],[larg]]^0.2)/3*0.6+0.16,0.8)*Size[[#This Row],[long]]*Size[[#This Row],[larg]] -> 37.088 | DJ46: 15.65983932 | DK46: 9.363252964 | DL46: =$DI46/DL$3*IF($DI46<10,DL$1,DL$1+MIN(($DI46-10)/30,1)*(DL$2-DL$1)) -> 6.660559744 | DM46: 5.180095795 | DN46: 4.304746468 | DO46: 3.679496948 | DP46: 3.168699819 | DS46: 12000 | DT46: =7500/(Size[[#This Row],[long]]*Size[[#This Row],[larg]])^1.1 -> 110.2309356 | DU46: =Size[[#This Row],[nbpc4]]*5.6*5.6/3.6/3.6 -> 266.7316465 | DV46: =Size[[#This Row],[nbpc4]]*7.6*7.6/3.6/3.6 -> 491.2761449 | DW46: =7500/(Size[[#This Row],[long]]*Size[[#This Row],[larg]])^1.1 -> 110.2309356 | GE46: 0402 B1 | GF46: 1G 0402 | GG46: 0402 | GH46: SMD | GI46: 4 | GJ46: 1 | GK46: 0402 | GL46: 2011-11-02 | GM46: TRUE | GO46: 400 | GP46: 1.19 | GQ46: 27-29 | GR46: 6400 | GS46: 0.2845690263 | GT46: 0.3096955637 | GV46: 0402/4/1 | GW46: 0402/4/1 | GX46: 1.250483985
F47: 40 | P47: =IF(R47<>"",fmt(R47,"isomin"),"") -> 18 nF | Q47: 40 | R47: =IF(R46="","",IF(fmt(R46*1.3,"iso",,1)>$R$6*$S$7,"",fmt(R46*1.3,"iso",,1))) -> 18000 | T47: =IF(V47<>"",fmt(V47,"isomin"),"") -> 18 nF | U47: 40 | V47: =IF(V46="","",IF(fmt(V46*1.3,"iso",,1)>$R$6,"",fmt(V46*1.3,"iso",,1))) -> 18000 | X47: =IF(V47<>"",capa($E$7,$M$7,$H$7,"det",Chart!$H$2,,V47),"") -> X7R262L 1e 10.0c 73µ 272µb 1.04mm 6.9Vµ | Y47: =IF(V47="","",IFERROR(_xlfn.XLOOKUP($E$7&$H$7&$M$7&$V47,#REF!,#REF!),"")) ->  | Z47: =IF(Y47="","",IFERROR(_xlfn.XLOOKUP($E$7&$H$7&$M$7&$V47,#REF!,#REF!),"")) ->  | AA47: =IF(Y47="","",IFERROR(_xlfn.XLOOKUP($E$7&$H$7&$M$7&$V47,#REF!,#REF!),"")) ->  | AB47: =IF(Y47="","",IFERROR(_xlfn.XLOOKUP($E$7&$H$7&$M$7&$V47,#REF!,#REF!),"")) ->  | AC47: =IF(Y47="","",IFERROR(_xlfn.XLOOKUP($E$7&$H$7&$M$7&$V47,#REF!,#REF!),"")) ->  | AD47: =IF(Z47="","",IFERROR(_xlfn.XLOOKUP($E$7&$H$7&$M$7&$V47,#REF!,#REF!),"")) ->  | AF47: D | AG47: 0 | AH47: 0.5 | BQ47: 2924 | CE47: SRMC63 | CF47: 4040 | CG47: 12.7 | CH47: 12.3 | CI47: 5 | CJ47: 10.16 | CK47: 0.6 | CX47: 3025 | CY47: =ROUND(LEFT(CX47,2)*2.54/10,1) -> 7.6 | CZ47: =ROUND(RIGHT(CX47,2)*2.54/10,1) -> 6.4 | DA47: 1.7 | DB47: 4.1 | DC47: 0.4 | DD47: 0.5 | DE47: 1.2 | DF47: 1.6 | DG47: 0.23 | DH47: 8 | DI47: =MIN((Size[[#This Row],[long]]^0.5*Size[[#This Row],[larg]]^0.2)/3*0.6+0.16,0.8)*Size[[#This Row],[long]]*Size[[#This Row],[larg]] -> 38.912 | DJ47: 16.61926332 | DK47: 9.926260964 | DL47: 7.059103744 | DM47: 5.491634995 | DN47: 4.571658468 | DO47: 3.914532376 | DP47: 3.374811819 | DS47: 12000 | DT47: =7500/(Size[[#This Row],[long]]*Size[[#This Row],[larg]])^1.1 -> 104.5606659 | DU47: =Size[[#This Row],[nbpc4]]*5.6*5.6/3.6/3.6 -> 253.0109941 | DV47: =Size[[#This Row],[nbpc4]]*7.6*7.6/3.6/3.6 -> 466.0049432 | DW47: =7500/(Size[[#This Row],[long]]*Size[[#This Row],[larg]])^1.1 -> 104.5606659 | DX47: 71.1 | DY47: =+DX47*0.75*0.75 -> 39.99375 | DZ47: =+DX47*0.84*0.84 -> 50.16816 | GE47: 0504 A1 | GF47: 1G 0504 | GG47: 0504 | GH47: SMD | GI47: 4 | GJ47: 1 | GK47: 0504 | GL47: 2011-02-16 | GM47: TRUE | GO47: 325 | GP47: 1.6 | GQ47: 26-28 | GR47: 3850 | GS47: 0.8740552967 | GT47: 0.8968 | GV47: 0504/4/1 | GW47: 0504/4/1 | GX47: 0.6281625047
F48: 41 | P48: =IF(R48<>"",fmt(R48,"isomin"),"") -> 22 nF | Q48: 41 | R48: =IF(R47="","",IF(fmt(R47*1.3,"iso",,1)>$R$6*$S$7,"",fmt(R47*1.3,"iso",,1))) -> 22000 | T48: =IF(V48<>"",fmt(V48,"isomin"),"") -> 22 nF | U48: 41 | V48: =IF(V47="","",IF(fmt(V47*1.3,"iso",,1)>$R$6,"",fmt(V47*1.3,"iso",,1))) -> 22000 | X48: =IF(V48<>"",capa($E$7,$M$7,$H$7,"det",Chart!$H$2,,V48),"") -> X7R262L 1e 11.0c 65µ 271µb 1.03mm 7.6Vµ | Y48: =IF(V48="","",IFERROR(_xlfn.XLOOKUP($E$7&$H$7&$M$7&$V48,#REF!,#REF!),"")) ->  | Z48: =IF(Y48="","",IFERROR(_xlfn.XLOOKUP($E$7&$H$7&$M$7&$V48,#REF!,#REF!),"")) ->  | AA48: =IF(Y48="","",IFERROR(_xlfn.XLOOKUP($E$7&$H$7&$M$7&$V48,#REF!,#REF!),"")) ->  | AB48: =IF(Y48="","",IFERROR(_xlfn.XLOOKUP($E$7&$H$7&$M$7&$V48,#REF!,#REF!),"")) ->  | AC48: =IF(Y48="","",IFERROR(_xlfn.XLOOKUP($E$7&$H$7&$M$7&$V48,#REF!,#REF!),"")) ->  | AD48: =IF(Z48="","",IFERROR(_xlfn.XLOOKUP($E$7&$H$7&$M$7&$V48,#REF!,#REF!),"")) ->  | AF48: E | AG48: 0.005 | BQ48: 3010 | CE48: SRMC68 | CF48: 4540 | CG48: 14.5 | CH48: 12.7 | CI48: 5 | CJ48: 12 | CK48: 0.6 | CX48: 3033 | CY48: 7.6 | CZ48: 8.4 | DA48: 1.7 | DB48: 4.1 | DC48: 0.4 | DD48: 0.5 | DE48: 1.2 | DF48: 1.6 | DG48: 0.23 | DH48: 10 | DI48: =MIN((Size[[#This Row],[long]]^0.5*Size[[#This Row],[larg]]^0.2)/3*0.6+0.16,0.8)*Size[[#This Row],[long]]*Size[[#This Row],[larg]] -> 51.072 | DJ48: 21.96096 | DK48: 13.10848 | DL48: 9.32064 | DM48: 7.252224 | DN48: 6.04352 | DO48: 5.18016 | DP48: 4.4688 | DQ48: =$DI48/DQ$3*IF($DI48<10,DQ$1,DQ$1+MIN(($DI48-10)/30,1)*(DQ$2-DQ$1)) -> 3.972266667 | DR48: 3.523968 | DS48: 12000 | DT48: =7500/(Size[[#This Row],[long]]*Size[[#This Row],[larg]])^1.1 -> 77.52809223 | DU48: =Size[[#This Row],[nbpc4]]*5.6*5.6/3.6/3.6 -> 187.5988405 | DV48: =Size[[#This Row],[nbpc4]]*7.6*7.6/3.6/3.6 -> 345.5264357 | DW48: =7500/(Size[[#This Row],[long]]*Size[[#This Row],[larg]])^1.1 -> 77.52809223 | GE48: 0508 A2 | GF48: 1G 0508 V2 | GG48: 0508 | GH48: SMD | GI48: 4 | GJ48: 1 | GK48: 0508 | GL48: 2015-07-31 | GM48: TRUE | GO48: 510 | GP48: 0.55 | GQ48: 28-30 | GR48: 1580 | GS48: 0.864 | GT48: 0.8 | GU48: Vertical layer | GV48: 0508/4/1 | GW48: 0508/4/1 | GX48: 0.8847243397
F49: 42 | P49: =IF(R49<>"",fmt(R49,"isomin"),"") -> 27 nF | Q49: 42 | R49: =IF(R48="","",IF(fmt(R48*1.3,"iso",,1)>$R$6*$S$7,"",fmt(R48*1.3,"iso",,1))) -> 27000 | T49: =IF(V49<>"",fmt(V49,"isomin"),"") -> 27 nF | U49: 42 | V49: =IF(V48="","",IF(fmt(V48*1.3,"iso",,1)>$R$6,"",fmt(V48*1.3,"iso",,1))) -> 27000 | X49: =IF(V49<>"",capa($E$7,$M$7,$H$7,"det",Chart!$H$2,,V49),"") -> X7R262L 1e 13.0c 63µ 271µb 1.11mm 7.9Vµ | Y49: =IF(V49="","",IFERROR(_xlfn.XLOOKUP($E$7&$H$7&$M$7&$V49,#REF!,#REF!),"")) ->  | Z49: =IF(Y49="","",IFERROR(_xlfn.XLOOKUP($E$7&$H$7&$M$7&$V49,#REF!,#REF!),"")) ->  | AA49: =IF(Y49="","",IFERROR(_xlfn.XLOOKUP($E$7&$H$7&$M$7&$V49,#REF!,#REF!),"")) ->  | AB49: =IF(Y49="","",IFERROR(_xlfn.XLOOKUP($E$7&$H$7&$M$7&$V49,#REF!,#REF!),"")) ->  | AC49: =IF(Y49="","",IFERROR(_xlfn.XLOOKUP($E$7&$H$7&$M$7&$V49,#REF!,#REF!),"")) ->  | AD49: =IF(Z49="","",IFERROR(_xlfn.XLOOKUP($E$7&$H$7&$M$7&$V49,#REF!,#REF!),"")) ->  | AF49: F | AG49: 0.01 | BQ49: 3020 | CE49: SRMC72 | CF49: 3640 | CG49: 12 | CH49: 12.5 | CI49: 5 | CJ49: 12.7 | CK49: 0.6 | CX49: 3040 | CY49: =ROUND(LEFT(CX49,2)*2.54/10,1) -> 7.6 | CZ49: =ROUND(RIGHT(CX49,2)*2.54/10,1) -> 10.2 | DA49: 1.7 | DB49: 4.1 | DC49: 0.4 | DD49: 0.5 | DE49: 1.2 | DF49: 1.6 | DG49: 0.23 | DH49: 10 | DI49: =MIN((Size[[#This Row],[long]]^0.5*Size[[#This Row],[larg]]^0.2)/3*0.6+0.16,0.8)*Size[[#This Row],[long]]*Size[[#This Row],[larg]] -> 62.016 | DJ49: 26.66688 | DK49: 15.91744 | DL49: 11.31792 | DM49: 8.806272 | DN49: 7.33856 | DO49: 6.290194286 | DP49: 5.4264 | DQ49: 4.823466667 | DR49: 4.279104 | DS49: 12000 | DT49: =7500/(Size[[#This Row],[long]]*Size[[#This Row],[larg]])^1.1 -> 62.6189993 | DU49: =Size[[#This Row],[nbpc4]]*5.6*5.6/3.6/3.6 -> 151.5225168 | DV49: =Size[[#This Row],[nbpc4]]*7.6*7.6/3.6/3.6 -> 279.0797376 | DW49: =7500/(Size[[#This Row],[long]]*Size[[#This Row],[larg]])^1.1 -> 62.6189993 | GE49: 0508 A1 | GF49: 1G 0508 V1 | GG49: 0508 | GH49: SMD | GI49: 4 | GJ49: 1 | GK49: 0508 | GL49: 2015-07-01 | GM49: FALSE | GO49: 510 | GP49: 0.5 | GQ49: 15-25 | GR49: 1580 | GS49: 1.08324 | GT49: 1.003 | GV49: 0508/4/1 | GX49: 0.8847243397
F50: 43 | P50: =IF(R50<>"",fmt(R50,"isomin"),"") -> 33 nF | Q50: 43 | R50: =IF(R49="","",IF(fmt(R49*1.3,"iso",,1)>$R$6*$S$7,"",fmt(R49*1.3,"iso",,1))) -> 33000 | T50: =IF(V50<>"",fmt(V50,"isomin"),"") -> 33 nF | U50: 43 | V50: =IF(V49="","",IF(fmt(V49*1.3,"iso",,1)>$R$6,"",fmt(V49*1.3,"iso",,1))) -> 33000 | X50: =IF(V50<>"",capa($E$7,$M$7,$H$7,"det",Chart!$H$2,,V50),"") -> X7R262L 1e 15.0c 59µ 270µb 1.17mm 8.4Vµ | Y50: =IF(V50="","",IFERROR(_xlfn.XLOOKUP($E$7&$H$7&$M$7&$V50,#REF!,#REF!),"")) ->  | Z50: =IF(Y50="","",IFERROR(_xlfn.XLOOKUP($E$7&$H$7&$M$7&$V50,#REF!,#REF!),"")) ->  | AA50: =IF(Y50="","",IFERROR(_xlfn.XLOOKUP($E$7&$H$7&$M$7&$V50,#REF!,#REF!),"")) ->  | AB50: =IF(Y50="","",IFERROR(_xlfn.XLOOKUP($E$7&$H$7&$M$7&$V50,#REF!,#REF!),"")) ->  | AC50: =IF(Y50="","",IFERROR(_xlfn.XLOOKUP($E$7&$H$7&$M$7&$V50,#REF!,#REF!),"")) ->  | AD50: =IF(Z50="","",IFERROR(_xlfn.XLOOKUP($E$7&$H$7&$M$7&$V50,#REF!,#REF!),"")) ->  | AF50: G | AG50: 0.02 | BQ50: 3024 | CE50: SRMC74 | CF50: 5550 | CG50: 17 | CH50: 14 | CI50: 5 | CJ50: 14.6 | CK50: 0.6 | CX50: 3330 | CY50: =ROUND(LEFT(CX50,2)*2.54/10,1) -> 8.4 | CZ50: =ROUND(RIGHT(CX50,2)*2.54/10,1) -> 7.6 | DA50: 1.8 | DB50: 4.1 | DC50: 0.4 | DD50: 0.5 | DE50: 1.2 | DF50: 1.6 | DG50: 0.23 | DH50: 10 | DI50: =MIN((Size[[#This Row],[long]]^0.5*Size[[#This Row],[larg]]^0.2)/3*0.6+0.16,0.8)*Size[[#This Row],[long]]*Size[[#This Row],[larg]] -> 51.072 | DJ50: 21.96096 | DK50: =$DI50/DK$3*IF($DI50<10,DK$1,DK$1+MIN(($DI50-10)/30,1)*(DK$2-DK$1)) -> 13.10848 | DL50: 9.32064 | DM50: 7.252224 | DN50: 6.04352 | DO50: 5.18016 | DP50: 4.4688 | DQ50: 3.972266667 | DR50: 3.523968 | DS50: 12000 | DT50: =7500/(Size[[#This Row],[long]]*Size[[#This Row],[larg]])^1.1 -> 77.52809223 | DU50: =Size[[#This Row],[nbpc4]]*5.6*5.6/3.6/3.6 -> 187.5988405 | DV50: =Size[[#This Row],[nbpc4]]*7.6*7.6/3.6/3.6 -> 345.5264357 | DW50: =7500/(Size[[#This Row],[long]]*Size[[#This Row],[larg]])^1.1 -> 77.52809223 | DX50: 80.1 | DY50: =+DX50*0.75*0.75 -> 45.05625 | DZ50: =+DX50*0.84*0.84 -> 56.51856 | GE50: 0603 E1 | GF50: 3G 0603 2C V1 | GG50: 0603 | GH50: SMD | GI50: 4 | GJ50: 1 | GK50: 0603 | GL50: 2015-06-10 | GM50: TRUE | GO50: 325 | GP50: 1 | GR50: 3634 | GS50: 0.1284720942 | GT50: 0.2875 | GU50: surface pour 1 électrode série | GV50: 0603/4/1 | GW50: 0603/4/1 | GX50: 0.6850368059
F51: 44 | P51: =IF(R51<>"",fmt(R51,"isomin"),"") -> 39 nF | Q51: 44 | R51: =IF(R50="","",IF(fmt(R50*1.3,"iso",,1)>$R$6*$S$7,"",fmt(R50*1.3,"iso",,1))) -> 39000 | T51: =IF(V51<>"",fmt(V51,"isomin"),"") -> 39 nF | U51: 44 | V51: =IF(V50="","",IF(fmt(V50*1.3,"iso",,1)>$R$6,"",fmt(V50*1.3,"iso",,1))) -> 39000 | X51: =IF(V51<>"",capa($E$7,$M$7,$H$7,"det",Chart!$H$2,,V51),"") -> X7R262L 1e 17.0c 57µ 270µb 1.23mm 8.8Vµ | Y51: =IF(V51="","",IFERROR(_xlfn.XLOOKUP($E$7&$H$7&$M$7&$V51,#REF!,#REF!),"")) ->  | Z51: =IF(Y51="","",IFERROR(_xlfn.XLOOKUP($E$7&$H$7&$M$7&$V51,#REF!,#REF!),"")) ->  | AA51: =IF(Y51="","",IFERROR(_xlfn.XLOOKUP($E$7&$H$7&$M$7&$V51,#REF!,#REF!),"")) ->  | AB51: =IF(Y51="","",IFERROR(_xlfn.XLOOKUP($E$7&$H$7&$M$7&$V51,#REF!,#REF!),"")) ->  | AC51: =IF(Y51="","",IFERROR(_xlfn.XLOOKUP($E$7&$H$7&$M$7&$V51,#REF!,#REF!),"")) ->  | AD51: =IF(Z51="","",IFERROR(_xlfn.XLOOKUP($E$7&$H$7&$M$7&$V51,#REF!,#REF!),"")) ->  | AF51: J | AG51: 0.05 | BQ51: 3025 | CE51: SRMC76 | CF51: 5440 | CG51: 16 | CH51: 12.5 | CI51: 5 | CJ51: 15.24 | CK51: 0.8 | CX51: 3333 | CY51: 8.4 | CZ51: 8.4 | DA51: 1.8 | DB51: 4.1 | DC51: 0.4 | DD51: 0.5 | DE51: 1.2 | DF51: 1.6 | DG51: 0.23 | DH51: 10 | DI51: =MIN((Size[[#This Row],[long]]^0.5*Size[[#This Row],[larg]]^0.2)/3*0.6+0.16,0.8)*Size[[#This Row],[long]]*Size[[#This Row],[larg]] -> 56.448 | DJ51: 24.27264 | DK51: 14.48832 | DL51: 10.30176 | DM51: 8.015616 | DN51: 6.67968 | DO51: 5.72544 | DP51: 4.9392 | DQ51: 4.3904 | DR51: 3.894912 | DS51: 12000 | DT51: =7500/(Size[[#This Row],[long]]*Size[[#This Row],[larg]])^1.1 -> 69.44593573 | DU51: =Size[[#This Row],[nbpc4]]*5.6*5.6/3.6/3.6 -> 168.0420173 | DV51: =Size[[#This Row],[nbpc4]]*7.6*7.6/3.6/3.6 -> 309.5059605 | DW51: =7500/(Size[[#This Row],[long]]*Size[[#This Row],[larg]])^1.1 -> 69.44593573 | GE51: 0603 1G V2-4 | GF51: 1G 0603 V2 | GG51: 0603 | GH51: SMD | GI51: 4 | GJ51: 1 | GK51: 0603 | GL51: 2019-10-18 | GM51: TRUE | GO51: 400 | GP51: 1.9 | GQ51: 25-27 | GR51: 5000 | GS51: 0.5167566346 | GT51: 0.68 | GV51: 0603/4/1 | GW51: 0603/4/1 | GX51: 0.1115971615
F52: 45 | P52: =IF(R52<>"",fmt(R52,"isomin"),"") -> 47 nF | Q52: 45 | R52: =IF(R51="","",IF(fmt(R51*1.3,"iso",,1)>$R$6*$S$7,"",fmt(R51*1.3,"iso",,1))) -> 47000 | T52: =IF(V52<>"",fmt(V52,"isomin"),"") -> 47 nF | U52: 45 | V52: =IF(V51="","",IF(fmt(V51*1.3,"iso",,1)>$R$6,"",fmt(V51*1.3,"iso",,1))) -> 47000 | X52: =IF(V52<>"",capa($E$7,$M$7,$H$7,"det",Chart!$H$2,,V52),"") -> X7R262L 1e 19.0c 53µ 270µb 1.26mm 9.5Vµ | Y52: =IF(V52="","",IFERROR(_xlfn.XLOOKUP($E$7&$H$7&$M$7&$V52,#REF!,#REF!),"")) ->  | Z52: =IF(Y52="","",IFERROR(_xlfn.XLOOKUP($E$7&$H$7&$M$7&$V52,#REF!,#REF!),"")) ->  | AA52: =IF(Y52="","",IFERROR(_xlfn.XLOOKUP($E$7&$H$7&$M$7&$V52,#REF!,#REF!),"")) ->  | AB52: =IF(Y52="","",IFERROR(_xlfn.XLOOKUP($E$7&$H$7&$M$7&$V52,#REF!,#REF!),"")) ->  | AC52: =IF(Y52="","",IFERROR(_xlfn.XLOOKUP($E$7&$H$7&$M$7&$V52,#REF!,#REF!),"")) ->  | AD52: =IF(Z52="","",IFERROR(_xlfn.XLOOKUP($E$7&$H$7&$M$7&$V52,#REF!,#REF!),"")) ->  | AF52: K | AG52: 0.1 | BQ52: 3033 | CE52: SRMC80 | CF52: 6080 | CG52: 18.7 | CH52: 22.5 | CI52: 5 | CJ52: 15.24 | CK52: 0.8 | CX52: 3530 | CY52: =ROUND(LEFT(CX52,2)*2.54/10,1) -> 8.9 | CZ52: =ROUND(RIGHT(CX52,2)*2.54/10,1) -> 7.6 | DA52: 1.8 | DB52: 4.1 | DC52: 0.4 | DD52: 0.5 | DE52: 1.2 | DF52: 1.7 | DG52: 0.24 | DH52: 10 | DI52: =MIN((Size[[#This Row],[long]]^0.5*Size[[#This Row],[larg]]^0.2)/3*0.6+0.16,0.8)*Size[[#This Row],[long]]*Size[[#This Row],[larg]] -> 54.112 | DJ52: 23.26816 | DK52: 13.88874667 | DL52: 9.87544 | DM52: 7.683904 | DN52: 6.403253333 | DO52: 5.488502857 | DP52: 4.7348 | DQ52: 4.208711111 | DR52: 3.733728 | DS52: 12000 | DT52: =7500/(Size[[#This Row],[long]]*Size[[#This Row],[larg]])^1.1 -> 72.75072147 | DU52: =Size[[#This Row],[nbpc4]]*5.6*5.6/3.6/3.6 -> 176.0387828 | DV52: =Size[[#This Row],[nbpc4]]*7.6*7.6/3.6/3.6 -> 324.2346969 | DW52: =7500/(Size[[#This Row],[long]]*Size[[#This Row],[larg]])^1.1 -> 72.75072147 | GE52: 0603 D1 | GF52: 1G 0603 V1 | GG52: 0603 | GH52: SMD | GI52: 4 | GJ52: 1 | GK52: 0603 | GL52: 2013-01-23 | GM52: TRUE | GO52: 510 | GP52: 1.9 | GQ52: 30-32 | GR52: 3280 | GS52: 0.7379036867 | GT52: 0.68 | GV52: 0603/4/1 | GW52: 0603/4/1 | GX52: 0.8506337348
F53: 46 | P53: =IF(R53<>"",fmt(R53,"isomin"),"") -> 56 nF | Q53: 46 | R53: =IF(R52="","",IF(fmt(R52*1.3,"iso",,1)>$R$6*$S$7,"",fmt(R52*1.3,"iso",,1))) -> 56000 | T53: =IF(V53<>"",fmt(V53,"isomin"),"") -> 56 nF | U53: 46 | V53: =IF(V52="","",IF(fmt(V52*1.3,"iso",,1)>$R$6,"",fmt(V52*1.3,"iso",,1))) -> 56000 | X53: =IF(V53<>"",capa($E$7,$M$7,$H$7,"det",Chart!$H$2,,V53),"") -> X7R262L 1e 22.0c 51µ 269µb 1.36mm 9.7Vµ | Y53: =IF(V53="","",IFERROR(_xlfn.XLOOKUP($E$7&$H$7&$M$7&$V53,#REF!,#REF!),"")) ->  | Z53: =IF(Y53="","",IFERROR(_xlfn.XLOOKUP($E$7&$H$7&$M$7&$V53,#REF!,#REF!),"")) ->  | AA53: =IF(Y53="","",IFERROR(_xlfn.XLOOKUP($E$7&$H$7&$M$7&$V53,#REF!,#REF!),"")) ->  | AB53: =IF(Y53="","",IFERROR(_xlfn.XLOOKUP($E$7&$H$7&$M$7&$V53,#REF!,#REF!),"")) ->  | AC53: =IF(Y53="","",IFERROR(_xlfn.XLOOKUP($E$7&$H$7&$M$7&$V53,#REF!,#REF!),"")) ->  | AD53: =IF(Z53="","",IFERROR(_xlfn.XLOOKUP($E$7&$H$7&$M$7&$V53,#REF!,#REF!),"")) ->  | AF53: M | AG53: 0.2 | BQ53: 3040 | CE53: SRMC81 | CF53: 8060 | CG53: 25 | CH53: 19 | CI53: 5 | CJ53: 15.24 | CK53: 0.8 | CX53: 3540 | CY53: =ROUND(LEFT(CX53,2)*2.54/10,1) -> 8.9 | CZ53: =ROUND(RIGHT(CX53,2)*2.54/10,1) -> 10.2 | DA53: 1.8 | DB53: 4.1 | DC53: 0.4 | DD53: 0.5 | DE53: 1.2 | DF53: 1.7 | DG53: 0.24 | DH53: 10 | DI53: =MIN((Size[[#This Row],[long]]^0.5*Size[[#This Row],[larg]]^0.2)/3*0.6+0.16,0.8)*Size[[#This Row],[long]]*Size[[#This Row],[larg]] -> 72.624 | DJ53: 31.22832 | DK53: 18.64016 | DL53: 13.25388 | DM53: 10.312608 | DN53: 8.59384 | DO53: 7.366148571 | DP53: 6.3546 | DQ53: 5.648533333 | DR53: 5.011056 | DS53: 15000 | DT53: =7500/(Size[[#This Row],[long]]*Size[[#This Row],[larg]])^1.1 -> 52.63468972 | DU53: =Size[[#This Row],[nbpc4]]*5.6*5.6/3.6/3.6 -> 127.3629529 | DV53: =Size[[#This Row],[nbpc4]]*7.6*7.6/3.6/3.6 -> 234.5817653 | DW53: =7500/(Size[[#This Row],[long]]*Size[[#This Row],[larg]])^1.1 -> 52.63468972 | GE53: 0603 C3 | GF53: 1G 0603 V1 | GG53: 0603 | GH53: SMD | GI53: 4 | GJ53: 1 | GK53: 0603 | GL53: 2016-11-28 | GM53: TRUE | GO53: 325 | GP53: 1.9 | GQ53: 25-26 | GR53: 3280 | GS53: 0.7235774153 | GT53: 0.7597715001 | GU53: Typon a refaire cause repères et DETENDU | GV53: 0603/4/1 | GW53: 0603/4/1 | GX53: 0.8506337348
F54: 47 | P54: =IF(R54<>"",fmt(R54,"isomin"),"") -> 68 nF | Q54: 47 | R54: =IF(R53="","",IF(fmt(R53*1.3,"iso",,1)>$R$6*$S$7,"",fmt(R53*1.3,"iso",,1))) -> 68000 | T54: =IF(V54<>"",fmt(V54,"isomin"),"") -> 68 nF | U54: 47 | V54: =IF(V53="","",IF(fmt(V53*1.3,"iso",,1)>$R$6,"",fmt(V53*1.3,"iso",,1))) -> 68000 | X54: =IF(V54<>"",capa($E$7,$M$7,$H$7,"det",Chart!$H$2,,V54),"") -> X7R262L 1e 25.0c 48µ 269µb 1.42mm 10.4Vµ | Y54: =IF(V54="","",IFERROR(_xlfn.XLOOKUP($E$7&$H$7&$M$7&$V54,#REF!,#REF!),"")) ->  | Z54: =IF(Y54="","",IFERROR(_xlfn.XLOOKUP($E$7&$H$7&$M$7&$V54,#REF!,#REF!),"")) ->  | AA54: =IF(Y54="","",IFERROR(_xlfn.XLOOKUP($E$7&$H$7&$M$7&$V54,#REF!,#REF!),"")) ->  | AB54: =IF(Y54="","",IFERROR(_xlfn.XLOOKUP($E$7&$H$7&$M$7&$V54,#REF!,#REF!),"")) ->  | AC54: =IF(Y54="","",IFERROR(_xlfn.XLOOKUP($E$7&$H$7&$M$7&$V54,#REF!,#REF!),"")) ->  | AD54: =IF(Z54="","",IFERROR(_xlfn.XLOOKUP($E$7&$H$7&$M$7&$V54,#REF!,#REF!),"")) ->  | BQ54: 3330 | CE54: SRMC82 | CF54: 6560 | CG54: 19.6 | CH54: 18.3 | CI54: 5 | CJ54: 17.1 | CK54: 0.8 | CX54: 3545 | CY54: =ROUND(LEFT(CX54,2)*2.54/10,1) -> 8.9 | CZ54: =ROUND(RIGHT(CX54,2)*2.54/10,1) -> 11.4 | DA54: 1.8 | DB54: 4.1 | DC54: 0.5 | DD54: 0.5 | DE54: 1.2 | DF54: 1.7 | DG54: 0.24 | DH54: 10 | DI54: =MIN((Size[[#This Row],[long]]^0.5*Size[[#This Row],[larg]]^0.2)/3*0.6+0.16,0.8)*Size[[#This Row],[long]]*Size[[#This Row],[larg]] -> 81.168 | DJ54: 34.90224 | DK54: 20.83312 | DL54: 14.81316 | DM54: 11.525856 | DN54: 9.60488 | DO54: 8.232754286 | DP54: 7.1022 | DQ54: 6.313066667 | DR54: 5.600592 | DS54: 15000 | DT54: =7500/(Size[[#This Row],[long]]*Size[[#This Row],[larg]])^1.1 -> 46.57329016 | DU54: =Size[[#This Row],[nbpc4]]*5.6*5.6/3.6/3.6 -> 112.6958626 | DV54: =Size[[#This Row],[nbpc4]]*7.6*7.6/3.6/3.6 -> 207.5673796 | DW54: =7500/(Size[[#This Row],[long]]*Size[[#This Row],[larg]])^1.1 -> 46.57329016 | DX54: 104.1 | DY54: =+DX54*0.75*0.75 -> 58.55625 | DZ54: =+DX54*0.84*0.84 -> 73.45296 | GE54: 0603 C2 | GF54: 1G 0603 V1 | GG54: 0603 | GH54: SMD | GI54: 4 | GJ54: 1 | GK54: 0603 | GL54: 2015-12-01 | GM54: FALSE | GO54: 325 | GP54: 1.9 | GQ54: 27-30 | GR54: 3280 | GS54: 0.7186520367 | GT54: 0.7051983868 | GV54: 0603/4/1 | GX54: 0.8506337348
F55: 48 | P55: =IF(R55<>"",fmt(R55,"isomin"),"") -> 82 nF | Q55: 48 | R55: =IF(R54="","",IF(fmt(R54*1.3,"iso",,1)>$R$6*$S$7,"",fmt(R54*1.3,"iso",,1))) -> 82000 | T55: =IF(V55<>"",fmt(V55,"isomin"),"") -> 82 nF | U55: 48 | V55: =IF(V54="","",IF(fmt(V54*1.3,"iso",,1)>$R$6,"",fmt(V54*1.3,"iso",,1))) -> 82000 | X55: =IF(V55<>"",capa($E$7,$M$7,$H$7,"det",Chart!$H$2,,V55),"") -> X7R262L 1e 29.0c 46µ 269µb 1.53mm 10.8Vµ | Y55: =IF(V55="","",IFERROR(_xlfn.XLOOKUP($E$7&$H$7&$M$7&$V55,#REF!,#REF!),"")) ->  | Z55: =IF(Y55="","",IFERROR(_xlfn.XLOOKUP($E$7&$H$7&$M$7&$V55,#REF!,#REF!),"")) ->  | AA55: =IF(Y55="","",IFERROR(_xlfn.XLOOKUP($E$7&$H$7&$M$7&$V55,#REF!,#REF!),"")) ->  | AB55: =IF(Y55="","",IFERROR(_xlfn.XLOOKUP($E$7&$H$7&$M$7&$V55,#REF!,#REF!),"")) ->  | AC55: =IF(Y55="","",IFERROR(_xlfn.XLOOKUP($E$7&$H$7&$M$7&$V55,#REF!,#REF!),"")) ->  | AD55: =IF(Z55="","",IFERROR(_xlfn.XLOOKUP($E$7&$H$7&$M$7&$V55,#REF!,#REF!),"")) ->  | BQ55: 3333 | CE55: SRMC84 | CF55: 6560 | CG55: 18.5 | CH55: 17.5 | CI55: 5 | CJ55: 17.8 | CK55: 0.8 | CX55: 3640 | CY55: 9.15 | CZ55: 10.2 | DA55: 1.8 | DB55: 4.1 | DC55: 0.8 | DD55: 0.8 | DE55: 1.5 | DF55: 1.8 | DG55: 0.25 | DH55: 10 | DI55: =MIN((Size[[#This Row],[long]]^0.5*Size[[#This Row],[larg]]^0.2)/3*0.6+0.16,0.8)*Size[[#This Row],[long]]*Size[[#This Row],[larg]] -> 74.664 | DJ55: 32.10552 | DK55: 19.16376 | DL55: 13.62618 | DM55: 10.602288 | DN55: 8.83524 | DO55: 7.573062857 | DP55: 6.5331 | DQ55: 5.8072 | DR55: 5.151816 | DS55: 15000 | DT55: =7500/(Size[[#This Row],[long]]*Size[[#This Row],[larg]])^1.1 -> 51.05495185 | DU55: =Size[[#This Row],[nbpc4]]*5.6*5.6/3.6/3.6 -> 123.5403773 | DV55: =Size[[#This Row],[nbpc4]]*7.6*7.6/3.6/3.6 -> 227.5412052 | DW55: =7500/(Size[[#This Row],[long]]*Size[[#This Row],[larg]])^1.1 -> 51.05495185 | GE55: 0603 A1 | GF55: 1G 0603 | GG55: 0603 | GH55: SMD | GI55: 4 | GJ55: 1 | GK55: 0603 | GL55: 2012-02-22 | GM55: FALSE | GO55: 325 | GP55: 1.9 | GQ55: 24-27 | GR55: 3725 | GS55: 0.9074421228 | GT55: 0.8925767051 | GV55: 0603/4/1 | GX55: 0.6437879845
F56: 49 | P56: =IF(R56<>"",fmt(R56,"isomin"),"") -> 100 nF | Q56: 49 | R56: =IF(R55="","",IF(fmt(R55*1.3,"iso",,1)>$R$6*$S$7,"",fmt(R55*1.3,"iso",,1))) -> 100000 | T56: =IF(V56<>"",fmt(V56,"isomin"),"") -> 100 nF | U56: 49 | V56: =IF(V55="","",IF(fmt(V55*1.3,"iso",,1)>$R$6,"",fmt(V55*1.3,"iso",,1))) -> 100000 | X56: =IF(V56<>"",capa($E$7,$M$7,$H$7,"det",Chart!$H$2,,V56),"") -> X7R262L 1e 33.0c 43µ 269µb 1.60mm 11.6Vµ | Y56: =IF(V56="","",IFERROR(_xlfn.XLOOKUP($E$7&$H$7&$M$7&$V56,#REF!,#REF!),"")) ->  | Z56: =IF(Y56="","",IFERROR(_xlfn.XLOOKUP($E$7&$H$7&$M$7&$V56,#REF!,#REF!),"")) ->  | AA56: =IF(Y56="","",IFERROR(_xlfn.XLOOKUP($E$7&$H$7&$M$7&$V56,#REF!,#REF!),"")) ->  | AB56: =IF(Y56="","",IFERROR(_xlfn.XLOOKUP($E$7&$H$7&$M$7&$V56,#REF!,#REF!),"")) ->  | AC56: =IF(Y56="","",IFERROR(_xlfn.XLOOKUP($E$7&$H$7&$M$7&$V56,#REF!,#REF!),"")) ->  | AD56: =IF(Z56="","",IFERROR(_xlfn.XLOOKUP($E$7&$H$7&$M$7&$V56,#REF!,#REF!),"")) ->  | BQ56: 3530 | CE56: SRMC88 | CF56: 7560 | CG56: 22.1 | CH56: 16.8 | CI56: 5 | CJ56: 20.3 | CK56: 0.8 | CX56: 3740 | CY56: =ROUND(LEFT(CX56,2)*2.54/10,1) -> 9.4 | CZ56: =ROUND(RIGHT(CX56,2)*2.54/10,1) -> 10.2 | DA56: 1.9 | DB56: 4.1 | DC56: 0.8 | DD56: 0.8 | DE56: 1.5 | DF56: 1.8 | DG56: 0.25 | DH56: 10 | DI56: =MIN((Size[[#This Row],[long]]^0.5*Size[[#This Row],[larg]]^0.2)/3*0.6+0.16,0.8)*Size[[#This Row],[long]]*Size[[#This Row],[larg]] -> 76.704 | DJ56: 32.98272 | DK56: 19.68736 | DL56: 13.99848 | DM56: 10.891968 | DN56: 9.07664 | DO56: 7.779977143 | DP56: 6.7116 | DQ56: 5.965866667 | DR56: 5.292576 | DS56: 15000 | DT56: =7500/(Size[[#This Row],[long]]*Size[[#This Row],[larg]])^1.1 -> 49.5633252 | DU56: =Size[[#This Row],[nbpc4]]*5.6*5.6/3.6/3.6 -> 119.9310091 | DV56: =Size[[#This Row],[nbpc4]]*7.6*7.6/3.6/3.6 -> 220.8933383 | DW56: =7500/(Size[[#This Row],[long]]*Size[[#This Row],[larg]])^1.1 -> 49.5633252 | GE56: 0603 C1 | GF56: 1G 0603 V1 | GG56: 0603 | GH56: SMD | GI56: 4 | GJ56: 1 | GK56: 0603 | GL56: 2012-02-17 | GM56: FALSE | GO56: 325 | GP56: 1.9 | GQ56: 24-26 | GR56: 3280 | GS56: 0.7652554907 | GT56: 0.745145818 | GV56: 0603/4/1 | GX56: 0.8506337348
F57: 50 | P57: =IF(R57<>"",fmt(R57,"isomin"),"") -> 120 nF | Q57: 50 | R57: =IF(R56="","",IF(fmt(R56*1.3,"iso",,1)>$R$6*$S$7,"",fmt(R56*1.3,"iso",,1))) -> 120000 | T57: =IF(V57<>"",fmt(V57,"isomin"),"") -> 120 nF | U57: 50 | V57: =IF(V56="","",IF(fmt(V56*1.3,"iso",,1)>$R$6,"",fmt(V56*1.3,"iso",,1))) -> 120000 | X57: =IF(V57<>"",capa($E$7,$M$7,$H$7,"det",Chart!$H$2,,V57),"") -> X7R262L 1e 38.0c 41µ 269µb 1.72mm 12.1Vµ | Y57: =IF(V57="","",IFERROR(_xlfn.XLOOKUP($E$7&$H$7&$M$7&$V57,#REF!,#REF!),"")) ->  | Z57: =IF(Y57="","",IFERROR(_xlfn.XLOOKUP($E$7&$H$7&$M$7&$V57,#REF!,#REF!),"")) ->  | AA57: =IF(Y57="","",IFERROR(_xlfn.XLOOKUP($E$7&$H$7&$M$7&$V57,#REF!,#REF!),"")) ->  | AB57: =IF(Y57="","",IFERROR(_xlfn.XLOOKUP($E$7&$H$7&$M$7&$V57,#REF!,#REF!),"")) ->  | AC57: =IF(Y57="","",IFERROR(_xlfn.XLOOKUP($E$7&$H$7&$M$7&$V57,#REF!,#REF!),"")) ->  | AD57: =IF(Z57="","",IFERROR(_xlfn.XLOOKUP($E$7&$H$7&$M$7&$V57,#REF!,#REF!),"")) ->  | BQ57: 3540 | CE57: SRMC90 | CF57: 8060 | CG57: 25 | CH57: 19 | CI57: 5 | CJ57: 21 | CK57: 0.8 | CX57: 4020 | CY57: =ROUND(LEFT(CX57,2)*2.54/10,1) -> 10.2 | CZ57: =ROUND(RIGHT(CX57,2)*2.54/10,1) -> 5.1 | DA57: 2 | DB57: 4.1 | DC57: 0.8 | DD57: 0.8 | DE57: 1.5 | DF57: 1.8 | DG57: 0.25 | DH57: 10 | DI57: =MIN((Size[[#This Row],[long]]^0.5*Size[[#This Row],[larg]]^0.2)/3*0.6+0.16,0.8)*Size[[#This Row],[long]]*Size[[#This Row],[larg]] -> 41.616 | DJ57: 17.89488 | DK57: 10.68144 | DL57: 7.59492 | DM57: 5.909472 | DN57: 4.92456 | DO57: 4.221051429 | DP57: 3.6414 | DQ57: 3.2368 | DR57: 2.871504 | DS57: 15000 | DT57: =7500/(Size[[#This Row],[long]]*Size[[#This Row],[larg]])^1.1 -> 97.11221966 | DU57: =Size[[#This Row],[nbpc4]]*5.6*5.6/3.6/3.6 -> 234.9875932 | DV57: =Size[[#This Row],[nbpc4]]*7.6*7.6/3.6/3.6 -> 432.8087814 | DW57: =7500/(Size[[#This Row],[long]]*Size[[#This Row],[larg]])^1.1 -> 97.11221966 | DX57: 114.24 | DY57: =+DX57*0.75*0.75 -> 64.26 | DZ57: =+DX57*0.84*0.84 -> 80.607744 | GE57: 0603 B1 | GF57: 1G 0603 | GG57: 0603 | GH57: SMD | GI57: 4 | GJ57: 1 | GK57: 0603 | GL57: 2005-07-04 | GM57: FALSE | GO57: 500 | GP57: 1.9 | GQ57: 20-24 | GR57: 3725 | GS57: 0.9764409799 | GT57: 0.9708161796 | GU57: DETENDU A SUPPRIMER | GV57: 0603/4/1 | GX57: 0.6437879845
